Workbook

Sheet موزع الشعب
A1: رقم الشعبة | B1: عدد الطلاب الشعبة | C1: عدد الشعب | D1: التوزيع | E1: العدد الصحيح | F1: ناقص العدد الصحيح | G1: الباقي | I1: الرقم | J1: الشعبة الأولى | M1: الشعبة الثانية | P1: الشعبة الثالثة | S1: الشعبة الرابعة | V1: الشعبة الخامسة | Y1: الشعبة السادسة | AB1: الشعبة السابعة | AE1: الشعبة الثامنة | AH1: الشعبة التاسعة | AK1: الشعبة العاشرة
A2: 1 | B2: 47 | C2: 10 | D2: =IFERROR(B2/C2,"") -> 4.7 | E2: =IFERROR(INT(D2),"") -> 4 | F2: =IFERROR(D2-E2,"") -> 0.7 | G2: =IFERROR(F2*C2,"") -> 7 | I2: =IF($C$2>=1,1,"") -> 1 | J2: =I2 -> 1 | K2: =J2 -> 1 | M2: =I2 -> 1 | N2: =IFERROR(G2+1,"") -> 8 | P2: =I2 -> 1 | Q2: =IFERROR(IF(G15=0,1,IF(G15=1,2,IF(G15=2,3,IF(G15=3,4,IF(G15=4,5,IF(G15=5,6,IF(G15=6,7,IF(G15=7,8,IF(G15=8,9,IF(G15=9,10,IF(G15=10,1,IF(G15=11,2,IF(G15=12,3,IF(G15=13,4,IF(G15=14,5,IF(G15=15,6,IF(G15=16,7,IF(G15=17,8,IF(G15=18,9,IF(G15=19,10)))))))))))))))))))),"") -> 3 | S2: =I2 -> 1 | T2: =IFERROR(IF(G16=0,1,IF(G16=1,2,IF(G16=2,3,IF(G16=3,4,IF(G16=4,5,IF(G16=5,6,IF(G16=6,7,IF(G16=7,8,IF(G16=8,9,IF(G16=9,10,IF(G16=10,1,IF(G16=11,2,IF(G16=12,3,IF(G16=13,4,IF(G16=14,5,IF(G16=15,6,IF(G16=16,7,IF(G16=17,8,IF(G16=18,9,IF(G16=19,10)))))))))))))))))))),"") -> 4 | V2: =I2 -> 1 | W2: =IFERROR(IF(G17=0,1,IF(G17=1,2,IF(G17=2,3,IF(G17=3,4,IF(G17=4,5,IF(G17=5,6,IF(G17=6,7,IF(G17=7,8,IF(G17=8,9,IF(G17=9,10,IF(G17=10,1,IF(G17=11,2,IF(G17=12,3,IF(G17=13,4,IF(G17=14,5,IF(G17=15,6,IF(G17=16,7,IF(G17=17,8,IF(G17=18,9,IF(G17=19,10)))))))))))))))))))),"") -> 3 | Y2: =I2 -> 1 | Z2: =IFERROR(IF(G18=0,1,IF(G18=1,2,IF(G18=2,3,IF(G18=3,4,IF(G18=4,5,IF(G18=5,6,IF(G18=6,7,IF(G18=7,8,IF(G18=8,9,IF(G18=9,10,IF(G18=10,1,IF(G18=11,2,IF(G18=12,3,IF(G18=13,4,IF(G18=14,5,IF(G18=15,6,IF(G18=16,7,IF(G18=17,8,IF(G18=18,9,IF(G18=19,10)))))))))))))))))))),"") -> 9 | AB2: =I2 -> 1 | AC2: =IFERROR(IF(G19=0,1,IF(G19=1,2,IF(G19=2,3,IF(G19=3,4,IF(G19=4,5,IF(G19=5,6,IF(G19=6,7,IF(G19=7,8,IF(G19=8,9,IF(G19=9,10,IF(G19=10,1,IF(G19=11,2,IF(G19=12,3,IF(G19=13,4,IF(G19=14,5,IF(G19=15,6,IF(G19=16,7,IF(G19=17,8,IF(G19=18,9,IF(G19=19,10)))))))))))))))))))),"") -> 10 | AE2: =I2 -> 1 | AF2: =IFERROR(IF(G20=0,1,IF(G20=1,2,IF(G20=2,3,IF(G20=3,4,IF(G20=4,5,IF(G20=5,6,IF(G20=6,7,IF(G20=7,8,IF(G20=8,9,IF(G20=9,10,IF(G20=10,1,IF(G20=11,2,IF(G20=12,3,IF(G20=13,4,IF(G20=14,5,IF(G20=15,6,IF(G20=16,7,IF(G20=17,8,IF(G20=18,9,IF(G20=19,10)))))))))))))))))))),"") -> 2 | AH2: =I2 -> 1 | AI2: =IFERROR(IF(G21=0,1,IF(G21=1,2,IF(G21=2,3,IF(G21=3,4,IF(G21=4,5,IF(G21=5,6,IF(G21=6,7,IF(G21=7,8,IF(G21=8,9,IF(G21=9,10,IF(G21=10,1,IF(G21=11,2,IF(G21=12,3,IF(G21=13,4,IF(G21=14,5,IF(G21=15,6,IF(G21=16,7,IF(G21=17,8,IF(G21=18,9,IF(G21=19,10)))))))))))))))))))),"") -> 6 | AK2: =I2 -> 1 | AL2: =IFERROR(IF(G22=0,1,IF(G22=1,2,IF(G22=2,3,IF(G22=3,4,IF(G22=4,5,IF(G22=5,6,IF(G22=6,7,IF(G22=7,8,IF(G22=8,9,IF(G22=9,10,IF(G22=10,1,IF(G22=11,2,IF(G22=12,3,IF(G22=13,4,IF(G22=14,5,IF(G22=15,6,IF(G22=16,7,IF(G22=17,8,IF(G22=18,9,IF(G22=19,10)))))))))))))))))))),"") -> 9
A3: 2 | B3: 45 | D3: =IFERROR(B3/C2,"") -> 4.5 | E3: 4 | F3: 0.5 | G3: =IFERROR(F3*C2,"") -> 5 | I3: =IF(I2>=$C$2,"",I2+1) -> 2 | J3: =I3 -> 2 | K3: =J3 -> 2 | M3: =I3 -> 2 | N3: =IF(N2=C2,1,IF(N2<>C2,N2+1)) -> 9 | P3: =I3 -> 2 | Q3: =IF(Q2=C2,1,IF(Q2<>C2,Q2+1)) -> 4 | S3: =I3 -> 2 | T3: =IF(T2=C2,1,IF(T2<>C2,T2+1)) -> 5 | V3: =I3 -> 2 | W3: =IF(W2=C2,1,IF(W2<>C2,W2+1)) -> 4 | Y3: =I3 -> 2 | Z3: =IF(Z2=C2,1,IF(Z2<>C2,Z2+1)) -> 10 | AB3: =I3 -> 2 | AC3: =IF(AC2=C2,1,IF(AC2<>C2,AC2+1)) -> 1 | AE3: =I3 -> 2 | AF3: =IF(AF2=C2,1,IF(AF2<>C2,AF2+1)) -> 3 | AH3: =I3 -> 2 | AI3: =IF(AI2=C2,1,IF(AI2<>C2,AI2+1)) -> 7 | AK3: =I3 -> 2 | AL3: =IF(AL2=C2,1,IF(AL2<>C2,AL2+1)) -> 10
A4: 3 | B4: 41 | D4: =IFERROR(B4/C2,"") -> 4.1 | E4: 4 | F4: 0.1 | G4: =IFERROR(F4*C2,"") -> 1 | I4: =IF(I3>=$C$2,"",I3+1) -> 3 | J4: 3 | K4: 3 | M4: 3 | N4: =IF(N3=C2,1,IF(N3<>C2,N3+1)) -> 10 | P4: 3 | Q4: =IF(Q3=C2,1,IF(Q3<>C2,Q3+1)) -> 5 | S4: 3 | T4: =IF(T3=C2,1,IF(T3<>C2,T3+1)) -> 6 | V4: 3 | W4: =IF(W3=C2,1,IF(W3<>C2,W3+1)) -> 5 | Y4: 3 | Z4: =IF(Z3=C2,1,IF(Z3<>C2,Z3+1)) -> 1 | AB4: 3 | AC4: =IF(AC3=C2,1,IF(AC3<>C2,AC3+1)) -> 2 | AE4: 3 | AF4: =IF(AF3=C2,1,IF(AF3<>C2,AF3+1)) -> 4 | AH4: 3 | AI4: =IF(AI3=C2,1,IF(AI3<>C2,AI3+1)) -> 8 | AK4: 3 | AL4: =IF(AL3=C2,1,IF(AL3<>C2,AL3+1)) -> 1
A5: 4 | B5: 39 | D5: =IFERROR(B5/C2,"") -> 3.9 | E5: 3 | F5: 0.9 | G5: =IFERROR(F5*C2,"") -> 9 | I5: 4 | J5: 4 | K5: 4 | M5: 4 | N5: =IF(N4=C2,1,IF(N4<>C2,N4+1)) -> 1 | P5: 4 | Q5: =IF(Q4=C2,1,IF(Q4<>C2,Q4+1)) -> 6 | S5: 4 | T5: =IF(T4=C2,1,IF(T4<>C2,T4+1)) -> 7 | V5: 4 | W5: =IF(W4=C2,1,IF(W4<>C2,W4+1)) -> 6 | Y5: 4 | Z5: =IF(Z4=C2,1,IF(Z4<>C2,Z4+1)) -> 2 | AB5: 4 | AC5: =IF(AC4=C2,1,IF(AC4<>C2,AC4+1)) -> 3 | AE5: 4 | AF5: =IF(AF4=C2,1,IF(AF4<>C2,AF4+1)) -> 5 | AH5: 4 | AI5: =IF(AI4=C2,1,IF(AI4<>C2,AI4+1)) -> 9 | AK5: 4 | AL5: =IF(AL4=C2,1,IF(AL4<>C2,AL4+1)) -> 2
A6: 5 | B6: 46 | D6: =IFERROR(B6/C2,"") -> 4.6 | E6: 4 | F6: 0.6 | G6: =IFERROR(F6*C2,"") -> 6 | I6: 5 | J6: 5 | K6: 5 | M6: 5 | N6: =IF(N5=C2,1,IF(N5<>C2,N5+1)) -> 2 | P6: 5 | Q6: =IF(Q5=C2,1,IF(Q5<>C2,Q5+1)) -> 7 | S6: 5 | T6: =IF(T5=C2,1,IF(T5<>C2,T5+1)) -> 8 | V6: 5 | W6: =IF(W5=C2,1,IF(W5<>C2,W5+1)) -> 7 | Y6: 5 | Z6: =IF(Z5=C2,1,IF(Z5<>C2,Z5+1)) -> 3 | AB6: 5 | AC6: =IF(AC5=C2,1,IF(AC5<>C2,AC5+1)) -> 4 | AE6: 5 | AF6: =IF(AF5=C2,1,IF(AF5<>C2,AF5+1)) -> 6 | AH6: 5 | AI6: =IF(AI5=C2,1,IF(AI5<>C2,AI5+1)) -> 10 | AK6: 5 | AL6: =IF(AL5=C2,1,IF(AL5<>C2,AL5+1)) -> 3
A7: 6 | B7: 51 | D7: =IFERROR(B7/C2,"") -> 5.1 | E7: 5 | F7: 0.1 | G7: =IFERROR(F7*C2,"") -> 1 | I7: 6 | J7: 6 | K7: 6 | M7: 6 | N7: =IF(N6=C2,1,IF(N6<>C2,N6+1)) -> 3 | P7: 6 | Q7: =IF(Q6=C2,1,IF(Q6<>C2,Q6+1)) -> 8 | S7: 6 | T7: =IF(T6=C2,1,IF(T6<>C2,T6+1)) -> 9 | V7: 6 | W7: =IF(W6=C2,1,IF(W6<>C2,W6+1)) -> 8 | Y7: 6 | Z7: =IF(Z6=C2,1,IF(Z6<>C2,Z6+1)) -> 4 | AB7: 6 | AC7: =IF(AC6=C2,1,IF(AC6<>C2,AC6+1)) -> 5 | AE7: 6 | AF7: =IF(AF6=C2,1,IF(AF6<>C2,AF6+1)) -> 7 | AH7: 6 | AI7: =IF(AI6=C2,1,IF(AI6<>C2,AI6+1)) -> 1 | AK7: 6 | AL7: =IF(AL6=C2,1,IF(AL6<>C2,AL6+1)) -> 4
A8: 7 | B8: 42 | D8: =IFERROR(B8/C2,"") -> 4.2 | E8: 4 | F8: 0.2 | G8: =IFERROR(F8*C2,"") -> 2 | I8: 7 | J8: 7 | K8: 7 | M8: 7 | N8: =IF(N7=C2,1,IF(N7<>C2,N7+1)) -> 4 | P8: 7 | Q8: =IF(Q7=C2,1,IF(Q7<>C2,Q7+1)) -> 9 | S8: 7 | T8: =IF(T7=C2,1,IF(T7<>C2,T7+1)) -> 10 | V8: 7 | W8: =IF(W7=C2,1,IF(W7<>C2,W7+1)) -> 9 | Y8: 7 | Z8: =IF(Z7=C2,1,IF(Z7<>C2,Z7+1)) -> 5 | AB8: 7 | AC8: =IF(AC7=C2,1,IF(AC7<>C2,AC7+1)) -> 6 | AE8: 7 | AF8: =IF(AF7=C2,1,IF(AF7<>C2,AF7+1)) -> 8 | AH8: 7 | AI8: =IF(AI7=C2,1,IF(AI7<>C2,AI7+1)) -> 2 | AK8: 7 | AL8: =IF(AL7=C2,1,IF(AL7<>C2,AL7+1)) -> 5
A9: 8 | B9: 44 | D9: =IFERROR(B9/C2,"") -> 4.4 | E9: 4 | F9: 0.4 | G9: =IFERROR(F9*C2,"") -> 4 | I9: 8 | J9: 8 | K9: 8 | M9: 8 | N9: =IF(N8=C2,1,IF(N8<>C2,N8+1)) -> 5 | P9: 8 | Q9: =IF(Q8=C2,1,IF(Q8<>C2,Q8+1)) -> 10 | S9: 8 | T9: =IF(T8=C2,1,IF(T8<>C2,T8+1)) -> 1 | V9: 8 | W9: =IF(W8=C2,1,IF(W8<>C2,W8+1)) -> 10 | Y9: 8 | Z9: =IF(Z8=C2,1,IF(Z8<>C2,Z8+1)) -> 6 | AB9: 8 | AC9: =IF(AC8=C2,1,IF(AC8<>C2,AC8+1)) -> 7 | AE9: 8 | AF9: =IF(AF8=C2,1,IF(AF8<>C2,AF8+1)) -> 9 | AH9: 8 | AI9: =IF(AI8=C2,1,IF(AI8<>C2,AI8+1)) -> 3 | AK9: 8 | AL9: =IF(AL8=C2,1,IF(AL8<>C2,AL8+1)) -> 6
A10: 9 | B10: 43 | D10: =IFERROR(B10/C2,"") -> 4.3 | E10: 4 | F10: 0.3 | G10: =IFERROR(F10*C2,"") -> 3 | I10: 9 | J10: 9 | K10: 9 | M10: 9 | N10: =IF(N9=C2,1,IF(N9<>C2,N9+1)) -> 6 | P10: 9 | Q10: =IF(Q9=C2,1,IF(Q9<>C2,Q9+1)) -> 1 | S10: 9 | T10: =IF(T9=C2,1,IF(T9<>C2,T9+1)) -> 2 | V10: 9 | W10: =IF(W9=C2,1,IF(W9<>C2,W9+1)) -> 1 | Y10: 9 | Z10: =IF(Z9=C2,1,IF(Z9<>C2,Z9+1)) -> 7 | AB10: 9 | AC10: =IF(AC9=C2,1,IF(AC9<>C2,AC9+1)) -> 8 | AE10: 9 | AF10: =IF(AF9=C2,1,IF(AF9<>C2,AF9+1)) -> 10 | AH10: 9 | AI10: =IF(AI9=C2,1,IF(AI9<>C2,AI9+1)) -> 4 | AK10: 9 | AL10: =IF(AL9=C2,1,IF(AL9<>C2,AL9+1)) -> 7
A11: 10 | B11: 40 | D11: =IFERROR(B11/C2,"") -> 4 | E11: 4 | F11: 0 | G11: =IFERROR(F11*C2,"") -> 0 | I11: 10 | J11: 10 | K11: 10 | M11: 10 | N11: =IF(N10=C2,1,IF(N10<>C2,N10+1)) -> 7 | P11: 10 | Q11: =IF(Q10=C2,1,IF(Q10<>C2,Q10+1)) -> 2 | S11: 10 | T11: =IF(T10=C2,1,IF(T10<>C2,T10+1)) -> 3 | V11: 10 | W11: =IF(W10=C2,1,IF(W10<>C2,W10+1)) -> 2 | Y11: 10 | Z11: =IF(Z10=C2,1,IF(Z10<>C2,Z10+1)) -> 8 | AB11: 10 | AC11: =IF(AC10=C2,1,IF(AC10<>C2,AC10+1)) -> 9 | AE11: 10 | AF11: =IF(AF10=C2,1,IF(AF10<>C2,AF10+1)) -> 1 | AH11: 10 | AI11: =IF(AI10=C2,1,IF(AI10<>C2,AI10+1)) -> 5 | AK11: 10 | AL11: =IF(AL10=C2,1,IF(AL10<>C2,AL10+1)) -> 8
A12: المجموع | B12: =SUM(B2:B11) -> 438
G15: =G3+N11 -> 12
G16: =G4+Q11 -> 3
G17: =G5+T11 -> 12
G18: =G6+W11 -> 8
G19: =G7+Z11 -> 9
G20: =G8+AC11 -> 11
G21: =G9+AF11 -> 5
G22: =G10+AI11 -> 8
A24: رقم الشعبة | B24: عدد الطلاب الشعبة | C24: عدد الشعب | D24: التوزيع | E24: العدد الصحيح | F24: ناقص العدد الصحيح | G24: الباقي | I24: الرقم | J24: الشعبة الأولى | M24: الشعبة الثانية | P24: الشعبة الثالثة | S24: الشعبة الرابعة | V24: الشعبة الخامسة | Y24: الشعبة السادسة | AB24: الشعبة السابعة | AE24: الشعبة الثامنة | AH24: الشعبة التاسعة
A25: 1 | B25: 47 | C25: 9 | D25: =IFERROR(B25/C25,"") -> 5.222222222 | E25: =IFERROR(INT(D25),"") -> 5 | F25: =IFERROR(D25-E25,"") -> 0.2222222222 | G25: =IFERROR(F25*C25,"") -> 2 | I25: =IF($C$2>=1,1,"") -> 1 | J25: =I25 -> 1 | K25: =J25 -> 1 | M25: =I25 -> 1 | N25: =IFERROR(G25+1,"") -> 3 | P25: =I25 -> 1 | Q25: =IFERROR(IF(G35=0,1,IF(G35=1,2,IF(G35=2,3,IF(G35=3,4,IF(G35=4,5,IF(G35=5,6,IF(G35=6,7,IF(G35=7,8,IF(G35=8,9,IF(G35=9,10,IF(G35=10,1,IF(G35=11,2,IF(G35=12,3,IF(G35=13,4,IF(G35=14,5,IF(G35=15,6,IF(G35=16,7,IF(G35=17,8,IF(G35=18,9,IF(G35=19,10)))))))))))))))))))),"") -> 3 | S25: =I25 -> 1 | T25: =IFERROR(IF(G36=0,1,IF(G36=1,2,IF(G36=2,3,IF(G36=3,4,IF(G36=4,5,IF(G36=5,6,IF(G36=6,7,IF(G36=7,8,IF(G36=8,9,IF(G36=9,10,IF(G36=10,1,IF(G36=11,2,IF(G36=12,3,IF(G36=13,4,IF(G36=14,5,IF(G36=15,6,IF(G36=16,7,IF(G36=17,8,IF(G36=18,9,IF(G36=19,10)))))))))))))))))))),"") -> 8 | V25: =I25 -> 1 | W25: =IFERROR(IF(G37=0,1,IF(G37=1,2,IF(G37=2,3,IF(G37=3,4,IF(G37=4,5,IF(G37=5,6,IF(G37=6,7,IF(G37=7,8,IF(G37=8,9,IF(G37=9,10,IF(G37=10,1+1,IF(G37=11,2,IF(G37=12,3,IF(G37=13,4,IF(G37=14,5,IF(G37=15,6,IF(G37=16,7,IF(G37=17,8,IF(G37=18,9,IF(G37=19,10)))))))))))))))))))),"") -> 2 | Y25: =I25 -> 1 | Z25: =IFERROR(IF(G38=0,1,IF(G38=1,2,IF(G38=2,3,IF(G38=3,4,IF(G38=4,5,IF(G38=5,6,IF(G38=6,7,IF(G38=7,8,IF(G38=8,9,IF(G38=9,10,IF(G38=10,1,IF(G38=11,2,IF(G38=12,3,IF(G38=13,4,IF(G38=14,5,IF(G38=15,6,IF(G38=16,7,IF(G38=17,8,IF(G38=18,9,IF(G38=19,10)))))))))))))))))))),"") -> 3 | AB25: =I25 -> 1 | AC25: =IFERROR(IF(G39=0,1,IF(G39=1,2,IF(G39=2,3,IF(G39=3,4,IF(G39=4,5,IF(G39=5,6,IF(G39=6,7,IF(G39=7,8,IF(G39=8,9,IF(G39=9,10,IF(G39=10,1,IF(G39=11,2,IF(G39=12,3,IF(G39=13,4,IF(G39=14,5,IF(G39=15,6,IF(G39=16,7,IF(G39=17,8,IF(G39=18,9,IF(G39=19,10)))))))))))))))))))),"") -> 9 | AE25: =I25 -> 1 | AF25: =IFERROR(IF(G40=0,1,IF(G40=1,2,IF(G40=2,3,IF(G40=3,4,IF(G40=4,5,IF(G40=5,6,IF(G40=6,7,IF(G40=7,8,IF(G40=8,9,IF(G40=9,10,IF(G40=10,1,IF(G40=11,2,IF(G40=12,3,IF(G40=13,4,IF(G40=14,5,IF(G40=15,6,IF(G40=16,7,IF(G40=17,8,IF(G40=18,9,IF(G40=19,10)))))))))))))))))))),"") -> 5 | AH25: =I25 -> 1 | AI25: =IFERROR(IF(G41=0,1,IF(G41=1,2,IF(G41=2,3,IF(G41=3,4,IF(G41=4,5,IF(G41=5,6,IF(G41=6,7,IF(G41=7,8,IF(G41=8,9,IF(G41=9,10,IF(G41=10,1,IF(G41=11,2,IF(G41=12,3,IF(G41=13,4,IF(G41=14,5,IF(G41=15,6,IF(G41=16,7,IF(G41=17,8,IF(G41=18,9,IF(G41=19,10)))))))))))))))))))),"") -> 3
A26: 2 | B26: 45 | D26: =IFERROR(B26/C25,"") -> 5 | E26: 5 | F26: 0 | G26: =IFERROR(F26*C25,"") -> 0 | I26: =IF(I25>=$C$2,"",I25+1) -> 2 | J26: =I26 -> 2 | K26: =J26 -> 2 | M26: =I26 -> 2 | N26: =IF(N25=C25,1,IF(N25<>C25,N25+1)) -> 4 | P26: =I26 -> 2 | Q26: =IF(Q25=C25,1,IF(Q25<>C25,Q25+1)) -> 4 | S26: =I26 -> 2 | T26: =IF(T25=C25,1,IF(T25<>C25,T25+1)) -> 9 | V26: =I26 -> 2 | W26: =IF(W25=C25,1,IF(W25<>C25,W25+1)) -> 3 | Y26: =I26 -> 2 | Z26: =IF(Z25=C25,1,IF(Z25<>C25,Z25+1)) -> 4 | AB26: =I26 -> 2 | AC26: =IF(AC25=C25,1,IF(AC25<>C25,AC25+1)) -> 1 | AE26: =I26 -> 2 | AF26: =IF(AF25=C25,1,IF(AF25<>C25,AF25+1)) -> 6 | AH26: =I26 -> 2 | AI26: =IF(AI25=C25,1,IF(AI25<>C25,AI25+1)) -> 4
A27: 3 | B27: 41 | D27: =IFERROR(B27/C25,"") -> 4.555555556 | E27: 4 | F27: 0.5555555556 | G27: =IFERROR(F27*C25,"") -> 5 | I27: =IF(I26>=$C$2,"",I26+1) -> 3 | J27: 3 | K27: 3 | M27: 3 | N27: =IF(N26=C25,1,IF(N26<>C25,N26+1)) -> 5 | P27: 3 | Q27: =IF(Q26=C25,1,IF(Q26<>C25,Q26+1)) -> 5 | S27: 3 | T27: =IF(T26=C25,1,IF(T26<>C25,T26+1)) -> 1 | V27: 3 | W27: =IF(W26=C25,1,IF(W26<>C25,W26+1)) -> 4 | Y27: 3 | Z27: =IF(Z26=C25,1,IF(Z26<>C25,Z26+1)) -> 5 | AB27: 3 | AC27: =IF(AC26=C25,1,IF(AC26<>C25,AC26+1)) -> 2 | AE27: 3 | AF27: =IF(AF26=C25,1,IF(AF26<>C25,AF26+1)) -> 7 | AH27: 3 | AI27: =IF(AI26=C25,1,IF(AI26<>C25,AI26+1)) -> 5
A28: 4 | B28: 39 | D28: =IFERROR(B28/C25,"") -> 4.333333333 | E28: 4 | F28: 0.3333333333 | G28: =IFERROR(F28*C25,"") -> 3 | I28: 4 | J28: 4 | K28: 4 | M28: 4 | N28: =IF(N27=C25,1,IF(N27<>C25,N27+1)) -> 6 | P28: 4 | Q28: =IF(Q27=C25,1,IF(Q27<>C25,Q27+1)) -> 6 | S28: 4 | T28: =IF(T27=C25,1,IF(T27<>C25,T27+1)) -> 2 | V28: 4 | W28: =IF(W27=C25,1,IF(W27<>C25,W27+1)) -> 5 | Y28: 4 | Z28: =IF(Z27=C25,1,IF(Z27<>C25,Z27+1)) -> 6 | AB28: 4 | AC28: =IF(AC27=C25,1,IF(AC27<>C25,AC27+1)) -> 3 | AE28: 4 | AF28: =IF(AF27=C25,1,IF(AF27<>C25,AF27+1)) -> 8 | AH28: 4 | AI28: =IF(AI27=C25,1,IF(AI27<>C25,AI27+1)) -> 6
A29: 5 | B29: 46 | D29: =IFERROR(B29/C25,"") -> 5.111111111 | E29: 5 | F29: 0.1111111111 | G29: =IFERROR(F29*C25,"") -> 1 | I29: 5 | J29: 5 | K29: 5 | M29: 5 | N29: =IF(N28=C25,1,IF(N28<>C25,N28+1)) -> 7 | P29: 5 | Q29: =IF(Q28=C25,1,IF(Q28<>C25,Q28+1)) -> 7 | S29: 5 | T29: =IF(T28=C25,1,IF(T28<>C25,T28+1)) -> 3 | V29: 5 | W29: =IF(W28=C25,1,IF(W28<>C25,W28+1)) -> 6 | Y29: 5 | Z29: =IF(Z28=C25,1,IF(Z28<>C25,Z28+1)) -> 7 | AB29: 5 | AC29: =IF(AC28=C25,1,IF(AC28<>C25,AC28+1)) -> 4 | AE29: 5 | AF29: =IF(AF28=C25,1,IF(AF28<>C25,AF28+1)) -> 9 | AH29: 5 | AI29: =IF(AI28=C25,1,IF(AI28<>C25,AI28+1)) -> 7
A30: 6 | B30: 51 | D30: =IFERROR(B30/C25,"") -> 5.666666667 | E30: 5 | F30: 0.6666666667 | G30: =IFERROR(F30*C25,"") -> 6 | I30: 6 | J30: 6 | K30: 6 | M30: 6 | N30: =IF(N29=C25,1,IF(N29<>C25,N29+1)) -> 8 | P30: 6 | Q30: =IF(Q29=C25,1,IF(Q29<>C25,Q29+1)) -> 8 | S30: 6 | T30: =IF(T29=C25,1,IF(T29<>C25,T29+1)) -> 4 | V30: 6 | W30: =IF(W29=C25,1,IF(W29<>C25,W29+1)) -> 7 | Y30: 6 | Z30: =IF(Z29=C25,1,IF(Z29<>C25,Z29+1)) -> 8 | AB30: 6 | AC30: =IF(AC29=C25,1,IF(AC29<>C25,AC29+1)) -> 5 | AE30: 6 | AF30: =IF(AF29=C25,1,IF(AF29<>C25,AF29+1)) -> 1 | AH30: 6 | AI30: =IF(AI29=C25,1,IF(AI29<>C25,AI29+1)) -> 8
A31: 7 | B31: 42 | D31: =IFERROR(B31/C25,"") -> 4.666666667 | E31: 4 | F31: 0.6666666667 | G31: =IFERROR(F31*C25,"") -> 6 | I31: 7 | J31: 7 | K31: 7 | M31: 7 | N31: =IF(N30=C25,1,IF(N30<>C25,N30+1)) -> 9 | P31: 7 | Q31: =IF(Q30=C25,1,IF(Q30<>C25,Q30+1)) -> 9 | S31: 7 | T31: =IF(T30=C25,1,IF(T30<>C25,T30+1)) -> 5 | V31: 7 | W31: =IF(W30=C25,1,IF(W30<>C25,W30+1)) -> 8 | Y31: 7 | Z31: =IF(Z30=C25,1,IF(Z30<>C25,Z30+1)) -> 9 | AB31: 7 | AC31: =IF(AC30=C25,1,IF(AC30<>C25,AC30+1)) -> 6 | AE31: 7 | AF31: =IF(AF30=C25,1,IF(AF30<>C25,AF30+1)) -> 2 | AH31: 7 | AI31: =IF(AI30=C25,1,IF(AI30<>C25,AI30+1)) -> 9
A32: 8 | B32: 44 | D32: =IFERROR(B32/C25,"") -> 4.888888889 | E32: 4 | F32: 0.8888888889 | G32: =IFERROR(F32*C25,"") -> 8 | I32: 8 | J32: 8 | K32: 8 | M32: 8 | N32: =IF(N31=C25,1,IF(N31<>C25,N31+1)) -> 1 | P32: 8 | Q32: =IF(Q31=C25,1,IF(Q31<>C25,Q31+1)) -> 1 | S32: 8 | T32: =IF(T31=C25,1,IF(T31<>C25,T31+1)) -> 6 | V32: 8 | W32: =IF(W31=C25,1,IF(W31<>C25,W31+1)) -> 9 | Y32: 8 | Z32: =IF(Z31=C25,1,IF(Z31<>C25,Z31+1)) -> 1 | AB32: 8 | AC32: =IF(AC31=C25,1,IF(AC31<>C25,AC31+1)) -> 7 | AE32: 8 | AF32: =IF(AF31=C25,1,IF(AF31<>C25,AF31+1)) -> 3 | AH32: 8 | AI32: =IF(AI31=C25,1,IF(AI31<>C25,AI31+1)) -> 1
A33: 9 | B33: 43 | D33: =IFERROR(B33/C25,"") -> 4.777777778 | E33: 4 | F33: 0.7777777778 | G33: =IFERROR(F33*C25,"") -> 7 | I33: 9 | J33: 9 | K33: 9 | M33: 9 | N33: =IF(N32=C25,1,IF(N32<>C25,N32+1)) -> 2 | P33: 9 | Q33: =IF(Q32=C25,1,IF(Q32<>C25,Q32+1)) -> 2 | S33: 9 | T33: =IF(T32=C25,1,IF(T32<>C25,T32+1)) -> 7 | V33: 9 | W33: =IF(W32=C25,1,IF(W32<>C25,W32+1)) -> 1 | Y33: 9 | Z33: =IF(Z32=C25,1,IF(Z32<>C25,Z32+1)) -> 2 | AB33: 9 | AC33: =IF(AC32=C25,1,IF(AC32<>C25,AC32+1)) -> 8 | AE33: 9 | AF33: =IF(AF32=C25,1,IF(AF32<>C25,AF32+1)) -> 4 | AH33: 9 | AI33: =IF(AI32=C25,1,IF(AI32<>C25,AI32+1)) -> 2
A34: المجموع | B34: =SUM(B25:B33) -> 398
G35: =G26+N33 -> 2
G36: =G27+Q33 -> 7
G37: =G28+T33 -> 10
G38: =G29+W33 -> 2
G39: =G30+Z33 -> 8
G40: =G31+AC33 -> 14
G41: =G32+AF33 -> 12
A43: رقم الشعبة | B43: عدد الطلاب الشعبة | C43: عدد الشعب | D43: التوزيع | E43: العدد الصحيح | F43: ناقص العدد الصحيح | G43: الباقي | I43: الرقم | J43: الشعبة الأولى | M43: الشعبة الثانية | P43: الشعبة الثالثة | S43: الشعبة الرابعة | V43: الشعبة الخامسة | Y43: الشعبة السادسة | AB43: الشعبة السابعة | AE43: الشعبة الثامنة
A44: 1 | B44: 37 | C44: 8 | D44: =IFERROR(B44/C44,"") -> 4.625 | E44: =IFERROR(INT(D44),"") -> 4 | F44: =IFERROR(D44-E44,"") -> 0.625 | G44: =IFERROR(F44*C44,"") -> 5 | I44: =IF($C$2>=1,1,"") -> 1 | J44: =I44 -> 1 | K44: =J44 -> 1 | M44: =I44 -> 1 | N44: =IFERROR(G44+1,"") -> 6 | P44: =I44 -> 1 | Q44: =ABS(M56) -> 5 | S44: =I44 -> 1 | T44: =ABS(M58) -> 2 | V44: =I44 -> 1 | W44: =ABS(M60) -> 4 | Y44: =I44 -> 1 | Z44: =IFERROR(IF(G56=0,1,IF(G56=1,2,IF(G56=2,3,IF(G56=3,4,IF(G56=4,5,IF(G56=5,6,IF(G56=6,7,IF(G56=7,8,IF(G56=8,9,IF(G56=9,10,IF(G56=10,1,IF(G56=11,2,IF(G56=12,3,IF(G56=13,4,IF(G56=14,5,IF(G56=15,6,IF(G56=16,7,IF(G56=17,8,IF(G56=18,9,IF(G56=19,10)))))))))))))))))))),"") -> 1 | AB44: =I44 -> 1 | AC44: =IFERROR(IF(G57=0,1,IF(G57=1,2,IF(G57=2,3,IF(G57=3,4,IF(G57=4,5,IF(G57=5,6,IF(G57=6,7,IF(G57=7,8,IF(G57=8,9,IF(G57=9,10,IF(G57=10,1,IF(G57=11,2,IF(G57=12,3,IF(G57=13,4,IF(G57=14,5,IF(G57=15,6,IF(G57=16,7,IF(G57=17,8,IF(G57=18,9,IF(G57=19,10)))))))))))))))))))),"") -> 1 | AE44: =I44 -> 1 | AF44: =IFERROR(IF(G58=0,1,IF(G58=1,2,IF(G58=2,3,IF(G58=3,4,IF(G58=4,5,IF(G58=5,6,IF(G58=6,7,IF(G58=7,8,IF(G58=8,9,IF(G58=9,10,IF(G58=10,1,IF(G58=11,2,IF(G58=12,3,IF(G58=13,4,IF(G58=14,5,IF(G58=15,6,IF(G58=16,7,IF(G58=17,8,IF(G58=18,9,IF(G58=19,10)))))))))))))))))))),"") -> 1
A45: 2 | B45: 39 | D45: =IFERROR(B45/C44,"") -> 4.875 | E45: 4 | F45: 0.875 | G45: =IFERROR(F45*C44,"") -> 7 | I45: =IF(I44>=$C$2,"",I44+1) -> 2 | J45: =I45 -> 2 | K45: =J45 -> 2 | M45: =I45 -> 2 | N45: =IF(N44=C44,1,IF(N44<>C44,N44+1)) -> 7 | P45: =I45 -> 2 | Q45: =IF(Q44=C44,1,IF(Q44<>C44,Q44+1)) -> 6 | S45: =I45 -> 2 | T45: =IF(T44=C44,1,IF(T44<>C44,T44+1)) -> 3 | V45: =I45 -> 2 | W45: =IF(W44=C44,1,IF(W44<>C44,W44+1)) -> 5 | Y45: =I45 -> 2 | Z45: =IF(Z44=C44,1,IF(Z44<>C44,Z44+1)) -> 2 | AB45: =I45 -> 2 | AC45: =IF(AC44=C44,1,IF(AC44<>C44,AC44+1)) -> 2 | AE45: =I45 -> 2 | AF45: =IF(AF44=C44,1,IF(AF44<>C44,AF44+1)) -> 2
A46: 3 | B46: 45 | D46: =IFERROR(B46/C44,"") -> 5.625 | E46: 5 | F46: 0.625 | G46: =IFERROR(F46*C44,"") -> 5 | I46: =IF(I45>=$C$2,"",I45+1) -> 3 | J46: 3 | K46: 3 | M46: 3 | N46: =IF(N45=C44,1,IF(N45<>C44,N45+1)) -> 8 | P46: 3 | Q46: =IF(Q45=C44,1,IF(Q45<>C44,Q45+1)) -> 7 | S46: 3 | T46: =IF(T45=C44,1,IF(T45<>C44,T45+1)) -> 4 | V46: 3 | W46: =IF(W45=C44,1,IF(W45<>C44,W45+1)) -> 6 | Y46: 3 | Z46: =IF(Z45=C44,1,IF(Z45<>C44,Z45+1)) -> 3 | AB46: 3 | AC46: =IF(AC45=C44,1,IF(AC45<>C44,AC45+1)) -> 3 | AE46: 3 | AF46: =IF(AF45=C44,1,IF(AF45<>C44,AF45+1)) -> 3
A47: 4 | B47: 42 | D47: =IFERROR(B47/C44,"") -> 5.25 | E47: 5 | F47: 0.25 | G47: =IFERROR(F47*C44,"") -> 2 | I47: 4 | J47: 4 | K47: 4 | M47: 4 | N47: =IF(N46=C44,1,IF(N46<>C44,N46+1)) -> 1 | P47: 4 | Q47: =IF(Q46=C44,1,IF(Q46<>C44,Q46+1)) -> 8 | S47: 4 | T47: =IF(T46=C44,1,IF(T46<>C44,T46+1)) -> 5 | V47: 4 | W47: =IF(W46=C44,1,IF(W46<>C44,W46+1)) -> 7 | Y47: 4 | Z47: =IF(Z46=C44,1,IF(Z46<>C44,Z46+1)) -> 4 | AB47: 4 | AC47: =IF(AC46=C44,1,IF(AC46<>C44,AC46+1)) -> 4 | AE47: 4 | AF47: =IF(AF46=C44,1,IF(AF46<>C44,AF46+1)) -> 4
A48: 5 | B48: 43 | D48: =IFERROR(B48/C44,"") -> 5.375 | E48: 5 | F48: 0.375 | G48: =IFERROR(F48*C44,"") -> 3 | I48: 5 | J48: 5 | K48: 5 | M48: 5 | N48: =IF(N47=C44,1,IF(N47<>C44,N47+1)) -> 2 | P48: 5 | Q48: =IF(Q47=C44,1,IF(Q47<>C44,Q47+1)) -> 1 | S48: 5 | T48: =IF(T47=C44,1,IF(T47<>C44,T47+1)) -> 6 | V48: 5 | W48: =IF(W47=C44,1,IF(W47<>C44,W47+1)) -> 8 | Y48: 5 | Z48: =IF(Z47=C44,1,IF(Z47<>C44,Z47+1)) -> 5 | AB48: 5 | AC48: =IF(AC47=C44,1,IF(AC47<>C44,AC47+1)) -> 5 | AE48: 5 | AF48: =IF(AF47=C44,1,IF(AF47<>C44,AF47+1)) -> 5
A49: 6 | B49: 47 | D49: =IFERROR(B49/C44,"") -> 5.875 | E49: 5 | F49: 0.875 | G49: =IFERROR(F49*C44,"") -> 7 | I49: 6 | J49: 6 | K49: 6 | M49: 6 | N49: =IF(N48=C44,1,IF(N48<>C44,N48+1)) -> 3 | P49: 6 | Q49: =IF(Q48=C44,1,IF(Q48<>C44,Q48+1)) -> 2 | S49: 6 | T49: =IF(T48=C44,1,IF(T48<>C44,T48+1)) -> 7 | V49: 6 | W49: =IF(W48=C44,1,IF(W48<>C44,W48+1)) -> 1 | Y49: 6 | Z49: =IF(Z48=C44,1,IF(Z48<>C44,Z48+1)) -> 6 | AB49: 6 | AC49: =IF(AC48=C44,1,IF(AC48<>C44,AC48+1)) -> 6 | AE49: 6 | AF49: =IF(AF48=C44,1,IF(AF48<>C44,AF48+1)) -> 6
A50: 7 | B50: 39 | D50: =IFERROR(B50/C44,"") -> 4.875 | E50: 4 | F50: 0.875 | G50: =IFERROR(F50*C44,"") -> 7 | I50: 7 | J50: 7 | K50: 7 | M50: 7 | N50: =IF(N49=C44,1,IF(N49<>C44,N49+1)) -> 4 | P50: 7 | Q50: =IF(Q49=C44,1,IF(Q49<>C44,Q49+1)) -> 3 | S50: 7 | T50: =IF(T49=C44,1,IF(T49<>C44,T49+1)) -> 8 | V50: 7 | W50: =IF(W49=C44,1,IF(W49<>C44,W49+1)) -> 2 | Y50: 7 | Z50: =IF(Z49=C44,1,IF(Z49<>C44,Z49+1)) -> 7 | AB50: 7 | AC50: =IF(AC49=C44,1,IF(AC49<>C44,AC49+1)) -> 7 | AE50: 7 | AF50: =IF(AF49=C44,1,IF(AF49<>C44,AF49+1)) -> 7
A51: 8 | B51: 41 | D51: =IFERROR(B51/C44,"") -> 5.125 | E51: 5 | F51: 0.125 | G51: =IFERROR(F51*C44,"") -> 1 | I51: 8 | J51: 8 | K51: 8 | M51: 8 | N51: =IF(N50=C44,1,IF(N50<>C44,N50+1)) -> 5 | P51: 8 | Q51: =IF(Q50=C44,1,IF(Q50<>C44,Q50+1)) -> 4 | S51: 8 | T51: =IF(T50=C44,1,IF(T50<>C44,T50+1)) -> 1 | V51: 8 | W51: =IF(W50=C44,1,IF(W50<>C44,W50+1)) -> 3 | Y51: 8 | Z51: =IF(Z50=C44,1,IF(Z50<>C44,Z50+1)) -> 8 | AB51: 8 | AC51: =IF(AC50=C44,1,IF(AC50<>C44,AC50+1)) -> 8 | AE51: 8 | AF51: =IF(AF50=C44,1,IF(AF50<>C44,AF50+1)) -> 8
A52: المجموع | B52: =SUM(B44:B51) -> 333
E55: =C44-N45 -> 1 | K55: =C44-N51 -> 3
K56: =G45-K55 -> 4 | M56: =K56+1 -> 5
K57: =C44-Q51 -> 4
K58: =G46-K57 -> 1 | M58: =K58+1 -> 2
K59: =C44-T51 -> 7
K60: =G47-K59 -> -5 | M60: =K60+1 -> -4
K61: =C44-W51 -> 5
K62: =G48-K61 -> -2 | M62: =K62+1 -> -1

Sheet لصق الكشف
A3: 1
A5: 2
A7: 3 | C7: =IF(F7<>"",1,"") -> 
A9: 4
A11: 5
A13: 6
A15: 7
A17: 8
A19: 9
A21: 10
A23: 11
A25: 12
A27: 13
A29: 14
A31: 15
A33: 16
A35: 17
A37: 18
A39: 19
A41: 20
A43: 21
A45: 22
A47: 23
A49: 24
A51: 25
A53: 26
A55: 27
A57: 28
A59: 29
A61: 30
A63: 31
A65: 32
A67: 33
A69: 34
A71: 35
A73: 36
A75: 37
A77: 38
A79: 39
A81: 40
A83: 41
A85: 42
A87: 43
A89: 44
A91: 45
A93: 46
A95: 47
A97: 48
A99: 49
A101: 50
A103: 51
A105: 52
A107: 53
A109: 54
A111: 55
A113: 56
A115: 57
A117: 58
A119: 59
A121: 60
A123: 61
A125: 62
A127: 63
B212: الصف الأول | C212: 1
B213: الصف الثاني | C213: 2
B214: الصف الثالث | C214: 3
B215: الصف الرابع | C215: 4
B216: الصف الخامس | C216: 5
B217: الصف السادس | C217: 6
B218: الصف السابع | C218: 7
B219: الصف الثامن | C219: 8
B220: الصف التاسع | C220: 9
B221: الصف العاشر | C221: 10

Sheet الترحيل (hidden)
A1: الرقم | B1: الاسم | C1: الشعبة | D1: المعدل | I1: الاسم | J1: المعدل | M1: منسدلة
A2: 1 | B2: =VLOOKUP('لصق الكشف'!A5,'لصق الكشف'!A3:BE170,54,0) -> 0 | C2: =VLOOKUP('لصق الكشف'!A5,'لصق الكشف'!A3:BD594,3,0) -> 0 | D2: =VLOOKUP('لصق الكشف'!A5,'لصق الكشف'!A3:BD780,6,0) -> 0 | E2: =IF(الترحيل!C2=الفرز!$L$2,ROW(),"") ->  | F2: =IFERROR(SMALL($E$2:$E$62,ROW()-1),"") ->  | I2: =IFERROR(INDEX($B$1:$B$62,F2),"") ->  | J2: =IFERROR(INDEX($D$1:$D$62,F2),"") ->  | M2: 1
A3: 2 | B3: =VLOOKUP('لصق الكشف'!A7,'لصق الكشف'!A5:BE171,54,0) -> 0 | C3: =VLOOKUP('لصق الكشف'!A7,'لصق الكشف'!A5:BD595,3,0) ->  | D3: =VLOOKUP('لصق الكشف'!A7,'لصق الكشف'!A5:BD781,6,0) -> 0 | E3: =IF(الترحيل!C3=الفرز!$L$2,ROW(),"") ->  | F3: =IFERROR(SMALL($E$2:$E$62,ROW()-1),"") ->  | I3: =IFERROR(INDEX($B$1:$B$62,F3),"") ->  | J3: =IFERROR(INDEX($D$1:$D$62,F3),"") ->  | M3: 2
A4: 3 | B4: =VLOOKUP('لصق الكشف'!A9,'لصق الكشف'!A7:BE172,54,0) -> 0 | C4: =VLOOKUP('لصق الكشف'!A9,'لصق الكشف'!A7:BD596,3,0) ->  | D4: =VLOOKUP('لصق الكشف'!A9,'لصق الكشف'!A7:BD782,6,0) -> 0 | E4: =IF(الترحيل!C4=الفرز!$L$2,ROW(),"") ->  | M4: 3
A5: 4 | B5: =VLOOKUP('لصق الكشف'!A11,'لصق الكشف'!A9:BE173,54,0) -> 0 | C5: =VLOOKUP('لصق الكشف'!A11,'لصق الكشف'!A9:BD597,3,0) ->  | D5: =VLOOKUP('لصق الكشف'!A11,'لصق الكشف'!A9:BD783,6,0) -> 0 | E5: =IF(الترحيل!C5=الفرز!$L$2,ROW(),"") ->  | M5: 4
A6: 5 | B6: =VLOOKUP('لصق الكشف'!A13,'لصق الكشف'!A11:BE174,54,0) -> 0 | C6: =VLOOKUP('لصق الكشف'!A13,'لصق الكشف'!A11:BD598,3,0) ->  | D6: =VLOOKUP('لصق الكشف'!A13,'لصق الكشف'!A11:BD784,6,0) -> 0 | E6: =IF(الترحيل!C6=الفرز!$L$2,ROW(),"") ->  | M6: 5
A7: 6 | B7: =VLOOKUP('لصق الكشف'!A15,'لصق الكشف'!A13:BE175,54,0) -> 0 | C7: =VLOOKUP('لصق الكشف'!A15,'لصق الكشف'!A13:BD599,3,0) ->  | D7: =VLOOKUP('لصق الكشف'!A15,'لصق الكشف'!A13:BD785,6,0) -> 0 | E7: =IF(الترحيل!C7=الفرز!$L$2,ROW(),"") ->  | M7: 6
A8: 7 | B8: =VLOOKUP('لصق الكشف'!A17,'لصق الكشف'!A15:BE176,54,0) -> 0 | C8: =VLOOKUP('لصق الكشف'!A17,'لصق الكشف'!A15:BD600,3,0) ->  | D8: =VLOOKUP('لصق الكشف'!A17,'لصق الكشف'!A15:BD786,6,0) -> 0 | E8: =IF(الترحيل!C8=الفرز!$L$2,ROW(),"") ->  | M8: 7
A9: 8 | B9: =VLOOKUP('لصق الكشف'!A19,'لصق الكشف'!A17:BE177,54,0) -> 0 | C9: =VLOOKUP('لصق الكشف'!A19,'لصق الكشف'!A17:BD601,3,0) ->  | D9: =VLOOKUP('لصق الكشف'!A19,'لصق الكشف'!A17:BD787,6,0) -> 0 | E9: =IF(الترحيل!C9=الفرز!$L$2,ROW(),"") ->  | M9: 8
A10: 9 | B10: =VLOOKUP('لصق الكشف'!A21,'لصق الكشف'!A19:BE178,54,0) -> 0 | C10: =VLOOKUP('لصق الكشف'!A21,'لصق الكشف'!A19:BD602,3,0) ->  | D10: =VLOOKUP('لصق الكشف'!A21,'لصق الكشف'!A19:BD788,6,0) -> 0 | E10: =IF(الترحيل!C10=الفرز!$L$2,ROW(),"") ->  | M10: 9
A11: 10 | B11: =VLOOKUP('لصق الكشف'!A23,'لصق الكشف'!A21:BE179,54,0) -> 0 | C11: =VLOOKUP('لصق الكشف'!A23,'لصق الكشف'!A21:BD603,3,0) ->  | D11: =VLOOKUP('لصق الكشف'!A23,'لصق الكشف'!A21:BD789,6,0) -> 0 | E11: =IF(الترحيل!C11=الفرز!$L$2,ROW(),"") ->  | M11: 10
A12: 11 | B12: =VLOOKUP('لصق الكشف'!A25,'لصق الكشف'!A23:BE180,54,0) -> 0 | C12: =VLOOKUP('لصق الكشف'!A25,'لصق الكشف'!A23:BD604,3,0) ->  | D12: =VLOOKUP('لصق الكشف'!A25,'لصق الكشف'!A23:BD790,6,0) -> 0 | E12: =IF(الترحيل!C12=الفرز!$L$2,ROW(),"") -> 
A13: 12 | B13: =VLOOKUP('لصق الكشف'!A27,'لصق الكشف'!A25:BE181,54,0) -> 0 | C13: =VLOOKUP('لصق الكشف'!A27,'لصق الكشف'!A25:BD605,3,0) ->  | D13: =VLOOKUP('لصق الكشف'!A27,'لصق الكشف'!A25:BD791,6,0) -> 0 | E13: =IF(الترحيل!C13=الفرز!$L$2,ROW(),"") -> 
A14: 13 | B14: =VLOOKUP('لصق الكشف'!A29,'لصق الكشف'!A27:BE182,54,0) -> 0 | C14: =VLOOKUP('لصق الكشف'!A29,'لصق الكشف'!A27:BD606,3,0) ->  | D14: =VLOOKUP('لصق الكشف'!A29,'لصق الكشف'!A27:BD792,6,0) -> 0 | E14: =IF(الترحيل!C14=الفرز!$L$2,ROW(),"") -> 
A15: 14 | B15: =VLOOKUP('لصق الكشف'!A31,'لصق الكشف'!A29:BE183,54,0) -> 0 | C15: =VLOOKUP('لصق الكشف'!A31,'لصق الكشف'!A29:BD607,3,0) ->  | D15: =VLOOKUP('لصق الكشف'!A31,'لصق الكشف'!A29:BD793,6,0) -> 0 | E15: =IF(الترحيل!C15=الفرز!$L$2,ROW(),"") -> 
A16: 15 | B16: =VLOOKUP('لصق الكشف'!A33,'لصق الكشف'!A31:BE184,54,0) -> 0 | C16: =VLOOKUP('لصق الكشف'!A33,'لصق الكشف'!A31:BD608,3,0) ->  | D16: =VLOOKUP('لصق الكشف'!A33,'لصق الكشف'!A31:BD794,6,0) -> 0 | E16: =IF(الترحيل!C16=الفرز!$L$2,ROW(),"") -> 
A17: 16 | B17: =VLOOKUP('لصق الكشف'!A35,'لصق الكشف'!A33:BE185,54,0) -> 0 | C17: =VLOOKUP('لصق الكشف'!A35,'لصق الكشف'!A33:BD609,3,0) ->  | D17: =VLOOKUP('لصق الكشف'!A35,'لصق الكشف'!A33:BD795,6,0) -> 0 | E17: =IF(الترحيل!C17=الفرز!$L$2,ROW(),"") -> 
A18: 17 | B18: =VLOOKUP('لصق الكشف'!A37,'لصق الكشف'!A35:BE186,54,0) -> 0 | C18: =VLOOKUP('لصق الكشف'!A37,'لصق الكشف'!A35:BD610,3,0) ->  | D18: =VLOOKUP('لصق الكشف'!A37,'لصق الكشف'!A35:BD796,6,0) -> 0 | E18: =IF(الترحيل!C18=الفرز!$L$2,ROW(),"") -> 
A19: 18 | B19: =VLOOKUP('لصق الكشف'!A39,'لصق الكشف'!A37:BE187,54,0) -> 0 | C19: =VLOOKUP('لصق الكشف'!A39,'لصق الكشف'!A37:BD611,3,0) ->  | D19: =VLOOKUP('لصق الكشف'!A39,'لصق الكشف'!A37:BD797,6,0) -> 0 | E19: =IF(الترحيل!C19=الفرز!$L$2,ROW(),"") -> 
A20: 19 | B20: =VLOOKUP('لصق الكشف'!A41,'لصق الكشف'!A39:BE188,54,0) -> 0 | C20: =VLOOKUP('لصق الكشف'!A41,'لصق الكشف'!A39:BD612,3,0) ->  | D20: =VLOOKUP('لصق الكشف'!A41,'لصق الكشف'!A39:BD798,6,0) -> 0 | E20: =IF(الترحيل!C20=الفرز!$L$2,ROW(),"") -> 
A21: 20 | B21: =VLOOKUP('لصق الكشف'!A43,'لصق الكشف'!A41:BE189,54,0) -> 0 | C21: =VLOOKUP('لصق الكشف'!A43,'لصق الكشف'!A41:BD613,3,0) ->  | D21: =VLOOKUP('لصق الكشف'!A43,'لصق الكشف'!A41:BD799,6,0) -> 0 | E21: =IF(الترحيل!C21=الفرز!$L$2,ROW(),"") -> 
A22: 21 | B22: =VLOOKUP('لصق الكشف'!A45,'لصق الكشف'!A43:BE190,54,0) -> 0 | C22: =VLOOKUP('لصق الكشف'!A45,'لصق الكشف'!A43:BD614,3,0) ->  | D22: =VLOOKUP('لصق الكشف'!A45,'لصق الكشف'!A43:BD800,6,0) -> 0 | E22: =IF(الترحيل!C22=الفرز!$L$2,ROW(),"") -> 
A23: 22 | B23: =VLOOKUP('لصق الكشف'!A47,'لصق الكشف'!A45:BE191,54,0) -> 0 | C23: =VLOOKUP('لصق الكشف'!A47,'لصق الكشف'!A45:BD615,3,0) ->  | D23: =VLOOKUP('لصق الكشف'!A47,'لصق الكشف'!A45:BD801,6,0) -> 0 | E23: =IF(الترحيل!C23=الفرز!$L$2,ROW(),"") -> 
A24: 23 | B24: =VLOOKUP('لصق الكشف'!A49,'لصق الكشف'!A47:BE192,54,0) -> 0 | C24: =VLOOKUP('لصق الكشف'!A49,'لصق الكشف'!A47:BD616,3,0) ->  | D24: =VLOOKUP('لصق الكشف'!A49,'لصق الكشف'!A47:BD802,6,0) -> 0 | E24: =IF(الترحيل!C24=الفرز!$L$2,ROW(),"") -> 
A25: 24 | B25: =VLOOKUP('لصق الكشف'!A51,'لصق الكشف'!A49:BE193,54,0) -> 0 | C25: =VLOOKUP('لصق الكشف'!A51,'لصق الكشف'!A49:BD617,3,0) ->  | D25: =VLOOKUP('لصق الكشف'!A51,'لصق الكشف'!A49:BD803,6,0) -> 0 | E25: =IF(الترحيل!C25=الفرز!$L$2,ROW(),"") -> 
A26: 25 | B26: =VLOOKUP('لصق الكشف'!A53,'لصق الكشف'!A51:BE194,54,0) -> 0 | C26: =VLOOKUP('لصق الكشف'!A53,'لصق الكشف'!A51:BD618,3,0) ->  | D26: =VLOOKUP('لصق الكشف'!A53,'لصق الكشف'!A51:BD804,6,0) -> 0 | E26: =IF(الترحيل!C26=الفرز!$L$2,ROW(),"") -> 
A27: 26 | B27: =VLOOKUP('لصق الكشف'!A55,'لصق الكشف'!A53:BE195,54,0) -> 0 | C27: =VLOOKUP('لصق الكشف'!A55,'لصق الكشف'!A53:BD619,3,0) ->  | D27: =VLOOKUP('لصق الكشف'!A55,'لصق الكشف'!A53:BD805,6,0) -> 0 | E27: =IF(الترحيل!C27=الفرز!$L$2,ROW(),"") -> 
A28: 27 | B28: =VLOOKUP('لصق الكشف'!A57,'لصق الكشف'!A55:BE196,54,0) -> 0 | C28: =VLOOKUP('لصق الكشف'!A57,'لصق الكشف'!A55:BD620,3,0) ->  | D28: =VLOOKUP('لصق الكشف'!A57,'لصق الكشف'!A55:BD806,6,0) -> 0 | E28: =IF(الترحيل!C28=الفرز!$L$2,ROW(),"") -> 
A29: 28 | B29: =VLOOKUP('لصق الكشف'!A59,'لصق الكشف'!A57:BE197,54,0) -> 0 | C29: =VLOOKUP('لصق الكشف'!A59,'لصق الكشف'!A57:BD621,3,0) ->  | D29: =VLOOKUP('لصق الكشف'!A59,'لصق الكشف'!A57:BD807,6,0) -> 0 | E29: =IF(الترحيل!C29=الفرز!$L$2,ROW(),"") -> 
A30: 29 | B30: =VLOOKUP('لصق الكشف'!A61,'لصق الكشف'!A59:BE198,54,0) -> 0 | C30: =VLOOKUP('لصق الكشف'!A61,'لصق الكشف'!A59:BD622,3,0) ->  | D30: =VLOOKUP('لصق الكشف'!A61,'لصق الكشف'!A59:BD808,6,0) -> 0 | E30: =IF(الترحيل!C30=الفرز!$L$2,ROW(),"") -> 
A31: 30 | B31: =VLOOKUP('لصق الكشف'!A63,'لصق الكشف'!A61:BE199,54,0) -> 0 | C31: =VLOOKUP('لصق الكشف'!A63,'لصق الكشف'!A61:BD623,3,0) ->  | D31: =VLOOKUP('لصق الكشف'!A63,'لصق الكشف'!A61:BD809,6,0) -> 0 | E31: =IF(الترحيل!C31=الفرز!$L$2,ROW(),"") -> 
A32: 31 | B32: =VLOOKUP('لصق الكشف'!A65,'لصق الكشف'!A63:BE200,54,0) -> 0 | C32: =VLOOKUP('لصق الكشف'!A65,'لصق الكشف'!A63:BD624,3,0) ->  | D32: =VLOOKUP('لصق الكشف'!A65,'لصق الكشف'!A63:BD810,6,0) -> 0 | E32: =IF(الترحيل!C32=الفرز!$L$2,ROW(),"") -> 
A33: 32 | B33: =VLOOKUP('لصق الكشف'!A67,'لصق الكشف'!A65:BE201,54,0) -> 0 | C33: =VLOOKUP('لصق الكشف'!A67,'لصق الكشف'!A65:BD625,3,0) ->  | D33: =VLOOKUP('لصق الكشف'!A67,'لصق الكشف'!A65:BD811,6,0) -> 0 | E33: =IF(الترحيل!C33=الفرز!$L$2,ROW(),"") -> 
A34: 33 | B34: =VLOOKUP('لصق الكشف'!A69,'لصق الكشف'!A67:BE202,54,0) -> 0 | C34: =VLOOKUP('لصق الكشف'!A69,'لصق الكشف'!A67:BD626,3,0) ->  | D34: =VLOOKUP('لصق الكشف'!A69,'لصق الكشف'!A67:BD812,6,0) -> 0 | E34: =IF(الترحيل!C34=الفرز!$L$2,ROW(),"") -> 
A35: 34 | B35: =VLOOKUP('لصق الكشف'!A71,'لصق الكشف'!A69:BE203,54,0) -> 0 | C35: =VLOOKUP('لصق الكشف'!A71,'لصق الكشف'!A69:BD627,3,0) ->  | D35: =VLOOKUP('لصق الكشف'!A71,'لصق الكشف'!A69:BD813,6,0) -> 0 | E35: =IF(الترحيل!C35=الفرز!$L$2,ROW(),"") -> 
A36: 35 | B36: =VLOOKUP('لصق الكشف'!A73,'لصق الكشف'!A71:BE204,54,0) -> 0 | C36: =VLOOKUP('لصق الكشف'!A73,'لصق الكشف'!A71:BD628,3,0) ->  | D36: =VLOOKUP('لصق الكشف'!A73,'لصق الكشف'!A71:BD814,6,0) -> 0 | E36: =IF(الترحيل!C36=الفرز!$L$2,ROW(),"") -> 
A37: 36 | B37: =VLOOKUP('لصق الكشف'!A75,'لصق الكشف'!A73:BE205,54,0) -> 0 | C37: =VLOOKUP('لصق الكشف'!A75,'لصق الكشف'!A73:BD629,3,0) ->  | D37: =VLOOKUP('لصق الكشف'!A75,'لصق الكشف'!A73:BD815,6,0) -> 0 | E37: =IF(الترحيل!C37=الفرز!$L$2,ROW(),"") -> 
A38: 37 | B38: =VLOOKUP('لصق الكشف'!A77,'لصق الكشف'!A75:BE206,54,0) -> 0 | C38: =VLOOKUP('لصق الكشف'!A77,'لصق الكشف'!A75:BD630,3,0) ->  | D38: =VLOOKUP('لصق الكشف'!A77,'لصق الكشف'!A75:BD816,6,0) -> 0 | E38: =IF(الترحيل!C38=الفرز!$L$2,ROW(),"") -> 
A39: 38 | B39: =VLOOKUP('لصق الكشف'!A79,'لصق الكشف'!A77:BE207,54,0) -> 0 | C39: =VLOOKUP('لصق الكشف'!A79,'لصق الكشف'!A77:BD631,3,0) ->  | D39: =VLOOKUP('لصق الكشف'!A79,'لصق الكشف'!A77:BD817,6,0) -> 0 | E39: =IF(الترحيل!C39=الفرز!$L$2,ROW(),"") -> 
A40: 39 | B40: =VLOOKUP('لصق الكشف'!A81,'لصق الكشف'!A79:BE208,54,0) -> 0 | C40: =VLOOKUP('لصق الكشف'!A81,'لصق الكشف'!A79:BD632,3,0) ->  | D40: =VLOOKUP('لصق الكشف'!A81,'لصق الكشف'!A79:BD818,6,0) -> 0 | E40: =IF(الترحيل!C40=الفرز!$L$2,ROW(),"") -> 
A41: 40 | B41: =VLOOKUP('لصق الكشف'!A83,'لصق الكشف'!A81:BE209,54,0) -> 0 | C41: =VLOOKUP('لصق الكشف'!A83,'لصق الكشف'!A81:BD633,3,0) ->  | D41: =VLOOKUP('لصق الكشف'!A83,'لصق الكشف'!A81:BD819,6,0) -> 0 | E41: =IF(الترحيل!C41=الفرز!$L$2,ROW(),"") -> 
A42: 41 | B42: =VLOOKUP('لصق الكشف'!A85,'لصق الكشف'!A83:BE210,54,0) -> 0 | C42: =VLOOKUP('لصق الكشف'!A85,'لصق الكشف'!A83:BD634,3,0) ->  | D42: =VLOOKUP('لصق الكشف'!A85,'لصق الكشف'!A83:BD820,6,0) -> 0 | E42: =IF(الترحيل!C42=الفرز!$L$2,ROW(),"") -> 
A43: 42 | B43: =VLOOKUP('لصق الكشف'!A87,'لصق الكشف'!A85:BE211,54,0) -> 0 | C43: =VLOOKUP('لصق الكشف'!A87,'لصق الكشف'!A85:BD635,3,0) ->  | D43: =VLOOKUP('لصق الكشف'!A87,'لصق الكشف'!A85:BD821,6,0) -> 0 | E43: =IF(الترحيل!C43=الفرز!$L$2,ROW(),"") -> 
A44: 43 | B44: =VLOOKUP('لصق الكشف'!A89,'لصق الكشف'!A87:BE212,54,0) -> 0 | C44: =VLOOKUP('لصق الكشف'!A89,'لصق الكشف'!A87:BD636,3,0) ->  | D44: =VLOOKUP('لصق الكشف'!A89,'لصق الكشف'!A87:BD822,6,0) -> 0 | E44: =IF(الترحيل!C44=الفرز!$L$2,ROW(),"") -> 
A45: 44 | B45: =VLOOKUP('لصق الكشف'!A91,'لصق الكشف'!A89:BE213,54,0) -> 0 | C45: =VLOOKUP('لصق الكشف'!A91,'لصق الكشف'!A89:BD637,3,0) ->  | D45: =VLOOKUP('لصق الكشف'!A91,'لصق الكشف'!A89:BD823,6,0) -> 0 | E45: =IF(الترحيل!C45=الفرز!$L$2,ROW(),"") -> 
A46: 45 | B46: =VLOOKUP('لصق الكشف'!A93,'لصق الكشف'!A91:BE214,54,0) -> 0 | C46: =VLOOKUP('لصق الكشف'!A93,'لصق الكشف'!A91:BD638,3,0) ->  | D46: =VLOOKUP('لصق الكشف'!A93,'لصق الكشف'!A91:BD824,6,0) -> 0 | E46: =IF(الترحيل!C46=الفرز!$L$2,ROW(),"") -> 
A47: 46 | B47: =VLOOKUP('لصق الكشف'!A95,'لصق الكشف'!A93:BE215,54,0) -> 0 | C47: =VLOOKUP('لصق الكشف'!A95,'لصق الكشف'!A93:BD639,3,0) ->  | D47: =VLOOKUP('لصق الكشف'!A95,'لصق الكشف'!A93:BD825,6,0) -> 0 | E47: =IF(الترحيل!C47=الفرز!$L$2,ROW(),"") -> 
A48: 47 | B48: =VLOOKUP('لصق الكشف'!A97,'لصق الكشف'!A95:BE216,54,0) -> 0 | C48: =VLOOKUP('لصق الكشف'!A97,'لصق الكشف'!A95:BD640,3,0) ->  | D48: =VLOOKUP('لصق الكشف'!A97,'لصق الكشف'!A95:BD826,6,0) -> 0 | E48: =IF(الترحيل!C48=الفرز!$L$2,ROW(),"") -> 
A49: 48 | B49: =VLOOKUP('لصق الكشف'!A99,'لصق الكشف'!A97:BE217,54,0) -> 0 | C49: =VLOOKUP('لصق الكشف'!A99,'لصق الكشف'!A97:BD641,3,0) ->  | D49: =VLOOKUP('لصق الكشف'!A99,'لصق الكشف'!A97:BD827,6,0) -> 0 | E49: =IF(الترحيل!C49=الفرز!$L$2,ROW(),"") -> 
A50: 49 | B50: =VLOOKUP('لصق الكشف'!A101,'لصق الكشف'!A99:BE218,54,0) -> 0 | C50: =VLOOKUP('لصق الكشف'!A101,'لصق الكشف'!A99:BD642,3,0) ->  | D50: =VLOOKUP('لصق الكشف'!A101,'لصق الكشف'!A99:BD828,6,0) -> 0 | E50: =IF(الترحيل!C50=الفرز!$L$2,ROW(),"") -> 
A51: 50 | B51: =VLOOKUP('لصق الكشف'!A103,'لصق الكشف'!A101:BE219,54,0) -> 0 | C51: =VLOOKUP('لصق الكشف'!A103,'لصق الكشف'!A101:BD643,3,0) ->  | D51: =VLOOKUP('لصق الكشف'!A103,'لصق الكشف'!A101:BD829,6,0) -> 0 | E51: =IF(الترحيل!C51=الفرز!$L$2,ROW(),"") -> 
A52: 51 | B52: =VLOOKUP('لصق الكشف'!A105,'لصق الكشف'!A103:BE220,54,0) -> 0 | C52: =VLOOKUP('لصق الكشف'!A105,'لصق الكشف'!A103:BD644,3,0) ->  | D52: =VLOOKUP('لصق الكشف'!A105,'لصق الكشف'!A103:BD830,6,0) -> 0 | E52: =IF(الترحيل!C52=الفرز!$L$2,ROW(),"") -> 
A53: 52 | B53: =VLOOKUP('لصق الكشف'!A107,'لصق الكشف'!A105:BE221,54,0) -> 0 | C53: =VLOOKUP('لصق الكشف'!A107,'لصق الكشف'!A105:BD645,3,0) ->  | D53: =VLOOKUP('لصق الكشف'!A107,'لصق الكشف'!A105:BD831,6,0) -> 0 | E53: =IF(الترحيل!C53=الفرز!$L$2,ROW(),"") -> 
A54: 53 | B54: =VLOOKUP('لصق الكشف'!A109,'لصق الكشف'!A107:BE222,54,0) -> 0 | C54: =VLOOKUP('لصق الكشف'!A109,'لصق الكشف'!A107:BD646,3,0) ->  | D54: =VLOOKUP('لصق الكشف'!A109,'لصق الكشف'!A107:BD832,6,0) -> 0 | E54: =IF(الترحيل!C54=الفرز!$L$2,ROW(),"") -> 
A55: 54 | B55: =VLOOKUP('لصق الكشف'!A111,'لصق الكشف'!A109:BE223,54,0) -> 0 | C55: =VLOOKUP('لصق الكشف'!A111,'لصق الكشف'!A109:BD647,3,0) ->  | D55: =VLOOKUP('لصق الكشف'!A111,'لصق الكشف'!A109:BD833,6,0) -> 0 | E55: =IF(الترحيل!C55=الفرز!$L$2,ROW(),"") -> 
A56: 55 | B56: =VLOOKUP('لصق الكشف'!A113,'لصق الكشف'!A111:BE224,54,0) -> 0 | C56: =VLOOKUP('لصق الكشف'!A113,'لصق الكشف'!A111:BD648,3,0) ->  | D56: =VLOOKUP('لصق الكشف'!A113,'لصق الكشف'!A111:BD834,6,0) -> 0 | E56: =IF(الترحيل!C56=الفرز!$L$2,ROW(),"") -> 
A57: 56 | B57: =VLOOKUP('لصق الكشف'!A115,'لصق الكشف'!A113:BE225,54,0) -> 0 | C57: =VLOOKUP('لصق الكشف'!A115,'لصق الكشف'!A113:BD649,3,0) ->  | D57: =VLOOKUP('لصق الكشف'!A115,'لصق الكشف'!A113:BD835,6,0) -> 0 | E57: =IF(الترحيل!C57=الفرز!$L$2,ROW(),"") -> 
A58: 57 | B58: =VLOOKUP('لصق الكشف'!A117,'لصق الكشف'!A115:BE226,54,0) -> 0 | C58: =VLOOKUP('لصق الكشف'!A117,'لصق الكشف'!A115:BD650,3,0) ->  | D58: =VLOOKUP('لصق الكشف'!A117,'لصق الكشف'!A115:BD836,6,0) -> 0 | E58: =IF(الترحيل!C58=الفرز!$L$2,ROW(),"") -> 
A59: 58 | B59: =VLOOKUP('لصق الكشف'!A119,'لصق الكشف'!A117:BE227,54,0) -> 0 | C59: =VLOOKUP('لصق الكشف'!A119,'لصق الكشف'!A117:BD651,3,0) ->  | D59: =VLOOKUP('لصق الكشف'!A119,'لصق الكشف'!A117:BD837,6,0) -> 0 | E59: =IF(الترحيل!C59=الفرز!$L$2,ROW(),"") -> 
A60: 59 | B60: =VLOOKUP('لصق الكشف'!A121,'لصق الكشف'!A119:BE228,54,0) -> 0 | C60: =VLOOKUP('لصق الكشف'!A121,'لصق الكشف'!A119:BD652,3,0) ->  | D60: =VLOOKUP('لصق الكشف'!A121,'لصق الكشف'!A119:BD838,6,0) -> 0 | E60: =IF(الترحيل!C60=الفرز!$L$2,ROW(),"") -> 
A61: 60 | B61: =VLOOKUP('لصق الكشف'!A123,'لصق الكشف'!A121:BE229,54,0) -> 0 | C61: =VLOOKUP('لصق الكشف'!A123,'لصق الكشف'!A121:BD653,3,0) ->  | D61: =VLOOKUP('لصق الكشف'!A123,'لصق الكشف'!A121:BD839,6,0) -> 0 | E61: =IF(الترحيل!C61=الفرز!$L$2,ROW(),"") -> 
A62: 61 | B62: =VLOOKUP('لصق الكشف'!A125,'لصق الكشف'!A123:BE230,54,0) -> 0 | C62: =VLOOKUP('لصق الكشف'!A125,'لصق الكشف'!A123:BD654,3,0) ->  | D62: =VLOOKUP('لصق الكشف'!A125,'لصق الكشف'!A123:BD840,6,0) -> 0 | E62: =IF(الترحيل!C62=الفرز!$L$2,ROW(),"") -> 
F67: =IFERROR(SMALL($E$2:$E$62,ROW()-1),"") -> 
F131: =IFERROR(SMALL($E$2:$E$62,ROW()-1),"") -> 
F195: =IFERROR(SMALL($E$2:$E$62,ROW()-1),"") -> 
F259: =IFERROR(SMALL($E$2:$E$62,ROW()-1),"") -> 
F323: =IFERROR(SMALL($E$2:$E$62,ROW()-1),"") -> 
F387: =IFERROR(SMALL($E$2:$E$62,ROW()-1),"") -> 
F451: =IFERROR(SMALL($E$2:$E$62,ROW()-1),"") -> 
F515: =IFERROR(SMALL($E$2:$E$62,ROW()-1),"") -> 
F579: =IFERROR(SMALL($E$2:$E$62,ROW()-1),"") -> 

Sheet الفرز
D1: المعدل | E1: الاسم | F1: الشعبة | G1: تقسيم الشعب | H1: اختيار الشعبة | I1: مساعد1 | J1: مساعد 2 | K1: المرحل لها | L1: استقدام الطلاب | M1: الطلاب | N1: المعدل
F2: 1 | G2: 7 | H2: 3 | I2: =IF(F2=$H$2,ROW(),"") ->  | J2: =IFERROR(SMALL($I$2:$I$61,ROW()-1),"") -> 4 | K2: الشعبة 1 | L2: 1 | M2: =IFERROR(INDEX($E$1:$E$61,J2),"") -> 0 | N2: =IFERROR(INDEX($D$1:$D$61,J2),"") -> 0
F3: =IFERROR(MOD(F2,$G$2)+1,"") -> 2 | J3: 11 | M3: 0 | N3: 0
F4: 3 | I4: 4 | J4: 18 | M4: 0 | N4: 0
F5: 4 | J5: 25 | M5: 0 | N5: 0
F6: 5 | J6: 32 | M6: 0 | N6: 0
F7: 6 | J7: 39 | M7: 0 | N7: 0
F8: 7 | J8: 46 | M8: 0 | N8: 0
F9: 1 | J9: 53 | M9: 0 | N9: 0
F10: 2 | J10: 60 | M10: 0 | N10: 0
F11: 3 | I11: 11
F12: 4
F13: 5
F14: 6
F15: 7
F16: 1
F17: 2
F18: 3 | I18: 18
F19: 4
F20: 5
F21: 6
F22: 7
F23: 1
F24: 2
F25: 3 | I25: 25
F26: 4
F27: 5
F28: 6
F29: 7
F30: 1
F31: 2
F32: 3 | I32: 32
F33: 4
F34: 5 | I34: =IF(F34=$H$2,ROW(),"") ->  | J34: =IFERROR(SMALL($I$2:$I$61,ROW()-1),"") ->  | M34: =IFERROR(INDEX($E$1:$E$61,J34),"") ->  | N34: =IFERROR(INDEX($D$1:$D$61,J34),"") -> 
F35: =IFERROR(MOD(F34,$G$2)+1,"") -> 6
F36: 7
F37: 1
F38: 2
F39: 3 | I39: 39
F40: 4
F41: 5
F42: 6
F43: 7
F44: 1
F45: 2
F46: 3 | I46: 46
F47: 4
F48: 5
F49: 6
F50: 7
F51: 1
F52: 2
F53: 3 | I53: 53
F54: 4
F55: 5
F56: 6
F57: 7
F58: 1
F59: 2
F60: 3 | I60: 60
F61: 4
C200: 1 | E200: الشعبة 1
C201: 2 | E201: الشعبة 2
C202: 3 | E202: الشعبة 3
C203: 4 | E203: الشعبة 4
C204: 5 | E204: الشعبة 5
C205: 6 | E205: الشعبة 6
C206: 7 | E206: الشعبة 7
C207: 8 | E207: الشعبة 8
C208: 9 | E208: الشعبة 9
C209: 10 | E209: الشعبة 10

Sheet الشعبة 1
A1: الشعبة 1/1 الاسم | B1: المعدل | C1: الشعبة 1/2 الاسم | D1: المعدل | E1: الشعبة 1/3 الاسم | F1: المعدل | G1: الشعبة 1/4 الاسم | H1: المعدل | I1: الشعبة 1/5 الاسم | J1: المعدل | K1: الشعبة 1/6 الاسم | L1: المعدل | M1: الشعبة 1/7 الاسم | N1: المعدل | O1: الشعبة 1/8 الاسم | P1: المعدل | Q1: الشعبة 1/9 الاسم | R1: المعدل | S1: الشعبة 1/10 الاسم | T1: المعدل
C2: =A62 -> 0 | D2: =B62 -> 0 | E2: =A122 -> 0 | F2: =B122 -> 0 | G2: =A182 -> 0 | H2: =B182 -> 0 | I2: =A242 -> 0 | J2: =B242 -> 0 | K2: =A302 -> 0 | L2: =B302 -> 0 | M2: =A362 -> 0 | N2: =B362 -> 0 | O2: =A422 -> 0 | P2: =B422 -> 0 | Q2: =A482 -> 0 | R2: =B482 -> 0 | S2: =A542 -> 0 | T2: =B542 -> 0
C3: =A63 -> 0 | D3: =B63 -> 0 | E3: =A123 -> 0 | F3: =B123 -> 0 | G3: =A183 -> 0 | H3: =B183 -> 0 | I3: =A243 -> 0 | J3: =B243 -> 0 | K3: =A303 -> 0 | L3: =B303 -> 0 | M3: =A363 -> 0 | N3: =B363 -> 0 | O3: =A423 -> 0 | P3: =B423 -> 0 | Q3: =A483 -> 0 | R3: =B483 -> 0 | S3: =A543 -> 0 | T3: =B543 -> 0
C4: 0 | D4: 0 | E4: 0 | F4: 0 | G4: 0 | H4: 0 | I4: 0 | J4: 0 | K4: 0 | L4: 0 | M4: 0 | N4: 0 | O4: 0 | P4: 0 | Q4: 0 | R4: 0 | S4: 0 | T4: 0
C5: 0 | D5: 0 | E5: 0 | F5: 0 | G5: 0 | H5: 0 | I5: 0 | J5: 0 | K5: 0 | L5: 0 | M5: 0 | N5: 0 | O5: 0 | P5: 0 | Q5: 0 | R5: 0 | S5: 0 | T5: 0
C6: 0 | D6: 0 | E6: 0 | F6: 0 | G6: 0 | H6: 0 | I6: 0 | J6: 0 | K6: 0 | L6: 0 | M6: 0 | N6: 0 | O6: 0 | P6: 0 | Q6: 0 | R6: 0 | S6: 0 | T6: 0
C7: 0 | D7: 0 | E7: 0 | F7: 0 | G7: 0 | H7: 0 | I7: 0 | J7: 0 | K7: 0 | L7: 0 | M7: 0 | N7: 0 | O7: 0 | P7: 0 | Q7: 0 | R7: 0 | S7: 0 | T7: 0
C8: 0 | D8: 0 | E8: 0 | F8: 0 | G8: 0 | H8: 0 | I8: 0 | J8: 0 | K8: 0 | L8: 0 | M8: 0 | N8: 0 | O8: 0 | P8: 0 | Q8: 0 | R8: 0 | S8: 0 | T8: 0
C9: 0 | D9: 0 | E9: 0 | F9: 0 | G9: 0 | H9: 0 | I9: 0 | J9: 0 | K9: 0 | L9: 0 | M9: 0 | N9: 0 | O9: 0 | P9: 0 | Q9: 0 | R9: 0 | S9: 0 | T9: 0
C10: 0 | D10: 0 | E10: 0 | F10: 0 | G10: 0 | H10: 0 | I10: 0 | J10: 0 | K10: 0 | L10: 0 | M10: 0 | N10: 0 | O10: 0 | P10: 0 | Q10: 0 | R10: 0 | S10: 0 | T10: 0
C11: 0 | D11: 0 | E11: 0 | F11: 0 | G11: 0 | H11: 0 | I11: 0 | J11: 0 | K11: 0 | L11: 0 | M11: 0 | N11: 0 | O11: 0 | P11: 0 | Q11: 0 | R11: 0 | S11: 0 | T11: 0
C12: 0 | D12: 0 | E12: 0 | F12: 0 | G12: 0 | H12: 0 | I12: 0 | J12: 0 | K12: 0 | L12: 0 | M12: 0 | N12: 0 | O12: 0 | P12: 0 | Q12: 0 | R12: 0 | S12: 0 | T12: 0
C13: 0 | D13: 0 | E13: 0 | F13: 0 | G13: 0 | H13: 0 | I13: 0 | J13: 0 | K13: 0 | L13: 0 | M13: 0 | N13: 0 | O13: 0 | P13: 0 | Q13: 0 | R13: 0 | S13: 0 | T13: 0
C14: 0 | D14: 0 | E14: 0 | F14: 0 | G14: 0 | H14: 0 | I14: 0 | J14: 0 | K14: 0 | L14: 0 | M14: 0 | N14: 0 | O14: 0 | P14: 0 | Q14: 0 | R14: 0 | S14: 0 | T14: 0
C15: 0 | D15: 0 | E15: 0 | F15: 0 | G15: 0 | H15: 0 | I15: 0 | J15: 0 | K15: 0 | L15: 0 | M15: 0 | N15: 0 | O15: 0 | P15: 0 | Q15: 0 | R15: 0 | S15: 0 | T15: 0
C16: 0 | D16: 0 | E16: 0 | F16: 0 | G16: 0 | H16: 0 | I16: 0 | J16: 0 | K16: 0 | L16: 0 | M16: 0 | N16: 0 | O16: 0 | P16: 0 | Q16: 0 | R16: 0 | S16: 0 | T16: 0
C17: 0 | D17: 0 | E17: 0 | F17: 0 | G17: 0 | H17: 0 | I17: 0 | J17: 0 | K17: 0 | L17: 0 | M17: 0 | N17: 0 | O17: 0 | P17: 0 | Q17: 0 | R17: 0 | S17: 0 | T17: 0
C18: 0 | D18: 0 | E18: 0 | F18: 0 | G18: 0 | H18: 0 | I18: 0 | J18: 0 | K18: 0 | L18: 0 | M18: 0 | N18: 0 | O18: 0 | P18: 0 | Q18: 0 | R18: 0 | S18: 0 | T18: 0
C19: 0 | D19: 0 | E19: 0 | F19: 0 | G19: 0 | H19: 0 | I19: 0 | J19: 0 | K19: 0 | L19: 0 | M19: 0 | N19: 0 | O19: 0 | P19: 0 | Q19: 0 | R19: 0 | S19: 0 | T19: 0
C20: 0 | D20: 0 | E20: 0 | F20: 0 | G20: 0 | H20: 0 | I20: 0 | J20: 0 | K20: 0 | L20: 0 | M20: 0 | N20: 0 | O20: 0 | P20: 0 | Q20: 0 | R20: 0 | S20: 0 | T20: 0
C21: 0 | D21: 0 | E21: 0 | F21: 0 | G21: 0 | H21: 0 | I21: 0 | J21: 0 | K21: 0 | L21: 0 | M21: 0 | N21: 0 | O21: 0 | P21: 0 | Q21: 0 | R21: 0 | S21: 0 | T21: 0
C22: 0 | D22: 0 | E22: 0 | F22: 0 | G22: 0 | H22: 0 | I22: 0 | J22: 0 | K22: 0 | L22: 0 | M22: 0 | N22: 0 | O22: 0 | P22: 0 | Q22: 0 | R22: 0 | S22: 0 | T22: 0
C23: 0 | D23: 0 | E23: 0 | F23: 0 | G23: 0 | H23: 0 | I23: 0 | J23: 0 | K23: 0 | L23: 0 | M23: 0 | N23: 0 | O23: 0 | P23: 0 | Q23: 0 | R23: 0 | S23: 0 | T23: 0
C24: 0 | D24: 0 | E24: 0 | F24: 0 | G24: 0 | H24: 0 | I24: 0 | J24: 0 | K24: 0 | L24: 0 | M24: 0 | N24: 0 | O24: 0 | P24: 0 | Q24: 0 | R24: 0 | S24: 0 | T24: 0
C25: 0 | D25: 0 | E25: 0 | F25: 0 | G25: 0 | H25: 0 | I25: 0 | J25: 0 | K25: 0 | L25: 0 | M25: 0 | N25: 0 | O25: 0 | P25: 0 | Q25: 0 | R25: 0 | S25: 0 | T25: 0
C26: 0 | D26: 0 | E26: 0 | F26: 0 | G26: 0 | H26: 0 | I26: 0 | J26: 0 | K26: 0 | L26: 0 | M26: 0 | N26: 0 | O26: 0 | P26: 0 | Q26: 0 | R26: 0 | S26: 0 | T26: 0
C27: 0 | D27: 0 | E27: 0 | F27: 0 | G27: 0 | H27: 0 | I27: 0 | J27: 0 | K27: 0 | L27: 0 | M27: 0 | N27: 0 | O27: 0 | P27: 0 | Q27: 0 | R27: 0 | S27: 0 | T27: 0
C28: 0 | D28: 0 | E28: 0 | F28: 0 | G28: 0 | H28: 0 | I28: 0 | J28: 0 | K28: 0 | L28: 0 | M28: 0 | N28: 0 | O28: 0 | P28: 0 | Q28: 0 | R28: 0 | S28: 0 | T28: 0
C29: 0 | D29: 0 | E29: 0 | F29: 0 | G29: 0 | H29: 0 | I29: 0 | J29: 0 | K29: 0 | L29: 0 | M29: 0 | N29: 0 | O29: 0 | P29: 0 | Q29: 0 | R29: 0 | S29: 0 | T29: 0
C30: 0 | D30: 0 | E30: 0 | F30: 0 | G30: 0 | H30: 0 | I30: 0 | J30: 0 | K30: 0 | L30: 0 | M30: 0 | N30: 0 | O30: 0 | P30: 0 | Q30: 0 | R30: 0 | S30: 0 | T30: 0
C31: 0 | D31: 0 | E31: 0 | F31: 0 | G31: 0 | H31: 0 | I31: 0 | J31: 0 | K31: 0 | L31: 0 | M31: 0 | N31: 0 | O31: 0 | P31: 0 | Q31: 0 | R31: 0 | S31: 0 | T31: 0
E32: عدد طلاب الشعبة | F32: =U38 -> 0 | G32: عدد الطلاب بـ 50 | H32: =U33 -> 0 | I32: عدد الطلاب بـ 60 | J32: =U34 -> 0 | K32: عدد الطلاب بـ 70 | L32: =U35 -> 0 | M32: عدد الطلاب بـ 80 | N32: =U36 -> 0 | O32: عدد الطلاب بـ 90 | P32: =U37 -> 0
C33: =COUNTIF(B2:B31,">="&50)-COUNTIF(B2:B31,">"&59.9) -> 0 | D33: =COUNTIF(D2:D31,">="&50)-COUNTIF(D2:D31,">"&59.9) -> 0 | F33: =COUNTIF(F2:F31,">="&50)-COUNTIF(F2:F31,">"&59.9) -> 0 | H33: =COUNTIF(H2:H31,">="&50)-COUNTIF(H2:H31,">"&59.9) -> 0 | J33: =COUNTIF(J2:J31,">="&50)-COUNTIF(J2:J31,">"&59.9) -> 0 | L33: =COUNTIF(L2:L31,">="&50)-COUNTIF(L2:L31,">"&59.9) -> 0 | N33: =COUNTIF(N2:N31,">="&50)-COUNTIF(N2:N31,">"&59.9) -> 0 | P33: =COUNTIF(P2:P31,">="&50)-COUNTIF(P2:P31,">"&59.9) -> 0 | R33: =COUNTIF(R2:R31,">="&50)-COUNTIF(R2:R31,">"&59.9) -> 0 | T33: =COUNTIF(T2:T31,">="&50)-COUNTIF(T2:T31,">"&59.9) -> 0 | U33: =C33+D33+F33+H33+J33+L33+N33+P33+R33+T33 -> 0
C34: =COUNTIF(B2:B31,">="&60)-COUNTIF(B2:B31,">"&69.9) -> 0 | D34: =COUNTIF(D2:D31,">="&60)-COUNTIF(D2:D31,">"&69.9) -> 0 | F34: =COUNTIF(F2:F31,">="&60)-COUNTIF(F2:F31,">"&69.9) -> 0 | H34: =COUNTIF(H2:H31,">="&60)-COUNTIF(H2:H31,">"&69.9) -> 0 | J34: =COUNTIF(J2:J31,">="&60)-COUNTIF(J2:J31,">"&69.9) -> 0 | L34: =COUNTIF(L2:L31,">="&60)-COUNTIF(L2:L31,">"&69.9) -> 0 | N34: =COUNTIF(N2:N31,">="&60)-COUNTIF(N2:N31,">"&69.9) -> 0 | P34: =COUNTIF(P2:P31,">="&60)-COUNTIF(P2:P31,">"&69.9) -> 0 | R34: =COUNTIF(R2:R31,">="&60)-COUNTIF(R2:R31,">"&69.9) -> 0 | T34: =COUNTIF(T2:T31,">="&60)-COUNTIF(T2:T31,">"&69.9) -> 0 | U34: =C34+D34+F34+H34+J34+L34+N34+P34+R34+T34 -> 0
C35: =COUNTIF(B2:B31,">="&70)-COUNTIF(B2:B31,">"&79.9) -> 0 | D35: =COUNTIF(D2:D31,">="&70)-COUNTIF(D2:D31,">"&79.9) -> 0 | F35: =COUNTIF(F2:F31,">="&70)-COUNTIF(F2:F31,">"&79.9) -> 0 | H35: =COUNTIF(H2:H31,">="&70)-COUNTIF(H2:H31,">"&79.9) -> 0 | J35: =COUNTIF(J2:J31,">="&70)-COUNTIF(J2:J31,">"&79.9) -> 0 | L35: =COUNTIF(L2:L31,">="&70)-COUNTIF(L2:L31,">"&79.9) -> 0 | N35: =COUNTIF(N2:N31,">="&70)-COUNTIF(N2:N31,">"&79.9) -> 0 | P35: =COUNTIF(P2:P31,">="&70)-COUNTIF(P2:P31,">"&79.9) -> 0 | R35: =COUNTIF(R2:R31,">="&70)-COUNTIF(R2:R31,">"&79.9) -> 0 | T35: =COUNTIF(T2:T31,">="&70)-COUNTIF(T2:T31,">"&79.9) -> 0 | U35: 0
C36: =COUNTIF(B2:B31,">="&80)-COUNTIF(B2:B31,">"&89.9) -> 0 | D36: =COUNTIF(D2:D31,">="&80)-COUNTIF(D2:D31,">"&89.9) -> 0 | F36: =COUNTIF(F2:F31,">="&80)-COUNTIF(F2:F31,">"&89.9) -> 0 | H36: =COUNTIF(H2:H31,">="&80)-COUNTIF(H2:H31,">"&89.9) -> 0 | J36: =COUNTIF(J2:J31,">="&80)-COUNTIF(J2:J31,">"&89.9) -> 0 | L36: =COUNTIF(L2:L31,">="&80)-COUNTIF(L2:L31,">"&89.9) -> 0 | N36: =COUNTIF(N2:N31,">="&80)-COUNTIF(N2:N31,">"&89.9) -> 0 | P36: =COUNTIF(P2:P31,">="&80)-COUNTIF(P2:P31,">"&89.9) -> 0 | R36: =COUNTIF(R2:R31,">="&80)-COUNTIF(R2:R31,">"&89.9) -> 0 | T36: =COUNTIF(T2:T31,">="&80)-COUNTIF(T2:T31,">"&89.9) -> 0 | U36: 0
C37: =COUNTIF(B2:B31,">="&90)-COUNTIF(B2:B31,">"&99.9) -> 0 | D37: =COUNTIF(D2:D31,">="&90)-COUNTIF(D2:D31,">"&99.9) -> 0 | F37: =COUNTIF(F2:F31,">="&90)-COUNTIF(F2:F31,">"&99.9) -> 0 | H37: =COUNTIF(H2:H31,">="&90)-COUNTIF(H2:H31,">"&99.9) -> 0 | J37: =COUNTIF(J2:J31,">="&90)-COUNTIF(J2:J31,">"&99.9) -> 0 | L37: =COUNTIF(L2:L31,">="&90)-COUNTIF(L2:L31,">"&99.9) -> 0 | N37: =COUNTIF(N2:N31,">="&90)-COUNTIF(N2:N31,">"&99.9) -> 0 | P37: =COUNTIF(P2:P31,">="&90)-COUNTIF(P2:P31,">"&99.9) -> 0 | R37: =COUNTIF(R2:R31,">="&90)-COUNTIF(R2:R31,">"&99.9) -> 0 | T37: =COUNTIF(T2:T31,">="&90)-COUNTIF(T2:T31,">"&99.9) -> 0 | U37: 0
U38: =U33+U34+U35+U36+U37 -> 0

Sheet الشعبة 2
A1: الشعبة 2/1 الاسم | B1: المعدل | C1: الشعبة 2/2 الاسم | D1: المعدل | E1: الشعبة 2/3 الاسم | F1: المعدل | G1: الشعبة 2/4 الاسم | H1: المعدل | I1: الشعبة 2/5 الاسم | J1: المعدل | K1: الشعبة 2/6 الاسم | L1: المعدل | M1: الشعبة 2/7 الاسم | N1: المعدل | O1: الشعبة 2/8 الاسم | P1: المعدل | Q1: الشعبة 2/9 الاسم | R1: المعدل | S1: الشعبة 2/10 الاسم | T1: المعدل
C2: =A62 -> 0 | D2: =B62 -> 0 | E2: =A122 -> 0 | F2: =B122 -> 0 | G2: =A182 -> 0 | H2: =B182 -> 0 | I2: =A242 -> 0 | J2: =B242 -> 0 | K2: =A302 -> 0 | L2: =B302 -> 0 | M2: =A362 -> 0 | N2: =B362 -> 0 | O2: =A422 -> 0 | P2: =B422 -> 0 | Q2: =A482 -> 0 | R2: =B482 -> 0 | S2: =A542 -> 0 | T2: =B542 -> 0
C3: =A63 -> 0 | D3: 0 | E3: =A123 -> 0 | F3: 0 | G3: =A183 -> 0 | H3: 0 | I3: =A243 -> 0 | J3: 0 | K3: =A303 -> 0 | L3: 0 | M3: =A363 -> 0 | N3: 0 | O3: =A423 -> 0 | P3: 0 | Q3: =A483 -> 0 | R3: 0 | S3: =A543 -> 0 | T3: 0
C4: 0 | D4: 0 | E4: 0 | F4: 0 | G4: 0 | H4: 0 | I4: 0 | J4: 0 | K4: 0 | L4: 0 | M4: 0 | N4: 0 | O4: 0 | P4: 0 | Q4: 0 | R4: 0 | S4: 0 | T4: 0
C5: 0 | D5: 0 | E5: 0 | F5: 0 | G5: 0 | H5: 0 | I5: 0 | J5: 0 | K5: 0 | L5: 0 | M5: 0 | N5: 0 | O5: 0 | P5: 0 | Q5: 0 | R5: 0 | S5: 0 | T5: 0
C6: 0 | D6: 0 | E6: 0 | F6: 0 | G6: 0 | H6: 0 | I6: 0 | J6: 0 | K6: 0 | L6: 0 | M6: 0 | N6: 0 | O6: 0 | P6: 0 | Q6: 0 | R6: 0 | S6: 0 | T6: 0
C7: 0 | D7: 0 | E7: 0 | F7: 0 | G7: 0 | H7: 0 | I7: 0 | J7: 0 | K7: 0 | L7: 0 | M7: 0 | N7: 0 | O7: 0 | P7: 0 | Q7: 0 | R7: 0 | S7: 0 | T7: 0
C8: 0 | D8: 0 | E8: 0 | F8: 0 | G8: 0 | H8: 0 | I8: 0 | J8: 0 | K8: 0 | L8: 0 | M8: 0 | N8: 0 | O8: 0 | P8: 0 | Q8: 0 | R8: 0 | S8: 0 | T8: 0
C9: 0 | D9: 0 | E9: 0 | F9: 0 | G9: 0 | H9: 0 | I9: 0 | J9: 0 | K9: 0 | L9: 0 | M9: 0 | N9: 0 | O9: 0 | P9: 0 | Q9: 0 | R9: 0 | S9: 0 | T9: 0
C10: 0 | D10: 0 | E10: 0 | F10: 0 | G10: 0 | H10: 0 | I10: 0 | J10: 0 | K10: 0 | L10: 0 | M10: 0 | N10: 0 | O10: 0 | P10: 0 | Q10: 0 | R10: 0 | S10: 0 | T10: 0
C11: 0 | D11: 0 | E11: 0 | F11: 0 | G11: 0 | H11: 0 | I11: 0 | J11: 0 | K11: 0 | L11: 0 | M11: 0 | N11: 0 | O11: 0 | P11: 0 | Q11: 0 | R11: 0 | S11: 0 | T11: 0
C12: 0 | D12: 0 | E12: 0 | F12: 0 | G12: 0 | H12: 0 | I12: 0 | J12: 0 | K12: 0 | L12: 0 | M12: 0 | N12: 0 | O12: 0 | P12: 0 | Q12: 0 | R12: 0 | S12: 0 | T12: 0
C13: 0 | D13: 0 | E13: 0 | F13: 0 | G13: 0 | H13: 0 | I13: 0 | J13: 0 | K13: 0 | L13: 0 | M13: 0 | N13: 0 | O13: 0 | P13: 0 | Q13: 0 | R13: 0 | S13: 0 | T13: 0
C14: 0 | D14: 0 | E14: 0 | F14: 0 | G14: 0 | H14: 0 | I14: 0 | J14: 0 | K14: 0 | L14: 0 | M14: 0 | N14: 0 | O14: 0 | P14: 0 | Q14: 0 | R14: 0 | S14: 0 | T14: 0
C15: 0 | D15: 0 | E15: 0 | F15: 0 | G15: 0 | H15: 0 | I15: 0 | J15: 0 | K15: 0 | L15: 0 | M15: 0 | N15: 0 | O15: 0 | P15: 0 | Q15: 0 | R15: 0 | S15: 0 | T15: 0
C16: 0 | D16: 0 | E16: 0 | F16: 0 | G16: 0 | H16: 0 | I16: 0 | J16: 0 | K16: 0 | L16: 0 | M16: 0 | N16: 0 | O16: 0 | P16: 0 | Q16: 0 | R16: 0 | S16: 0 | T16: 0
C17: 0 | D17: 0 | E17: 0 | F17: 0 | G17: 0 | H17: 0 | I17: 0 | J17: 0 | K17: 0 | L17: 0 | M17: 0 | N17: 0 | O17: 0 | P17: 0 | Q17: 0 | R17: 0 | S17: 0 | T17: 0
C18: 0 | D18: 0 | E18: 0 | F18: 0 | G18: 0 | H18: 0 | I18: 0 | J18: 0 | K18: 0 | L18: 0 | M18: 0 | N18: 0 | O18: 0 | P18: 0 | Q18: 0 | R18: 0 | S18: 0 | T18: 0
C19: 0 | D19: 0 | E19: 0 | F19: 0 | G19: 0 | H19: 0 | I19: 0 | J19: 0 | K19: 0 | L19: 0 | M19: 0 | N19: 0 | O19: 0 | P19: 0 | Q19: 0 | R19: 0 | S19: 0 | T19: 0
C20: 0 | D20: 0 | E20: 0 | F20: 0 | G20: 0 | H20: 0 | I20: 0 | J20: 0 | K20: 0 | L20: 0 | M20: 0 | N20: 0 | O20: 0 | P20: 0 | Q20: 0 | R20: 0 | S20: 0 | T20: 0
C21: 0 | D21: 0 | E21: 0 | F21: 0 | G21: 0 | H21: 0 | I21: 0 | J21: 0 | K21: 0 | L21: 0 | M21: 0 | N21: 0 | O21: 0 | P21: 0 | Q21: 0 | R21: 0 | S21: 0 | T21: 0
C22: 0 | D22: 0 | E22: 0 | F22: 0 | G22: 0 | H22: 0 | I22: 0 | J22: 0 | K22: 0 | L22: 0 | M22: 0 | N22: 0 | O22: 0 | P22: 0 | Q22: 0 | R22: 0 | S22: 0 | T22: 0
C23: 0 | D23: 0 | E23: 0 | F23: 0 | G23: 0 | H23: 0 | I23: 0 | J23: 0 | K23: 0 | L23: 0 | M23: 0 | N23: 0 | O23: 0 | P23: 0 | Q23: 0 | R23: 0 | S23: 0 | T23: 0
C24: 0 | D24: 0 | E24: 0 | F24: 0 | G24: 0 | H24: 0 | I24: 0 | J24: 0 | K24: 0 | L24: 0 | M24: 0 | N24: 0 | O24: 0 | P24: 0 | Q24: 0 | R24: 0 | S24: 0 | T24: 0
C25: 0 | D25: 0 | E25: 0 | F25: 0 | G25: 0 | H25: 0 | I25: 0 | J25: 0 | K25: 0 | L25: 0 | M25: 0 | N25: 0 | O25: 0 | P25: 0 | Q25: 0 | R25: 0 | S25: 0 | T25: 0
C26: 0 | D26: 0 | E26: 0 | F26: 0 | G26: 0 | H26: 0 | I26: 0 | J26: 0 | K26: 0 | L26: 0 | M26: 0 | N26: 0 | O26: 0 | P26: 0 | Q26: 0 | R26: 0 | S26: 0 | T26: 0
C27: 0 | D27: 0 | E27: 0 | F27: 0 | G27: 0 | H27: 0 | I27: 0 | J27: 0 | K27: 0 | L27: 0 | M27: 0 | N27: 0 | O27: 0 | P27: 0 | Q27: 0 | R27: 0 | S27: 0 | T27: 0
C28: 0 | D28: 0 | E28: 0 | F28: 0 | G28: 0 | H28: 0 | I28: 0 | J28: 0 | K28: 0 | L28: 0 | M28: 0 | N28: 0 | O28: 0 | P28: 0 | Q28: 0 | R28: 0 | S28: 0 | T28: 0
C29: 0 | D29: 0 | E29: 0 | F29: 0 | G29: 0 | H29: 0 | I29: 0 | J29: 0 | K29: 0 | L29: 0 | M29: 0 | N29: 0 | O29: 0 | P29: 0 | Q29: 0 | R29: 0 | S29: 0 | T29: 0
C30: 0 | D30: 0 | E30: 0 | F30: 0 | G30: 0 | H30: 0 | I30: 0 | J30: 0 | K30: 0 | L30: 0 | M30: 0 | N30: 0 | O30: 0 | P30: 0 | Q30: 0 | R30: 0 | S30: 0 | T30: 0
C31: 0 | D31: 0 | E31: 0 | F31: 0 | G31: 0 | H31: 0 | I31: 0 | J31: 0 | K31: 0 | L31: 0 | M31: 0 | N31: 0 | O31: 0 | P31: 0 | Q31: 0 | R31: 0 | S31: 0 | T31: 0
E32: عدد طلاب الشعبة | F32: =U38 -> 0 | G32: عدد الطلاب بـ 50 | H32: =U33 -> 0 | I32: عدد الطلاب بـ 60 | J32: =U34 -> 0 | K32: عدد الطلاب بـ 70 | L32: =U35 -> 0 | M32: عدد الطلاب بـ 80 | N32: =U36 -> 0 | O32: عدد الطلاب بـ 90 | P32: =U37 -> 0
C33: =COUNTIF(B2:B31,">="&50)-COUNTIF(B2:B31,">"&59.9) -> 0 | D33: =COUNTIF(D2:D31,">="&50)-COUNTIF(D2:D31,">"&59.9) -> 0 | F33: =COUNTIF(F2:F31,">="&50)-COUNTIF(F2:F31,">"&59.9) -> 0 | H33: =COUNTIF(H2:H31,">="&50)-COUNTIF(H2:H31,">"&59.9) -> 0 | J33: =COUNTIF(J2:J31,">="&50)-COUNTIF(J2:J31,">"&59.9) -> 0 | L33: =COUNTIF(L2:L31,">="&50)-COUNTIF(L2:L31,">"&59.9) -> 0 | N33: =COUNTIF(N2:N31,">="&50)-COUNTIF(N2:N31,">"&59.9) -> 0 | P33: =COUNTIF(P2:P31,">="&50)-COUNTIF(P2:P31,">"&59.9) -> 0 | R33: =COUNTIF(R2:R31,">="&50)-COUNTIF(R2:R31,">"&59.9) -> 0 | T33: =COUNTIF(T2:T31,">="&50)-COUNTIF(T2:T31,">"&59.9) -> 0 | U33: =C33+D33+F33+H33+J33+L33+N33+P33+R33+T33 -> 0
C34: =COUNTIF(B2:B31,">="&60)-COUNTIF(B2:B31,">"&69.9) -> 0 | D34: =COUNTIF(D2:D31,">="&60)-COUNTIF(D2:D31,">"&69.9) -> 0 | F34: =COUNTIF(F2:F31,">="&60)-COUNTIF(F2:F31,">"&69.9) -> 0 | H34: =COUNTIF(H2:H31,">="&60)-COUNTIF(H2:H31,">"&69.9) -> 0 | J34: =COUNTIF(J2:J31,">="&60)-COUNTIF(J2:J31,">"&69.9) -> 0 | L34: =COUNTIF(L2:L31,">="&60)-COUNTIF(L2:L31,">"&69.9) -> 0 | N34: =COUNTIF(N2:N31,">="&60)-COUNTIF(N2:N31,">"&69.9) -> 0 | P34: =COUNTIF(P2:P31,">="&60)-COUNTIF(P2:P31,">"&69.9) -> 0 | R34: =COUNTIF(R2:R31,">="&60)-COUNTIF(R2:R31,">"&69.9) -> 0 | T34: =COUNTIF(T2:T31,">="&60)-COUNTIF(T2:T31,">"&69.9) -> 0 | U34: =C34+D34+F34+H34+J34+L34+N34+P34+R34+T34 -> 0
C35: =COUNTIF(B2:B31,">="&70)-COUNTIF(B2:B31,">"&79.9) -> 0 | D35: =COUNTIF(D2:D31,">="&70)-COUNTIF(D2:D31,">"&79.9) -> 0 | F35: =COUNTIF(F2:F31,">="&70)-COUNTIF(F2:F31,">"&79.9) -> 0 | H35: =COUNTIF(H2:H31,">="&70)-COUNTIF(H2:H31,">"&79.9) -> 0 | J35: =COUNTIF(J2:J31,">="&70)-COUNTIF(J2:J31,">"&79.9) -> 0 | L35: =COUNTIF(L2:L31,">="&70)-COUNTIF(L2:L31,">"&79.9) -> 0 | N35: =COUNTIF(N2:N31,">="&70)-COUNTIF(N2:N31,">"&79.9) -> 0 | P35: =COUNTIF(P2:P31,">="&70)-COUNTIF(P2:P31,">"&79.9) -> 0 | R35: =COUNTIF(R2:R31,">="&70)-COUNTIF(R2:R31,">"&79.9) -> 0 | T35: =COUNTIF(T2:T31,">="&70)-COUNTIF(T2:T31,">"&79.9) -> 0 | U35: 0
C36: =COUNTIF(B2:B31,">="&80)-COUNTIF(B2:B31,">"&89.9) -> 0 | D36: =COUNTIF(D2:D31,">="&80)-COUNTIF(D2:D31,">"&89.9) -> 0 | F36: =COUNTIF(F2:F31,">="&80)-COUNTIF(F2:F31,">"&89.9) -> 0 | H36: =COUNTIF(H2:H31,">="&80)-COUNTIF(H2:H31,">"&89.9) -> 0 | J36: =COUNTIF(J2:J31,">="&80)-COUNTIF(J2:J31,">"&89.9) -> 0 | L36: =COUNTIF(L2:L31,">="&80)-COUNTIF(L2:L31,">"&89.9) -> 0 | N36: =COUNTIF(N2:N31,">="&80)-COUNTIF(N2:N31,">"&89.9) -> 0 | P36: =COUNTIF(P2:P31,">="&80)-COUNTIF(P2:P31,">"&89.9) -> 0 | R36: =COUNTIF(R2:R31,">="&80)-COUNTIF(R2:R31,">"&89.9) -> 0 | T36: =COUNTIF(T2:T31,">="&80)-COUNTIF(T2:T31,">"&89.9) -> 0 | U36: 0
C37: =COUNTIF(B2:B31,">="&90)-COUNTIF(B2:B31,">"&99.9) -> 0 | D37: =COUNTIF(D2:D31,">="&90)-COUNTIF(D2:D31,">"&99.9) -> 0 | F37: =COUNTIF(F2:F31,">="&90)-COUNTIF(F2:F31,">"&99.9) -> 0 | H37: =COUNTIF(H2:H31,">="&90)-COUNTIF(H2:H31,">"&99.9) -> 0 | J37: =COUNTIF(J2:J31,">="&90)-COUNTIF(J2:J31,">"&99.9) -> 0 | L37: =COUNTIF(L2:L31,">="&90)-COUNTIF(L2:L31,">"&99.9) -> 0 | N37: =COUNTIF(N2:N31,">="&90)-COUNTIF(N2:N31,">"&99.9) -> 0 | P37: =COUNTIF(P2:P31,">="&90)-COUNTIF(P2:P31,">"&99.9) -> 0 | R37: =COUNTIF(R2:R31,">="&90)-COUNTIF(R2:R31,">"&99.9) -> 0 | T37: =COUNTIF(T2:T31,">="&90)-COUNTIF(T2:T31,">"&99.9) -> 0 | U37: 0
U38: =U33+U34+U35+U36+U37 -> 0

Sheet الشعبة 3
A1: الشعبة 3/1 الاسم | B1: المعدل | C1: الشعبة 3/2 الاسم | D1: المعدل | E1: الشعبة 3/3 الاسم | F1: المعدل | G1: الشعبة 3/4 الاسم | H1: المعدل | I1: الشعبة 3/5 الاسم | J1: المعدل | K1: الشعبة 3/6 الاسم | L1: المعدل | M1: الشعبة 3/7 الاسم | N1: المعدل | O1: الشعبة 3/8 الاسم | P1: المعدل | Q1: الشعبة 3/9 الاسم | R1: المعدل | S1: الشعبة 3/10 الاسم | T1: المعدل
C2: =A62 -> 0 | D2: =B62 -> 0 | E2: =A122 -> 0 | F2: =B122 -> 0 | G2: =A182 -> 0 | H2: =B182 -> 0 | I2: =A242 -> 0 | J2: =B242 -> 0 | K2: =A302 -> 0 | L2: =B302 -> 0 | M2: =A362 -> 0 | N2: =B362 -> 0 | O2: =A422 -> 0 | P2: =B422 -> 0 | Q2: =A482 -> 0 | R2: =B482 -> 0 | S2: =A542 -> 0 | T2: =B542 -> 0
C3: =A63 -> 0 | D3: 0 | E3: =A123 -> 0 | F3: 0 | G3: =A183 -> 0 | H3: 0 | I3: =A243 -> 0 | J3: 0 | K3: =A303 -> 0 | L3: 0 | M3: =A363 -> 0 | N3: 0 | O3: =A423 -> 0 | P3: 0 | Q3: =A483 -> 0 | R3: 0 | S3: =A543 -> 0 | T3: 0
C4: 0 | D4: 0 | E4: 0 | F4: 0 | G4: 0 | H4: 0 | I4: 0 | J4: 0 | K4: 0 | L4: 0 | M4: 0 | N4: 0 | O4: 0 | P4: 0 | Q4: 0 | R4: 0 | S4: 0 | T4: 0
C5: 0 | D5: 0 | E5: 0 | F5: 0 | G5: 0 | H5: 0 | I5: 0 | J5: 0 | K5: 0 | L5: 0 | M5: 0 | N5: 0 | O5: 0 | P5: 0 | Q5: 0 | R5: 0 | S5: 0 | T5: 0
C6: 0 | D6: 0 | E6: 0 | F6: 0 | G6: 0 | H6: 0 | I6: 0 | J6: 0 | K6: 0 | L6: 0 | M6: 0 | N6: 0 | O6: 0 | P6: 0 | Q6: 0 | R6: 0 | S6: 0 | T6: 0
C7: 0 | D7: 0 | E7: 0 | F7: 0 | G7: 0 | H7: 0 | I7: 0 | J7: 0 | K7: 0 | L7: 0 | M7: 0 | N7: 0 | O7: 0 | P7: 0 | Q7: 0 | R7: 0 | S7: 0 | T7: 0
C8: 0 | D8: 0 | E8: 0 | F8: 0 | G8: 0 | H8: 0 | I8: 0 | J8: 0 | K8: 0 | L8: 0 | M8: 0 | N8: 0 | O8: 0 | P8: 0 | Q8: 0 | R8: 0 | S8: 0 | T8: 0
C9: 0 | D9: 0 | E9: 0 | F9: 0 | G9: 0 | H9: 0 | I9: 0 | J9: 0 | K9: 0 | L9: 0 | M9: 0 | N9: 0 | O9: 0 | P9: 0 | Q9: 0 | R9: 0 | S9: 0 | T9: 0
C10: 0 | D10: 0 | E10: 0 | F10: 0 | G10: 0 | H10: 0 | I10: 0 | J10: 0 | K10: 0 | L10: 0 | M10: 0 | N10: 0 | O10: 0 | P10: 0 | Q10: 0 | R10: 0 | S10: 0 | T10: 0
C11: 0 | D11: 0 | E11: 0 | F11: 0 | G11: 0 | H11: 0 | I11: 0 | J11: 0 | K11: 0 | L11: 0 | M11: 0 | N11: 0 | O11: 0 | P11: 0 | Q11: 0 | R11: 0 | S11: 0 | T11: 0
C12: 0 | D12: 0 | E12: 0 | F12: 0 | G12: 0 | H12: 0 | I12: 0 | J12: 0 | K12: 0 | L12: 0 | M12: 0 | N12: 0 | O12: 0 | P12: 0 | Q12: 0 | R12: 0 | S12: 0 | T12: 0
C13: 0 | D13: 0 | E13: 0 | F13: 0 | G13: 0 | H13: 0 | I13: 0 | J13: 0 | K13: 0 | L13: 0 | M13: 0 | N13: 0 | O13: 0 | P13: 0 | Q13: 0 | R13: 0 | S13: 0 | T13: 0
C14: 0 | D14: 0 | E14: 0 | F14: 0 | G14: 0 | H14: 0 | I14: 0 | J14: 0 | K14: 0 | L14: 0 | M14: 0 | N14: 0 | O14: 0 | P14: 0 | Q14: 0 | R14: 0 | S14: 0 | T14: 0
C15: 0 | D15: 0 | E15: 0 | F15: 0 | G15: 0 | H15: 0 | I15: 0 | J15: 0 | K15: 0 | L15: 0 | M15: 0 | N15: 0 | O15: 0 | P15: 0 | Q15: 0 | R15: 0 | S15: 0 | T15: 0
C16: 0 | D16: 0 | E16: 0 | F16: 0 | G16: 0 | H16: 0 | I16: 0 | J16: 0 | K16: 0 | L16: 0 | M16: 0 | N16: 0 | O16: 0 | P16: 0 | Q16: 0 | R16: 0 | S16: 0 | T16: 0
C17: 0 | D17: 0 | E17: 0 | F17: 0 | G17: 0 | H17: 0 | I17: 0 | J17: 0 | K17: 0 | L17: 0 | M17: 0 | N17: 0 | O17: 0 | P17: 0 | Q17: 0 | R17: 0 | S17: 0 | T17: 0
C18: 0 | D18: 0 | E18: 0 | F18: 0 | G18: 0 | H18: 0 | I18: 0 | J18: 0 | K18: 0 | L18: 0 | M18: 0 | N18: 0 | O18: 0 | P18: 0 | Q18: 0 | R18: 0 | S18: 0 | T18: 0
C19: 0 | D19: 0 | E19: 0 | F19: 0 | G19: 0 | H19: 0 | I19: 0 | J19: 0 | K19: 0 | L19: 0 | M19: 0 | N19: 0 | O19: 0 | P19: 0 | Q19: 0 | R19: 0 | S19: 0 | T19: 0
C20: 0 | D20: 0 | E20: 0 | F20: 0 | G20: 0 | H20: 0 | I20: 0 | J20: 0 | K20: 0 | L20: 0 | M20: 0 | N20: 0 | O20: 0 | P20: 0 | Q20: 0 | R20: 0 | S20: 0 | T20: 0
C21: 0 | D21: 0 | E21: 0 | F21: 0 | G21: 0 | H21: 0 | I21: 0 | J21: 0 | K21: 0 | L21: 0 | M21: 0 | N21: 0 | O21: 0 | P21: 0 | Q21: 0 | R21: 0 | S21: 0 | T21: 0
C22: 0 | D22: 0 | E22: 0 | F22: 0 | G22: 0 | H22: 0 | I22: 0 | J22: 0 | K22: 0 | L22: 0 | M22: 0 | N22: 0 | O22: 0 | P22: 0 | Q22: 0 | R22: 0 | S22: 0 | T22: 0
C23: 0 | D23: 0 | E23: 0 | F23: 0 | G23: 0 | H23: 0 | I23: 0 | J23: 0 | K23: 0 | L23: 0 | M23: 0 | N23: 0 | O23: 0 | P23: 0 | Q23: 0 | R23: 0 | S23: 0 | T23: 0
C24: 0 | D24: 0 | E24: 0 | F24: 0 | G24: 0 | H24: 0 | I24: 0 | J24: 0 | K24: 0 | L24: 0 | M24: 0 | N24: 0 | O24: 0 | P24: 0 | Q24: 0 | R24: 0 | S24: 0 | T24: 0
C25: 0 | D25: 0 | E25: 0 | F25: 0 | G25: 0 | H25: 0 | I25: 0 | J25: 0 | K25: 0 | L25: 0 | M25: 0 | N25: 0 | O25: 0 | P25: 0 | Q25: 0 | R25: 0 | S25: 0 | T25: 0
C26: 0 | D26: 0 | E26: 0 | F26: 0 | G26: 0 | H26: 0 | I26: 0 | J26: 0 | K26: 0 | L26: 0 | M26: 0 | N26: 0 | O26: 0 | P26: 0 | Q26: 0 | R26: 0 | S26: 0 | T26: 0
C27: 0 | D27: 0 | E27: 0 | F27: 0 | G27: 0 | H27: 0 | I27: 0 | J27: 0 | K27: 0 | L27: 0 | M27: 0 | N27: 0 | O27: 0 | P27: 0 | Q27: 0 | R27: 0 | S27: 0 | T27: 0
C28: 0 | D28: 0 | E28: 0 | F28: 0 | G28: 0 | H28: 0 | I28: 0 | J28: 0 | K28: 0 | L28: 0 | M28: 0 | N28: 0 | O28: 0 | P28: 0 | Q28: 0 | R28: 0 | S28: 0 | T28: 0
C29: 0 | D29: 0 | E29: 0 | F29: 0 | G29: 0 | H29: 0 | I29: 0 | J29: 0 | K29: 0 | L29: 0 | M29: 0 | N29: 0 | O29: 0 | P29: 0 | Q29: 0 | R29: 0 | S29: 0 | T29: 0
C30: 0 | D30: 0 | E30: 0 | F30: 0 | G30: 0 | H30: 0 | I30: 0 | J30: 0 | K30: 0 | L30: 0 | M30: 0 | N30: 0 | O30: 0 | P30: 0 | Q30: 0 | R30: 0 | S30: 0 | T30: 0
C31: 0 | D31: 0 | E31: 0 | F31: 0 | G31: 0 | H31: 0 | I31: 0 | J31: 0 | K31: 0 | L31: 0 | M31: 0 | N31: 0 | O31: 0 | P31: 0 | Q31: 0 | R31: 0 | S31: 0 | T31: 0
E32: عدد طلاب الشعبة | F32: =U38 -> 0 | G32: عدد الطلاب بـ 50 | H32: =U33 -> 0 | I32: عدد الطلاب بـ 60 | J32: =U34 -> 0 | K32: عدد الطلاب بـ 70 | L32: =U35 -> 0 | M32: عدد الطلاب بـ 80 | N32: =U36 -> 0 | O32: عدد الطلاب بـ 90 | P32: =U37 -> 0
C33: =COUNTIF(B2:B31,">="&50)-COUNTIF(B2:B31,">"&59.9) -> 0 | D33: =COUNTIF(D2:D31,">="&50)-COUNTIF(D2:D31,">"&59.9) -> 0 | F33: =COUNTIF(F2:F31,">="&50)-COUNTIF(F2:F31,">"&59.9) -> 0 | H33: =COUNTIF(H2:H31,">="&50)-COUNTIF(H2:H31,">"&59.9) -> 0 | J33: =COUNTIF(J2:J31,">="&50)-COUNTIF(J2:J31,">"&59.9) -> 0 | L33: =COUNTIF(L2:L31,">="&50)-COUNTIF(L2:L31,">"&59.9) -> 0 | N33: =COUNTIF(N2:N31,">="&50)-COUNTIF(N2:N31,">"&59.9) -> 0 | P33: =COUNTIF(P2:P31,">="&50)-COUNTIF(P2:P31,">"&59.9) -> 0 | R33: =COUNTIF(R2:R31,">="&50)-COUNTIF(R2:R31,">"&59.9) -> 0 | T33: =COUNTIF(T2:T31,">="&50)-COUNTIF(T2:T31,">"&59.9) -> 0 | U33: =C33+D33+F33+H33+J33+L33+N33+P33+R33+T33 -> 0
C34: =COUNTIF(B2:B31,">="&60)-COUNTIF(B2:B31,">"&69.9) -> 0 | D34: =COUNTIF(D2:D31,">="&60)-COUNTIF(D2:D31,">"&69.9) -> 0 | F34: =COUNTIF(F2:F31,">="&60)-COUNTIF(F2:F31,">"&69.9) -> 0 | H34: =COUNTIF(H2:H31,">="&60)-COUNTIF(H2:H31,">"&69.9) -> 0 | J34: =COUNTIF(J2:J31,">="&60)-COUNTIF(J2:J31,">"&69.9) -> 0 | L34: =COUNTIF(L2:L31,">="&60)-COUNTIF(L2:L31,">"&69.9) -> 0 | N34: =COUNTIF(N2:N31,">="&60)-COUNTIF(N2:N31,">"&69.9) -> 0 | P34: =COUNTIF(P2:P31,">="&60)-COUNTIF(P2:P31,">"&69.9) -> 0 | R34: =COUNTIF(R2:R31,">="&60)-COUNTIF(R2:R31,">"&69.9) -> 0 | T34: =COUNTIF(T2:T31,">="&60)-COUNTIF(T2:T31,">"&69.9) -> 0 | U34: =C34+D34+F34+H34+J34+L34+N34+P34+R34+T34 -> 0
C35: =COUNTIF(B2:B31,">="&70)-COUNTIF(B2:B31,">"&79.9) -> 0 | D35: =COUNTIF(D2:D31,">="&70)-COUNTIF(D2:D31,">"&79.9) -> 0 | F35: =COUNTIF(F2:F31,">="&70)-COUNTIF(F2:F31,">"&79.9) -> 0 | H35: =COUNTIF(H2:H31,">="&70)-COUNTIF(H2:H31,">"&79.9) -> 0 | J35: =COUNTIF(J2:J31,">="&70)-COUNTIF(J2:J31,">"&79.9) -> 0 | L35: =COUNTIF(L2:L31,">="&70)-COUNTIF(L2:L31,">"&79.9) -> 0 | N35: =COUNTIF(N2:N31,">="&70)-COUNTIF(N2:N31,">"&79.9) -> 0 | P35: =COUNTIF(P2:P31,">="&70)-COUNTIF(P2:P31,">"&79.9) -> 0 | R35: =COUNTIF(R2:R31,">="&70)-COUNTIF(R2:R31,">"&79.9) -> 0 | T35: =COUNTIF(T2:T31,">="&70)-COUNTIF(T2:T31,">"&79.9) -> 0 | U35: 0
C36: =COUNTIF(B2:B31,">="&80)-COUNTIF(B2:B31,">"&89.9) -> 0 | D36: =COUNTIF(D2:D31,">="&80)-COUNTIF(D2:D31,">"&89.9) -> 0 | F36: =COUNTIF(F2:F31,">="&80)-COUNTIF(F2:F31,">"&89.9) -> 0 | H36: =COUNTIF(H2:H31,">="&80)-COUNTIF(H2:H31,">"&89.9) -> 0 | J36: =COUNTIF(J2:J31,">="&80)-COUNTIF(J2:J31,">"&89.9) -> 0 | L36: =COUNTIF(L2:L31,">="&80)-COUNTIF(L2:L31,">"&89.9) -> 0 | N36: =COUNTIF(N2:N31,">="&80)-COUNTIF(N2:N31,">"&89.9) -> 0 | P36: =COUNTIF(P2:P31,">="&80)-COUNTIF(P2:P31,">"&89.9) -> 0 | R36: =COUNTIF(R2:R31,">="&80)-COUNTIF(R2:R31,">"&89.9) -> 0 | T36: =COUNTIF(T2:T31,">="&80)-COUNTIF(T2:T31,">"&89.9) -> 0 | U36: 0
C37: =COUNTIF(B2:B31,">="&90)-COUNTIF(B2:B31,">"&99.9) -> 0 | D37: =COUNTIF(D2:D31,">="&90)-COUNTIF(D2:D31,">"&99.9) -> 0 | F37: =COUNTIF(F2:F31,">="&90)-COUNTIF(F2:F31,">"&99.9) -> 0 | H37: =COUNTIF(H2:H31,">="&90)-COUNTIF(H2:H31,">"&99.9) -> 0 | J37: =COUNTIF(J2:J31,">="&90)-COUNTIF(J2:J31,">"&99.9) -> 0 | L37: =COUNTIF(L2:L31,">="&90)-COUNTIF(L2:L31,">"&99.9) -> 0 | N37: =COUNTIF(N2:N31,">="&90)-COUNTIF(N2:N31,">"&99.9) -> 0 | P37: =COUNTIF(P2:P31,">="&90)-COUNTIF(P2:P31,">"&99.9) -> 0 | R37: =COUNTIF(R2:R31,">="&90)-COUNTIF(R2:R31,">"&99.9) -> 0 | T37: =COUNTIF(T2:T31,">="&90)-COUNTIF(T2:T31,">"&99.9) -> 0 | U37: 0
U38: =U33+U34+U35+U36+U37 -> 0

Sheet الشعبة 4
A1: الشعبة 4/1 الاسم | B1: المعدل | C1: الشعبة 4/2 الاسم | D1: المعدل | E1: الشعبة 4/3 الاسم | F1: المعدل | G1: الشعبة 4/4 الاسم | H1: المعدل | I1: الشعبة 4/5 الاسم | J1: المعدل | K1: الشعبة 4/6 الاسم | L1: المعدل | M1: الشعبة 4/7 الاسم | N1: المعدل | O1: الشعبة 4/8 الاسم | P1: المعدل | Q1: الشعبة 4/9 الاسم | R1: المعدل | S1: الشعبة 4/10 الاسم | T1: المعدل
C2: =A62 -> 0 | D2: =B62 -> 0 | E2: =A122 -> 0 | F2: =B122 -> 0 | G2: =A182 -> 0 | H2: =B182 -> 0 | I2: =A242 -> 0 | J2: =B242 -> 0 | K2: =A302 -> 0 | L2: =B302 -> 0 | M2: =A362 -> 0 | N2: =B362 -> 0 | O2: =A422 -> 0 | P2: =B422 -> 0 | Q2: =A482 -> 0 | R2: =B482 -> 0 | S2: =A542 -> 0 | T2: =B542 -> 0
C3: =A63 -> 0 | D3: 0 | E3: =A123 -> 0 | F3: 0 | G3: =A183 -> 0 | H3: 0 | I3: =A243 -> 0 | J3: 0 | K3: =A303 -> 0 | L3: 0 | M3: =A363 -> 0 | N3: 0 | O3: =A423 -> 0 | P3: 0 | Q3: =A483 -> 0 | R3: 0 | S3: =A543 -> 0 | T3: 0
C4: 0 | D4: 0 | E4: 0 | F4: 0 | G4: 0 | H4: 0 | I4: 0 | J4: 0 | K4: 0 | L4: 0 | M4: 0 | N4: 0 | O4: 0 | P4: 0 | Q4: 0 | R4: 0 | S4: 0 | T4: 0
C5: 0 | D5: 0 | E5: 0 | F5: 0 | G5: 0 | H5: 0 | I5: 0 | J5: 0 | K5: 0 | L5: 0 | M5: 0 | N5: 0 | O5: 0 | P5: 0 | Q5: 0 | R5: 0 | S5: 0 | T5: 0
C6: 0 | D6: 0 | E6: 0 | F6: 0 | G6: 0 | H6: 0 | I6: 0 | J6: 0 | K6: 0 | L6: 0 | M6: 0 | N6: 0 | O6: 0 | P6: 0 | Q6: 0 | R6: 0 | S6: 0 | T6: 0
C7: 0 | D7: 0 | E7: 0 | F7: 0 | G7: 0 | H7: 0 | I7: 0 | J7: 0 | K7: 0 | L7: 0 | M7: 0 | N7: 0 | O7: 0 | P7: 0 | Q7: 0 | R7: 0 | S7: 0 | T7: 0
C8: 0 | D8: 0 | E8: 0 | F8: 0 | G8: 0 | H8: 0 | I8: 0 | J8: 0 | K8: 0 | L8: 0 | M8: 0 | N8: 0 | O8: 0 | P8: 0 | Q8: 0 | R8: 0 | S8: 0 | T8: 0
C9: 0 | D9: 0 | E9: 0 | F9: 0 | G9: 0 | H9: 0 | I9: 0 | J9: 0 | K9: 0 | L9: 0 | M9: 0 | N9: 0 | O9: 0 | P9: 0 | Q9: 0 | R9: 0 | S9: 0 | T9: 0
C10: 0 | D10: 0 | E10: 0 | F10: 0 | G10: 0 | H10: 0 | I10: 0 | J10: 0 | K10: 0 | L10: 0 | M10: 0 | N10: 0 | O10: 0 | P10: 0 | Q10: 0 | R10: 0 | S10: 0 | T10: 0
C11: 0 | D11: 0 | E11: 0 | F11: 0 | G11: 0 | H11: 0 | I11: 0 | J11: 0 | K11: 0 | L11: 0 | M11: 0 | N11: 0 | O11: 0 | P11: 0 | Q11: 0 | R11: 0 | S11: 0 | T11: 0
C12: 0 | D12: 0 | E12: 0 | F12: 0 | G12: 0 | H12: 0 | I12: 0 | J12: 0 | K12: 0 | L12: 0 | M12: 0 | N12: 0 | O12: 0 | P12: 0 | Q12: 0 | R12: 0 | S12: 0 | T12: 0
C13: 0 | D13: 0 | E13: 0 | F13: 0 | G13: 0 | H13: 0 | I13: 0 | J13: 0 | K13: 0 | L13: 0 | M13: 0 | N13: 0 | O13: 0 | P13: 0 | Q13: 0 | R13: 0 | S13: 0 | T13: 0
C14: 0 | D14: 0 | E14: 0 | F14: 0 | G14: 0 | H14: 0 | I14: 0 | J14: 0 | K14: 0 | L14: 0 | M14: 0 | N14: 0 | O14: 0 | P14: 0 | Q14: 0 | R14: 0 | S14: 0 | T14: 0
C15: 0 | D15: 0 | E15: 0 | F15: 0 | G15: 0 | H15: 0 | I15: 0 | J15: 0 | K15: 0 | L15: 0 | M15: 0 | N15: 0 | O15: 0 | P15: 0 | Q15: 0 | R15: 0 | S15: 0 | T15: 0
C16: 0 | D16: 0 | E16: 0 | F16: 0 | G16: 0 | H16: 0 | I16: 0 | J16: 0 | K16: 0 | L16: 0 | M16: 0 | N16: 0 | O16: 0 | P16: 0 | Q16: 0 | R16: 0 | S16: 0 | T16: 0
C17: 0 | D17: 0 | E17: 0 | F17: 0 | G17: 0 | H17: 0 | I17: 0 | J17: 0 | K17: 0 | L17: 0 | M17: 0 | N17: 0 | O17: 0 | P17: 0 | Q17: 0 | R17: 0 | S17: 0 | T17: 0
C18: 0 | D18: 0 | E18: 0 | F18: 0 | G18: 0 | H18: 0 | I18: 0 | J18: 0 | K18: 0 | L18: 0 | M18: 0 | N18: 0 | O18: 0 | P18: 0 | Q18: 0 | R18: 0 | S18: 0 | T18: 0
C19: 0 | D19: 0 | E19: 0 | F19: 0 | G19: 0 | H19: 0 | I19: 0 | J19: 0 | K19: 0 | L19: 0 | M19: 0 | N19: 0 | O19: 0 | P19: 0 | Q19: 0 | R19: 0 | S19: 0 | T19: 0
C20: 0 | D20: 0 | E20: 0 | F20: 0 | G20: 0 | H20: 0 | I20: 0 | J20: 0 | K20: 0 | L20: 0 | M20: 0 | N20: 0 | O20: 0 | P20: 0 | Q20: 0 | R20: 0 | S20: 0 | T20: 0
C21: 0 | D21: 0 | E21: 0 | F21: 0 | G21: 0 | H21: 0 | I21: 0 | J21: 0 | K21: 0 | L21: 0 | M21: 0 | N21: 0 | O21: 0 | P21: 0 | Q21: 0 | R21: 0 | S21: 0 | T21: 0
C22: 0 | D22: 0 | E22: 0 | F22: 0 | G22: 0 | H22: 0 | I22: 0 | J22: 0 | K22: 0 | L22: 0 | M22: 0 | N22: 0 | O22: 0 | P22: 0 | Q22: 0 | R22: 0 | S22: 0 | T22: 0
C23: 0 | D23: 0 | E23: 0 | F23: 0 | G23: 0 | H23: 0 | I23: 0 | J23: 0 | K23: 0 | L23: 0 | M23: 0 | N23: 0 | O23: 0 | P23: 0 | Q23: 0 | R23: 0 | S23: 0 | T23: 0
C24: 0 | D24: 0 | E24: 0 | F24: 0 | G24: 0 | H24: 0 | I24: 0 | J24: 0 | K24: 0 | L24: 0 | M24: 0 | N24: 0 | O24: 0 | P24: 0 | Q24: 0 | R24: 0 | S24: 0 | T24: 0
C25: 0 | D25: 0 | E25: 0 | F25: 0 | G25: 0 | H25: 0 | I25: 0 | J25: 0 | K25: 0 | L25: 0 | M25: 0 | N25: 0 | O25: 0 | P25: 0 | Q25: 0 | R25: 0 | S25: 0 | T25: 0
C26: 0 | D26: 0 | E26: 0 | F26: 0 | G26: 0 | H26: 0 | I26: 0 | J26: 0 | K26: 0 | L26: 0 | M26: 0 | N26: 0 | O26: 0 | P26: 0 | Q26: 0 | R26: 0 | S26: 0 | T26: 0
C27: 0 | D27: 0 | E27: 0 | F27: 0 | G27: 0 | H27: 0 | I27: 0 | J27: 0 | K27: 0 | L27: 0 | M27: 0 | N27: 0 | O27: 0 | P27: 0 | Q27: 0 | R27: 0 | S27: 0 | T27: 0
C28: 0 | D28: 0 | E28: 0 | F28: 0 | G28: 0 | H28: 0 | I28: 0 | J28: 0 | K28: 0 | L28: 0 | M28: 0 | N28: 0 | O28: 0 | P28: 0 | Q28: 0 | R28: 0 | S28: 0 | T28: 0
C29: 0 | D29: 0 | E29: 0 | F29: 0 | G29: 0 | H29: 0 | I29: 0 | J29: 0 | K29: 0 | L29: 0 | M29: 0 | N29: 0 | O29: 0 | P29: 0 | Q29: 0 | R29: 0 | S29: 0 | T29: 0
C30: 0 | D30: 0 | E30: 0 | F30: 0 | G30: 0 | H30: 0 | I30: 0 | J30: 0 | K30: 0 | L30: 0 | M30: 0 | N30: 0 | O30: 0 | P30: 0 | Q30: 0 | R30: 0 | S30: 0 | T30: 0
C31: 0 | D31: 0 | E31: 0 | F31: 0 | G31: 0 | H31: 0 | I31: 0 | J31: 0 | K31: 0 | L31: 0 | M31: 0 | N31: 0 | O31: 0 | P31: 0 | Q31: 0 | R31: 0 | S31: 0 | T31: 0
E32: عدد طلاب الشعبة | F32: =U38 -> 0 | G32: عدد الطلاب بـ 50 | H32: =U33 -> 0 | I32: عدد الطلاب بـ 60 | J32: =U34 -> 0 | K32: عدد الطلاب بـ 70 | L32: =U35 -> 0 | M32: عدد الطلاب بـ 80 | N32: =U36 -> 0 | O32: عدد الطلاب بـ 90 | P32: =U37 -> 0
C33: =COUNTIF(B2:B31,">="&50)-COUNTIF(B2:B31,">"&59.9) -> 0 | D33: =COUNTIF(D2:D31,">="&50)-COUNTIF(D2:D31,">"&59.9) -> 0 | F33: =COUNTIF(F2:F31,">="&50)-COUNTIF(F2:F31,">"&59.9) -> 0 | H33: =COUNTIF(H2:H31,">="&50)-COUNTIF(H2:H31,">"&59.9) -> 0 | J33: =COUNTIF(J2:J31,">="&50)-COUNTIF(J2:J31,">"&59.9) -> 0 | L33: =COUNTIF(L2:L31,">="&50)-COUNTIF(L2:L31,">"&59.9) -> 0 | N33: =COUNTIF(N2:N31,">="&50)-COUNTIF(N2:N31,">"&59.9) -> 0 | P33: =COUNTIF(P2:P31,">="&50)-COUNTIF(P2:P31,">"&59.9) -> 0 | R33: =COUNTIF(R2:R31,">="&50)-COUNTIF(R2:R31,">"&59.9) -> 0 | T33: =COUNTIF(T2:T31,">="&50)-COUNTIF(T2:T31,">"&59.9) -> 0 | U33: =C33+D33+F33+H33+J33+L33+N33+P33+R33+T33 -> 0
C34: =COUNTIF(B2:B31,">="&60)-COUNTIF(B2:B31,">"&69.9) -> 0 | D34: =COUNTIF(D2:D31,">="&60)-COUNTIF(D2:D31,">"&69.9) -> 0 | F34: =COUNTIF(F2:F31,">="&60)-COUNTIF(F2:F31,">"&69.9) -> 0 | H34: =COUNTIF(H2:H31,">="&60)-COUNTIF(H2:H31,">"&69.9) -> 0 | J34: =COUNTIF(J2:J31,">="&60)-COUNTIF(J2:J31,">"&69.9) -> 0 | L34: =COUNTIF(L2:L31,">="&60)-COUNTIF(L2:L31,">"&69.9) -> 0 | N34: =COUNTIF(N2:N31,">="&60)-COUNTIF(N2:N31,">"&69.9) -> 0 | P34: =COUNTIF(P2:P31,">="&60)-COUNTIF(P2:P31,">"&69.9) -> 0 | R34: =COUNTIF(R2:R31,">="&60)-COUNTIF(R2:R31,">"&69.9) -> 0 | T34: =COUNTIF(T2:T31,">="&60)-COUNTIF(T2:T31,">"&69.9) -> 0 | U34: =C34+D34+F34+H34+J34+L34+N34+P34+R34+T34 -> 0
C35: =COUNTIF(B2:B31,">="&70)-COUNTIF(B2:B31,">"&79.9) -> 0 | D35: =COUNTIF(D2:D31,">="&70)-COUNTIF(D2:D31,">"&79.9) -> 0 | F35: =COUNTIF(F2:F31,">="&70)-COUNTIF(F2:F31,">"&79.9) -> 0 | H35: =COUNTIF(H2:H31,">="&70)-COUNTIF(H2:H31,">"&79.9) -> 0 | J35: =COUNTIF(J2:J31,">="&70)-COUNTIF(J2:J31,">"&79.9) -> 0 | L35: =COUNTIF(L2:L31,">="&70)-COUNTIF(L2:L31,">"&79.9) -> 0 | N35: =COUNTIF(N2:N31,">="&70)-COUNTIF(N2:N31,">"&79.9) -> 0 | P35: =COUNTIF(P2:P31,">="&70)-COUNTIF(P2:P31,">"&79.9) -> 0 | R35: =COUNTIF(R2:R31,">="&70)-COUNTIF(R2:R31,">"&79.9) -> 0 | T35: =COUNTIF(T2:T31,">="&70)-COUNTIF(T2:T31,">"&79.9) -> 0 | U35: 0
C36: =COUNTIF(B2:B31,">="&80)-COUNTIF(B2:B31,">"&89.9) -> 0 | D36: =COUNTIF(D2:D31,">="&80)-COUNTIF(D2:D31,">"&89.9) -> 0 | F36: =COUNTIF(F2:F31,">="&80)-COUNTIF(F2:F31,">"&89.9) -> 0 | H36: =COUNTIF(H2:H31,">="&80)-COUNTIF(H2:H31,">"&89.9) -> 0 | J36: =COUNTIF(J2:J31,">="&80)-COUNTIF(J2:J31,">"&89.9) -> 0 | L36: =COUNTIF(L2:L31,">="&80)-COUNTIF(L2:L31,">"&89.9) -> 0 | N36: =COUNTIF(N2:N31,">="&80)-COUNTIF(N2:N31,">"&89.9) -> 0 | P36: =COUNTIF(P2:P31,">="&80)-COUNTIF(P2:P31,">"&89.9) -> 0 | R36: =COUNTIF(R2:R31,">="&80)-COUNTIF(R2:R31,">"&89.9) -> 0 | T36: =COUNTIF(T2:T31,">="&80)-COUNTIF(T2:T31,">"&89.9) -> 0 | U36: 0
C37: =COUNTIF(B2:B31,">="&90)-COUNTIF(B2:B31,">"&99.9) -> 0 | D37: =COUNTIF(D2:D31,">="&90)-COUNTIF(D2:D31,">"&99.9) -> 0 | F37: =COUNTIF(F2:F31,">="&90)-COUNTIF(F2:F31,">"&99.9) -> 0 | H37: =COUNTIF(H2:H31,">="&90)-COUNTIF(H2:H31,">"&99.9) -> 0 | J37: =COUNTIF(J2:J31,">="&90)-COUNTIF(J2:J31,">"&99.9) -> 0 | L37: =COUNTIF(L2:L31,">="&90)-COUNTIF(L2:L31,">"&99.9) -> 0 | N37: =COUNTIF(N2:N31,">="&90)-COUNTIF(N2:N31,">"&99.9) -> 0 | P37: =COUNTIF(P2:P31,">="&90)-COUNTIF(P2:P31,">"&99.9) -> 0 | R37: =COUNTIF(R2:R31,">="&90)-COUNTIF(R2:R31,">"&99.9) -> 0 | T37: =COUNTIF(T2:T31,">="&90)-COUNTIF(T2:T31,">"&99.9) -> 0 | U37: 0
U38: =U33+U34+U35+U36+U37 -> 0

Sheet الشعبة 5
A1: الشعبة 5/1 الاسم | B1: المعدل | C1: الشعبة 5/2 الاسم | D1: المعدل | E1: الشعبة 5/3 الاسم | F1: المعدل | G1: الشعبة 5/4 الاسم | H1: المعدل | I1: الشعبة 5/5 الاسم | J1: المعدل | K1: الشعبة 5/6 الاسم | L1: المعدل | M1: الشعبة 5/7 الاسم | N1: المعدل | O1: الشعبة 5/8 الاسم | P1: المعدل | Q1: الشعبة 5/9 الاسم | R1: المعدل | S1: الشعبة 5/10 الاسم | T1: المعدل
C2: =A62 -> 0 | D2: =B62 -> 0 | E2: =A122 -> 0 | F2: =B122 -> 0 | G2: =A182 -> 0 | H2: =B182 -> 0 | I2: =A242 -> 0 | J2: =B242 -> 0 | K2: =A302 -> 0 | L2: =B302 -> 0 | M2: =A362 -> 0 | N2: =B362 -> 0 | O2: =A422 -> 0 | P2: =B422 -> 0 | Q2: =A482 -> 0 | R2: =B482 -> 0 | S2: =A542 -> 0 | T2: =B542 -> 0
C3: =A63 -> 0 | D3: 0 | E3: =A123 -> 0 | F3: 0 | G3: =A183 -> 0 | H3: 0 | I3: =A243 -> 0 | J3: 0 | K3: =A303 -> 0 | L3: 0 | M3: =A363 -> 0 | N3: 0 | O3: =A423 -> 0 | P3: 0 | Q3: =A483 -> 0 | R3: 0 | S3: =A543 -> 0 | T3: 0
C4: 0 | D4: 0 | E4: 0 | F4: 0 | G4: 0 | H4: 0 | I4: 0 | J4: 0 | K4: 0 | L4: 0 | M4: 0 | N4: 0 | O4: 0 | P4: 0 | Q4: 0 | R4: 0 | S4: 0 | T4: 0
C5: 0 | D5: 0 | E5: 0 | F5: 0 | G5: 0 | H5: 0 | I5: 0 | J5: 0 | K5: 0 | L5: 0 | M5: 0 | N5: 0 | O5: 0 | P5: 0 | Q5: 0 | R5: 0 | S5: 0 | T5: 0
C6: 0 | D6: 0 | E6: 0 | F6: 0 | G6: 0 | H6: 0 | I6: 0 | J6: 0 | K6: 0 | L6: 0 | M6: 0 | N6: 0 | O6: 0 | P6: 0 | Q6: 0 | R6: 0 | S6: 0 | T6: 0
C7: 0 | D7: 0 | E7: 0 | F7: 0 | G7: 0 | H7: 0 | I7: 0 | J7: 0 | K7: 0 | L7: 0 | M7: 0 | N7: 0 | O7: 0 | P7: 0 | Q7: 0 | R7: 0 | S7: 0 | T7: 0
C8: 0 | D8: 0 | E8: 0 | F8: 0 | G8: 0 | H8: 0 | I8: 0 | J8: 0 | K8: 0 | L8: 0 | M8: 0 | N8: 0 | O8: 0 | P8: 0 | Q8: 0 | R8: 0 | S8: 0 | T8: 0
C9: 0 | D9: 0 | E9: 0 | F9: 0 | G9: 0 | H9: 0 | I9: 0 | J9: 0 | K9: 0 | L9: 0 | M9: 0 | N9: 0 | O9: 0 | P9: 0 | Q9: 0 | R9: 0 | S9: 0 | T9: 0
C10: 0 | D10: 0 | E10: 0 | F10: 0 | G10: 0 | H10: 0 | I10: 0 | J10: 0 | K10: 0 | L10: 0 | M10: 0 | N10: 0 | O10: 0 | P10: 0 | Q10: 0 | R10: 0 | S10: 0 | T10: 0
C11: 0 | D11: 0 | E11: 0 | F11: 0 | G11: 0 | H11: 0 | I11: 0 | J11: 0 | K11: 0 | L11: 0 | M11: 0 | N11: 0 | O11: 0 | P11: 0 | Q11: 0 | R11: 0 | S11: 0 | T11: 0
C12: 0 | D12: 0 | E12: 0 | F12: 0 | G12: 0 | H12: 0 | I12: 0 | J12: 0 | K12: 0 | L12: 0 | M12: 0 | N12: 0 | O12: 0 | P12: 0 | Q12: 0 | R12: 0 | S12: 0 | T12: 0
C13: 0 | D13: 0 | E13: 0 | F13: 0 | G13: 0 | H13: 0 | I13: 0 | J13: 0 | K13: 0 | L13: 0 | M13: 0 | N13: 0 | O13: 0 | P13: 0 | Q13: 0 | R13: 0 | S13: 0 | T13: 0
C14: 0 | D14: 0 | E14: 0 | F14: 0 | G14: 0 | H14: 0 | I14: 0 | J14: 0 | K14: 0 | L14: 0 | M14: 0 | N14: 0 | O14: 0 | P14: 0 | Q14: 0 | R14: 0 | S14: 0 | T14: 0
C15: 0 | D15: 0 | E15: 0 | F15: 0 | G15: 0 | H15: 0 | I15: 0 | J15: 0 | K15: 0 | L15: 0 | M15: 0 | N15: 0 | O15: 0 | P15: 0 | Q15: 0 | R15: 0 | S15: 0 | T15: 0
C16: 0 | D16: 0 | E16: 0 | F16: 0 | G16: 0 | H16: 0 | I16: 0 | J16: 0 | K16: 0 | L16: 0 | M16: 0 | N16: 0 | O16: 0 | P16: 0 | Q16: 0 | R16: 0 | S16: 0 | T16: 0
C17: 0 | D17: 0 | E17: 0 | F17: 0 | G17: 0 | H17: 0 | I17: 0 | J17: 0 | K17: 0 | L17: 0 | M17: 0 | N17: 0 | O17: 0 | P17: 0 | Q17: 0 | R17: 0 | S17: 0 | T17: 0
C18: 0 | D18: 0 | E18: 0 | F18: 0 | G18: 0 | H18: 0 | I18: 0 | J18: 0 | K18: 0 | L18: 0 | M18: 0 | N18: 0 | O18: 0 | P18: 0 | Q18: 0 | R18: 0 | S18: 0 | T18: 0
C19: 0 | D19: 0 | E19: 0 | F19: 0 | G19: 0 | H19: 0 | I19: 0 | J19: 0 | K19: 0 | L19: 0 | M19: 0 | N19: 0 | O19: 0 | P19: 0 | Q19: 0 | R19: 0 | S19: 0 | T19: 0
C20: 0 | D20: 0 | E20: 0 | F20: 0 | G20: 0 | H20: 0 | I20: 0 | J20: 0 | K20: 0 | L20: 0 | M20: 0 | N20: 0 | O20: 0 | P20: 0 | Q20: 0 | R20: 0 | S20: 0 | T20: 0
C21: 0 | D21: 0 | E21: 0 | F21: 0 | G21: 0 | H21: 0 | I21: 0 | J21: 0 | K21: 0 | L21: 0 | M21: 0 | N21: 0 | O21: 0 | P21: 0 | Q21: 0 | R21: 0 | S21: 0 | T21: 0
C22: 0 | D22: 0 | E22: 0 | F22: 0 | G22: 0 | H22: 0 | I22: 0 | J22: 0 | K22: 0 | L22: 0 | M22: 0 | N22: 0 | O22: 0 | P22: 0 | Q22: 0 | R22: 0 | S22: 0 | T22: 0
C23: 0 | D23: 0 | E23: 0 | F23: 0 | G23: 0 | H23: 0 | I23: 0 | J23: 0 | K23: 0 | L23: 0 | M23: 0 | N23: 0 | O23: 0 | P23: 0 | Q23: 0 | R23: 0 | S23: 0 | T23: 0
C24: 0 | D24: 0 | E24: 0 | F24: 0 | G24: 0 | H24: 0 | I24: 0 | J24: 0 | K24: 0 | L24: 0 | M24: 0 | N24: 0 | O24: 0 | P24: 0 | Q24: 0 | R24: 0 | S24: 0 | T24: 0
C25: 0 | D25: 0 | E25: 0 | F25: 0 | G25: 0 | H25: 0 | I25: 0 | J25: 0 | K25: 0 | L25: 0 | M25: 0 | N25: 0 | O25: 0 | P25: 0 | Q25: 0 | R25: 0 | S25: 0 | T25: 0
C26: 0 | D26: 0 | E26: 0 | F26: 0 | G26: 0 | H26: 0 | I26: 0 | J26: 0 | K26: 0 | L26: 0 | M26: 0 | N26: 0 | O26: 0 | P26: 0 | Q26: 0 | R26: 0 | S26: 0 | T26: 0
C27: 0 | D27: 0 | E27: 0 | F27: 0 | G27: 0 | H27: 0 | I27: 0 | J27: 0 | K27: 0 | L27: 0 | M27: 0 | N27: 0 | O27: 0 | P27: 0 | Q27: 0 | R27: 0 | S27: 0 | T27: 0
C28: 0 | D28: 0 | E28: 0 | F28: 0 | G28: 0 | H28: 0 | I28: 0 | J28: 0 | K28: 0 | L28: 0 | M28: 0 | N28: 0 | O28: 0 | P28: 0 | Q28: 0 | R28: 0 | S28: 0 | T28: 0
C29: 0 | D29: 0 | E29: 0 | F29: 0 | G29: 0 | H29: 0 | I29: 0 | J29: 0 | K29: 0 | L29: 0 | M29: 0 | N29: 0 | O29: 0 | P29: 0 | Q29: 0 | R29: 0 | S29: 0 | T29: 0
C30: 0 | D30: 0 | E30: 0 | F30: 0 | G30: 0 | H30: 0 | I30: 0 | J30: 0 | K30: 0 | L30: 0 | M30: 0 | N30: 0 | O30: 0 | P30: 0 | Q30: 0 | R30: 0 | S30: 0 | T30: 0
C31: 0 | D31: 0 | E31: 0 | F31: 0 | G31: 0 | H31: 0 | I31: 0 | J31: 0 | K31: 0 | L31: 0 | M31: 0 | N31: 0 | O31: 0 | P31: 0 | Q31: 0 | R31: 0 | S31: 0 | T31: 0
E32: عدد طلاب الشعبة | F32: =U38 -> 0 | G32: عدد الطلاب بـ 50 | H32: =U33 -> 0 | I32: عدد الطلاب بـ 60 | J32: =U34 -> 0 | K32: عدد الطلاب بـ 70 | L32: =U35 -> 0 | M32: عدد الطلاب بـ 80 | N32: =U36 -> 0 | O32: عدد الطلاب بـ 90 | P32: =U37 -> 0
C33: =COUNTIF(B2:B31,">="&50)-COUNTIF(B2:B31,">"&59.9) -> 0 | D33: =COUNTIF(D2:D31,">="&50)-COUNTIF(D2:D31,">"&59.9) -> 0 | F33: =COUNTIF(F2:F31,">="&50)-COUNTIF(F2:F31,">"&59.9) -> 0 | H33: =COUNTIF(H2:H31,">="&50)-COUNTIF(H2:H31,">"&59.9) -> 0 | J33: =COUNTIF(J2:J31,">="&50)-COUNTIF(J2:J31,">"&59.9) -> 0 | L33: =COUNTIF(L2:L31,">="&50)-COUNTIF(L2:L31,">"&59.9) -> 0 | N33: =COUNTIF(N2:N31,">="&50)-COUNTIF(N2:N31,">"&59.9) -> 0 | P33: =COUNTIF(P2:P31,">="&50)-COUNTIF(P2:P31,">"&59.9) -> 0 | R33: =COUNTIF(R2:R31,">="&50)-COUNTIF(R2:R31,">"&59.9) -> 0 | T33: =COUNTIF(T2:T31,">="&50)-COUNTIF(T2:T31,">"&59.9) -> 0 | U33: =C33+D33+F33+H33+J33+L33+N33+P33+R33+T33 -> 0
C34: =COUNTIF(B2:B31,">="&60)-COUNTIF(B2:B31,">"&69.9) -> 0 | D34: =COUNTIF(D2:D31,">="&60)-COUNTIF(D2:D31,">"&69.9) -> 0 | F34: =COUNTIF(F2:F31,">="&60)-COUNTIF(F2:F31,">"&69.9) -> 0 | H34: =COUNTIF(H2:H31,">="&60)-COUNTIF(H2:H31,">"&69.9) -> 0 | J34: =COUNTIF(J2:J31,">="&60)-COUNTIF(J2:J31,">"&69.9) -> 0 | L34: =COUNTIF(L2:L31,">="&60)-COUNTIF(L2:L31,">"&69.9) -> 0 | N34: =COUNTIF(N2:N31,">="&60)-COUNTIF(N2:N31,">"&69.9) -> 0 | P34: =COUNTIF(P2:P31,">="&60)-COUNTIF(P2:P31,">"&69.9) -> 0 | R34: =COUNTIF(R2:R31,">="&60)-COUNTIF(R2:R31,">"&69.9) -> 0 | T34: =COUNTIF(T2:T31,">="&60)-COUNTIF(T2:T31,">"&69.9) -> 0 | U34: =C34+D34+F34+H34+J34+L34+N34+P34+R34+T34 -> 0
C35: =COUNTIF(B2:B31,">="&70)-COUNTIF(B2:B31,">"&79.9) -> 0 | D35: =COUNTIF(D2:D31,">="&70)-COUNTIF(D2:D31,">"&79.9) -> 0 | F35: =COUNTIF(F2:F31,">="&70)-COUNTIF(F2:F31,">"&79.9) -> 0 | H35: =COUNTIF(H2:H31,">="&70)-COUNTIF(H2:H31,">"&79.9) -> 0 | J35: =COUNTIF(J2:J31,">="&70)-COUNTIF(J2:J31,">"&79.9) -> 0 | L35: =COUNTIF(L2:L31,">="&70)-COUNTIF(L2:L31,">"&79.9) -> 0 | N35: =COUNTIF(N2:N31,">="&70)-COUNTIF(N2:N31,">"&79.9) -> 0 | P35: =COUNTIF(P2:P31,">="&70)-COUNTIF(P2:P31,">"&79.9) -> 0 | R35: =COUNTIF(R2:R31,">="&70)-COUNTIF(R2:R31,">"&79.9) -> 0 | T35: =COUNTIF(T2:T31,">="&70)-COUNTIF(T2:T31,">"&79.9) -> 0 | U35: 0
C36: =COUNTIF(B2:B31,">="&80)-COUNTIF(B2:B31,">"&89.9) -> 0 | D36: =COUNTIF(D2:D31,">="&80)-COUNTIF(D2:D31,">"&89.9) -> 0 | F36: =COUNTIF(F2:F31,">="&80)-COUNTIF(F2:F31,">"&89.9) -> 0 | H36: =COUNTIF(H2:H31,">="&80)-COUNTIF(H2:H31,">"&89.9) -> 0 | J36: =COUNTIF(J2:J31,">="&80)-COUNTIF(J2:J31,">"&89.9) -> 0 | L36: =COUNTIF(L2:L31,">="&80)-COUNTIF(L2:L31,">"&89.9) -> 0 | N36: =COUNTIF(N2:N31,">="&80)-COUNTIF(N2:N31,">"&89.9) -> 0 | P36: =COUNTIF(P2:P31,">="&80)-COUNTIF(P2:P31,">"&89.9) -> 0 | R36: =COUNTIF(R2:R31,">="&80)-COUNTIF(R2:R31,">"&89.9) -> 0 | T36: =COUNTIF(T2:T31,">="&80)-COUNTIF(T2:T31,">"&89.9) -> 0 | U36: 0
C37: =COUNTIF(B2:B31,">="&90)-COUNTIF(B2:B31,">"&99.9) -> 0 | D37: =COUNTIF(D2:D31,">="&90)-COUNTIF(D2:D31,">"&99.9) -> 0 | F37: =COUNTIF(F2:F31,">="&90)-COUNTIF(F2:F31,">"&99.9) -> 0 | H37: =COUNTIF(H2:H31,">="&90)-COUNTIF(H2:H31,">"&99.9) -> 0 | J37: =COUNTIF(J2:J31,">="&90)-COUNTIF(J2:J31,">"&99.9) -> 0 | L37: =COUNTIF(L2:L31,">="&90)-COUNTIF(L2:L31,">"&99.9) -> 0 | N37: =COUNTIF(N2:N31,">="&90)-COUNTIF(N2:N31,">"&99.9) -> 0 | P37: =COUNTIF(P2:P31,">="&90)-COUNTIF(P2:P31,">"&99.9) -> 0 | R37: =COUNTIF(R2:R31,">="&90)-COUNTIF(R2:R31,">"&99.9) -> 0 | T37: =COUNTIF(T2:T31,">="&90)-COUNTIF(T2:T31,">"&99.9) -> 0 | U37: 0
U38: =U33+U34+U35+U36+U37 -> 0

Sheet الشعبة 6
A1: الشعبة 6/1 الاسم | B1: المعدل | C1: الشعبة 6/2 الاسم | D1: المعدل | E1: الشعبة 6/3 الاسم | F1: المعدل | G1: الشعبة 6/4 الاسم | H1: المعدل | I1: الشعبة 6/5 الاسم | J1: المعدل | K1: الشعبة 6/6 الاسم | L1: المعدل | M1: الشعبة 6/7 الاسم | N1: المعدل | O1: الشعبة 6/8 الاسم | P1: المعدل | Q1: الشعبة 6/9 الاسم | R1: المعدل | S1: الشعبة 6/10 الاسم | T1: المعدل
C2: =A62 -> 0 | D2: =B62 -> 0 | E2: =A122 -> 0 | F2: =B122 -> 0 | G2: =A182 -> 0 | H2: =B182 -> 0 | I2: =A242 -> 0 | J2: =B242 -> 0 | K2: =A302 -> 0 | L2: =B302 -> 0 | M2: =A362 -> 0 | N2: =B362 -> 0 | O2: =A422 -> 0 | P2: =B422 -> 0 | Q2: =A482 -> 0 | R2: =B482 -> 0 | S2: =A542 -> 0 | T2: =B542 -> 0
C3: =A63 -> 0 | D3: 0 | E3: =A123 -> 0 | F3: 0 | G3: =A183 -> 0 | H3: 0 | I3: =A243 -> 0 | J3: 0 | K3: =A303 -> 0 | L3: 0 | M3: =A363 -> 0 | N3: 0 | O3: =A423 -> 0 | P3: 0 | Q3: =A483 -> 0 | R3: 0 | S3: =A543 -> 0 | T3: 0
C4: 0 | D4: 0 | E4: 0 | F4: 0 | G4: 0 | H4: 0 | I4: 0 | J4: 0 | K4: 0 | L4: 0 | M4: 0 | N4: 0 | O4: 0 | P4: 0 | Q4: 0 | R4: 0 | S4: 0 | T4: 0
C5: 0 | D5: 0 | E5: 0 | F5: 0 | G5: 0 | H5: 0 | I5: 0 | J5: 0 | K5: 0 | L5: 0 | M5: 0 | N5: 0 | O5: 0 | P5: 0 | Q5: 0 | R5: 0 | S5: 0 | T5: 0
C6: 0 | D6: 0 | E6: 0 | F6: 0 | G6: 0 | H6: 0 | I6: 0 | J6: 0 | K6: 0 | L6: 0 | M6: 0 | N6: 0 | O6: 0 | P6: 0 | Q6: 0 | R6: 0 | S6: 0 | T6: 0
C7: 0 | D7: 0 | E7: 0 | F7: 0 | G7: 0 | H7: 0 | I7: 0 | J7: 0 | K7: 0 | L7: 0 | M7: 0 | N7: 0 | O7: 0 | P7: 0 | Q7: 0 | R7: 0 | S7: 0 | T7: 0
C8: 0 | D8: 0 | E8: 0 | F8: 0 | G8: 0 | H8: 0 | I8: 0 | J8: 0 | K8: 0 | L8: 0 | M8: 0 | N8: 0 | O8: 0 | P8: 0 | Q8: 0 | R8: 0 | S8: 0 | T8: 0
C9: 0 | D9: 0 | E9: 0 | F9: 0 | G9: 0 | H9: 0 | I9: 0 | J9: 0 | K9: 0 | L9: 0 | M9: 0 | N9: 0 | O9: 0 | P9: 0 | Q9: 0 | R9: 0 | S9: 0 | T9: 0
C10: 0 | D10: 0 | E10: 0 | F10: 0 | G10: 0 | H10: 0 | I10: 0 | J10: 0 | K10: 0 | L10: 0 | M10: 0 | N10: 0 | O10: 0 | P10: 0 | Q10: 0 | R10: 0 | S10: 0 | T10: 0
C11: 0 | D11: 0 | E11: 0 | F11: 0 | G11: 0 | H11: 0 | I11: 0 | J11: 0 | K11: 0 | L11: 0 | M11: 0 | N11: 0 | O11: 0 | P11: 0 | Q11: 0 | R11: 0 | S11: 0 | T11: 0
C12: 0 | D12: 0 | E12: 0 | F12: 0 | G12: 0 | H12: 0 | I12: 0 | J12: 0 | K12: 0 | L12: 0 | M12: 0 | N12: 0 | O12: 0 | P12: 0 | Q12: 0 | R12: 0 | S12: 0 | T12: 0
C13: 0 | D13: 0 | E13: 0 | F13: 0 | G13: 0 | H13: 0 | I13: 0 | J13: 0 | K13: 0 | L13: 0 | M13: 0 | N13: 0 | O13: 0 | P13: 0 | Q13: 0 | R13: 0 | S13: 0 | T13: 0
C14: 0 | D14: 0 | E14: 0 | F14: 0 | G14: 0 | H14: 0 | I14: 0 | J14: 0 | K14: 0 | L14: 0 | M14: 0 | N14: 0 | O14: 0 | P14: 0 | Q14: 0 | R14: 0 | S14: 0 | T14: 0
C15: 0 | D15: 0 | E15: 0 | F15: 0 | G15: 0 | H15: 0 | I15: 0 | J15: 0 | K15: 0 | L15: 0 | M15: 0 | N15: 0 | O15: 0 | P15: 0 | Q15: 0 | R15: 0 | S15: 0 | T15: 0
C16: 0 | D16: 0 | E16: 0 | F16: 0 | G16: 0 | H16: 0 | I16: 0 | J16: 0 | K16: 0 | L16: 0 | M16: 0 | N16: 0 | O16: 0 | P16: 0 | Q16: 0 | R16: 0 | S16: 0 | T16: 0
C17: 0 | D17: 0 | E17: 0 | F17: 0 | G17: 0 | H17: 0 | I17: 0 | J17: 0 | K17: 0 | L17: 0 | M17: 0 | N17: 0 | O17: 0 | P17: 0 | Q17: 0 | R17: 0 | S17: 0 | T17: 0
C18: 0 | D18: 0 | E18: 0 | F18: 0 | G18: 0 | H18: 0 | I18: 0 | J18: 0 | K18: 0 | L18: 0 | M18: 0 | N18: 0 | O18: 0 | P18: 0 | Q18: 0 | R18: 0 | S18: 0 | T18: 0
C19: 0 | D19: 0 | E19: 0 | F19: 0 | G19: 0 | H19: 0 | I19: 0 | J19: 0 | K19: 0 | L19: 0 | M19: 0 | N19: 0 | O19: 0 | P19: 0 | Q19: 0 | R19: 0 | S19: 0 | T19: 0
C20: 0 | D20: 0 | E20: 0 | F20: 0 | G20: 0 | H20: 0 | I20: 0 | J20: 0 | K20: 0 | L20: 0 | M20: 0 | N20: 0 | O20: 0 | P20: 0 | Q20: 0 | R20: 0 | S20: 0 | T20: 0
C21: 0 | D21: 0 | E21: 0 | F21: 0 | G21: 0 | H21: 0 | I21: 0 | J21: 0 | K21: 0 | L21: 0 | M21: 0 | N21: 0 | O21: 0 | P21: 0 | Q21: 0 | R21: 0 | S21: 0 | T21: 0
C22: 0 | D22: 0 | E22: 0 | F22: 0 | G22: 0 | H22: 0 | I22: 0 | J22: 0 | K22: 0 | L22: 0 | M22: 0 | N22: 0 | O22: 0 | P22: 0 | Q22: 0 | R22: 0 | S22: 0 | T22: 0
C23: 0 | D23: 0 | E23: 0 | F23: 0 | G23: 0 | H23: 0 | I23: 0 | J23: 0 | K23: 0 | L23: 0 | M23: 0 | N23: 0 | O23: 0 | P23: 0 | Q23: 0 | R23: 0 | S23: 0 | T23: 0
C24: 0 | D24: 0 | E24: 0 | F24: 0 | G24: 0 | H24: 0 | I24: 0 | J24: 0 | K24: 0 | L24: 0 | M24: 0 | N24: 0 | O24: 0 | P24: 0 | Q24: 0 | R24: 0 | S24: 0 | T24: 0
C25: 0 | D25: 0 | E25: 0 | F25: 0 | G25: 0 | H25: 0 | I25: 0 | J25: 0 | K25: 0 | L25: 0 | M25: 0 | N25: 0 | O25: 0 | P25: 0 | Q25: 0 | R25: 0 | S25: 0 | T25: 0
C26: 0 | D26: 0 | E26: 0 | F26: 0 | G26: 0 | H26: 0 | I26: 0 | J26: 0 | K26: 0 | L26: 0 | M26: 0 | N26: 0 | O26: 0 | P26: 0 | Q26: 0 | R26: 0 | S26: 0 | T26: 0
C27: 0 | D27: 0 | E27: 0 | F27: 0 | G27: 0 | H27: 0 | I27: 0 | J27: 0 | K27: 0 | L27: 0 | M27: 0 | N27: 0 | O27: 0 | P27: 0 | Q27: 0 | R27: 0 | S27: 0 | T27: 0
C28: 0 | D28: 0 | E28: 0 | F28: 0 | G28: 0 | H28: 0 | I28: 0 | J28: 0 | K28: 0 | L28: 0 | M28: 0 | N28: 0 | O28: 0 | P28: 0 | Q28: 0 | R28: 0 | S28: 0 | T28: 0
C29: 0 | D29: 0 | E29: 0 | F29: 0 | G29: 0 | H29: 0 | I29: 0 | J29: 0 | K29: 0 | L29: 0 | M29: 0 | N29: 0 | O29: 0 | P29: 0 | Q29: 0 | R29: 0 | S29: 0 | T29: 0
C30: 0 | D30: 0 | E30: 0 | F30: 0 | G30: 0 | H30: 0 | I30: 0 | J30: 0 | K30: 0 | L30: 0 | M30: 0 | N30: 0 | O30: 0 | P30: 0 | Q30: 0 | R30: 0 | S30: 0 | T30: 0
C31: 0 | D31: 0 | E31: 0 | F31: 0 | G31: 0 | H31: 0 | I31: 0 | J31: 0 | K31: 0 | L31: 0 | M31: 0 | N31: 0 | O31: 0 | P31: 0 | Q31: 0 | R31: 0 | S31: 0 | T31: 0
E32: عدد طلاب الشعبة | F32: =U38 -> 0 | G32: عدد الطلاب بـ 50 | H32: =U33 -> 0 | I32: عدد الطلاب بـ 60 | J32: =U34 -> 0 | K32: عدد الطلاب بـ 70 | L32: =U35 -> 0 | M32: عدد الطلاب بـ 80 | N32: =U36 -> 0 | O32: عدد الطلاب بـ 90 | P32: =U37 -> 0
C33: =COUNTIF(B2:B31,">="&50)-COUNTIF(B2:B31,">"&59.9) -> 0 | D33: =COUNTIF(D2:D31,">="&50)-COUNTIF(D2:D31,">"&59.9) -> 0 | F33: =COUNTIF(F2:F31,">="&50)-COUNTIF(F2:F31,">"&59.9) -> 0 | H33: =COUNTIF(H2:H31,">="&50)-COUNTIF(H2:H31,">"&59.9) -> 0 | J33: =COUNTIF(J2:J31,">="&50)-COUNTIF(J2:J31,">"&59.9) -> 0 | L33: =COUNTIF(L2:L31,">="&50)-COUNTIF(L2:L31,">"&59.9) -> 0 | N33: =COUNTIF(N2:N31,">="&50)-COUNTIF(N2:N31,">"&59.9) -> 0 | P33: =COUNTIF(P2:P31,">="&50)-COUNTIF(P2:P31,">"&59.9) -> 0 | R33: =COUNTIF(R2:R31,">="&50)-COUNTIF(R2:R31,">"&59.9) -> 0 | T33: =COUNTIF(T2:T31,">="&50)-COUNTIF(T2:T31,">"&59.9) -> 0 | U33: =C33+D33+F33+H33+J33+L33+N33+P33+R33+T33 -> 0
C34: =COUNTIF(B2:B31,">="&60)-COUNTIF(B2:B31,">"&69.9) -> 0 | D34: =COUNTIF(D2:D31,">="&60)-COUNTIF(D2:D31,">"&69.9) -> 0 | F34: =COUNTIF(F2:F31,">="&60)-COUNTIF(F2:F31,">"&69.9) -> 0 | H34: =COUNTIF(H2:H31,">="&60)-COUNTIF(H2:H31,">"&69.9) -> 0 | J34: =COUNTIF(J2:J31,">="&60)-COUNTIF(J2:J31,">"&69.9) -> 0 | L34: =COUNTIF(L2:L31,">="&60)-COUNTIF(L2:L31,">"&69.9) -> 0 | N34: =COUNTIF(N2:N31,">="&60)-COUNTIF(N2:N31,">"&69.9) -> 0 | P34: =COUNTIF(P2:P31,">="&60)-COUNTIF(P2:P31,">"&69.9) -> 0 | R34: =COUNTIF(R2:R31,">="&60)-COUNTIF(R2:R31,">"&69.9) -> 0 | T34: =COUNTIF(T2:T31,">="&60)-COUNTIF(T2:T31,">"&69.9) -> 0 | U34: =C34+D34+F34+H34+J34+L34+N34+P34+R34+T34 -> 0
C35: =COUNTIF(B2:B31,">="&70)-COUNTIF(B2:B31,">"&79.9) -> 0 | D35: =COUNTIF(D2:D31,">="&70)-COUNTIF(D2:D31,">"&79.9) -> 0 | F35: =COUNTIF(F2:F31,">="&70)-COUNTIF(F2:F31,">"&79.9) -> 0 | H35: =COUNTIF(H2:H31,">="&70)-COUNTIF(H2:H31,">"&79.9) -> 0 | J35: =COUNTIF(J2:J31,">="&70)-COUNTIF(J2:J31,">"&79.9) -> 0 | L35: =COUNTIF(L2:L31,">="&70)-COUNTIF(L2:L31,">"&79.9) -> 0 | N35: =COUNTIF(N2:N31,">="&70)-COUNTIF(N2:N31,">"&79.9) -> 0 | P35: =COUNTIF(P2:P31,">="&70)-COUNTIF(P2:P31,">"&79.9) -> 0 | R35: =COUNTIF(R2:R31,">="&70)-COUNTIF(R2:R31,">"&79.9) -> 0 | T35: =COUNTIF(T2:T31,">="&70)-COUNTIF(T2:T31,">"&79.9) -> 0 | U35: 0
C36: =COUNTIF(B2:B31,">="&80)-COUNTIF(B2:B31,">"&89.9) -> 0 | D36: =COUNTIF(D2:D31,">="&80)-COUNTIF(D2:D31,">"&89.9) -> 0 | F36: =COUNTIF(F2:F31,">="&80)-COUNTIF(F2:F31,">"&89.9) -> 0 | H36: =COUNTIF(H2:H31,">="&80)-COUNTIF(H2:H31,">"&89.9) -> 0 | J36: =COUNTIF(J2:J31,">="&80)-COUNTIF(J2:J31,">"&89.9) -> 0 | L36: =COUNTIF(L2:L31,">="&80)-COUNTIF(L2:L31,">"&89.9) -> 0 | N36: =COUNTIF(N2:N31,">="&80)-COUNTIF(N2:N31,">"&89.9) -> 0 | P36: =COUNTIF(P2:P31,">="&80)-COUNTIF(P2:P31,">"&89.9) -> 0 | R36: =COUNTIF(R2:R31,">="&80)-COUNTIF(R2:R31,">"&89.9) -> 0 | T36: =COUNTIF(T2:T31,">="&80)-COUNTIF(T2:T31,">"&89.9) -> 0 | U36: 0
C37: =COUNTIF(B2:B31,">="&90)-COUNTIF(B2:B31,">"&99.9) -> 0 | D37: =COUNTIF(D2:D31,">="&90)-COUNTIF(D2:D31,">"&99.9) -> 0 | F37: =COUNTIF(F2:F31,">="&90)-COUNTIF(F2:F31,">"&99.9) -> 0 | H37: =COUNTIF(H2:H31,">="&90)-COUNTIF(H2:H31,">"&99.9) -> 0 | J37: =COUNTIF(J2:J31,">="&90)-COUNTIF(J2:J31,">"&99.9) -> 0 | L37: =COUNTIF(L2:L31,">="&90)-COUNTIF(L2:L31,">"&99.9) -> 0 | N37: =COUNTIF(N2:N31,">="&90)-COUNTIF(N2:N31,">"&99.9) -> 0 | P37: =COUNTIF(P2:P31,">="&90)-COUNTIF(P2:P31,">"&99.9) -> 0 | R37: =COUNTIF(R2:R31,">="&90)-COUNTIF(R2:R31,">"&99.9) -> 0 | T37: =COUNTIF(T2:T31,">="&90)-COUNTIF(T2:T31,">"&99.9) -> 0 | U37: 0
U38: =U33+U34+U35+U36+U37 -> 0

Sheet الشعبة 7
A1: الشعبة 7/1 الاسم | B1: المعدل | C1: الشعبة 7/2 الاسم | D1: المعدل | E1: الشعبة 7/3 الاسم | F1: المعدل | G1: الشعبة 7/4 الاسم | H1: المعدل | I1: الشعبة 7/5 الاسم | J1: المعدل | K1: الشعبة 7/6 الاسم | L1: المعدل | M1: الشعبة 7/7 الاسم | N1: المعدل | O1: الشعبة 7/8 الاسم | P1: المعدل | Q1: الشعبة 7/9 الاسم | R1: المعدل | S1: الشعبة 7/10 الاسم | T1: المعدل
C2: =A62 -> 0 | D2: =B62 -> 0 | E2: =A122 -> 0 | F2: =B122 -> 0 | G2: =A182 -> 0 | H2: =B182 -> 0 | I2: =A242 -> 0 | J2: =B242 -> 0 | K2: =A302 -> 0 | L2: =B302 -> 0 | M2: =A362 -> 0 | N2: =B362 -> 0 | O2: =A422 -> 0 | P2: =B422 -> 0 | Q2: =A482 -> 0 | R2: =B482 -> 0 | S2: =A542 -> 0 | T2: =B542 -> 0
C3: =A63 -> 0 | D3: 0 | E3: =A123 -> 0 | F3: 0 | G3: =A183 -> 0 | H3: 0 | I3: =A243 -> 0 | J3: 0 | K3: =A303 -> 0 | L3: 0 | M3: =A363 -> 0 | N3: 0 | O3: =A423 -> 0 | P3: 0 | Q3: =A483 -> 0 | R3: 0 | S3: =A543 -> 0 | T3: 0
C4: 0 | D4: 0 | E4: 0 | F4: 0 | G4: 0 | H4: 0 | I4: 0 | J4: 0 | K4: 0 | L4: 0 | M4: 0 | N4: 0 | O4: 0 | P4: 0 | Q4: 0 | R4: 0 | S4: 0 | T4: 0
C5: 0 | D5: 0 | E5: 0 | F5: 0 | G5: 0 | H5: 0 | I5: 0 | J5: 0 | K5: 0 | L5: 0 | M5: 0 | N5: 0 | O5: 0 | P5: 0 | Q5: 0 | R5: 0 | S5: 0 | T5: 0
C6: 0 | D6: 0 | E6: 0 | F6: 0 | G6: 0 | H6: 0 | I6: 0 | J6: 0 | K6: 0 | L6: 0 | M6: 0 | N6: 0 | O6: 0 | P6: 0 | Q6: 0 | R6: 0 | S6: 0 | T6: 0
C7: 0 | D7: 0 | E7: 0 | F7: 0 | G7: 0 | H7: 0 | I7: 0 | J7: 0 | K7: 0 | L7: 0 | M7: 0 | N7: 0 | O7: 0 | P7: 0 | Q7: 0 | R7: 0 | S7: 0 | T7: 0
C8: 0 | D8: 0 | E8: 0 | F8: 0 | G8: 0 | H8: 0 | I8: 0 | J8: 0 | K8: 0 | L8: 0 | M8: 0 | N8: 0 | O8: 0 | P8: 0 | Q8: 0 | R8: 0 | S8: 0 | T8: 0
C9: 0 | D9: 0 | E9: 0 | F9: 0 | G9: 0 | H9: 0 | I9: 0 | J9: 0 | K9: 0 | L9: 0 | M9: 0 | N9: 0 | O9: 0 | P9: 0 | Q9: 0 | R9: 0 | S9: 0 | T9: 0
C10: 0 | D10: 0 | E10: 0 | F10: 0 | G10: 0 | H10: 0 | I10: 0 | J10: 0 | K10: 0 | L10: 0 | M10: 0 | N10: 0 | O10: 0 | P10: 0 | Q10: 0 | R10: 0 | S10: 0 | T10: 0
C11: 0 | D11: 0 | E11: 0 | F11: 0 | G11: 0 | H11: 0 | I11: 0 | J11: 0 | K11: 0 | L11: 0 | M11: 0 | N11: 0 | O11: 0 | P11: 0 | Q11: 0 | R11: 0 | S11: 0 | T11: 0
C12: 0 | D12: 0 | E12: 0 | F12: 0 | G12: 0 | H12: 0 | I12: 0 | J12: 0 | K12: 0 | L12: 0 | M12: 0 | N12: 0 | O12: 0 | P12: 0 | Q12: 0 | R12: 0 | S12: 0 | T12: 0
C13: 0 | D13: 0 | E13: 0 | F13: 0 | G13: 0 | H13: 0 | I13: 0 | J13: 0 | K13: 0 | L13: 0 | M13: 0 | N13: 0 | O13: 0 | P13: 0 | Q13: 0 | R13: 0 | S13: 0 | T13: 0
C14: 0 | D14: 0 | E14: 0 | F14: 0 | G14: 0 | H14: 0 | I14: 0 | J14: 0 | K14: 0 | L14: 0 | M14: 0 | N14: 0 | O14: 0 | P14: 0 | Q14: 0 | R14: 0 | S14: 0 | T14: 0
C15: 0 | D15: 0 | E15: 0 | F15: 0 | G15: 0 | H15: 0 | I15: 0 | J15: 0 | K15: 0 | L15: 0 | M15: 0 | N15: 0 | O15: 0 | P15: 0 | Q15: 0 | R15: 0 | S15: 0 | T15: 0
C16: 0 | D16: 0 | E16: 0 | F16: 0 | G16: 0 | H16: 0 | I16: 0 | J16: 0 | K16: 0 | L16: 0 | M16: 0 | N16: 0 | O16: 0 | P16: 0 | Q16: 0 | R16: 0 | S16: 0 | T16: 0
C17: 0 | D17: 0 | E17: 0 | F17: 0 | G17: 0 | H17: 0 | I17: 0 | J17: 0 | K17: 0 | L17: 0 | M17: 0 | N17: 0 | O17: 0 | P17: 0 | Q17: 0 | R17: 0 | S17: 0 | T17: 0
C18: 0 | D18: 0 | E18: 0 | F18: 0 | G18: 0 | H18: 0 | I18: 0 | J18: 0 | K18: 0 | L18: 0 | M18: 0 | N18: 0 | O18: 0 | P18: 0 | Q18: 0 | R18: 0 | S18: 0 | T18: 0
C19: 0 | D19: 0 | E19: 0 | F19: 0 | G19: 0 | H19: 0 | I19: 0 | J19: 0 | K19: 0 | L19: 0 | M19: 0 | N19: 0 | O19: 0 | P19: 0 | Q19: 0 | R19: 0 | S19: 0 | T19: 0
C20: 0 | D20: 0 | E20: 0 | F20: 0 | G20: 0 | H20: 0 | I20: 0 | J20: 0 | K20: 0 | L20: 0 | M20: 0 | N20: 0 | O20: 0 | P20: 0 | Q20: 0 | R20: 0 | S20: 0 | T20: 0
C21: 0 | D21: 0 | E21: 0 | F21: 0 | G21: 0 | H21: 0 | I21: 0 | J21: 0 | K21: 0 | L21: 0 | M21: 0 | N21: 0 | O21: 0 | P21: 0 | Q21: 0 | R21: 0 | S21: 0 | T21: 0
C22: 0 | D22: 0 | E22: 0 | F22: 0 | G22: 0 | H22: 0 | I22: 0 | J22: 0 | K22: 0 | L22: 0 | M22: 0 | N22: 0 | O22: 0 | P22: 0 | Q22: 0 | R22: 0 | S22: 0 | T22: 0
C23: 0 | D23: 0 | E23: 0 | F23: 0 | G23: 0 | H23: 0 | I23: 0 | J23: 0 | K23: 0 | L23: 0 | M23: 0 | N23: 0 | O23: 0 | P23: 0 | Q23: 0 | R23: 0 | S23: 0 | T23: 0
C24: 0 | D24: 0 | E24: 0 | F24: 0 | G24: 0 | H24: 0 | I24: 0 | J24: 0 | K24: 0 | L24: 0 | M24: 0 | N24: 0 | O24: 0 | P24: 0 | Q24: 0 | R24: 0 | S24: 0 | T24: 0
C25: 0 | D25: 0 | E25: 0 | F25: 0 | G25: 0 | H25: 0 | I25: 0 | J25: 0 | K25: 0 | L25: 0 | M25: 0 | N25: 0 | O25: 0 | P25: 0 | Q25: 0 | R25: 0 | S25: 0 | T25: 0
C26: 0 | D26: 0 | E26: 0 | F26: 0 | G26: 0 | H26: 0 | I26: 0 | J26: 0 | K26: 0 | L26: 0 | M26: 0 | N26: 0 | O26: 0 | P26: 0 | Q26: 0 | R26: 0 | S26: 0 | T26: 0
C27: 0 | D27: 0 | E27: 0 | F27: 0 | G27: 0 | H27: 0 | I27: 0 | J27: 0 | K27: 0 | L27: 0 | M27: 0 | N27: 0 | O27: 0 | P27: 0 | Q27: 0 | R27: 0 | S27: 0 | T27: 0
C28: 0 | D28: 0 | E28: 0 | F28: 0 | G28: 0 | H28: 0 | I28: 0 | J28: 0 | K28: 0 | L28: 0 | M28: 0 | N28: 0 | O28: 0 | P28: 0 | Q28: 0 | R28: 0 | S28: 0 | T28: 0
C29: 0 | D29: 0 | E29: 0 | F29: 0 | G29: 0 | H29: 0 | I29: 0 | J29: 0 | K29: 0 | L29: 0 | M29: 0 | N29: 0 | O29: 0 | P29: 0 | Q29: 0 | R29: 0 | S29: 0 | T29: 0
C30: 0 | D30: 0 | E30: 0 | F30: 0 | G30: 0 | H30: 0 | I30: 0 | J30: 0 | K30: 0 | L30: 0 | M30: 0 | N30: 0 | O30: 0 | P30: 0 | Q30: 0 | R30: 0 | S30: 0 | T30: 0
C31: 0 | D31: 0 | E31: 0 | F31: 0 | G31: 0 | H31: 0 | I31: 0 | J31: 0 | K31: 0 | L31: 0 | M31: 0 | N31: 0 | O31: 0 | P31: 0 | Q31: 0 | R31: 0 | S31: 0 | T31: 0
E32: عدد طلاب الشعبة | F32: =U38 -> 0 | G32: عدد الطلاب بـ 50 | H32: =U33 -> 0 | I32: عدد الطلاب بـ 60 | J32: =U34 -> 0 | K32: عدد الطلاب بـ 70 | L32: =U35 -> 0 | M32: عدد الطلاب بـ 80 | N32: =U36 -> 0 | O32: عدد الطلاب بـ 90 | P32: =U37 -> 0
C33: =COUNTIF(B2:B31,">="&50)-COUNTIF(B2:B31,">"&59.9) -> 0 | D33: =COUNTIF(D2:D31,">="&50)-COUNTIF(D2:D31,">"&59.9) -> 0 | F33: =COUNTIF(F2:F31,">="&50)-COUNTIF(F2:F31,">"&59.9) -> 0 | H33: =COUNTIF(H2:H31,">="&50)-COUNTIF(H2:H31,">"&59.9) -> 0 | J33: =COUNTIF(J2:J31,">="&50)-COUNTIF(J2:J31,">"&59.9) -> 0 | L33: =COUNTIF(L2:L31,">="&50)-COUNTIF(L2:L31,">"&59.9) -> 0 | N33: =COUNTIF(N2:N31,">="&50)-COUNTIF(N2:N31,">"&59.9) -> 0 | P33: =COUNTIF(P2:P31,">="&50)-COUNTIF(P2:P31,">"&59.9) -> 0 | R33: =COUNTIF(R2:R31,">="&50)-COUNTIF(R2:R31,">"&59.9) -> 0 | T33: =COUNTIF(T2:T31,">="&50)-COUNTIF(T2:T31,">"&59.9) -> 0 | U33: =C33+D33+F33+H33+J33+L33+N33+P33+R33+T33 -> 0
C34: =COUNTIF(B2:B31,">="&60)-COUNTIF(B2:B31,">"&69.9) -> 0 | D34: =COUNTIF(D2:D31,">="&60)-COUNTIF(D2:D31,">"&69.9) -> 0 | F34: =COUNTIF(F2:F31,">="&60)-COUNTIF(F2:F31,">"&69.9) -> 0 | H34: =COUNTIF(H2:H31,">="&60)-COUNTIF(H2:H31,">"&69.9) -> 0 | J34: =COUNTIF(J2:J31,">="&60)-COUNTIF(J2:J31,">"&69.9) -> 0 | L34: =COUNTIF(L2:L31,">="&60)-COUNTIF(L2:L31,">"&69.9) -> 0 | N34: =COUNTIF(N2:N31,">="&60)-COUNTIF(N2:N31,">"&69.9) -> 0 | P34: =COUNTIF(P2:P31,">="&60)-COUNTIF(P2:P31,">"&69.9) -> 0 | R34: =COUNTIF(R2:R31,">="&60)-COUNTIF(R2:R31,">"&69.9) -> 0 | T34: =COUNTIF(T2:T31,">="&60)-COUNTIF(T2:T31,">"&69.9) -> 0 | U34: =C34+D34+F34+H34+J34+L34+N34+P34+R34+T34 -> 0
C35: =COUNTIF(B2:B31,">="&70)-COUNTIF(B2:B31,">"&79.9) -> 0 | D35: =COUNTIF(D2:D31,">="&70)-COUNTIF(D2:D31,">"&79.9) -> 0 | F35: =COUNTIF(F2:F31,">="&70)-COUNTIF(F2:F31,">"&79.9) -> 0 | H35: =COUNTIF(H2:H31,">="&70)-COUNTIF(H2:H31,">"&79.9) -> 0 | J35: =COUNTIF(J2:J31,">="&70)-COUNTIF(J2:J31,">"&79.9) -> 0 | L35: =COUNTIF(L2:L31,">="&70)-COUNTIF(L2:L31,">"&79.9) -> 0 | N35: =COUNTIF(N2:N31,">="&70)-COUNTIF(N2:N31,">"&79.9) -> 0 | P35: =COUNTIF(P2:P31,">="&70)-COUNTIF(P2:P31,">"&79.9) -> 0 | R35: =COUNTIF(R2:R31,">="&70)-COUNTIF(R2:R31,">"&79.9) -> 0 | T35: =COUNTIF(T2:T31,">="&70)-COUNTIF(T2:T31,">"&79.9) -> 0 | U35: 0
C36: =COUNTIF(B2:B31,">="&80)-COUNTIF(B2:B31,">"&89.9) -> 0 | D36: =COUNTIF(D2:D31,">="&80)-COUNTIF(D2:D31,">"&89.9) -> 0 | F36: =COUNTIF(F2:F31,">="&80)-COUNTIF(F2:F31,">"&89.9) -> 0 | H36: =COUNTIF(H2:H31,">="&80)-COUNTIF(H2:H31,">"&89.9) -> 0 | J36: =COUNTIF(J2:J31,">="&80)-COUNTIF(J2:J31,">"&89.9) -> 0 | L36: =COUNTIF(L2:L31,">="&80)-COUNTIF(L2:L31,">"&89.9) -> 0 | N36: =COUNTIF(N2:N31,">="&80)-COUNTIF(N2:N31,">"&89.9) -> 0 | P36: =COUNTIF(P2:P31,">="&80)-COUNTIF(P2:P31,">"&89.9) -> 0 | R36: =COUNTIF(R2:R31,">="&80)-COUNTIF(R2:R31,">"&89.9) -> 0 | T36: =COUNTIF(T2:T31,">="&80)-COUNTIF(T2:T31,">"&89.9) -> 0 | U36: 0
C37: =COUNTIF(B2:B31,">="&90)-COUNTIF(B2:B31,">"&99.9) -> 0 | D37: =COUNTIF(D2:D31,">="&90)-COUNTIF(D2:D31,">"&99.9) -> 0 | F37: =COUNTIF(F2:F31,">="&90)-COUNTIF(F2:F31,">"&99.9) -> 0 | H37: =COUNTIF(H2:H31,">="&90)-COUNTIF(H2:H31,">"&99.9) -> 0 | J37: =COUNTIF(J2:J31,">="&90)-COUNTIF(J2:J31,">"&99.9) -> 0 | L37: =COUNTIF(L2:L31,">="&90)-COUNTIF(L2:L31,">"&99.9) -> 0 | N37: =COUNTIF(N2:N31,">="&90)-COUNTIF(N2:N31,">"&99.9) -> 0 | P37: =COUNTIF(P2:P31,">="&90)-COUNTIF(P2:P31,">"&99.9) -> 0 | R37: =COUNTIF(R2:R31,">="&90)-COUNTIF(R2:R31,">"&99.9) -> 0 | T37: =COUNTIF(T2:T31,">="&90)-COUNTIF(T2:T31,">"&99.9) -> 0 | U37: 0
U38: =U33+U34+U35+U36+U37 -> 0

Sheet الشعبة 8
A1: الشعبة 8/1 الاسم | B1: المعدل | C1: الشعبة 8/2 الاسم | D1: المعدل | E1: الشعبة 8/3 الاسم | F1: المعدل | G1: الشعبة 8/4 الاسم | H1: المعدل | I1: الشعبة 8/5 الاسم | J1: المعدل | K1: الشعبة 8/6 الاسم | L1: المعدل | M1: الشعبة 8/7 الاسم | N1: المعدل | O1: الشعبة 8/8 الاسم | P1: المعدل | Q1: الشعبة 8/9 الاسم | R1: المعدل | S1: الشعبة 8/10 الاسم | T1: المعدل
C2: =A62 -> 0 | D2: =B62 -> 0 | E2: =A122 -> 0 | F2: =B122 -> 0 | G2: =A182 -> 0 | H2: =B182 -> 0 | I2: =A242 -> 0 | J2: =B242 -> 0 | K2: =A302 -> 0 | L2: =B302 -> 0 | M2: =A362 -> 0 | N2: =B362 -> 0 | O2: =A422 -> 0 | P2: =B422 -> 0 | Q2: =A482 -> 0 | R2: =B482 -> 0 | S2: =A542 -> 0 | T2: =B542 -> 0
C3: =A63 -> 0 | D3: 0 | E3: =A123 -> 0 | F3: 0 | G3: =A183 -> 0 | H3: 0 | I3: =A243 -> 0 | J3: 0 | K3: =A303 -> 0 | L3: 0 | M3: =A363 -> 0 | N3: 0 | O3: =A423 -> 0 | P3: 0 | Q3: =A483 -> 0 | R3: 0 | S3: =A543 -> 0 | T3: 0
C4: 0 | D4: 0 | E4: 0 | F4: 0 | G4: 0 | H4: 0 | I4: 0 | J4: 0 | K4: 0 | L4: 0 | M4: 0 | N4: 0 | O4: 0 | P4: 0 | Q4: 0 | R4: 0 | S4: 0 | T4: 0
C5: 0 | D5: 0 | E5: 0 | F5: 0 | G5: 0 | H5: 0 | I5: 0 | J5: 0 | K5: 0 | L5: 0 | M5: 0 | N5: 0 | O5: 0 | P5: 0 | Q5: 0 | R5: 0 | S5: 0 | T5: 0
C6: 0 | D6: 0 | E6: 0 | F6: 0 | G6: 0 | H6: 0 | I6: 0 | J6: 0 | K6: 0 | L6: 0 | M6: 0 | N6: 0 | O6: 0 | P6: 0 | Q6: 0 | R6: 0 | S6: 0 | T6: 0
C7: 0 | D7: 0 | E7: 0 | F7: 0 | G7: 0 | H7: 0 | I7: 0 | J7: 0 | K7: 0 | L7: 0 | M7: 0 | N7: 0 | O7: 0 | P7: 0 | Q7: 0 | R7: 0 | S7: 0 | T7: 0
C8: 0 | D8: 0 | E8: 0 | F8: 0 | G8: 0 | H8: 0 | I8: 0 | J8: 0 | K8: 0 | L8: 0 | M8: 0 | N8: 0 | O8: 0 | P8: 0 | Q8: 0 | R8: 0 | S8: 0 | T8: 0
C9: 0 | D9: 0 | E9: 0 | F9: 0 | G9: 0 | H9: 0 | I9: 0 | J9: 0 | K9: 0 | L9: 0 | M9: 0 | N9: 0 | O9: 0 | P9: 0 | Q9: 0 | R9: 0 | S9: 0 | T9: 0
C10: 0 | D10: 0 | E10: 0 | F10: 0 | G10: 0 | H10: 0 | I10: 0 | J10: 0 | K10: 0 | L10: 0 | M10: 0 | N10: 0 | O10: 0 | P10: 0 | Q10: 0 | R10: 0 | S10: 0 | T10: 0
C11: 0 | D11: 0 | E11: 0 | F11: 0 | G11: 0 | H11: 0 | I11: 0 | J11: 0 | K11: 0 | L11: 0 | M11: 0 | N11: 0 | O11: 0 | P11: 0 | Q11: 0 | R11: 0 | S11: 0 | T11: 0
C12: 0 | D12: 0 | E12: 0 | F12: 0 | G12: 0 | H12: 0 | I12: 0 | J12: 0 | K12: 0 | L12: 0 | M12: 0 | N12: 0 | O12: 0 | P12: 0 | Q12: 0 | R12: 0 | S12: 0 | T12: 0
C13: 0 | D13: 0 | E13: 0 | F13: 0 | G13: 0 | H13: 0 | I13: 0 | J13: 0 | K13: 0 | L13: 0 | M13: 0 | N13: 0 | O13: 0 | P13: 0 | Q13: 0 | R13: 0 | S13: 0 | T13: 0
C14: 0 | D14: 0 | E14: 0 | F14: 0 | G14: 0 | H14: 0 | I14: 0 | J14: 0 | K14: 0 | L14: 0 | M14: 0 | N14: 0 | O14: 0 | P14: 0 | Q14: 0 | R14: 0 | S14: 0 | T14: 0
C15: 0 | D15: 0 | E15: 0 | F15: 0 | G15: 0 | H15: 0 | I15: 0 | J15: 0 | K15: 0 | L15: 0 | M15: 0 | N15: 0 | O15: 0 | P15: 0 | Q15: 0 | R15: 0 | S15: 0 | T15: 0
C16: 0 | D16: 0 | E16: 0 | F16: 0 | G16: 0 | H16: 0 | I16: 0 | J16: 0 | K16: 0 | L16: 0 | M16: 0 | N16: 0 | O16: 0 | P16: 0 | Q16: 0 | R16: 0 | S16: 0 | T16: 0
C17: 0 | D17: 0 | E17: 0 | F17: 0 | G17: 0 | H17: 0 | I17: 0 | J17: 0 | K17: 0 | L17: 0 | M17: 0 | N17: 0 | O17: 0 | P17: 0 | Q17: 0 | R17: 0 | S17: 0 | T17: 0
C18: 0 | D18: 0 | E18: 0 | F18: 0 | G18: 0 | H18: 0 | I18: 0 | J18: 0 | K18: 0 | L18: 0 | M18: 0 | N18: 0 | O18: 0 | P18: 0 | Q18: 0 | R18: 0 | S18: 0 | T18: 0
C19: 0 | D19: 0 | E19: 0 | F19: 0 | G19: 0 | H19: 0 | I19: 0 | J19: 0 | K19: 0 | L19: 0 | M19: 0 | N19: 0 | O19: 0 | P19: 0 | Q19: 0 | R19: 0 | S19: 0 | T19: 0
C20: 0 | D20: 0 | E20: 0 | F20: 0 | G20: 0 | H20: 0 | I20: 0 | J20: 0 | K20: 0 | L20: 0 | M20: 0 | N20: 0 | O20: 0 | P20: 0 | Q20: 0 | R20: 0 | S20: 0 | T20: 0
C21: 0 | D21: 0 | E21: 0 | F21: 0 | G21: 0 | H21: 0 | I21: 0 | J21: 0 | K21: 0 | L21: 0 | M21: 0 | N21: 0 | O21: 0 | P21: 0 | Q21: 0 | R21: 0 | S21: 0 | T21: 0
C22: 0 | D22: 0 | E22: 0 | F22: 0 | G22: 0 | H22: 0 | I22: 0 | J22: 0 | K22: 0 | L22: 0 | M22: 0 | N22: 0 | O22: 0 | P22: 0 | Q22: 0 | R22: 0 | S22: 0 | T22: 0
C23: 0 | D23: 0 | E23: 0 | F23: 0 | G23: 0 | H23: 0 | I23: 0 | J23: 0 | K23: 0 | L23: 0 | M23: 0 | N23: 0 | O23: 0 | P23: 0 | Q23: 0 | R23: 0 | S23: 0 | T23: 0
C24: 0 | D24: 0 | E24: 0 | F24: 0 | G24: 0 | H24: 0 | I24: 0 | J24: 0 | K24: 0 | L24: 0 | M24: 0 | N24: 0 | O24: 0 | P24: 0 | Q24: 0 | R24: 0 | S24: 0 | T24: 0
C25: 0 | D25: 0 | E25: 0 | F25: 0 | G25: 0 | H25: 0 | I25: 0 | J25: 0 | K25: 0 | L25: 0 | M25: 0 | N25: 0 | O25: 0 | P25: 0 | Q25: 0 | R25: 0 | S25: 0 | T25: 0
C26: 0 | D26: 0 | E26: 0 | F26: 0 | G26: 0 | H26: 0 | I26: 0 | J26: 0 | K26: 0 | L26: 0 | M26: 0 | N26: 0 | O26: 0 | P26: 0 | Q26: 0 | R26: 0 | S26: 0 | T26: 0
C27: 0 | D27: 0 | E27: 0 | F27: 0 | G27: 0 | H27: 0 | I27: 0 | J27: 0 | K27: 0 | L27: 0 | M27: 0 | N27: 0 | O27: 0 | P27: 0 | Q27: 0 | R27: 0 | S27: 0 | T27: 0
C28: 0 | D28: 0 | E28: 0 | F28: 0 | G28: 0 | H28: 0 | I28: 0 | J28: 0 | K28: 0 | L28: 0 | M28: 0 | N28: 0 | O28: 0 | P28: 0 | Q28: 0 | R28: 0 | S28: 0 | T28: 0
C29: 0 | D29: 0 | E29: 0 | F29: 0 | G29: 0 | H29: 0 | I29: 0 | J29: 0 | K29: 0 | L29: 0 | M29: 0 | N29: 0 | O29: 0 | P29: 0 | Q29: 0 | R29: 0 | S29: 0 | T29: 0
C30: 0 | D30: 0 | E30: 0 | F30: 0 | G30: 0 | H30: 0 | I30: 0 | J30: 0 | K30: 0 | L30: 0 | M30: 0 | N30: 0 | O30: 0 | P30: 0 | Q30: 0 | R30: 0 | S30: 0 | T30: 0
C31: 0 | D31: 0 | E31: 0 | F31: 0 | G31: 0 | H31: 0 | I31: 0 | J31: 0 | K31: 0 | L31: 0 | M31: 0 | N31: 0 | O31: 0 | P31: 0 | Q31: 0 | R31: 0 | S31: 0 | T31: 0
E32: عدد طلاب الشعبة | F32: =U38 -> 0 | G32: عدد الطلاب بـ 50 | H32: =U33 -> 0 | I32: عدد الطلاب بـ 60 | J32: =U34 -> 0 | K32: عدد الطلاب بـ 70 | L32: =U35 -> 0 | M32: عدد الطلاب بـ 80 | N32: =U36 -> 0 | O32: عدد الطلاب بـ 90 | P32: =U37 -> 0
C33: =COUNTIF(B2:B31,">="&50)-COUNTIF(B2:B31,">"&59.9) -> 0 | D33: =COUNTIF(D2:D31,">="&50)-COUNTIF(D2:D31,">"&59.9) -> 0 | F33: =COUNTIF(F2:F31,">="&50)-COUNTIF(F2:F31,">"&59.9) -> 0 | H33: =COUNTIF(H2:H31,">="&50)-COUNTIF(H2:H31,">"&59.9) -> 0 | J33: =COUNTIF(J2:J31,">="&50)-COUNTIF(J2:J31,">"&59.9) -> 0 | L33: =COUNTIF(L2:L31,">="&50)-COUNTIF(L2:L31,">"&59.9) -> 0 | N33: =COUNTIF(N2:N31,">="&50)-COUNTIF(N2:N31,">"&59.9) -> 0 | P33: =COUNTIF(P2:P31,">="&50)-COUNTIF(P2:P31,">"&59.9) -> 0 | R33: =COUNTIF(R2:R31,">="&50)-COUNTIF(R2:R31,">"&59.9) -> 0 | T33: =COUNTIF(T2:T31,">="&50)-COUNTIF(T2:T31,">"&59.9) -> 0 | U33: =C33+D33+F33+H33+J33+L33+N33+P33+R33+T33 -> 0
C34: =COUNTIF(B2:B31,">="&60)-COUNTIF(B2:B31,">"&69.9) -> 0 | D34: =COUNTIF(D2:D31,">="&60)-COUNTIF(D2:D31,">"&69.9) -> 0 | F34: =COUNTIF(F2:F31,">="&60)-COUNTIF(F2:F31,">"&69.9) -> 0 | H34: =COUNTIF(H2:H31,">="&60)-COUNTIF(H2:H31,">"&69.9) -> 0 | J34: =COUNTIF(J2:J31,">="&60)-COUNTIF(J2:J31,">"&69.9) -> 0 | L34: =COUNTIF(L2:L31,">="&60)-COUNTIF(L2:L31,">"&69.9) -> 0 | N34: =COUNTIF(N2:N31,">="&60)-COUNTIF(N2:N31,">"&69.9) -> 0 | P34: =COUNTIF(P2:P31,">="&60)-COUNTIF(P2:P31,">"&69.9) -> 0 | R34: =COUNTIF(R2:R31,">="&60)-COUNTIF(R2:R31,">"&69.9) -> 0 | T34: =COUNTIF(T2:T31,">="&60)-COUNTIF(T2:T31,">"&69.9) -> 0 | U34: =C34+D34+F34+H34+J34+L34+N34+P34+R34+T34 -> 0
C35: =COUNTIF(B2:B31,">="&70)-COUNTIF(B2:B31,">"&79.9) -> 0 | D35: =COUNTIF(D2:D31,">="&70)-COUNTIF(D2:D31,">"&79.9) -> 0 | F35: =COUNTIF(F2:F31,">="&70)-COUNTIF(F2:F31,">"&79.9) -> 0 | H35: =COUNTIF(H2:H31,">="&70)-COUNTIF(H2:H31,">"&79.9) -> 0 | J35: =COUNTIF(J2:J31,">="&70)-COUNTIF(J2:J31,">"&79.9) -> 0 | L35: =COUNTIF(L2:L31,">="&70)-COUNTIF(L2:L31,">"&79.9) -> 0 | N35: =COUNTIF(N2:N31,">="&70)-COUNTIF(N2:N31,">"&79.9) -> 0 | P35: =COUNTIF(P2:P31,">="&70)-COUNTIF(P2:P31,">"&79.9) -> 0 | R35: =COUNTIF(R2:R31,">="&70)-COUNTIF(R2:R31,">"&79.9) -> 0 | T35: =COUNTIF(T2:T31,">="&70)-COUNTIF(T2:T31,">"&79.9) -> 0 | U35: 0
C36: =COUNTIF(B2:B31,">="&80)-COUNTIF(B2:B31,">"&89.9) -> 0 | D36: =COUNTIF(D2:D31,">="&80)-COUNTIF(D2:D31,">"&89.9) -> 0 | F36: =COUNTIF(F2:F31,">="&80)-COUNTIF(F2:F31,">"&89.9) -> 0 | H36: =COUNTIF(H2:H31,">="&80)-COUNTIF(H2:H31,">"&89.9) -> 0 | J36: =COUNTIF(J2:J31,">="&80)-COUNTIF(J2:J31,">"&89.9) -> 0 | L36: =COUNTIF(L2:L31,">="&80)-COUNTIF(L2:L31,">"&89.9) -> 0 | N36: =COUNTIF(N2:N31,">="&80)-COUNTIF(N2:N31,">"&89.9) -> 0 | P36: =COUNTIF(P2:P31,">="&80)-COUNTIF(P2:P31,">"&89.9) -> 0 | R36: =COUNTIF(R2:R31,">="&80)-COUNTIF(R2:R31,">"&89.9) -> 0 | T36: =COUNTIF(T2:T31,">="&80)-COUNTIF(T2:T31,">"&89.9) -> 0 | U36: 0
C37: =COUNTIF(B2:B31,">="&90)-COUNTIF(B2:B31,">"&99.9) -> 0 | D37: =COUNTIF(D2:D31,">="&90)-COUNTIF(D2:D31,">"&99.9) -> 0 | F37: =COUNTIF(F2:F31,">="&90)-COUNTIF(F2:F31,">"&99.9) -> 0 | H37: =COUNTIF(H2:H31,">="&90)-COUNTIF(H2:H31,">"&99.9) -> 0 | J37: =COUNTIF(J2:J31,">="&90)-COUNTIF(J2:J31,">"&99.9) -> 0 | L37: =COUNTIF(L2:L31,">="&90)-COUNTIF(L2:L31,">"&99.9) -> 0 | N37: =COUNTIF(N2:N31,">="&90)-COUNTIF(N2:N31,">"&99.9) -> 0 | P37: =COUNTIF(P2:P31,">="&90)-COUNTIF(P2:P31,">"&99.9) -> 0 | R37: =COUNTIF(R2:R31,">="&90)-COUNTIF(R2:R31,">"&99.9) -> 0 | T37: =COUNTIF(T2:T31,">="&90)-COUNTIF(T2:T31,">"&99.9) -> 0 | U37: 0
U38: =U33+U34+U35+U36+U37 -> 0

Sheet الشعبة 9
A1: الشعبة 9/1 الاسم | B1: المعدل | C1: الشعبة 9/2 الاسم | D1: المعدل | E1: الشعبة 9/3 الاسم | F1: المعدل | G1: الشعبة 9/4 الاسم | H1: المعدل | I1: الشعبة 9/5 الاسم | J1: المعدل | K1: الشعبة 9/6 الاسم | L1: المعدل | M1: الشعبة 9/7 الاسم | N1: المعدل | O1: الشعبة 9/8 الاسم | P1: المعدل | Q1: الشعبة 9/9 الاسم | R1: المعدل | S1: الشعبة 9/10 الاسم | T1: المعدل
C2: =A62 -> 0 | D2: =B62 -> 0 | E2: =A122 -> 0 | F2: =B122 -> 0 | G2: =A182 -> 0 | H2: =B182 -> 0 | I2: =A242 -> 0 | J2: =B242 -> 0 | K2: =A302 -> 0 | L2: =B302 -> 0 | M2: =A362 -> 0 | N2: =B362 -> 0 | O2: =A422 -> 0 | P2: =B422 -> 0 | Q2: =A482 -> 0 | R2: =B482 -> 0 | S2: =A542 -> 0 | T2: =B542 -> 0
C3: =A63 -> 0 | D3: 0 | E3: =A123 -> 0 | F3: 0 | G3: =A183 -> 0 | H3: 0 | I3: =A243 -> 0 | J3: 0 | K3: =A303 -> 0 | L3: 0 | M3: =A363 -> 0 | N3: 0 | O3: =A423 -> 0 | P3: 0 | Q3: =A483 -> 0 | R3: 0 | S3: =A543 -> 0 | T3: 0
C4: 0 | D4: 0 | E4: 0 | F4: 0 | G4: 0 | H4: 0 | I4: 0 | J4: 0 | K4: 0 | L4: 0 | M4: 0 | N4: 0 | O4: 0 | P4: 0 | Q4: 0 | R4: 0 | S4: 0 | T4: 0
C5: 0 | D5: 0 | E5: 0 | F5: 0 | G5: 0 | H5: 0 | I5: 0 | J5: 0 | K5: 0 | L5: 0 | M5: 0 | N5: 0 | O5: 0 | P5: 0 | Q5: 0 | R5: 0 | S5: 0 | T5: 0
C6: 0 | D6: 0 | E6: 0 | F6: 0 | G6: 0 | H6: 0 | I6: 0 | J6: 0 | K6: 0 | L6: 0 | M6: 0 | N6: 0 | O6: 0 | P6: 0 | Q6: 0 | R6: 0 | S6: 0 | T6: 0
C7: 0 | D7: 0 | E7: 0 | F7: 0 | G7: 0 | H7: 0 | I7: 0 | J7: 0 | K7: 0 | L7: 0 | M7: 0 | N7: 0 | O7: 0 | P7: 0 | Q7: 0 | R7: 0 | S7: 0 | T7: 0
C8: 0 | D8: 0 | E8: 0 | F8: 0 | G8: 0 | H8: 0 | I8: 0 | J8: 0 | K8: 0 | L8: 0 | M8: 0 | N8: 0 | O8: 0 | P8: 0 | Q8: 0 | R8: 0 | S8: 0 | T8: 0
C9: 0 | D9: 0 | E9: 0 | F9: 0 | G9: 0 | H9: 0 | I9: 0 | J9: 0 | K9: 0 | L9: 0 | M9: 0 | N9: 0 | O9: 0 | P9: 0 | Q9: 0 | R9: 0 | S9: 0 | T9: 0
C10: 0 | D10: 0 | E10: 0 | F10: 0 | G10: 0 | H10: 0 | I10: 0 | J10: 0 | K10: 0 | L10: 0 | M10: 0 | N10: 0 | O10: 0 | P10: 0 | Q10: 0 | R10: 0 | S10: 0 | T10: 0
C11: 0 | D11: 0 | E11: 0 | F11: 0 | G11: 0 | H11: 0 | I11: 0 | J11: 0 | K11: 0 | L11: 0 | M11: 0 | N11: 0 | O11: 0 | P11: 0 | Q11: 0 | R11: 0 | S11: 0 | T11: 0
C12: 0 | D12: 0 | E12: 0 | F12: 0 | G12: 0 | H12: 0 | I12: 0 | J12: 0 | K12: 0 | L12: 0 | M12: 0 | N12: 0 | O12: 0 | P12: 0 | Q12: 0 | R12: 0 | S12: 0 | T12: 0
C13: 0 | D13: 0 | E13: 0 | F13: 0 | G13: 0 | H13: 0 | I13: 0 | J13: 0 | K13: 0 | L13: 0 | M13: 0 | N13: 0 | O13: 0 | P13: 0 | Q13: 0 | R13: 0 | S13: 0 | T13: 0
C14: 0 | D14: 0 | E14: 0 | F14: 0 | G14: 0 | H14: 0 | I14: 0 | J14: 0 | K14: 0 | L14: 0 | M14: 0 | N14: 0 | O14: 0 | P14: 0 | Q14: 0 | R14: 0 | S14: 0 | T14: 0
C15: 0 | D15: 0 | E15: 0 | F15: 0 | G15: 0 | H15: 0 | I15: 0 | J15: 0 | K15: 0 | L15: 0 | M15: 0 | N15: 0 | O15: 0 | P15: 0 | Q15: 0 | R15: 0 | S15: 0 | T15: 0
C16: 0 | D16: 0 | E16: 0 | F16: 0 | G16: 0 | H16: 0 | I16: 0 | J16: 0 | K16: 0 | L16: 0 | M16: 0 | N16: 0 | O16: 0 | P16: 0 | Q16: 0 | R16: 0 | S16: 0 | T16: 0
C17: 0 | D17: 0 | E17: 0 | F17: 0 | G17: 0 | H17: 0 | I17: 0 | J17: 0 | K17: 0 | L17: 0 | M17: 0 | N17: 0 | O17: 0 | P17: 0 | Q17: 0 | R17: 0 | S17: 0 | T17: 0
C18: 0 | D18: 0 | E18: 0 | F18: 0 | G18: 0 | H18: 0 | I18: 0 | J18: 0 | K18: 0 | L18: 0 | M18: 0 | N18: 0 | O18: 0 | P18: 0 | Q18: 0 | R18: 0 | S18: 0 | T18: 0
C19: 0 | D19: 0 | E19: 0 | F19: 0 | G19: 0 | H19: 0 | I19: 0 | J19: 0 | K19: 0 | L19: 0 | M19: 0 | N19: 0 | O19: 0 | P19: 0 | Q19: 0 | R19: 0 | S19: 0 | T19: 0
C20: 0 | D20: 0 | E20: 0 | F20: 0 | G20: 0 | H20: 0 | I20: 0 | J20: 0 | K20: 0 | L20: 0 | M20: 0 | N20: 0 | O20: 0 | P20: 0 | Q20: 0 | R20: 0 | S20: 0 | T20: 0
C21: 0 | D21: 0 | E21: 0 | F21: 0 | G21: 0 | H21: 0 | I21: 0 | J21: 0 | K21: 0 | L21: 0 | M21: 0 | N21: 0 | O21: 0 | P21: 0 | Q21: 0 | R21: 0 | S21: 0 | T21: 0
C22: 0 | D22: 0 | E22: 0 | F22: 0 | G22: 0 | H22: 0 | I22: 0 | J22: 0 | K22: 0 | L22: 0 | M22: 0 | N22: 0 | O22: 0 | P22: 0 | Q22: 0 | R22: 0 | S22: 0 | T22: 0
C23: 0 | D23: 0 | E23: 0 | F23: 0 | G23: 0 | H23: 0 | I23: 0 | J23: 0 | K23: 0 | L23: 0 | M23: 0 | N23: 0 | O23: 0 | P23: 0 | Q23: 0 | R23: 0 | S23: 0 | T23: 0
C24: 0 | D24: 0 | E24: 0 | F24: 0 | G24: 0 | H24: 0 | I24: 0 | J24: 0 | K24: 0 | L24: 0 | M24: 0 | N24: 0 | O24: 0 | P24: 0 | Q24: 0 | R24: 0 | S24: 0 | T24: 0
C25: 0 | D25: 0 | E25: 0 | F25: 0 | G25: 0 | H25: 0 | I25: 0 | J25: 0 | K25: 0 | L25: 0 | M25: 0 | N25: 0 | O25: 0 | P25: 0 | Q25: 0 | R25: 0 | S25: 0 | T25: 0
C26: 0 | D26: 0 | E26: 0 | F26: 0 | G26: 0 | H26: 0 | I26: 0 | J26: 0 | K26: 0 | L26: 0 | M26: 0 | N26: 0 | O26: 0 | P26: 0 | Q26: 0 | R26: 0 | S26: 0 | T26: 0
C27: 0 | D27: 0 | E27: 0 | F27: 0 | G27: 0 | H27: 0 | I27: 0 | J27: 0 | K27: 0 | L27: 0 | M27: 0 | N27: 0 | O27: 0 | P27: 0 | Q27: 0 | R27: 0 | S27: 0 | T27: 0
C28: 0 | D28: 0 | E28: 0 | F28: 0 | G28: 0 | H28: 0 | I28: 0 | J28: 0 | K28: 0 | L28: 0 | M28: 0 | N28: 0 | O28: 0 | P28: 0 | Q28: 0 | R28: 0 | S28: 0 | T28: 0
C29: 0 | D29: 0 | E29: 0 | F29: 0 | G29: 0 | H29: 0 | I29: 0 | J29: 0 | K29: 0 | L29: 0 | M29: 0 | N29: 0 | O29: 0 | P29: 0 | Q29: 0 | R29: 0 | S29: 0 | T29: 0
C30: 0 | D30: 0 | E30: 0 | F30: 0 | G30: 0 | H30: 0 | I30: 0 | J30: 0 | K30: 0 | L30: 0 | M30: 0 | N30: 0 | O30: 0 | P30: 0 | Q30: 0 | R30: 0 | S30: 0 | T30: 0
C31: 0 | D31: 0 | E31: 0 | F31: 0 | G31: 0 | H31: 0 | I31: 0 | J31: 0 | K31: 0 | L31: 0 | M31: 0 | N31: 0 | O31: 0 | P31: 0 | Q31: 0 | R31: 0 | S31: 0 | T31: 0
E32: عدد طلاب الشعبة | F32: =U38 -> 0 | G32: عدد الطلاب بـ 50 | H32: =U33 -> 0 | I32: عدد الطلاب بـ 60 | J32: =U34 -> 0 | K32: عدد الطلاب بـ 70 | L32: =U35 -> 0 | M32: عدد الطلاب بـ 80 | N32: =U36 -> 0 | O32: عدد الطلاب بـ 90 | P32: =U37 -> 0
C33: =COUNTIF(B2:B31,">="&50)-COUNTIF(B2:B31,">"&59.9) -> 0 | D33: =COUNTIF(D2:D31,">="&50)-COUNTIF(D2:D31,">"&59.9) -> 0 | F33: =COUNTIF(F2:F31,">="&50)-COUNTIF(F2:F31,">"&59.9) -> 0 | H33: =COUNTIF(H2:H31,">="&50)-COUNTIF(H2:H31,">"&59.9) -> 0 | J33: =COUNTIF(J2:J31,">="&50)-COUNTIF(J2:J31,">"&59.9) -> 0 | L33: =COUNTIF(L2:L31,">="&50)-COUNTIF(L2:L31,">"&59.9) -> 0 | N33: =COUNTIF(N2:N31,">="&50)-COUNTIF(N2:N31,">"&59.9) -> 0 | P33: =COUNTIF(P2:P31,">="&50)-COUNTIF(P2:P31,">"&59.9) -> 0 | R33: =COUNTIF(R2:R31,">="&50)-COUNTIF(R2:R31,">"&59.9) -> 0 | T33: =COUNTIF(T2:T31,">="&50)-COUNTIF(T2:T31,">"&59.9) -> 0 | U33: =C33+D33+F33+H33+J33+L33+N33+P33+R33+T33 -> 0
C34: =COUNTIF(B2:B31,">="&60)-COUNTIF(B2:B31,">"&69.9) -> 0 | D34: =COUNTIF(D2:D31,">="&60)-COUNTIF(D2:D31,">"&69.9) -> 0 | F34: =COUNTIF(F2:F31,">="&60)-COUNTIF(F2:F31,">"&69.9) -> 0 | H34: =COUNTIF(H2:H31,">="&60)-COUNTIF(H2:H31,">"&69.9) -> 0 | J34: =COUNTIF(J2:J31,">="&60)-COUNTIF(J2:J31,">"&69.9) -> 0 | L34: =COUNTIF(L2:L31,">="&60)-COUNTIF(L2:L31,">"&69.9) -> 0 | N34: =COUNTIF(N2:N31,">="&60)-COUNTIF(N2:N31,">"&69.9) -> 0 | P34: =COUNTIF(P2:P31,">="&60)-COUNTIF(P2:P31,">"&69.9) -> 0 | R34: =COUNTIF(R2:R31,">="&60)-COUNTIF(R2:R31,">"&69.9) -> 0 | T34: =COUNTIF(T2:T31,">="&60)-COUNTIF(T2:T31,">"&69.9) -> 0 | U34: =C34+D34+F34+H34+J34+L34+N34+P34+R34+T34 -> 0
C35: =COUNTIF(B2:B31,">="&70)-COUNTIF(B2:B31,">"&79.9) -> 0 | D35: =COUNTIF(D2:D31,">="&70)-COUNTIF(D2:D31,">"&79.9) -> 0 | F35: =COUNTIF(F2:F31,">="&70)-COUNTIF(F2:F31,">"&79.9) -> 0 | H35: =COUNTIF(H2:H31,">="&70)-COUNTIF(H2:H31,">"&79.9) -> 0 | J35: =COUNTIF(J2:J31,">="&70)-COUNTIF(J2:J31,">"&79.9) -> 0 | L35: =COUNTIF(L2:L31,">="&70)-COUNTIF(L2:L31,">"&79.9) -> 0 | N35: =COUNTIF(N2:N31,">="&70)-COUNTIF(N2:N31,">"&79.9) -> 0 | P35: =COUNTIF(P2:P31,">="&70)-COUNTIF(P2:P31,">"&79.9) -> 0 | R35: =COUNTIF(R2:R31,">="&70)-COUNTIF(R2:R31,">"&79.9) -> 0 | T35: =COUNTIF(T2:T31,">="&70)-COUNTIF(T2:T31,">"&79.9) -> 0 | U35: 0
C36: =COUNTIF(B2:B31,">="&80)-COUNTIF(B2:B31,">"&89.9) -> 0 | D36: =COUNTIF(D2:D31,">="&80)-COUNTIF(D2:D31,">"&89.9) -> 0 | F36: =COUNTIF(F2:F31,">="&80)-COUNTIF(F2:F31,">"&89.9) -> 0 | H36: =COUNTIF(H2:H31,">="&80)-COUNTIF(H2:H31,">"&89.9) -> 0 | J36: =COUNTIF(J2:J31,">="&80)-COUNTIF(J2:J31,">"&89.9) -> 0 | L36: =COUNTIF(L2:L31,">="&80)-COUNTIF(L2:L31,">"&89.9) -> 0 | N36: =COUNTIF(N2:N31,">="&80)-COUNTIF(N2:N31,">"&89.9) -> 0 | P36: =COUNTIF(P2:P31,">="&80)-COUNTIF(P2:P31,">"&89.9) -> 0 | R36: =COUNTIF(R2:R31,">="&80)-COUNTIF(R2:R31,">"&89.9) -> 0 | T36: =COUNTIF(T2:T31,">="&80)-COUNTIF(T2:T31,">"&89.9) -> 0 | U36: 0
C37: =COUNTIF(B2:B31,">="&90)-COUNTIF(B2:B31,">"&99.9) -> 0 | D37: =COUNTIF(D2:D31,">="&90)-COUNTIF(D2:D31,">"&99.9) -> 0 | F37: =COUNTIF(F2:F31,">="&90)-COUNTIF(F2:F31,">"&99.9) -> 0 | H37: =COUNTIF(H2:H31,">="&90)-COUNTIF(H2:H31,">"&99.9) -> 0 | J37: =COUNTIF(J2:J31,">="&90)-COUNTIF(J2:J31,">"&99.9) -> 0 | L37: =COUNTIF(L2:L31,">="&90)-COUNTIF(L2:L31,">"&99.9) -> 0 | N37: =COUNTIF(N2:N31,">="&90)-COUNTIF(N2:N31,">"&99.9) -> 0 | P37: =COUNTIF(P2:P31,">="&90)-COUNTIF(P2:P31,">"&99.9) -> 0 | R37: =COUNTIF(R2:R31,">="&90)-COUNTIF(R2:R31,">"&99.9) -> 0 | T37: =COUNTIF(T2:T31,">="&90)-COUNTIF(T2:T31,">"&99.9) -> 0 | U37: 0
U38: =U33+U34+U35+U36+U37 -> 0

Sheet الشعبة 10
A1: الشعبة 10/1 الاسم | B1: المعدل | C1: الشعبة 10/2 الاسم | D1: المعدل | E1: الشعبة 10/3 الاسم | F1: المعدل | G1: الشعبة 10/4 الاسم | H1: المعدل | I1: الشعبة 10/5 الاسم | J1: المعدل | K1: الشعبة 10/6 الاسم | L1: المعدل | M1: الشعبة 10/7 الاسم | N1: المعدل | O1: الشعبة 10/8 الاسم | P1: المعدل | Q1: الشعبة 10/9 الاسم | R1: المعدل | S1: الشعبة 10/10 الاسم | T1: المعدل
C2: =A62 -> 0 | D2: =B62 -> 0 | E2: =A122 -> 0 | F2: =B122 -> 0 | G2: =A182 -> 0 | H2: =B182 -> 0 | I2: =A242 -> 0 | J2: =B242 -> 0 | K2: =A302 -> 0 | L2: =B302 -> 0 | M2: =A362 -> 0 | N2: =B362 -> 0 | O2: =A422 -> 0 | P2: =B422 -> 0 | Q2: =A482 -> 0 | R2: =B482 -> 0 | S2: =A542 -> 0 | T2: =B542 -> 0
C3: =A63 -> 0 | D3: 0 | E3: =A123 -> 0 | F3: 0 | G3: =A183 -> 0 | H3: 0 | I3: =A243 -> 0 | J3: 0 | K3: =A303 -> 0 | L3: 0 | M3: =A363 -> 0 | N3: 0 | O3: =A423 -> 0 | P3: 0 | Q3: =A483 -> 0 | R3: 0 | S3: =A543 -> 0 | T3: 0
C4: 0 | D4: 0 | E4: 0 | F4: 0 | G4: 0 | H4: 0 | I4: 0 | J4: 0 | K4: 0 | L4: 0 | M4: 0 | N4: 0 | O4: 0 | P4: 0 | Q4: 0 | R4: 0 | S4: 0 | T4: 0
C5: 0 | D5: 0 | E5: 0 | F5: 0 | G5: 0 | H5: 0 | I5: 0 | J5: 0 | K5: 0 | L5: 0 | M5: 0 | N5: 0 | O5: 0 | P5: 0 | Q5: 0 | R5: 0 | S5: 0 | T5: 0
C6: 0 | D6: 0 | E6: 0 | F6: 0 | G6: 0 | H6: 0 | I6: 0 | J6: 0 | K6: 0 | L6: 0 | M6: 0 | N6: 0 | O6: 0 | P6: 0 | Q6: 0 | R6: 0 | S6: 0 | T6: 0
C7: 0 | D7: 0 | E7: 0 | F7: 0 | G7: 0 | H7: 0 | I7: 0 | J7: 0 | K7: 0 | L7: 0 | M7: 0 | N7: 0 | O7: 0 | P7: 0 | Q7: 0 | R7: 0 | S7: 0 | T7: 0
C8: 0 | D8: 0 | E8: 0 | F8: 0 | G8: 0 | H8: 0 | I8: 0 | J8: 0 | K8: 0 | L8: 0 | M8: 0 | N8: 0 | O8: 0 | P8: 0 | Q8: 0 | R8: 0 | S8: 0 | T8: 0
C9: 0 | D9: 0 | E9: 0 | F9: 0 | G9: 0 | H9: 0 | I9: 0 | J9: 0 | K9: 0 | L9: 0 | M9: 0 | N9: 0 | O9: 0 | P9: 0 | Q9: 0 | R9: 0 | S9: 0 | T9: 0
C10: 0 | D10: 0 | E10: 0 | F10: 0 | G10: 0 | H10: 0 | I10: 0 | J10: 0 | K10: 0 | L10: 0 | M10: 0 | N10: 0 | O10: 0 | P10: 0 | Q10: 0 | R10: 0 | S10: 0 | T10: 0
C11: 0 | D11: 0 | E11: 0 | F11: 0 | G11: 0 | H11: 0 | I11: 0 | J11: 0 | K11: 0 | L11: 0 | M11: 0 | N11: 0 | O11: 0 | P11: 0 | Q11: 0 | R11: 0 | S11: 0 | T11: 0
C12: 0 | D12: 0 | E12: 0 | F12: 0 | G12: 0 | H12: 0 | I12: 0 | J12: 0 | K12: 0 | L12: 0 | M12: 0 | N12: 0 | O12: 0 | P12: 0 | Q12: 0 | R12: 0 | S12: 0 | T12: 0
C13: 0 | D13: 0 | E13: 0 | F13: 0 | G13: 0 | H13: 0 | I13: 0 | J13: 0 | K13: 0 | L13: 0 | M13: 0 | N13: 0 | O13: 0 | P13: 0 | Q13: 0 | R13: 0 | S13: 0 | T13: 0
C14: 0 | D14: 0 | E14: 0 | F14: 0 | G14: 0 | H14: 0 | I14: 0 | J14: 0 | K14: 0 | L14: 0 | M14: 0 | N14: 0 | O14: 0 | P14: 0 | Q14: 0 | R14: 0 | S14: 0 | T14: 0
C15: 0 | D15: 0 | E15: 0 | F15: 0 | G15: 0 | H15: 0 | I15: 0 | J15: 0 | K15: 0 | L15: 0 | M15: 0 | N15: 0 | O15: 0 | P15: 0 | Q15: 0 | R15: 0 | S15: 0 | T15: 0
C16: 0 | D16: 0 | E16: 0 | F16: 0 | G16: 0 | H16: 0 | I16: 0 | J16: 0 | K16: 0 | L16: 0 | M16: 0 | N16: 0 | O16: 0 | P16: 0 | Q16: 0 | R16: 0 | S16: 0 | T16: 0
C17: 0 | D17: 0 | E17: 0 | F17: 0 | G17: 0 | H17: 0 | I17: 0 | J17: 0 | K17: 0 | L17: 0 | M17: 0 | N17: 0 | O17: 0 | P17: 0 | Q17: 0 | R17: 0 | S17: 0 | T17: 0
C18: 0 | D18: 0 | E18: 0 | F18: 0 | G18: 0 | H18: 0 | I18: 0 | J18: 0 | K18: 0 | L18: 0 | M18: 0 | N18: 0 | O18: 0 | P18: 0 | Q18: 0 | R18: 0 | S18: 0 | T18: 0
C19: 0 | D19: 0 | E19: 0 | F19: 0 | G19: 0 | H19: 0 | I19: 0 | J19: 0 | K19: 0 | L19: 0 | M19: 0 | N19: 0 | O19: 0 | P19: 0 | Q19: 0 | R19: 0 | S19: 0 | T19: 0
C20: 0 | D20: 0 | E20: 0 | F20: 0 | G20: 0 | H20: 0 | I20: 0 | J20: 0 | K20: 0 | L20: 0 | M20: 0 | N20: 0 | O20: 0 | P20: 0 | Q20: 0 | R20: 0 | S20: 0 | T20: 0
C21: 0 | D21: 0 | E21: 0 | F21: 0 | G21: 0 | H21: 0 | I21: 0 | J21: 0 | K21: 0 | L21: 0 | M21: 0 | N21: 0 | O21: 0 | P21: 0 | Q21: 0 | R21: 0 | S21: 0 | T21: 0
C22: 0 | D22: 0 | E22: 0 | F22: 0 | G22: 0 | H22: 0 | I22: 0 | J22: 0 | K22: 0 | L22: 0 | M22: 0 | N22: 0 | O22: 0 | P22: 0 | Q22: 0 | R22: 0 | S22: 0 | T22: 0
C23: 0 | D23: 0 | E23: 0 | F23: 0 | G23: 0 | H23: 0 | I23: 0 | J23: 0 | K23: 0 | L23: 0 | M23: 0 | N23: 0 | O23: 0 | P23: 0 | Q23: 0 | R23: 0 | S23: 0 | T23: 0
C24: 0 | D24: 0 | E24: 0 | F24: 0 | G24: 0 | H24: 0 | I24: 0 | J24: 0 | K24: 0 | L24: 0 | M24: 0 | N24: 0 | O24: 0 | P24: 0 | Q24: 0 | R24: 0 | S24: 0 | T24: 0
C25: 0 | D25: 0 | E25: 0 | F25: 0 | G25: 0 | H25: 0 | I25: 0 | J25: 0 | K25: 0 | L25: 0 | M25: 0 | N25: 0 | O25: 0 | P25: 0 | Q25: 0 | R25: 0 | S25: 0 | T25: 0
C26: 0 | D26: 0 | E26: 0 | F26: 0 | G26: 0 | H26: 0 | I26: 0 | J26: 0 | K26: 0 | L26: 0 | M26: 0 | N26: 0 | O26: 0 | P26: 0 | Q26: 0 | R26: 0 | S26: 0 | T26: 0
C27: 0 | D27: 0 | E27: 0 | F27: 0 | G27: 0 | H27: 0 | I27: 0 | J27: 0 | K27: 0 | L27: 0 | M27: 0 | N27: 0 | O27: 0 | P27: 0 | Q27: 0 | R27: 0 | S27: 0 | T27: 0
C28: 0 | D28: 0 | E28: 0 | F28: 0 | G28: 0 | H28: 0 | I28: 0 | J28: 0 | K28: 0 | L28: 0 | M28: 0 | N28: 0 | O28: 0 | P28: 0 | Q28: 0 | R28: 0 | S28: 0 | T28: 0
C29: 0 | D29: 0 | E29: 0 | F29: 0 | G29: 0 | H29: 0 | I29: 0 | J29: 0 | K29: 0 | L29: 0 | M29: 0 | N29: 0 | O29: 0 | P29: 0 | Q29: 0 | R29: 0 | S29: 0 | T29: 0
C30: 0 | D30: 0 | E30: 0 | F30: 0 | G30: 0 | H30: 0 | I30: 0 | J30: 0 | K30: 0 | L30: 0 | M30: 0 | N30: 0 | O30: 0 | P30: 0 | Q30: 0 | R30: 0 | S30: 0 | T30: 0
C31: 0 | D31: 0 | E31: 0 | F31: 0 | G31: 0 | H31: 0 | I31: 0 | J31: 0 | K31: 0 | L31: 0 | M31: 0 | N31: 0 | O31: 0 | P31: 0 | Q31: 0 | R31: 0 | S31: 0 | T31: 0
E32: عدد طلاب الشعبة | F32: =U38 -> 0 | G32: عدد الطلاب بـ 50 | H32: =U33 -> 0 | I32: عدد الطلاب بـ 60 | J32: =U34 -> 0 | K32: عدد الطلاب بـ 70 | L32: =U35 -> 0 | M32: عدد الطلاب بـ 80 | N32: =U36 -> 0 | O32: عدد الطلاب بـ 90 | P32: =U37 -> 0
C33: =COUNTIF(B2:B31,">="&50)-COUNTIF(B2:B31,">"&59.9) -> 0 | D33: =COUNTIF(D2:D31,">="&50)-COUNTIF(D2:D31,">"&59.9) -> 0 | F33: =COUNTIF(F2:F31,">="&50)-COUNTIF(F2:F31,">"&59.9) -> 0 | H33: =COUNTIF(H2:H31,">="&50)-COUNTIF(H2:H31,">"&59.9) -> 0 | J33: =COUNTIF(J2:J31,">="&50)-COUNTIF(J2:J31,">"&59.9) -> 0 | L33: =COUNTIF(L2:L31,">="&50)-COUNTIF(L2:L31,">"&59.9) -> 0 | N33: =COUNTIF(N2:N31,">="&50)-COUNTIF(N2:N31,">"&59.9) -> 0 | P33: =COUNTIF(P2:P31,">="&50)-COUNTIF(P2:P31,">"&59.9) -> 0 | R33: =COUNTIF(R2:R31,">="&50)-COUNTIF(R2:R31,">"&59.9) -> 0 | T33: =COUNTIF(T2:T31,">="&50)-COUNTIF(T2:T31,">"&59.9) -> 0 | U33: =C33+D33+F33+H33+J33+L33+N33+P33+R33+T33 -> 0
C34: =COUNTIF(B2:B31,">="&60)-COUNTIF(B2:B31,">"&69.9) -> 0 | D34: =COUNTIF(D2:D31,">="&60)-COUNTIF(D2:D31,">"&69.9) -> 0 | F34: =COUNTIF(F2:F31,">="&60)-COUNTIF(F2:F31,">"&69.9) -> 0 | H34: =COUNTIF(H2:H31,">="&60)-COUNTIF(H2:H31,">"&69.9) -> 0 | J34: =COUNTIF(J2:J31,">="&60)-COUNTIF(J2:J31,">"&69.9) -> 0 | L34: =COUNTIF(L2:L31,">="&60)-COUNTIF(L2:L31,">"&69.9) -> 0 | N34: =COUNTIF(N2:N31,">="&60)-COUNTIF(N2:N31,">"&69.9) -> 0 | P34: =COUNTIF(P2:P31,">="&60)-COUNTIF(P2:P31,">"&69.9) -> 0 | R34: =COUNTIF(R2:R31,">="&60)-COUNTIF(R2:R31,">"&69.9) -> 0 | T34: =COUNTIF(T2:T31,">="&60)-COUNTIF(T2:T31,">"&69.9) -> 0 | U34: =C34+D34+F34+H34+J34+L34+N34+P34+R34+T34 -> 0
C35: =COUNTIF(B2:B31,">="&70)-COUNTIF(B2:B31,">"&79.9) -> 0 | D35: =COUNTIF(D2:D31,">="&70)-COUNTIF(D2:D31,">"&79.9) -> 0 | F35: =COUNTIF(F2:F31,">="&70)-COUNTIF(F2:F31,">"&79.9) -> 0 | H35: =COUNTIF(H2:H31,">="&70)-COUNTIF(H2:H31,">"&79.9) -> 0 | J35: =COUNTIF(J2:J31,">="&70)-COUNTIF(J2:J31,">"&79.9) -> 0 | L35: =COUNTIF(L2:L31,">="&70)-COUNTIF(L2:L31,">"&79.9) -> 0 | N35: =COUNTIF(N2:N31,">="&70)-COUNTIF(N2:N31,">"&79.9) -> 0 | P35: =COUNTIF(P2:P31,">="&70)-COUNTIF(P2:P31,">"&79.9) -> 0 | R35: =COUNTIF(R2:R31,">="&70)-COUNTIF(R2:R31,">"&79.9) -> 0 | T35: =COUNTIF(T2:T31,">="&70)-COUNTIF(T2:T31,">"&79.9) -> 0 | U35: 0
C36: =COUNTIF(B2:B31,">="&80)-COUNTIF(B2:B31,">"&89.9) -> 0 | D36: =COUNTIF(D2:D31,">="&80)-COUNTIF(D2:D31,">"&89.9) -> 0 | F36: =COUNTIF(F2:F31,">="&80)-COUNTIF(F2:F31,">"&89.9) -> 0 | H36: =COUNTIF(H2:H31,">="&80)-COUNTIF(H2:H31,">"&89.9) -> 0 | J36: =COUNTIF(J2:J31,">="&80)-COUNTIF(J2:J31,">"&89.9) -> 0 | L36: =COUNTIF(L2:L31,">="&80)-COUNTIF(L2:L31,">"&89.9) -> 0 | N36: =COUNTIF(N2:N31,">="&80)-COUNTIF(N2:N31,">"&89.9) -> 0 | P36: =COUNTIF(P2:P31,">="&80)-COUNTIF(P2:P31,">"&89.9) -> 0 | R36: =COUNTIF(R2:R31,">="&80)-COUNTIF(R2:R31,">"&89.9) -> 0 | T36: =COUNTIF(T2:T31,">="&80)-COUNTIF(T2:T31,">"&89.9) -> 0 | U36: 0
C37: =COUNTIF(B2:B31,">="&90)-COUNTIF(B2:B31,">"&99.9) -> 0 | D37: =COUNTIF(D2:D31,">="&90)-COUNTIF(D2:D31,">"&99.9) -> 0 | F37: =COUNTIF(F2:F31,">="&90)-COUNTIF(F2:F31,">"&99.9) -> 0 | H37: =COUNTIF(H2:H31,">="&90)-COUNTIF(H2:H31,">"&99.9) -> 0 | J37: =COUNTIF(J2:J31,">="&90)-COUNTIF(J2:J31,">"&99.9) -> 0 | L37: =COUNTIF(L2:L31,">="&90)-COUNTIF(L2:L31,">"&99.9) -> 0 | N37: =COUNTIF(N2:N31,">="&90)-COUNTIF(N2:N31,">"&99.9) -> 0 | P37: =COUNTIF(P2:P31,">="&90)-COUNTIF(P2:P31,">"&99.9) -> 0 | R37: =COUNTIF(R2:R31,">="&90)-COUNTIF(R2:R31,">"&99.9) -> 0 | T37: =COUNTIF(T2:T31,">="&90)-COUNTIF(T2:T31,">"&99.9) -> 0 | U37: 0
U38: =U33+U34+U35+U36+U37 -> 0

Sheet القائمة1
A1: الصف : الشعبة : مربي الصف :
A2: الرقم | B2: الاسم | C2: ملاحظات
A3: =_xlfn.AGGREGATE(3,5,$B$3:B3) -> 0 | B3: =IF(E3<>0,E3,"") ->  | F3: =E3 -> 0
A4: =_xlfn.AGGREGATE(3,5,$B$3:B4) -> 0 | F4: 0
A5: =_xlfn.AGGREGATE(3,5,$B$3:B5) -> 0 | F5: 0
A6: =_xlfn.AGGREGATE(3,5,$B$3:B6) -> 0 | F6: 0
A7: =_xlfn.AGGREGATE(3,5,$B$3:B7) -> 0 | F7: 0
A8: =_xlfn.AGGREGATE(3,5,$B$3:B8) -> 0 | F8: 0
A9: =_xlfn.AGGREGATE(3,5,$B$3:B9) -> 0 | F9: 0
A10: =_xlfn.AGGREGATE(3,5,$B$3:B10) -> 0 | F10: 0
A11: =_xlfn.AGGREGATE(3,5,$B$3:B11) -> 0 | F11: 0
A12: =_xlfn.AGGREGATE(3,5,$B$3:B12) -> 0 | F12: 0
A13: =_xlfn.AGGREGATE(3,5,$B$3:B13) -> 0 | F13: 0
A14: =_xlfn.AGGREGATE(3,5,$B$3:B14) -> 0 | F14: 0
A15: =_xlfn.AGGREGATE(3,5,$B$3:B15) -> 0 | F15: 0
A16: =_xlfn.AGGREGATE(3,5,$B$3:B16) -> 0 | F16: 0
A17: =_xlfn.AGGREGATE(3,5,$B$3:B17) -> 0 | F17: 0
A18: =_xlfn.AGGREGATE(3,5,$B$3:B18) -> 0 | F18: 0
A19: =_xlfn.AGGREGATE(3,5,$B$3:B19) -> 0 | F19: 0
A20: =_xlfn.AGGREGATE(3,5,$B$3:B20) -> 0 | F20: 0
A21: =_xlfn.AGGREGATE(3,5,$B$3:B21) -> 0 | F21: 0
A22: =_xlfn.AGGREGATE(3,5,$B$3:B22) -> 0 | F22: 0
A23: =_xlfn.AGGREGATE(3,5,$B$3:B23) -> 0 | F23: 0
A24: =_xlfn.AGGREGATE(3,5,$B$3:B24) -> 0 | F24: 0
A25: =_xlfn.AGGREGATE(3,5,$B$3:B25) -> 0 | F25: 0
A26: =_xlfn.AGGREGATE(3,5,$B$3:B26) -> 0 | F26: 0
A27: =_xlfn.AGGREGATE(3,5,$B$3:B27) -> 0 | F27: 0
A28: =_xlfn.AGGREGATE(3,5,$B$3:B28) -> 0 | F28: 0
A29: =_xlfn.AGGREGATE(3,5,$B$3:B29) -> 0 | F29: 0
A30: =_xlfn.AGGREGATE(3,5,$B$3:B30) -> 0 | F30: 0
A31: =_xlfn.AGGREGATE(3,5,$B$3:B31) -> 0 | F31: 0
A32: =_xlfn.AGGREGATE(3,5,$B$3:B32) -> 0 | F32: 0
A33: =_xlfn.AGGREGATE(3,5,$B$3:B33) -> 0 | F33: 0
A34: =_xlfn.AGGREGATE(3,5,$B$3:B34) -> 0 | F34: 0
A35: =_xlfn.AGGREGATE(3,5,$B$3:B35) -> 0 | F35: 0
A36: =_xlfn.AGGREGATE(3,5,$B$3:B36) -> 0 | F36: 0
A37: =_xlfn.AGGREGATE(3,5,$B$3:B37) -> 0 | F37: 0
A38: =_xlfn.AGGREGATE(3,5,$B$3:B38) -> 0 | F38: 0
A39: =_xlfn.AGGREGATE(3,5,$B$3:B39) -> 0 | F39: 0
A40: =_xlfn.AGGREGATE(3,5,$B$3:B40) -> 0 | F40: 0
A41: =_xlfn.AGGREGATE(3,5,$B$3:B41) -> 0 | F41: 0
A42: =_xlfn.AGGREGATE(3,5,$B$3:B42) -> 0 | F42: 0
A43: =_xlfn.AGGREGATE(3,5,$B$3:B43) -> 0 | F43: 0
A44: =_xlfn.AGGREGATE(3,5,$B$3:B44) -> 0 | F44: 0
A45: =_xlfn.AGGREGATE(3,5,$B$3:B45) -> 0 | F45: 0
A46: =_xlfn.AGGREGATE(3,5,$B$3:B46) -> 0 | F46: 0
A47: =_xlfn.AGGREGATE(3,5,$B$3:B47) -> 0 | F47: 0
A48: =_xlfn.AGGREGATE(3,5,$B$3:B48) -> 0 | F48: 0
A49: =_xlfn.AGGREGATE(3,5,$B$3:B49) -> 0 | F49: 0
A50: =_xlfn.AGGREGATE(3,5,$B$3:B50) -> 0 | F50: 0
A51: =_xlfn.AGGREGATE(3,5,$B$3:B51) -> 0 | F51: 0
A52: =_xlfn.AGGREGATE(3,5,$B$3:B52) -> 0 | F52: 0
A53: =_xlfn.AGGREGATE(3,5,$B$3:B53) -> 0 | F53: 0
A54: =_xlfn.AGGREGATE(3,5,$B$3:B54) -> 0 | F54: 0
A55: =_xlfn.AGGREGATE(3,5,$B$3:B55) -> 0 | F55: 0
A56: =_xlfn.AGGREGATE(3,5,$B$3:B56) -> 0 | F56: 0
A57: =_xlfn.AGGREGATE(3,5,$B$3:B57) -> 0 | F57: 0
A58: =_xlfn.AGGREGATE(3,5,$B$3:B58) -> 0 | F58: 0
A59: =_xlfn.AGGREGATE(3,5,$B$3:B59) -> 0 | F59: 0
A60: =_xlfn.AGGREGATE(3,5,$B$3:B60) -> 0 | F60: 0
A61: =_xlfn.AGGREGATE(3,5,$B$3:B61) -> 0 | F61: 0
A62: =_xlfn.AGGREGATE(3,5,$B$3:B62) -> 0 | F62: 0
A63: =_xlfn.AGGREGATE(3,5,$B$3:B63) -> 0 | F63: 0
A64: =_xlfn.AGGREGATE(3,5,$B$3:B64) -> 0 | F64: 0
A65: =_xlfn.AGGREGATE(3,5,$B$3:B65) -> 0 | F65: 0
A66: =_xlfn.AGGREGATE(3,5,$B$3:B66) -> 0 | F66: 0
A67: =_xlfn.AGGREGATE(3,5,$B$3:B67) -> 0 | B67: =IF(E67<>0,E67,"") ->  | F67: =E67 -> 0
A68: =_xlfn.AGGREGATE(3,5,$B$3:B68) -> 0 | F68: 0
A69: =_xlfn.AGGREGATE(3,5,$B$3:B69) -> 0 | F69: 0
A70: =_xlfn.AGGREGATE(3,5,$B$3:B70) -> 0 | F70: 0
A71: =_xlfn.AGGREGATE(3,5,$B$3:B71) -> 0 | F71: 0
A72: =_xlfn.AGGREGATE(3,5,$B$3:B72) -> 0 | F72: 0
A73: =_xlfn.AGGREGATE(3,5,$B$3:B73) -> 0 | F73: 0
A74: =_xlfn.AGGREGATE(3,5,$B$3:B74) -> 0 | F74: 0
A75: =_xlfn.AGGREGATE(3,5,$B$3:B75) -> 0 | F75: 0
A76: =_xlfn.AGGREGATE(3,5,$B$3:B76) -> 0 | F76: 0
A77: =_xlfn.AGGREGATE(3,5,$B$3:B77) -> 0 | F77: 0
A78: =_xlfn.AGGREGATE(3,5,$B$3:B78) -> 0 | F78: 0
A79: =_xlfn.AGGREGATE(3,5,$B$3:B79) -> 0 | F79: 0
A80: =_xlfn.AGGREGATE(3,5,$B$3:B80) -> 0 | F80: 0
A81: =_xlfn.AGGREGATE(3,5,$B$3:B81) -> 0 | F81: 0
A82: =_xlfn.AGGREGATE(3,5,$B$3:B82) -> 0 | F82: 0
A83: =_xlfn.AGGREGATE(3,5,$B$3:B83) -> 0 | F83: 0
A84: =_xlfn.AGGREGATE(3,5,$B$3:B84) -> 0 | F84: 0
A85: =_xlfn.AGGREGATE(3,5,$B$3:B85) -> 0 | F85: 0
A86: =_xlfn.AGGREGATE(3,5,$B$3:B86) -> 0 | F86: 0
A87: =_xlfn.AGGREGATE(3,5,$B$3:B87) -> 0 | F87: 0
A88: =_xlfn.AGGREGATE(3,5,$B$3:B88) -> 0 | F88: 0
A89: =_xlfn.AGGREGATE(3,5,$B$3:B89) -> 0 | F89: 0
A90: =_xlfn.AGGREGATE(3,5,$B$3:B90) -> 0 | F90: 0
A91: =_xlfn.AGGREGATE(3,5,$B$3:B91) -> 0 | F91: 0
A92: =_xlfn.AGGREGATE(3,5,$B$3:B92) -> 0 | F92: 0
A93: =_xlfn.AGGREGATE(3,5,$B$3:B93) -> 0 | F93: 0
A94: =_xlfn.AGGREGATE(3,5,$B$3:B94) -> 0 | F94: 0
A95: =_xlfn.AGGREGATE(3,5,$B$3:B95) -> 0 | F95: 0
A96: =_xlfn.AGGREGATE(3,5,$B$3:B96) -> 0 | F96: 0
A97: =_xlfn.AGGREGATE(3,5,$B$3:B97) -> 0 | F97: 0
A98: =_xlfn.AGGREGATE(3,5,$B$3:B98) -> 0 | F98: 0
A99: =_xlfn.AGGREGATE(3,5,$B$3:B99) -> 0 | F99: 0
A100: =_xlfn.AGGREGATE(3,5,$B$3:B100) -> 0 | F100: 0
A101: =_xlfn.AGGREGATE(3,5,$B$3:B101) -> 0 | F101: 0
A102: =_xlfn.AGGREGATE(3,5,$B$3:B102) -> 0 | F102: 0
A103: =_xlfn.AGGREGATE(3,5,$B$3:B103) -> 0 | F103: 0
A104: =_xlfn.AGGREGATE(3,5,$B$3:B104) -> 0 | F104: 0
A105: =_xlfn.AGGREGATE(3,5,$B$3:B105) -> 0 | F105: 0
A106: =_xlfn.AGGREGATE(3,5,$B$3:B106) -> 0 | F106: 0
A107: =_xlfn.AGGREGATE(3,5,$B$3:B107) -> 0 | F107: 0
A108: =_xlfn.AGGREGATE(3,5,$B$3:B108) -> 0 | F108: 0
A109: =_xlfn.AGGREGATE(3,5,$B$3:B109) -> 0 | F109: 0
A110: =_xlfn.AGGREGATE(3,5,$B$3:B110) -> 0 | F110: 0
A111: =_xlfn.AGGREGATE(3,5,$B$3:B111) -> 0 | F111: 0
A112: =_xlfn.AGGREGATE(3,5,$B$3:B112) -> 0 | F112: 0
A113: =_xlfn.AGGREGATE(3,5,$B$3:B113) -> 0 | F113: 0
A114: =_xlfn.AGGREGATE(3,5,$B$3:B114) -> 0 | F114: 0
A115: =_xlfn.AGGREGATE(3,5,$B$3:B115) -> 0 | F115: 0
A116: =_xlfn.AGGREGATE(3,5,$B$3:B116) -> 0 | F116: 0
A117: =_xlfn.AGGREGATE(3,5,$B$3:B117) -> 0 | F117: 0
A118: =_xlfn.AGGREGATE(3,5,$B$3:B118) -> 0 | F118: 0
A119: =_xlfn.AGGREGATE(3,5,$B$3:B119) -> 0 | F119: 0
A120: =_xlfn.AGGREGATE(3,5,$B$3:B120) -> 0 | F120: 0
A121: =_xlfn.AGGREGATE(3,5,$B$3:B121) -> 0 | F121: 0
A122: =_xlfn.AGGREGATE(3,5,$B$3:B122) -> 0 | F122: 0
A123: =_xlfn.AGGREGATE(3,5,$B$3:B123) -> 0 | F123: 0
A124: =_xlfn.AGGREGATE(3,5,$B$3:B124) -> 0 | F124: 0
A125: =_xlfn.AGGREGATE(3,5,$B$3:B125) -> 0 | C125: ` | F125: 0
A126: =_xlfn.AGGREGATE(3,5,$B$3:B126) -> 0 | F126: 0
A127: =_xlfn.AGGREGATE(3,5,$B$3:B127) -> 0 | F127: 0
A128: =_xlfn.AGGREGATE(3,5,$B$3:B128) -> 0 | F128: 0
A129: =_xlfn.AGGREGATE(3,5,$B$3:B129) -> 0 | F129: 0
A130: =_xlfn.AGGREGATE(3,5,$B$3:B130) -> 0 | F130: 0
A131: =_xlfn.AGGREGATE(3,5,$B$3:B131) -> 0 | B131: =IF(E131<>0,E131,"") ->  | F131: =E131 -> 0
A132: =_xlfn.AGGREGATE(3,5,$B$3:B132) -> 0 | F132: 0
A133: =_xlfn.AGGREGATE(3,5,$B$3:B133) -> 0 | F133: 0
A134: =_xlfn.AGGREGATE(3,5,$B$3:B134) -> 0 | F134: 0
A135: =_xlfn.AGGREGATE(3,5,$B$3:B135) -> 0 | F135: 0
A136: =_xlfn.AGGREGATE(3,5,$B$3:B136) -> 0 | F136: 0
A137: =_xlfn.AGGREGATE(3,5,$B$3:B137) -> 0 | F137: 0
A138: =_xlfn.AGGREGATE(3,5,$B$3:B138) -> 0 | F138: 0
A139: =_xlfn.AGGREGATE(3,5,$B$3:B139) -> 0 | F139: 0
A140: =_xlfn.AGGREGATE(3,5,$B$3:B140) -> 0 | F140: 0
A141: =_xlfn.AGGREGATE(3,5,$B$3:B141) -> 0 | F141: 0
A142: =_xlfn.AGGREGATE(3,5,$B$3:B142) -> 0 | F142: 0
A143: =_xlfn.AGGREGATE(3,5,$B$3:B143) -> 0 | F143: 0
A144: =_xlfn.AGGREGATE(3,5,$B$3:B144) -> 0 | F144: 0
A145: =_xlfn.AGGREGATE(3,5,$B$3:B145) -> 0 | F145: 0
A146: =_xlfn.AGGREGATE(3,5,$B$3:B146) -> 0 | F146: 0
A147: =_xlfn.AGGREGATE(3,5,$B$3:B147) -> 0 | F147: 0
A148: =_xlfn.AGGREGATE(3,5,$B$3:B148) -> 0 | F148: 0
A149: =_xlfn.AGGREGATE(3,5,$B$3:B149) -> 0 | F149: 0
A150: =_xlfn.AGGREGATE(3,5,$B$3:B150) -> 0 | F150: 0
A151: =_xlfn.AGGREGATE(3,5,$B$3:B151) -> 0 | F151: 0
A152: =_xlfn.AGGREGATE(3,5,$B$3:B152) -> 0 | F152: 0
A153: =_xlfn.AGGREGATE(3,5,$B$3:B153) -> 0 | F153: 0
A154: =_xlfn.AGGREGATE(3,5,$B$3:B154) -> 0 | F154: 0
A155: =_xlfn.AGGREGATE(3,5,$B$3:B155) -> 0 | F155: 0
A156: =_xlfn.AGGREGATE(3,5,$B$3:B156) -> 0 | F156: 0
A157: =_xlfn.AGGREGATE(3,5,$B$3:B157) -> 0 | F157: 0
A158: =_xlfn.AGGREGATE(3,5,$B$3:B158) -> 0 | F158: 0
A159: =_xlfn.AGGREGATE(3,5,$B$3:B159) -> 0 | F159: 0
A160: =_xlfn.AGGREGATE(3,5,$B$3:B160) -> 0 | F160: 0
A161: =_xlfn.AGGREGATE(3,5,$B$3:B161) -> 0 | F161: 0
A162: =_xlfn.AGGREGATE(3,5,$B$3:B162) -> 0 | F162: 0
A163: =_xlfn.AGGREGATE(3,5,$B$3:B163) -> 0 | F163: 0
A164: =_xlfn.AGGREGATE(3,5,$B$3:B164) -> 0 | F164: 0
A165: =_xlfn.AGGREGATE(3,5,$B$3:B165) -> 0 | F165: 0
A166: =_xlfn.AGGREGATE(3,5,$B$3:B166) -> 0 | F166: 0
A167: =_xlfn.AGGREGATE(3,5,$B$3:B167) -> 0 | F167: 0
A168: =_xlfn.AGGREGATE(3,5,$B$3:B168) -> 0 | F168: 0
A169: =_xlfn.AGGREGATE(3,5,$B$3:B169) -> 0 | F169: 0
A170: =_xlfn.AGGREGATE(3,5,$B$3:B170) -> 0 | F170: 0
A171: =_xlfn.AGGREGATE(3,5,$B$3:B171) -> 0 | F171: 0
A172: =_xlfn.AGGREGATE(3,5,$B$3:B172) -> 0 | F172: 0
A173: =_xlfn.AGGREGATE(3,5,$B$3:B173) -> 0 | F173: 0
A174: =_xlfn.AGGREGATE(3,5,$B$3:B174) -> 0 | F174: 0
A175: =_xlfn.AGGREGATE(3,5,$B$3:B175) -> 0 | F175: 0
A176: =_xlfn.AGGREGATE(3,5,$B$3:B176) -> 0 | F176: 0
A177: =_xlfn.AGGREGATE(3,5,$B$3:B177) -> 0 | F177: 0
A178: =_xlfn.AGGREGATE(3,5,$B$3:B178) -> 0 | F178: 0
A179: =_xlfn.AGGREGATE(3,5,$B$3:B179) -> 0 | F179: 0
A180: =_xlfn.AGGREGATE(3,5,$B$3:B180) -> 0 | F180: 0
A181: =_xlfn.AGGREGATE(3,5,$B$3:B181) -> 0 | F181: 0
A182: =_xlfn.AGGREGATE(3,5,$B$3:B182) -> 0 | F182: 0
A183: =_xlfn.AGGREGATE(3,5,$B$3:B183) -> 0 | F183: 0
A184: =_xlfn.AGGREGATE(3,5,$B$3:B184) -> 0 | F184: 0
A185: =_xlfn.AGGREGATE(3,5,$B$3:B185) -> 0 | F185: 0
A186: =_xlfn.AGGREGATE(3,5,$B$3:B186) -> 0 | F186: 0
A187: =_xlfn.AGGREGATE(3,5,$B$3:B187) -> 0 | F187: 0
A188: =_xlfn.AGGREGATE(3,5,$B$3:B188) -> 0 | F188: 0
A189: =_xlfn.AGGREGATE(3,5,$B$3:B189) -> 0 | F189: 0
A190: =_xlfn.AGGREGATE(3,5,$B$3:B190) -> 0 | F190: 0
A191: =_xlfn.AGGREGATE(3,5,$B$3:B191) -> 0 | F191: 0
A192: =_xlfn.AGGREGATE(3,5,$B$3:B192) -> 0 | F192: 0
A193: =_xlfn.AGGREGATE(3,5,$B$3:B193) -> 0 | F193: 0
A194: =_xlfn.AGGREGATE(3,5,$B$3:B194) -> 0 | F194: 0
A195: =_xlfn.AGGREGATE(3,5,$B$3:B195) -> 0 | B195: =IF(E195<>0,E195,"") ->  | F195: =E195 -> 0
A196: =_xlfn.AGGREGATE(3,5,$B$3:B196) -> 0 | F196: 0
A197: =_xlfn.AGGREGATE(3,5,$B$3:B197) -> 0 | F197: 0
A198: =_xlfn.AGGREGATE(3,5,$B$3:B198) -> 0 | F198: 0
A199: =_xlfn.AGGREGATE(3,5,$B$3:B199) -> 0 | F199: 0
A200: =_xlfn.AGGREGATE(3,5,$B$3:B200) -> 0 | F200: 0
... 429 more rows

Sheet القائمة2
A1: الصف : الشعبة : مربي الصف :
A2: الرقم | B2: الاسم | C2: ملاحظات
A3: =_xlfn.AGGREGATE(3,5,$B$3:B3) -> 0 | B3: =IF(E3<>0,E3,"") ->  | F3: =E3 -> 0
A4: =_xlfn.AGGREGATE(3,5,$B$3:B4) -> 0 | F4: 0
A5: =_xlfn.AGGREGATE(3,5,$B$3:B5) -> 0 | F5: 0
A6: =_xlfn.AGGREGATE(3,5,$B$3:B6) -> 0 | F6: 0
A7: =_xlfn.AGGREGATE(3,5,$B$3:B7) -> 0 | F7: 0
A8: =_xlfn.AGGREGATE(3,5,$B$3:B8) -> 0 | F8: 0
A9: =_xlfn.AGGREGATE(3,5,$B$3:B9) -> 0 | F9: 0
A10: =_xlfn.AGGREGATE(3,5,$B$3:B10) -> 0 | F10: 0
A11: =_xlfn.AGGREGATE(3,5,$B$3:B11) -> 0 | F11: 0
A12: =_xlfn.AGGREGATE(3,5,$B$3:B12) -> 0 | F12: 0
A13: =_xlfn.AGGREGATE(3,5,$B$3:B13) -> 0 | F13: 0
A14: =_xlfn.AGGREGATE(3,5,$B$3:B14) -> 0 | F14: 0
A15: =_xlfn.AGGREGATE(3,5,$B$3:B15) -> 0 | F15: 0
A16: =_xlfn.AGGREGATE(3,5,$B$3:B16) -> 0 | F16: 0
A17: =_xlfn.AGGREGATE(3,5,$B$3:B17) -> 0 | F17: 0
A18: =_xlfn.AGGREGATE(3,5,$B$3:B18) -> 0 | F18: 0
A19: =_xlfn.AGGREGATE(3,5,$B$3:B19) -> 0 | F19: 0
A20: =_xlfn.AGGREGATE(3,5,$B$3:B20) -> 0 | F20: 0
A21: =_xlfn.AGGREGATE(3,5,$B$3:B21) -> 0 | F21: 0
A22: =_xlfn.AGGREGATE(3,5,$B$3:B22) -> 0 | F22: 0
A23: =_xlfn.AGGREGATE(3,5,$B$3:B23) -> 0 | F23: 0
A24: =_xlfn.AGGREGATE(3,5,$B$3:B24) -> 0 | F24: 0
A25: =_xlfn.AGGREGATE(3,5,$B$3:B25) -> 0 | F25: 0
A26: =_xlfn.AGGREGATE(3,5,$B$3:B26) -> 0 | F26: 0
A27: =_xlfn.AGGREGATE(3,5,$B$3:B27) -> 0 | F27: 0
A28: =_xlfn.AGGREGATE(3,5,$B$3:B28) -> 0 | F28: 0
A29: =_xlfn.AGGREGATE(3,5,$B$3:B29) -> 0 | F29: 0
A30: =_xlfn.AGGREGATE(3,5,$B$3:B30) -> 0 | F30: 0
A31: =_xlfn.AGGREGATE(3,5,$B$3:B31) -> 0 | F31: 0
A32: =_xlfn.AGGREGATE(3,5,$B$3:B32) -> 0 | F32: 0
A33: =_xlfn.AGGREGATE(3,5,$B$3:B33) -> 0 | F33: 0
A34: =_xlfn.AGGREGATE(3,5,$B$3:B34) -> 0 | F34: 0
A35: =_xlfn.AGGREGATE(3,5,$B$3:B35) -> 0 | F35: 0
A36: =_xlfn.AGGREGATE(3,5,$B$3:B36) -> 0 | F36: 0
A37: =_xlfn.AGGREGATE(3,5,$B$3:B37) -> 0 | F37: 0
A38: =_xlfn.AGGREGATE(3,5,$B$3:B38) -> 0 | F38: 0
A39: =_xlfn.AGGREGATE(3,5,$B$3:B39) -> 0 | F39: 0
A40: =_xlfn.AGGREGATE(3,5,$B$3:B40) -> 0 | F40: 0
A41: =_xlfn.AGGREGATE(3,5,$B$3:B41) -> 0 | F41: 0
A42: =_xlfn.AGGREGATE(3,5,$B$3:B42) -> 0 | F42: 0
A43: =_xlfn.AGGREGATE(3,5,$B$3:B43) -> 0 | F43: 0
A44: =_xlfn.AGGREGATE(3,5,$B$3:B44) -> 0 | F44: 0
A45: =_xlfn.AGGREGATE(3,5,$B$3:B45) -> 0 | F45: 0
A46: =_xlfn.AGGREGATE(3,5,$B$3:B46) -> 0 | F46: 0
A47: =_xlfn.AGGREGATE(3,5,$B$3:B47) -> 0 | F47: 0
A48: =_xlfn.AGGREGATE(3,5,$B$3:B48) -> 0 | F48: 0
A49: =_xlfn.AGGREGATE(3,5,$B$3:B49) -> 0 | F49: 0
A50: =_xlfn.AGGREGATE(3,5,$B$3:B50) -> 0 | F50: 0
A51: =_xlfn.AGGREGATE(3,5,$B$3:B51) -> 0 | F51: 0
A52: =_xlfn.AGGREGATE(3,5,$B$3:B52) -> 0 | F52: 0
A53: =_xlfn.AGGREGATE(3,5,$B$3:B53) -> 0 | F53: 0
A54: =_xlfn.AGGREGATE(3,5,$B$3:B54) -> 0 | F54: 0
A55: =_xlfn.AGGREGATE(3,5,$B$3:B55) -> 0 | F55: 0
A56: =_xlfn.AGGREGATE(3,5,$B$3:B56) -> 0 | F56: 0
A57: =_xlfn.AGGREGATE(3,5,$B$3:B57) -> 0 | F57: 0
A58: =_xlfn.AGGREGATE(3,5,$B$3:B58) -> 0 | F58: 0
A59: =_xlfn.AGGREGATE(3,5,$B$3:B59) -> 0 | F59: 0
A60: =_xlfn.AGGREGATE(3,5,$B$3:B60) -> 0 | F60: 0
A61: =_xlfn.AGGREGATE(3,5,$B$3:B61) -> 0 | F61: 0
A62: =_xlfn.AGGREGATE(3,5,$B$3:B62) -> 0 | F62: 0
A63: =_xlfn.AGGREGATE(3,5,$B$3:B63) -> 0 | F63: 0
A64: =_xlfn.AGGREGATE(3,5,$B$3:B64) -> 0 | F64: 0
A65: =_xlfn.AGGREGATE(3,5,$B$3:B65) -> 0 | F65: 0
A66: =_xlfn.AGGREGATE(3,5,$B$3:B66) -> 0 | F66: 0
A67: =_xlfn.AGGREGATE(3,5,$B$3:B67) -> 0 | B67: =IF(E67<>0,E67,"") ->  | F67: =E67 -> 0
A68: =_xlfn.AGGREGATE(3,5,$B$3:B68) -> 0 | F68: 0
A69: =_xlfn.AGGREGATE(3,5,$B$3:B69) -> 0 | F69: 0
A70: =_xlfn.AGGREGATE(3,5,$B$3:B70) -> 0 | F70: 0
A71: =_xlfn.AGGREGATE(3,5,$B$3:B71) -> 0 | F71: 0
A72: =_xlfn.AGGREGATE(3,5,$B$3:B72) -> 0 | F72: 0
A73: =_xlfn.AGGREGATE(3,5,$B$3:B73) -> 0 | F73: 0
A74: =_xlfn.AGGREGATE(3,5,$B$3:B74) -> 0 | F74: 0
A75: =_xlfn.AGGREGATE(3,5,$B$3:B75) -> 0 | F75: 0
A76: =_xlfn.AGGREGATE(3,5,$B$3:B76) -> 0 | F76: 0
A77: =_xlfn.AGGREGATE(3,5,$B$3:B77) -> 0 | F77: 0
A78: =_xlfn.AGGREGATE(3,5,$B$3:B78) -> 0 | F78: 0
A79: =_xlfn.AGGREGATE(3,5,$B$3:B79) -> 0 | F79: 0
A80: =_xlfn.AGGREGATE(3,5,$B$3:B80) -> 0 | F80: 0
A81: =_xlfn.AGGREGATE(3,5,$B$3:B81) -> 0 | F81: 0
A82: =_xlfn.AGGREGATE(3,5,$B$3:B82) -> 0 | F82: 0
A83: =_xlfn.AGGREGATE(3,5,$B$3:B83) -> 0 | F83: 0
A84: =_xlfn.AGGREGATE(3,5,$B$3:B84) -> 0 | F84: 0
A85: =_xlfn.AGGREGATE(3,5,$B$3:B85) -> 0 | F85: 0
A86: =_xlfn.AGGREGATE(3,5,$B$3:B86) -> 0 | F86: 0
A87: =_xlfn.AGGREGATE(3,5,$B$3:B87) -> 0 | F87: 0
A88: =_xlfn.AGGREGATE(3,5,$B$3:B88) -> 0 | F88: 0
A89: =_xlfn.AGGREGATE(3,5,$B$3:B89) -> 0 | F89: 0
A90: =_xlfn.AGGREGATE(3,5,$B$3:B90) -> 0 | F90: 0
A91: =_xlfn.AGGREGATE(3,5,$B$3:B91) -> 0 | F91: 0
A92: =_xlfn.AGGREGATE(3,5,$B$3:B92) -> 0 | F92: 0
A93: =_xlfn.AGGREGATE(3,5,$B$3:B93) -> 0 | F93: 0
A94: =_xlfn.AGGREGATE(3,5,$B$3:B94) -> 0 | F94: 0
A95: =_xlfn.AGGREGATE(3,5,$B$3:B95) -> 0 | F95: 0
A96: =_xlfn.AGGREGATE(3,5,$B$3:B96) -> 0 | F96: 0
A97: =_xlfn.AGGREGATE(3,5,$B$3:B97) -> 0 | F97: 0
A98: =_xlfn.AGGREGATE(3,5,$B$3:B98) -> 0 | F98: 0
A99: =_xlfn.AGGREGATE(3,5,$B$3:B99) -> 0 | F99: 0
A100: =_xlfn.AGGREGATE(3,5,$B$3:B100) -> 0 | F100: 0
A101: =_xlfn.AGGREGATE(3,5,$B$3:B101) -> 0 | F101: 0
A102: =_xlfn.AGGREGATE(3,5,$B$3:B102) -> 0 | F102: 0
A103: =_xlfn.AGGREGATE(3,5,$B$3:B103) -> 0 | F103: 0
A104: =_xlfn.AGGREGATE(3,5,$B$3:B104) -> 0 | F104: 0
A105: =_xlfn.AGGREGATE(3,5,$B$3:B105) -> 0 | F105: 0
A106: =_xlfn.AGGREGATE(3,5,$B$3:B106) -> 0 | F106: 0
A107: =_xlfn.AGGREGATE(3,5,$B$3:B107) -> 0 | F107: 0
A108: =_xlfn.AGGREGATE(3,5,$B$3:B108) -> 0 | F108: 0
A109: =_xlfn.AGGREGATE(3,5,$B$3:B109) -> 0 | F109: 0
A110: =_xlfn.AGGREGATE(3,5,$B$3:B110) -> 0 | F110: 0
A111: =_xlfn.AGGREGATE(3,5,$B$3:B111) -> 0 | F111: 0
A112: =_xlfn.AGGREGATE(3,5,$B$3:B112) -> 0 | F112: 0
A113: =_xlfn.AGGREGATE(3,5,$B$3:B113) -> 0 | F113: 0
A114: =_xlfn.AGGREGATE(3,5,$B$3:B114) -> 0 | F114: 0
A115: =_xlfn.AGGREGATE(3,5,$B$3:B115) -> 0 | F115: 0
A116: =_xlfn.AGGREGATE(3,5,$B$3:B116) -> 0 | F116: 0
A117: =_xlfn.AGGREGATE(3,5,$B$3:B117) -> 0 | F117: 0
A118: =_xlfn.AGGREGATE(3,5,$B$3:B118) -> 0 | F118: 0
A119: =_xlfn.AGGREGATE(3,5,$B$3:B119) -> 0 | F119: 0
A120: =_xlfn.AGGREGATE(3,5,$B$3:B120) -> 0 | F120: 0
A121: =_xlfn.AGGREGATE(3,5,$B$3:B121) -> 0 | F121: 0
A122: =_xlfn.AGGREGATE(3,5,$B$3:B122) -> 0 | F122: 0
A123: =_xlfn.AGGREGATE(3,5,$B$3:B123) -> 0 | F123: 0
A124: =_xlfn.AGGREGATE(3,5,$B$3:B124) -> 0 | F124: 0
A125: =_xlfn.AGGREGATE(3,5,$B$3:B125) -> 0 | C125: ` | F125: 0
A126: =_xlfn.AGGREGATE(3,5,$B$3:B126) -> 0 | F126: 0
A127: =_xlfn.AGGREGATE(3,5,$B$3:B127) -> 0 | F127: 0
A128: =_xlfn.AGGREGATE(3,5,$B$3:B128) -> 0 | F128: 0
A129: =_xlfn.AGGREGATE(3,5,$B$3:B129) -> 0 | F129: 0
A130: =_xlfn.AGGREGATE(3,5,$B$3:B130) -> 0 | F130: 0
A131: =_xlfn.AGGREGATE(3,5,$B$3:B131) -> 0 | B131: =IF(E131<>0,E131,"") ->  | F131: =E131 -> 0
A132: =_xlfn.AGGREGATE(3,5,$B$3:B132) -> 0 | F132: 0
A133: =_xlfn.AGGREGATE(3,5,$B$3:B133) -> 0 | F133: 0
A134: =_xlfn.AGGREGATE(3,5,$B$3:B134) -> 0 | F134: 0
A135: =_xlfn.AGGREGATE(3,5,$B$3:B135) -> 0 | F135: 0
A136: =_xlfn.AGGREGATE(3,5,$B$3:B136) -> 0 | F136: 0
A137: =_xlfn.AGGREGATE(3,5,$B$3:B137) -> 0 | F137: 0
A138: =_xlfn.AGGREGATE(3,5,$B$3:B138) -> 0 | F138: 0
A139: =_xlfn.AGGREGATE(3,5,$B$3:B139) -> 0 | F139: 0
A140: =_xlfn.AGGREGATE(3,5,$B$3:B140) -> 0 | F140: 0
A141: =_xlfn.AGGREGATE(3,5,$B$3:B141) -> 0 | F141: 0
A142: =_xlfn.AGGREGATE(3,5,$B$3:B142) -> 0 | F142: 0
A143: =_xlfn.AGGREGATE(3,5,$B$3:B143) -> 0 | F143: 0
A144: =_xlfn.AGGREGATE(3,5,$B$3:B144) -> 0 | F144: 0
A145: =_xlfn.AGGREGATE(3,5,$B$3:B145) -> 0 | F145: 0
A146: =_xlfn.AGGREGATE(3,5,$B$3:B146) -> 0 | F146: 0
A147: =_xlfn.AGGREGATE(3,5,$B$3:B147) -> 0 | F147: 0
A148: =_xlfn.AGGREGATE(3,5,$B$3:B148) -> 0 | F148: 0
A149: =_xlfn.AGGREGATE(3,5,$B$3:B149) -> 0 | F149: 0
A150: =_xlfn.AGGREGATE(3,5,$B$3:B150) -> 0 | F150: 0
A151: =_xlfn.AGGREGATE(3,5,$B$3:B151) -> 0 | F151: 0
A152: =_xlfn.AGGREGATE(3,5,$B$3:B152) -> 0 | F152: 0
A153: =_xlfn.AGGREGATE(3,5,$B$3:B153) -> 0 | F153: 0
A154: =_xlfn.AGGREGATE(3,5,$B$3:B154) -> 0 | F154: 0
A155: =_xlfn.AGGREGATE(3,5,$B$3:B155) -> 0 | F155: 0
A156: =_xlfn.AGGREGATE(3,5,$B$3:B156) -> 0 | F156: 0
A157: =_xlfn.AGGREGATE(3,5,$B$3:B157) -> 0 | F157: 0
A158: =_xlfn.AGGREGATE(3,5,$B$3:B158) -> 0 | F158: 0
A159: =_xlfn.AGGREGATE(3,5,$B$3:B159) -> 0 | F159: 0
A160: =_xlfn.AGGREGATE(3,5,$B$3:B160) -> 0 | F160: 0
A161: =_xlfn.AGGREGATE(3,5,$B$3:B161) -> 0 | F161: 0
A162: =_xlfn.AGGREGATE(3,5,$B$3:B162) -> 0 | F162: 0
A163: =_xlfn.AGGREGATE(3,5,$B$3:B163) -> 0 | F163: 0
A164: =_xlfn.AGGREGATE(3,5,$B$3:B164) -> 0 | F164: 0
A165: =_xlfn.AGGREGATE(3,5,$B$3:B165) -> 0 | F165: 0
A166: =_xlfn.AGGREGATE(3,5,$B$3:B166) -> 0 | F166: 0
A167: =_xlfn.AGGREGATE(3,5,$B$3:B167) -> 0 | F167: 0
A168: =_xlfn.AGGREGATE(3,5,$B$3:B168) -> 0 | F168: 0
A169: =_xlfn.AGGREGATE(3,5,$B$3:B169) -> 0 | F169: 0
A170: =_xlfn.AGGREGATE(3,5,$B$3:B170) -> 0 | F170: 0
A171: =_xlfn.AGGREGATE(3,5,$B$3:B171) -> 0 | F171: 0
A172: =_xlfn.AGGREGATE(3,5,$B$3:B172) -> 0 | F172: 0
A173: =_xlfn.AGGREGATE(3,5,$B$3:B173) -> 0 | F173: 0
A174: =_xlfn.AGGREGATE(3,5,$B$3:B174) -> 0 | F174: 0
A175: =_xlfn.AGGREGATE(3,5,$B$3:B175) -> 0 | F175: 0
A176: =_xlfn.AGGREGATE(3,5,$B$3:B176) -> 0 | F176: 0
A177: =_xlfn.AGGREGATE(3,5,$B$3:B177) -> 0 | F177: 0
A178: =_xlfn.AGGREGATE(3,5,$B$3:B178) -> 0 | F178: 0
A179: =_xlfn.AGGREGATE(3,5,$B$3:B179) -> 0 | F179: 0
A180: =_xlfn.AGGREGATE(3,5,$B$3:B180) -> 0 | F180: 0
A181: =_xlfn.AGGREGATE(3,5,$B$3:B181) -> 0 | F181: 0
A182: =_xlfn.AGGREGATE(3,5,$B$3:B182) -> 0 | F182: 0
A183: =_xlfn.AGGREGATE(3,5,$B$3:B183) -> 0 | F183: 0
A184: =_xlfn.AGGREGATE(3,5,$B$3:B184) -> 0 | F184: 0
A185: =_xlfn.AGGREGATE(3,5,$B$3:B185) -> 0 | F185: 0
A186: =_xlfn.AGGREGATE(3,5,$B$3:B186) -> 0 | F186: 0
A187: =_xlfn.AGGREGATE(3,5,$B$3:B187) -> 0 | F187: 0
A188: =_xlfn.AGGREGATE(3,5,$B$3:B188) -> 0 | F188: 0
A189: =_xlfn.AGGREGATE(3,5,$B$3:B189) -> 0 | F189: 0
A190: =_xlfn.AGGREGATE(3,5,$B$3:B190) -> 0 | F190: 0
A191: =_xlfn.AGGREGATE(3,5,$B$3:B191) -> 0 | F191: 0
A192: =_xlfn.AGGREGATE(3,5,$B$3:B192) -> 0 | F192: 0
A193: =_xlfn.AGGREGATE(3,5,$B$3:B193) -> 0 | F193: 0
A194: =_xlfn.AGGREGATE(3,5,$B$3:B194) -> 0 | F194: 0
A195: =_xlfn.AGGREGATE(3,5,$B$3:B195) -> 0 | B195: =IF(E195<>0,E195,"") ->  | F195: =E195 -> 0
A196: =_xlfn.AGGREGATE(3,5,$B$3:B196) -> 0 | F196: 0
A197: =_xlfn.AGGREGATE(3,5,$B$3:B197) -> 0 | F197: 0
A198: =_xlfn.AGGREGATE(3,5,$B$3:B198) -> 0 | F198: 0
A199: =_xlfn.AGGREGATE(3,5,$B$3:B199) -> 0 | F199: 0
A200: =_xlfn.AGGREGATE(3,5,$B$3:B200) -> 0 | F200: 0
... 429 more rows

Sheet القائمة3
A1: الصف : الشعبة : مربي الصف :
A2: الرقم | B2: الاسم | C2: ملاحظات
A3: =_xlfn.AGGREGATE(3,5,$B$3:B3) -> 0 | B3: =IF(E3<>0,E3,"") ->  | F3: =E3 -> 0
A4: =_xlfn.AGGREGATE(3,5,$B$3:B4) -> 0 | F4: 0
A5: =_xlfn.AGGREGATE(3,5,$B$3:B5) -> 0 | F5: 0
A6: =_xlfn.AGGREGATE(3,5,$B$3:B6) -> 0 | F6: 0
A7: =_xlfn.AGGREGATE(3,5,$B$3:B7) -> 0 | F7: 0
A8: =_xlfn.AGGREGATE(3,5,$B$3:B8) -> 0 | F8: 0
A9: =_xlfn.AGGREGATE(3,5,$B$3:B9) -> 0 | F9: 0
A10: =_xlfn.AGGREGATE(3,5,$B$3:B10) -> 0 | F10: 0
A11: =_xlfn.AGGREGATE(3,5,$B$3:B11) -> 0 | F11: 0
A12: =_xlfn.AGGREGATE(3,5,$B$3:B12) -> 0 | F12: 0
A13: =_xlfn.AGGREGATE(3,5,$B$3:B13) -> 0 | F13: 0
A14: =_xlfn.AGGREGATE(3,5,$B$3:B14) -> 0 | F14: 0
A15: =_xlfn.AGGREGATE(3,5,$B$3:B15) -> 0 | F15: 0
A16: =_xlfn.AGGREGATE(3,5,$B$3:B16) -> 0 | F16: 0
A17: =_xlfn.AGGREGATE(3,5,$B$3:B17) -> 0 | F17: 0
A18: =_xlfn.AGGREGATE(3,5,$B$3:B18) -> 0 | F18: 0
A19: =_xlfn.AGGREGATE(3,5,$B$3:B19) -> 0 | F19: 0
A20: =_xlfn.AGGREGATE(3,5,$B$3:B20) -> 0 | F20: 0
A21: =_xlfn.AGGREGATE(3,5,$B$3:B21) -> 0 | F21: 0
A22: =_xlfn.AGGREGATE(3,5,$B$3:B22) -> 0 | F22: 0
A23: =_xlfn.AGGREGATE(3,5,$B$3:B23) -> 0 | F23: 0
A24: =_xlfn.AGGREGATE(3,5,$B$3:B24) -> 0 | F24: 0
A25: =_xlfn.AGGREGATE(3,5,$B$3:B25) -> 0 | F25: 0
A26: =_xlfn.AGGREGATE(3,5,$B$3:B26) -> 0 | F26: 0
A27: =_xlfn.AGGREGATE(3,5,$B$3:B27) -> 0 | F27: 0
A28: =_xlfn.AGGREGATE(3,5,$B$3:B28) -> 0 | F28: 0
A29: =_xlfn.AGGREGATE(3,5,$B$3:B29) -> 0 | F29: 0
A30: =_xlfn.AGGREGATE(3,5,$B$3:B30) -> 0 | F30: 0
A31: =_xlfn.AGGREGATE(3,5,$B$3:B31) -> 0 | F31: 0
A32: =_xlfn.AGGREGATE(3,5,$B$3:B32) -> 0 | F32: 0
A33: =_xlfn.AGGREGATE(3,5,$B$3:B33) -> 0 | F33: 0
A34: =_xlfn.AGGREGATE(3,5,$B$3:B34) -> 0 | F34: 0
A35: =_xlfn.AGGREGATE(3,5,$B$3:B35) -> 0 | F35: 0
A36: =_xlfn.AGGREGATE(3,5,$B$3:B36) -> 0 | F36: 0
A37: =_xlfn.AGGREGATE(3,5,$B$3:B37) -> 0 | F37: 0
A38: =_xlfn.AGGREGATE(3,5,$B$3:B38) -> 0 | F38: 0
A39: =_xlfn.AGGREGATE(3,5,$B$3:B39) -> 0 | F39: 0
A40: =_xlfn.AGGREGATE(3,5,$B$3:B40) -> 0 | F40: 0
A41: =_xlfn.AGGREGATE(3,5,$B$3:B41) -> 0 | F41: 0
A42: =_xlfn.AGGREGATE(3,5,$B$3:B42) -> 0 | F42: 0
A43: =_xlfn.AGGREGATE(3,5,$B$3:B43) -> 0 | F43: 0
A44: =_xlfn.AGGREGATE(3,5,$B$3:B44) -> 0 | F44: 0
A45: =_xlfn.AGGREGATE(3,5,$B$3:B45) -> 0 | F45: 0
A46: =_xlfn.AGGREGATE(3,5,$B$3:B46) -> 0 | F46: 0
A47: =_xlfn.AGGREGATE(3,5,$B$3:B47) -> 0 | F47: 0
A48: =_xlfn.AGGREGATE(3,5,$B$3:B48) -> 0 | F48: 0
A49: =_xlfn.AGGREGATE(3,5,$B$3:B49) -> 0 | F49: 0
A50: =_xlfn.AGGREGATE(3,5,$B$3:B50) -> 0 | F50: 0
A51: =_xlfn.AGGREGATE(3,5,$B$3:B51) -> 0 | F51: 0
A52: =_xlfn.AGGREGATE(3,5,$B$3:B52) -> 0 | F52: 0
A53: =_xlfn.AGGREGATE(3,5,$B$3:B53) -> 0 | F53: 0
A54: =_xlfn.AGGREGATE(3,5,$B$3:B54) -> 0 | F54: 0
A55: =_xlfn.AGGREGATE(3,5,$B$3:B55) -> 0 | F55: 0
A56: =_xlfn.AGGREGATE(3,5,$B$3:B56) -> 0 | F56: 0
A57: =_xlfn.AGGREGATE(3,5,$B$3:B57) -> 0 | F57: 0
A58: =_xlfn.AGGREGATE(3,5,$B$3:B58) -> 0 | F58: 0
A59: =_xlfn.AGGREGATE(3,5,$B$3:B59) -> 0 | F59: 0
A60: =_xlfn.AGGREGATE(3,5,$B$3:B60) -> 0 | F60: 0
A61: =_xlfn.AGGREGATE(3,5,$B$3:B61) -> 0 | F61: 0
A62: =_xlfn.AGGREGATE(3,5,$B$3:B62) -> 0 | F62: 0
A63: =_xlfn.AGGREGATE(3,5,$B$3:B63) -> 0 | F63: 0
A64: =_xlfn.AGGREGATE(3,5,$B$3:B64) -> 0 | F64: 0
A65: =_xlfn.AGGREGATE(3,5,$B$3:B65) -> 0 | F65: 0
A66: =_xlfn.AGGREGATE(3,5,$B$3:B66) -> 0 | F66: 0
A67: =_xlfn.AGGREGATE(3,5,$B$3:B67) -> 0 | B67: =IF(E67<>0,E67,"") ->  | F67: =E67 -> 0
A68: =_xlfn.AGGREGATE(3,5,$B$3:B68) -> 0 | F68: 0
A69: =_xlfn.AGGREGATE(3,5,$B$3:B69) -> 0 | F69: 0
A70: =_xlfn.AGGREGATE(3,5,$B$3:B70) -> 0 | F70: 0
A71: =_xlfn.AGGREGATE(3,5,$B$3:B71) -> 0 | F71: 0
A72: =_xlfn.AGGREGATE(3,5,$B$3:B72) -> 0 | F72: 0
A73: =_xlfn.AGGREGATE(3,5,$B$3:B73) -> 0 | F73: 0
A74: =_xlfn.AGGREGATE(3,5,$B$3:B74) -> 0 | F74: 0
A75: =_xlfn.AGGREGATE(3,5,$B$3:B75) -> 0 | F75: 0
A76: =_xlfn.AGGREGATE(3,5,$B$3:B76) -> 0 | F76: 0
A77: =_xlfn.AGGREGATE(3,5,$B$3:B77) -> 0 | F77: 0
A78: =_xlfn.AGGREGATE(3,5,$B$3:B78) -> 0 | F78: 0
A79: =_xlfn.AGGREGATE(3,5,$B$3:B79) -> 0 | F79: 0
A80: =_xlfn.AGGREGATE(3,5,$B$3:B80) -> 0 | F80: 0
A81: =_xlfn.AGGREGATE(3,5,$B$3:B81) -> 0 | F81: 0
A82: =_xlfn.AGGREGATE(3,5,$B$3:B82) -> 0 | F82: 0
A83: =_xlfn.AGGREGATE(3,5,$B$3:B83) -> 0 | F83: 0
A84: =_xlfn.AGGREGATE(3,5,$B$3:B84) -> 0 | F84: 0
A85: =_xlfn.AGGREGATE(3,5,$B$3:B85) -> 0 | F85: 0
A86: =_xlfn.AGGREGATE(3,5,$B$3:B86) -> 0 | F86: 0
A87: =_xlfn.AGGREGATE(3,5,$B$3:B87) -> 0 | F87: 0
A88: =_xlfn.AGGREGATE(3,5,$B$3:B88) -> 0 | F88: 0
A89: =_xlfn.AGGREGATE(3,5,$B$3:B89) -> 0 | F89: 0
A90: =_xlfn.AGGREGATE(3,5,$B$3:B90) -> 0 | F90: 0
A91: =_xlfn.AGGREGATE(3,5,$B$3:B91) -> 0 | F91: 0
A92: =_xlfn.AGGREGATE(3,5,$B$3:B92) -> 0 | F92: 0
A93: =_xlfn.AGGREGATE(3,5,$B$3:B93) -> 0 | F93: 0
A94: =_xlfn.AGGREGATE(3,5,$B$3:B94) -> 0 | F94: 0
A95: =_xlfn.AGGREGATE(3,5,$B$3:B95) -> 0 | F95: 0
A96: =_xlfn.AGGREGATE(3,5,$B$3:B96) -> 0 | F96: 0
A97: =_xlfn.AGGREGATE(3,5,$B$3:B97) -> 0 | F97: 0
A98: =_xlfn.AGGREGATE(3,5,$B$3:B98) -> 0 | F98: 0
A99: =_xlfn.AGGREGATE(3,5,$B$3:B99) -> 0 | F99: 0
A100: =_xlfn.AGGREGATE(3,5,$B$3:B100) -> 0 | F100: 0
A101: =_xlfn.AGGREGATE(3,5,$B$3:B101) -> 0 | F101: 0
A102: =_xlfn.AGGREGATE(3,5,$B$3:B102) -> 0 | F102: 0
A103: =_xlfn.AGGREGATE(3,5,$B$3:B103) -> 0 | F103: 0
A104: =_xlfn.AGGREGATE(3,5,$B$3:B104) -> 0 | F104: 0
A105: =_xlfn.AGGREGATE(3,5,$B$3:B105) -> 0 | F105: 0
A106: =_xlfn.AGGREGATE(3,5,$B$3:B106) -> 0 | F106: 0
A107: =_xlfn.AGGREGATE(3,5,$B$3:B107) -> 0 | F107: 0
A108: =_xlfn.AGGREGATE(3,5,$B$3:B108) -> 0 | F108: 0
A109: =_xlfn.AGGREGATE(3,5,$B$3:B109) -> 0 | F109: 0
A110: =_xlfn.AGGREGATE(3,5,$B$3:B110) -> 0 | F110: 0
A111: =_xlfn.AGGREGATE(3,5,$B$3:B111) -> 0 | F111: 0
A112: =_xlfn.AGGREGATE(3,5,$B$3:B112) -> 0 | F112: 0
A113: =_xlfn.AGGREGATE(3,5,$B$3:B113) -> 0 | F113: 0
A114: =_xlfn.AGGREGATE(3,5,$B$3:B114) -> 0 | F114: 0
A115: =_xlfn.AGGREGATE(3,5,$B$3:B115) -> 0 | F115: 0
A116: =_xlfn.AGGREGATE(3,5,$B$3:B116) -> 0 | F116: 0
A117: =_xlfn.AGGREGATE(3,5,$B$3:B117) -> 0 | F117: 0
A118: =_xlfn.AGGREGATE(3,5,$B$3:B118) -> 0 | F118: 0
A119: =_xlfn.AGGREGATE(3,5,$B$3:B119) -> 0 | F119: 0
A120: =_xlfn.AGGREGATE(3,5,$B$3:B120) -> 0 | F120: 0
A121: =_xlfn.AGGREGATE(3,5,$B$3:B121) -> 0 | F121: 0
A122: =_xlfn.AGGREGATE(3,5,$B$3:B122) -> 0 | F122: 0
A123: =_xlfn.AGGREGATE(3,5,$B$3:B123) -> 0 | F123: 0
A124: =_xlfn.AGGREGATE(3,5,$B$3:B124) -> 0 | F124: 0
A125: =_xlfn.AGGREGATE(3,5,$B$3:B125) -> 0 | C125: ` | F125: 0
A126: =_xlfn.AGGREGATE(3,5,$B$3:B126) -> 0 | F126: 0
A127: =_xlfn.AGGREGATE(3,5,$B$3:B127) -> 0 | F127: 0
A128: =_xlfn.AGGREGATE(3,5,$B$3:B128) -> 0 | F128: 0
A129: =_xlfn.AGGREGATE(3,5,$B$3:B129) -> 0 | F129: 0
A130: =_xlfn.AGGREGATE(3,5,$B$3:B130) -> 0 | F130: 0
A131: =_xlfn.AGGREGATE(3,5,$B$3:B131) -> 0 | B131: =IF(E131<>0,E131,"") ->  | F131: =E131 -> 0
A132: =_xlfn.AGGREGATE(3,5,$B$3:B132) -> 0 | F132: 0
A133: =_xlfn.AGGREGATE(3,5,$B$3:B133) -> 0 | F133: 0
A134: =_xlfn.AGGREGATE(3,5,$B$3:B134) -> 0 | F134: 0
A135: =_xlfn.AGGREGATE(3,5,$B$3:B135) -> 0 | F135: 0
A136: =_xlfn.AGGREGATE(3,5,$B$3:B136) -> 0 | F136: 0
A137: =_xlfn.AGGREGATE(3,5,$B$3:B137) -> 0 | F137: 0
A138: =_xlfn.AGGREGATE(3,5,$B$3:B138) -> 0 | F138: 0
A139: =_xlfn.AGGREGATE(3,5,$B$3:B139) -> 0 | F139: 0
A140: =_xlfn.AGGREGATE(3,5,$B$3:B140) -> 0 | F140: 0
A141: =_xlfn.AGGREGATE(3,5,$B$3:B141) -> 0 | F141: 0
A142: =_xlfn.AGGREGATE(3,5,$B$3:B142) -> 0 | F142: 0
A143: =_xlfn.AGGREGATE(3,5,$B$3:B143) -> 0 | F143: 0
A144: =_xlfn.AGGREGATE(3,5,$B$3:B144) -> 0 | F144: 0
A145: =_xlfn.AGGREGATE(3,5,$B$3:B145) -> 0 | F145: 0
A146: =_xlfn.AGGREGATE(3,5,$B$3:B146) -> 0 | F146: 0
A147: =_xlfn.AGGREGATE(3,5,$B$3:B147) -> 0 | F147: 0
A148: =_xlfn.AGGREGATE(3,5,$B$3:B148) -> 0 | F148: 0
A149: =_xlfn.AGGREGATE(3,5,$B$3:B149) -> 0 | F149: 0
A150: =_xlfn.AGGREGATE(3,5,$B$3:B150) -> 0 | F150: 0
A151: =_xlfn.AGGREGATE(3,5,$B$3:B151) -> 0 | F151: 0
A152: =_xlfn.AGGREGATE(3,5,$B$3:B152) -> 0 | F152: 0
A153: =_xlfn.AGGREGATE(3,5,$B$3:B153) -> 0 | F153: 0
A154: =_xlfn.AGGREGATE(3,5,$B$3:B154) -> 0 | F154: 0
A155: =_xlfn.AGGREGATE(3,5,$B$3:B155) -> 0 | F155: 0
A156: =_xlfn.AGGREGATE(3,5,$B$3:B156) -> 0 | F156: 0
A157: =_xlfn.AGGREGATE(3,5,$B$3:B157) -> 0 | F157: 0
A158: =_xlfn.AGGREGATE(3,5,$B$3:B158) -> 0 | F158: 0
A159: =_xlfn.AGGREGATE(3,5,$B$3:B159) -> 0 | F159: 0
A160: =_xlfn.AGGREGATE(3,5,$B$3:B160) -> 0 | F160: 0
A161: =_xlfn.AGGREGATE(3,5,$B$3:B161) -> 0 | F161: 0
A162: =_xlfn.AGGREGATE(3,5,$B$3:B162) -> 0 | F162: 0
A163: =_xlfn.AGGREGATE(3,5,$B$3:B163) -> 0 | F163: 0
A164: =_xlfn.AGGREGATE(3,5,$B$3:B164) -> 0 | F164: 0
A165: =_xlfn.AGGREGATE(3,5,$B$3:B165) -> 0 | F165: 0
A166: =_xlfn.AGGREGATE(3,5,$B$3:B166) -> 0 | F166: 0
A167: =_xlfn.AGGREGATE(3,5,$B$3:B167) -> 0 | F167: 0
A168: =_xlfn.AGGREGATE(3,5,$B$3:B168) -> 0 | F168: 0
A169: =_xlfn.AGGREGATE(3,5,$B$3:B169) -> 0 | F169: 0
A170: =_xlfn.AGGREGATE(3,5,$B$3:B170) -> 0 | F170: 0
A171: =_xlfn.AGGREGATE(3,5,$B$3:B171) -> 0 | F171: 0
A172: =_xlfn.AGGREGATE(3,5,$B$3:B172) -> 0 | F172: 0
A173: =_xlfn.AGGREGATE(3,5,$B$3:B173) -> 0 | F173: 0
A174: =_xlfn.AGGREGATE(3,5,$B$3:B174) -> 0 | F174: 0
A175: =_xlfn.AGGREGATE(3,5,$B$3:B175) -> 0 | F175: 0
A176: =_xlfn.AGGREGATE(3,5,$B$3:B176) -> 0 | F176: 0
A177: =_xlfn.AGGREGATE(3,5,$B$3:B177) -> 0 | F177: 0
A178: =_xlfn.AGGREGATE(3,5,$B$3:B178) -> 0 | F178: 0
A179: =_xlfn.AGGREGATE(3,5,$B$3:B179) -> 0 | F179: 0
A180: =_xlfn.AGGREGATE(3,5,$B$3:B180) -> 0 | F180: 0
A181: =_xlfn.AGGREGATE(3,5,$B$3:B181) -> 0 | F181: 0
A182: =_xlfn.AGGREGATE(3,5,$B$3:B182) -> 0 | F182: 0
A183: =_xlfn.AGGREGATE(3,5,$B$3:B183) -> 0 | F183: 0
A184: =_xlfn.AGGREGATE(3,5,$B$3:B184) -> 0 | F184: 0
A185: =_xlfn.AGGREGATE(3,5,$B$3:B185) -> 0 | F185: 0
A186: =_xlfn.AGGREGATE(3,5,$B$3:B186) -> 0 | F186: 0
A187: =_xlfn.AGGREGATE(3,5,$B$3:B187) -> 0 | F187: 0
A188: =_xlfn.AGGREGATE(3,5,$B$3:B188) -> 0 | F188: 0
A189: =_xlfn.AGGREGATE(3,5,$B$3:B189) -> 0 | F189: 0
A190: =_xlfn.AGGREGATE(3,5,$B$3:B190) -> 0 | F190: 0
A191: =_xlfn.AGGREGATE(3,5,$B$3:B191) -> 0 | F191: 0
A192: =_xlfn.AGGREGATE(3,5,$B$3:B192) -> 0 | F192: 0
A193: =_xlfn.AGGREGATE(3,5,$B$3:B193) -> 0 | F193: 0
A194: =_xlfn.AGGREGATE(3,5,$B$3:B194) -> 0 | F194: 0
A195: =_xlfn.AGGREGATE(3,5,$B$3:B195) -> 0 | B195: =IF(E195<>0,E195,"") ->  | F195: =E195 -> 0
A196: =_xlfn.AGGREGATE(3,5,$B$3:B196) -> 0 | F196: 0
A197: =_xlfn.AGGREGATE(3,5,$B$3:B197) -> 0 | F197: 0
A198: =_xlfn.AGGREGATE(3,5,$B$3:B198) -> 0 | F198: 0
A199: =_xlfn.AGGREGATE(3,5,$B$3:B199) -> 0 | F199: 0
A200: =_xlfn.AGGREGATE(3,5,$B$3:B200) -> 0 | F200: 0
... 429 more rows

Sheet القائمة4
A1: الصف : الشعبة : مربي الصف :
A2: الرقم | B2: الاسم | C2: ملاحظات
A3: =_xlfn.AGGREGATE(3,5,$B$3:B3) -> 0 | B3: =IF(E3<>0,E3,"") ->  | F3: =E3 -> 0
A4: =_xlfn.AGGREGATE(3,5,$B$3:B4) -> 0 | F4: 0
A5: =_xlfn.AGGREGATE(3,5,$B$3:B5) -> 0 | F5: 0
A6: =_xlfn.AGGREGATE(3,5,$B$3:B6) -> 0 | F6: 0
A7: =_xlfn.AGGREGATE(3,5,$B$3:B7) -> 0 | F7: 0
A8: =_xlfn.AGGREGATE(3,5,$B$3:B8) -> 0 | F8: 0
A9: =_xlfn.AGGREGATE(3,5,$B$3:B9) -> 0 | F9: 0
A10: =_xlfn.AGGREGATE(3,5,$B$3:B10) -> 0 | F10: 0
A11: =_xlfn.AGGREGATE(3,5,$B$3:B11) -> 0 | F11: 0
A12: =_xlfn.AGGREGATE(3,5,$B$3:B12) -> 0 | F12: 0
A13: =_xlfn.AGGREGATE(3,5,$B$3:B13) -> 0 | F13: 0
A14: =_xlfn.AGGREGATE(3,5,$B$3:B14) -> 0 | F14: 0
A15: =_xlfn.AGGREGATE(3,5,$B$3:B15) -> 0 | F15: 0
A16: =_xlfn.AGGREGATE(3,5,$B$3:B16) -> 0 | F16: 0
A17: =_xlfn.AGGREGATE(3,5,$B$3:B17) -> 0 | F17: 0
A18: =_xlfn.AGGREGATE(3,5,$B$3:B18) -> 0 | F18: 0
A19: =_xlfn.AGGREGATE(3,5,$B$3:B19) -> 0 | F19: 0
A20: =_xlfn.AGGREGATE(3,5,$B$3:B20) -> 0 | F20: 0
A21: =_xlfn.AGGREGATE(3,5,$B$3:B21) -> 0 | F21: 0
A22: =_xlfn.AGGREGATE(3,5,$B$3:B22) -> 0 | F22: 0
A23: =_xlfn.AGGREGATE(3,5,$B$3:B23) -> 0 | F23: 0
A24: =_xlfn.AGGREGATE(3,5,$B$3:B24) -> 0 | F24: 0
A25: =_xlfn.AGGREGATE(3,5,$B$3:B25) -> 0 | F25: 0
A26: =_xlfn.AGGREGATE(3,5,$B$3:B26) -> 0 | F26: 0
A27: =_xlfn.AGGREGATE(3,5,$B$3:B27) -> 0 | F27: 0
A28: =_xlfn.AGGREGATE(3,5,$B$3:B28) -> 0 | F28: 0
A29: =_xlfn.AGGREGATE(3,5,$B$3:B29) -> 0 | F29: 0
A30: =_xlfn.AGGREGATE(3,5,$B$3:B30) -> 0 | F30: 0
A31: =_xlfn.AGGREGATE(3,5,$B$3:B31) -> 0 | F31: 0
A32: =_xlfn.AGGREGATE(3,5,$B$3:B32) -> 0 | F32: 0
A33: =_xlfn.AGGREGATE(3,5,$B$3:B33) -> 0 | F33: 0
A34: =_xlfn.AGGREGATE(3,5,$B$3:B34) -> 0 | F34: 0
A35: =_xlfn.AGGREGATE(3,5,$B$3:B35) -> 0 | F35: 0
A36: =_xlfn.AGGREGATE(3,5,$B$3:B36) -> 0 | F36: 0
A37: =_xlfn.AGGREGATE(3,5,$B$3:B37) -> 0 | F37: 0
A38: =_xlfn.AGGREGATE(3,5,$B$3:B38) -> 0 | F38: 0
A39: =_xlfn.AGGREGATE(3,5,$B$3:B39) -> 0 | F39: 0
A40: =_xlfn.AGGREGATE(3,5,$B$3:B40) -> 0 | F40: 0
A41: =_xlfn.AGGREGATE(3,5,$B$3:B41) -> 0 | F41: 0
A42: =_xlfn.AGGREGATE(3,5,$B$3:B42) -> 0 | F42: 0
A43: =_xlfn.AGGREGATE(3,5,$B$3:B43) -> 0 | F43: 0
A44: =_xlfn.AGGREGATE(3,5,$B$3:B44) -> 0 | F44: 0
A45: =_xlfn.AGGREGATE(3,5,$B$3:B45) -> 0 | F45: 0
A46: =_xlfn.AGGREGATE(3,5,$B$3:B46) -> 0 | F46: 0
A47: =_xlfn.AGGREGATE(3,5,$B$3:B47) -> 0 | F47: 0
A48: =_xlfn.AGGREGATE(3,5,$B$3:B48) -> 0 | F48: 0
A49: =_xlfn.AGGREGATE(3,5,$B$3:B49) -> 0 | F49: 0
A50: =_xlfn.AGGREGATE(3,5,$B$3:B50) -> 0 | F50: 0
A51: =_xlfn.AGGREGATE(3,5,$B$3:B51) -> 0 | F51: 0
A52: =_xlfn.AGGREGATE(3,5,$B$3:B52) -> 0 | F52: 0
A53: =_xlfn.AGGREGATE(3,5,$B$3:B53) -> 0 | F53: 0
A54: =_xlfn.AGGREGATE(3,5,$B$3:B54) -> 0 | F54: 0
A55: =_xlfn.AGGREGATE(3,5,$B$3:B55) -> 0 | F55: 0
A56: =_xlfn.AGGREGATE(3,5,$B$3:B56) -> 0 | F56: 0
A57: =_xlfn.AGGREGATE(3,5,$B$3:B57) -> 0 | F57: 0
A58: =_xlfn.AGGREGATE(3,5,$B$3:B58) -> 0 | F58: 0
A59: =_xlfn.AGGREGATE(3,5,$B$3:B59) -> 0 | F59: 0
A60: =_xlfn.AGGREGATE(3,5,$B$3:B60) -> 0 | F60: 0
A61: =_xlfn.AGGREGATE(3,5,$B$3:B61) -> 0 | F61: 0
A62: =_xlfn.AGGREGATE(3,5,$B$3:B62) -> 0 | F62: 0
A63: =_xlfn.AGGREGATE(3,5,$B$3:B63) -> 0 | F63: 0
A64: =_xlfn.AGGREGATE(3,5,$B$3:B64) -> 0 | F64: 0
A65: =_xlfn.AGGREGATE(3,5,$B$3:B65) -> 0 | F65: 0
A66: =_xlfn.AGGREGATE(3,5,$B$3:B66) -> 0 | F66: 0
A67: =_xlfn.AGGREGATE(3,5,$B$3:B67) -> 0 | B67: =IF(E67<>0,E67,"") ->  | F67: =E67 -> 0
A68: =_xlfn.AGGREGATE(3,5,$B$3:B68) -> 0 | F68: 0
A69: =_xlfn.AGGREGATE(3,5,$B$3:B69) -> 0 | F69: 0
A70: =_xlfn.AGGREGATE(3,5,$B$3:B70) -> 0 | F70: 0
A71: =_xlfn.AGGREGATE(3,5,$B$3:B71) -> 0 | F71: 0
A72: =_xlfn.AGGREGATE(3,5,$B$3:B72) -> 0 | F72: 0
A73: =_xlfn.AGGREGATE(3,5,$B$3:B73) -> 0 | F73: 0
A74: =_xlfn.AGGREGATE(3,5,$B$3:B74) -> 0 | F74: 0
A75: =_xlfn.AGGREGATE(3,5,$B$3:B75) -> 0 | F75: 0
A76: =_xlfn.AGGREGATE(3,5,$B$3:B76) -> 0 | F76: 0
A77: =_xlfn.AGGREGATE(3,5,$B$3:B77) -> 0 | F77: 0
A78: =_xlfn.AGGREGATE(3,5,$B$3:B78) -> 0 | F78: 0
A79: =_xlfn.AGGREGATE(3,5,$B$3:B79) -> 0 | F79: 0
A80: =_xlfn.AGGREGATE(3,5,$B$3:B80) -> 0 | F80: 0
A81: =_xlfn.AGGREGATE(3,5,$B$3:B81) -> 0 | F81: 0
A82: =_xlfn.AGGREGATE(3,5,$B$3:B82) -> 0 | F82: 0
A83: =_xlfn.AGGREGATE(3,5,$B$3:B83) -> 0 | F83: 0
A84: =_xlfn.AGGREGATE(3,5,$B$3:B84) -> 0 | F84: 0
A85: =_xlfn.AGGREGATE(3,5,$B$3:B85) -> 0 | F85: 0
A86: =_xlfn.AGGREGATE(3,5,$B$3:B86) -> 0 | F86: 0
A87: =_xlfn.AGGREGATE(3,5,$B$3:B87) -> 0 | F87: 0
A88: =_xlfn.AGGREGATE(3,5,$B$3:B88) -> 0 | F88: 0
A89: =_xlfn.AGGREGATE(3,5,$B$3:B89) -> 0 | F89: 0
A90: =_xlfn.AGGREGATE(3,5,$B$3:B90) -> 0 | F90: 0
A91: =_xlfn.AGGREGATE(3,5,$B$3:B91) -> 0 | F91: 0
A92: =_xlfn.AGGREGATE(3,5,$B$3:B92) -> 0 | F92: 0
A93: =_xlfn.AGGREGATE(3,5,$B$3:B93) -> 0 | F93: 0
A94: =_xlfn.AGGREGATE(3,5,$B$3:B94) -> 0 | F94: 0
A95: =_xlfn.AGGREGATE(3,5,$B$3:B95) -> 0 | F95: 0
A96: =_xlfn.AGGREGATE(3,5,$B$3:B96) -> 0 | F96: 0
A97: =_xlfn.AGGREGATE(3,5,$B$3:B97) -> 0 | F97: 0
A98: =_xlfn.AGGREGATE(3,5,$B$3:B98) -> 0 | F98: 0
A99: =_xlfn.AGGREGATE(3,5,$B$3:B99) -> 0 | F99: 0
A100: =_xlfn.AGGREGATE(3,5,$B$3:B100) -> 0 | F100: 0
A101: =_xlfn.AGGREGATE(3,5,$B$3:B101) -> 0 | F101: 0
A102: =_xlfn.AGGREGATE(3,5,$B$3:B102) -> 0 | F102: 0
A103: =_xlfn.AGGREGATE(3,5,$B$3:B103) -> 0 | F103: 0
A104: =_xlfn.AGGREGATE(3,5,$B$3:B104) -> 0 | F104: 0
A105: =_xlfn.AGGREGATE(3,5,$B$3:B105) -> 0 | F105: 0
A106: =_xlfn.AGGREGATE(3,5,$B$3:B106) -> 0 | F106: 0
A107: =_xlfn.AGGREGATE(3,5,$B$3:B107) -> 0 | F107: 0
A108: =_xlfn.AGGREGATE(3,5,$B$3:B108) -> 0 | F108: 0
A109: =_xlfn.AGGREGATE(3,5,$B$3:B109) -> 0 | F109: 0
A110: =_xlfn.AGGREGATE(3,5,$B$3:B110) -> 0 | F110: 0
A111: =_xlfn.AGGREGATE(3,5,$B$3:B111) -> 0 | F111: 0
A112: =_xlfn.AGGREGATE(3,5,$B$3:B112) -> 0 | F112: 0
A113: =_xlfn.AGGREGATE(3,5,$B$3:B113) -> 0 | F113: 0
A114: =_xlfn.AGGREGATE(3,5,$B$3:B114) -> 0 | F114: 0
A115: =_xlfn.AGGREGATE(3,5,$B$3:B115) -> 0 | F115: 0
A116: =_xlfn.AGGREGATE(3,5,$B$3:B116) -> 0 | F116: 0
A117: =_xlfn.AGGREGATE(3,5,$B$3:B117) -> 0 | F117: 0
A118: =_xlfn.AGGREGATE(3,5,$B$3:B118) -> 0 | F118: 0
A119: =_xlfn.AGGREGATE(3,5,$B$3:B119) -> 0 | F119: 0
A120: =_xlfn.AGGREGATE(3,5,$B$3:B120) -> 0 | F120: 0
A121: =_xlfn.AGGREGATE(3,5,$B$3:B121) -> 0 | F121: 0
A122: =_xlfn.AGGREGATE(3,5,$B$3:B122) -> 0 | F122: 0
A123: =_xlfn.AGGREGATE(3,5,$B$3:B123) -> 0 | F123: 0
A124: =_xlfn.AGGREGATE(3,5,$B$3:B124) -> 0 | F124: 0
A125: =_xlfn.AGGREGATE(3,5,$B$3:B125) -> 0 | C125: ` | F125: 0
A126: =_xlfn.AGGREGATE(3,5,$B$3:B126) -> 0 | F126: 0
A127: =_xlfn.AGGREGATE(3,5,$B$3:B127) -> 0 | F127: 0
A128: =_xlfn.AGGREGATE(3,5,$B$3:B128) -> 0 | F128: 0
A129: =_xlfn.AGGREGATE(3,5,$B$3:B129) -> 0 | F129: 0
A130: =_xlfn.AGGREGATE(3,5,$B$3:B130) -> 0 | F130: 0
A131: =_xlfn.AGGREGATE(3,5,$B$3:B131) -> 0 | B131: =IF(E131<>0,E131,"") ->  | F131: =E131 -> 0
A132: =_xlfn.AGGREGATE(3,5,$B$3:B132) -> 0 | F132: 0
A133: =_xlfn.AGGREGATE(3,5,$B$3:B133) -> 0 | F133: 0
A134: =_xlfn.AGGREGATE(3,5,$B$3:B134) -> 0 | F134: 0
A135: =_xlfn.AGGREGATE(3,5,$B$3:B135) -> 0 | F135: 0
A136: =_xlfn.AGGREGATE(3,5,$B$3:B136) -> 0 | F136: 0
A137: =_xlfn.AGGREGATE(3,5,$B$3:B137) -> 0 | F137: 0
A138: =_xlfn.AGGREGATE(3,5,$B$3:B138) -> 0 | F138: 0
A139: =_xlfn.AGGREGATE(3,5,$B$3:B139) -> 0 | F139: 0
A140: =_xlfn.AGGREGATE(3,5,$B$3:B140) -> 0 | F140: 0
A141: =_xlfn.AGGREGATE(3,5,$B$3:B141) -> 0 | F141: 0
A142: =_xlfn.AGGREGATE(3,5,$B$3:B142) -> 0 | F142: 0
A143: =_xlfn.AGGREGATE(3,5,$B$3:B143) -> 0 | F143: 0
A144: =_xlfn.AGGREGATE(3,5,$B$3:B144) -> 0 | F144: 0
A145: =_xlfn.AGGREGATE(3,5,$B$3:B145) -> 0 | F145: 0
A146: =_xlfn.AGGREGATE(3,5,$B$3:B146) -> 0 | F146: 0
A147: =_xlfn.AGGREGATE(3,5,$B$3:B147) -> 0 | F147: 0
A148: =_xlfn.AGGREGATE(3,5,$B$3:B148) -> 0 | F148: 0
A149: =_xlfn.AGGREGATE(3,5,$B$3:B149) -> 0 | F149: 0
A150: =_xlfn.AGGREGATE(3,5,$B$3:B150) -> 0 | F150: 0
A151: =_xlfn.AGGREGATE(3,5,$B$3:B151) -> 0 | F151: 0
A152: =_xlfn.AGGREGATE(3,5,$B$3:B152) -> 0 | F152: 0
A153: =_xlfn.AGGREGATE(3,5,$B$3:B153) -> 0 | F153: 0
A154: =_xlfn.AGGREGATE(3,5,$B$3:B154) -> 0 | F154: 0
A155: =_xlfn.AGGREGATE(3,5,$B$3:B155) -> 0 | F155: 0
A156: =_xlfn.AGGREGATE(3,5,$B$3:B156) -> 0 | F156: 0
A157: =_xlfn.AGGREGATE(3,5,$B$3:B157) -> 0 | F157: 0
A158: =_xlfn.AGGREGATE(3,5,$B$3:B158) -> 0 | F158: 0
A159: =_xlfn.AGGREGATE(3,5,$B$3:B159) -> 0 | F159: 0
A160: =_xlfn.AGGREGATE(3,5,$B$3:B160) -> 0 | F160: 0
A161: =_xlfn.AGGREGATE(3,5,$B$3:B161) -> 0 | F161: 0
A162: =_xlfn.AGGREGATE(3,5,$B$3:B162) -> 0 | F162: 0
A163: =_xlfn.AGGREGATE(3,5,$B$3:B163) -> 0 | F163: 0
A164: =_xlfn.AGGREGATE(3,5,$B$3:B164) -> 0 | F164: 0
A165: =_xlfn.AGGREGATE(3,5,$B$3:B165) -> 0 | F165: 0
A166: =_xlfn.AGGREGATE(3,5,$B$3:B166) -> 0 | F166: 0
A167: =_xlfn.AGGREGATE(3,5,$B$3:B167) -> 0 | F167: 0
A168: =_xlfn.AGGREGATE(3,5,$B$3:B168) -> 0 | F168: 0
A169: =_xlfn.AGGREGATE(3,5,$B$3:B169) -> 0 | F169: 0
A170: =_xlfn.AGGREGATE(3,5,$B$3:B170) -> 0 | F170: 0
A171: =_xlfn.AGGREGATE(3,5,$B$3:B171) -> 0 | F171: 0
A172: =_xlfn.AGGREGATE(3,5,$B$3:B172) -> 0 | F172: 0
A173: =_xlfn.AGGREGATE(3,5,$B$3:B173) -> 0 | F173: 0
A174: =_xlfn.AGGREGATE(3,5,$B$3:B174) -> 0 | F174: 0
A175: =_xlfn.AGGREGATE(3,5,$B$3:B175) -> 0 | F175: 0
A176: =_xlfn.AGGREGATE(3,5,$B$3:B176) -> 0 | F176: 0
A177: =_xlfn.AGGREGATE(3,5,$B$3:B177) -> 0 | F177: 0
A178: =_xlfn.AGGREGATE(3,5,$B$3:B178) -> 0 | F178: 0
A179: =_xlfn.AGGREGATE(3,5,$B$3:B179) -> 0 | F179: 0
A180: =_xlfn.AGGREGATE(3,5,$B$3:B180) -> 0 | F180: 0
A181: =_xlfn.AGGREGATE(3,5,$B$3:B181) -> 0 | F181: 0
A182: =_xlfn.AGGREGATE(3,5,$B$3:B182) -> 0 | F182: 0
A183: =_xlfn.AGGREGATE(3,5,$B$3:B183) -> 0 | F183: 0
A184: =_xlfn.AGGREGATE(3,5,$B$3:B184) -> 0 | F184: 0
A185: =_xlfn.AGGREGATE(3,5,$B$3:B185) -> 0 | F185: 0
A186: =_xlfn.AGGREGATE(3,5,$B$3:B186) -> 0 | F186: 0
A187: =_xlfn.AGGREGATE(3,5,$B$3:B187) -> 0 | F187: 0
A188: =_xlfn.AGGREGATE(3,5,$B$3:B188) -> 0 | F188: 0
A189: =_xlfn.AGGREGATE(3,5,$B$3:B189) -> 0 | F189: 0
A190: =_xlfn.AGGREGATE(3,5,$B$3:B190) -> 0 | F190: 0
A191: =_xlfn.AGGREGATE(3,5,$B$3:B191) -> 0 | F191: 0
A192: =_xlfn.AGGREGATE(3,5,$B$3:B192) -> 0 | F192: 0
A193: =_xlfn.AGGREGATE(3,5,$B$3:B193) -> 0 | F193: 0
A194: =_xlfn.AGGREGATE(3,5,$B$3:B194) -> 0 | F194: 0
A195: =_xlfn.AGGREGATE(3,5,$B$3:B195) -> 0 | B195: =IF(E195<>0,E195,"") ->  | F195: =E195 -> 0
A196: =_xlfn.AGGREGATE(3,5,$B$3:B196) -> 0 | F196: 0
A197: =_xlfn.AGGREGATE(3,5,$B$3:B197) -> 0 | F197: 0
A198: =_xlfn.AGGREGATE(3,5,$B$3:B198) -> 0 | F198: 0
A199: =_xlfn.AGGREGATE(3,5,$B$3:B199) -> 0 | F199: 0
A200: =_xlfn.AGGREGATE(3,5,$B$3:B200) -> 0 | F200: 0
... 429 more rows

Sheet القائمة5
A1: الصف : الشعبة : مربي الصف :
A2: الرقم | B2: الاسم | C2: ملاحظات
A3: =_xlfn.AGGREGATE(3,5,$B$3:B3) -> 0 | B3: =IF(E3<>0,E3,"") ->  | F3: =E3 -> 0
A4: =_xlfn.AGGREGATE(3,5,$B$3:B4) -> 0 | F4: 0
A5: =_xlfn.AGGREGATE(3,5,$B$3:B5) -> 0 | F5: 0
A6: =_xlfn.AGGREGATE(3,5,$B$3:B6) -> 0 | F6: 0
A7: =_xlfn.AGGREGATE(3,5,$B$3:B7) -> 0 | F7: 0
A8: =_xlfn.AGGREGATE(3,5,$B$3:B8) -> 0 | F8: 0
A9: =_xlfn.AGGREGATE(3,5,$B$3:B9) -> 0 | F9: 0
A10: =_xlfn.AGGREGATE(3,5,$B$3:B10) -> 0 | F10: 0
A11: =_xlfn.AGGREGATE(3,5,$B$3:B11) -> 0 | F11: 0
A12: =_xlfn.AGGREGATE(3,5,$B$3:B12) -> 0 | F12: 0
A13: =_xlfn.AGGREGATE(3,5,$B$3:B13) -> 0 | F13: 0
A14: =_xlfn.AGGREGATE(3,5,$B$3:B14) -> 0 | F14: 0
A15: =_xlfn.AGGREGATE(3,5,$B$3:B15) -> 0 | F15: 0
A16: =_xlfn.AGGREGATE(3,5,$B$3:B16) -> 0 | F16: 0
A17: =_xlfn.AGGREGATE(3,5,$B$3:B17) -> 0 | F17: 0
A18: =_xlfn.AGGREGATE(3,5,$B$3:B18) -> 0 | F18: 0
A19: =_xlfn.AGGREGATE(3,5,$B$3:B19) -> 0 | F19: 0
A20: =_xlfn.AGGREGATE(3,5,$B$3:B20) -> 0 | F20: 0
A21: =_xlfn.AGGREGATE(3,5,$B$3:B21) -> 0 | F21: 0
A22: =_xlfn.AGGREGATE(3,5,$B$3:B22) -> 0 | F22: 0
A23: =_xlfn.AGGREGATE(3,5,$B$3:B23) -> 0 | F23: 0
A24: =_xlfn.AGGREGATE(3,5,$B$3:B24) -> 0 | F24: 0
A25: =_xlfn.AGGREGATE(3,5,$B$3:B25) -> 0 | F25: 0
A26: =_xlfn.AGGREGATE(3,5,$B$3:B26) -> 0 | F26: 0
A27: =_xlfn.AGGREGATE(3,5,$B$3:B27) -> 0 | F27: 0
A28: =_xlfn.AGGREGATE(3,5,$B$3:B28) -> 0 | F28: 0
A29: =_xlfn.AGGREGATE(3,5,$B$3:B29) -> 0 | F29: 0
A30: =_xlfn.AGGREGATE(3,5,$B$3:B30) -> 0 | F30: 0
A31: =_xlfn.AGGREGATE(3,5,$B$3:B31) -> 0 | F31: 0
A32: =_xlfn.AGGREGATE(3,5,$B$3:B32) -> 0 | F32: 0
A33: =_xlfn.AGGREGATE(3,5,$B$3:B33) -> 0 | F33: 0
A34: =_xlfn.AGGREGATE(3,5,$B$3:B34) -> 0 | F34: 0
A35: =_xlfn.AGGREGATE(3,5,$B$3:B35) -> 0 | F35: 0
A36: =_xlfn.AGGREGATE(3,5,$B$3:B36) -> 0 | F36: 0
A37: =_xlfn.AGGREGATE(3,5,$B$3:B37) -> 0 | F37: 0
A38: =_xlfn.AGGREGATE(3,5,$B$3:B38) -> 0 | F38: 0
A39: =_xlfn.AGGREGATE(3,5,$B$3:B39) -> 0 | F39: 0
A40: =_xlfn.AGGREGATE(3,5,$B$3:B40) -> 0 | F40: 0
A41: =_xlfn.AGGREGATE(3,5,$B$3:B41) -> 0 | F41: 0
A42: =_xlfn.AGGREGATE(3,5,$B$3:B42) -> 0 | F42: 0
A43: =_xlfn.AGGREGATE(3,5,$B$3:B43) -> 0 | F43: 0
A44: =_xlfn.AGGREGATE(3,5,$B$3:B44) -> 0 | F44: 0
A45: =_xlfn.AGGREGATE(3,5,$B$3:B45) -> 0 | F45: 0
A46: =_xlfn.AGGREGATE(3,5,$B$3:B46) -> 0 | F46: 0
A47: =_xlfn.AGGREGATE(3,5,$B$3:B47) -> 0 | F47: 0
A48: =_xlfn.AGGREGATE(3,5,$B$3:B48) -> 0 | F48: 0
A49: =_xlfn.AGGREGATE(3,5,$B$3:B49) -> 0 | F49: 0
A50: =_xlfn.AGGREGATE(3,5,$B$3:B50) -> 0 | F50: 0
A51: =_xlfn.AGGREGATE(3,5,$B$3:B51) -> 0 | F51: 0
A52: =_xlfn.AGGREGATE(3,5,$B$3:B52) -> 0 | F52: 0
A53: =_xlfn.AGGREGATE(3,5,$B$3:B53) -> 0 | F53: 0
A54: =_xlfn.AGGREGATE(3,5,$B$3:B54) -> 0 | F54: 0
A55: =_xlfn.AGGREGATE(3,5,$B$3:B55) -> 0 | F55: 0
A56: =_xlfn.AGGREGATE(3,5,$B$3:B56) -> 0 | F56: 0
A57: =_xlfn.AGGREGATE(3,5,$B$3:B57) -> 0 | F57: 0
A58: =_xlfn.AGGREGATE(3,5,$B$3:B58) -> 0 | F58: 0
A59: =_xlfn.AGGREGATE(3,5,$B$3:B59) -> 0 | F59: 0
A60: =_xlfn.AGGREGATE(3,5,$B$3:B60) -> 0 | F60: 0
A61: =_xlfn.AGGREGATE(3,5,$B$3:B61) -> 0 | F61: 0
A62: =_xlfn.AGGREGATE(3,5,$B$3:B62) -> 0 | F62: 0
A63: =_xlfn.AGGREGATE(3,5,$B$3:B63) -> 0 | F63: 0
A64: =_xlfn.AGGREGATE(3,5,$B$3:B64) -> 0 | F64: 0
A65: =_xlfn.AGGREGATE(3,5,$B$3:B65) -> 0 | F65: 0
A66: =_xlfn.AGGREGATE(3,5,$B$3:B66) -> 0 | F66: 0
A67: =_xlfn.AGGREGATE(3,5,$B$3:B67) -> 0 | B67: =IF(E67<>0,E67,"") ->  | F67: =E67 -> 0
A68: =_xlfn.AGGREGATE(3,5,$B$3:B68) -> 0 | F68: 0
A69: =_xlfn.AGGREGATE(3,5,$B$3:B69) -> 0 | F69: 0
A70: =_xlfn.AGGREGATE(3,5,$B$3:B70) -> 0 | F70: 0
A71: =_xlfn.AGGREGATE(3,5,$B$3:B71) -> 0 | F71: 0
A72: =_xlfn.AGGREGATE(3,5,$B$3:B72) -> 0 | F72: 0
A73: =_xlfn.AGGREGATE(3,5,$B$3:B73) -> 0 | F73: 0
A74: =_xlfn.AGGREGATE(3,5,$B$3:B74) -> 0 | F74: 0
A75: =_xlfn.AGGREGATE(3,5,$B$3:B75) -> 0 | F75: 0
A76: =_xlfn.AGGREGATE(3,5,$B$3:B76) -> 0 | F76: 0
A77: =_xlfn.AGGREGATE(3,5,$B$3:B77) -> 0 | F77: 0
A78: =_xlfn.AGGREGATE(3,5,$B$3:B78) -> 0 | F78: 0
A79: =_xlfn.AGGREGATE(3,5,$B$3:B79) -> 0 | F79: 0
A80: =_xlfn.AGGREGATE(3,5,$B$3:B80) -> 0 | F80: 0
A81: =_xlfn.AGGREGATE(3,5,$B$3:B81) -> 0 | F81: 0
A82: =_xlfn.AGGREGATE(3,5,$B$3:B82) -> 0 | F82: 0
A83: =_xlfn.AGGREGATE(3,5,$B$3:B83) -> 0 | F83: 0
A84: =_xlfn.AGGREGATE(3,5,$B$3:B84) -> 0 | F84: 0
A85: =_xlfn.AGGREGATE(3,5,$B$3:B85) -> 0 | F85: 0
A86: =_xlfn.AGGREGATE(3,5,$B$3:B86) -> 0 | F86: 0
A87: =_xlfn.AGGREGATE(3,5,$B$3:B87) -> 0 | F87: 0
A88: =_xlfn.AGGREGATE(3,5,$B$3:B88) -> 0 | F88: 0
A89: =_xlfn.AGGREGATE(3,5,$B$3:B89) -> 0 | F89: 0
A90: =_xlfn.AGGREGATE(3,5,$B$3:B90) -> 0 | F90: 0
A91: =_xlfn.AGGREGATE(3,5,$B$3:B91) -> 0 | F91: 0
A92: =_xlfn.AGGREGATE(3,5,$B$3:B92) -> 0 | F92: 0
A93: =_xlfn.AGGREGATE(3,5,$B$3:B93) -> 0 | F93: 0
A94: =_xlfn.AGGREGATE(3,5,$B$3:B94) -> 0 | F94: 0
A95: =_xlfn.AGGREGATE(3,5,$B$3:B95) -> 0 | F95: 0
A96: =_xlfn.AGGREGATE(3,5,$B$3:B96) -> 0 | F96: 0
A97: =_xlfn.AGGREGATE(3,5,$B$3:B97) -> 0 | F97: 0
A98: =_xlfn.AGGREGATE(3,5,$B$3:B98) -> 0 | F98: 0
A99: =_xlfn.AGGREGATE(3,5,$B$3:B99) -> 0 | F99: 0
A100: =_xlfn.AGGREGATE(3,5,$B$3:B100) -> 0 | F100: 0
A101: =_xlfn.AGGREGATE(3,5,$B$3:B101) -> 0 | F101: 0
A102: =_xlfn.AGGREGATE(3,5,$B$3:B102) -> 0 | F102: 0
A103: =_xlfn.AGGREGATE(3,5,$B$3:B103) -> 0 | F103: 0
A104: =_xlfn.AGGREGATE(3,5,$B$3:B104) -> 0 | F104: 0
A105: =_xlfn.AGGREGATE(3,5,$B$3:B105) -> 0 | F105: 0
A106: =_xlfn.AGGREGATE(3,5,$B$3:B106) -> 0 | F106: 0
A107: =_xlfn.AGGREGATE(3,5,$B$3:B107) -> 0 | F107: 0
A108: =_xlfn.AGGREGATE(3,5,$B$3:B108) -> 0 | F108: 0
A109: =_xlfn.AGGREGATE(3,5,$B$3:B109) -> 0 | F109: 0
A110: =_xlfn.AGGREGATE(3,5,$B$3:B110) -> 0 | F110: 0
A111: =_xlfn.AGGREGATE(3,5,$B$3:B111) -> 0 | F111: 0
A112: =_xlfn.AGGREGATE(3,5,$B$3:B112) -> 0 | F112: 0
A113: =_xlfn.AGGREGATE(3,5,$B$3:B113) -> 0 | F113: 0
A114: =_xlfn.AGGREGATE(3,5,$B$3:B114) -> 0 | F114: 0
A115: =_xlfn.AGGREGATE(3,5,$B$3:B115) -> 0 | F115: 0
A116: =_xlfn.AGGREGATE(3,5,$B$3:B116) -> 0 | F116: 0
A117: =_xlfn.AGGREGATE(3,5,$B$3:B117) -> 0 | F117: 0
A118: =_xlfn.AGGREGATE(3,5,$B$3:B118) -> 0 | F118: 0
A119: =_xlfn.AGGREGATE(3,5,$B$3:B119) -> 0 | F119: 0
A120: =_xlfn.AGGREGATE(3,5,$B$3:B120) -> 0 | F120: 0
A121: =_xlfn.AGGREGATE(3,5,$B$3:B121) -> 0 | F121: 0
A122: =_xlfn.AGGREGATE(3,5,$B$3:B122) -> 0 | F122: 0
A123: =_xlfn.AGGREGATE(3,5,$B$3:B123) -> 0 | F123: 0
A124: =_xlfn.AGGREGATE(3,5,$B$3:B124) -> 0 | F124: 0
A125: =_xlfn.AGGREGATE(3,5,$B$3:B125) -> 0 | C125: ` | F125: 0
A126: =_xlfn.AGGREGATE(3,5,$B$3:B126) -> 0 | F126: 0
A127: =_xlfn.AGGREGATE(3,5,$B$3:B127) -> 0 | F127: 0
A128: =_xlfn.AGGREGATE(3,5,$B$3:B128) -> 0 | F128: 0
A129: =_xlfn.AGGREGATE(3,5,$B$3:B129) -> 0 | F129: 0
A130: =_xlfn.AGGREGATE(3,5,$B$3:B130) -> 0 | F130: 0
A131: =_xlfn.AGGREGATE(3,5,$B$3:B131) -> 0 | B131: =IF(E131<>0,E131,"") ->  | F131: =E131 -> 0
A132: =_xlfn.AGGREGATE(3,5,$B$3:B132) -> 0 | F132: 0
A133: =_xlfn.AGGREGATE(3,5,$B$3:B133) -> 0 | F133: 0
A134: =_xlfn.AGGREGATE(3,5,$B$3:B134) -> 0 | F134: 0
A135: =_xlfn.AGGREGATE(3,5,$B$3:B135) -> 0 | F135: 0
A136: =_xlfn.AGGREGATE(3,5,$B$3:B136) -> 0 | F136: 0
A137: =_xlfn.AGGREGATE(3,5,$B$3:B137) -> 0 | F137: 0
A138: =_xlfn.AGGREGATE(3,5,$B$3:B138) -> 0 | F138: 0
A139: =_xlfn.AGGREGATE(3,5,$B$3:B139) -> 0 | F139: 0
A140: =_xlfn.AGGREGATE(3,5,$B$3:B140) -> 0 | F140: 0
A141: =_xlfn.AGGREGATE(3,5,$B$3:B141) -> 0 | F141: 0
A142: =_xlfn.AGGREGATE(3,5,$B$3:B142) -> 0 | F142: 0
A143: =_xlfn.AGGREGATE(3,5,$B$3:B143) -> 0 | F143: 0
A144: =_xlfn.AGGREGATE(3,5,$B$3:B144) -> 0 | F144: 0
A145: =_xlfn.AGGREGATE(3,5,$B$3:B145) -> 0 | F145: 0
A146: =_xlfn.AGGREGATE(3,5,$B$3:B146) -> 0 | F146: 0
A147: =_xlfn.AGGREGATE(3,5,$B$3:B147) -> 0 | F147: 0
A148: =_xlfn.AGGREGATE(3,5,$B$3:B148) -> 0 | F148: 0
A149: =_xlfn.AGGREGATE(3,5,$B$3:B149) -> 0 | F149: 0
A150: =_xlfn.AGGREGATE(3,5,$B$3:B150) -> 0 | F150: 0
A151: =_xlfn.AGGREGATE(3,5,$B$3:B151) -> 0 | F151: 0
A152: =_xlfn.AGGREGATE(3,5,$B$3:B152) -> 0 | F152: 0
A153: =_xlfn.AGGREGATE(3,5,$B$3:B153) -> 0 | F153: 0
A154: =_xlfn.AGGREGATE(3,5,$B$3:B154) -> 0 | F154: 0
A155: =_xlfn.AGGREGATE(3,5,$B$3:B155) -> 0 | F155: 0
A156: =_xlfn.AGGREGATE(3,5,$B$3:B156) -> 0 | F156: 0
A157: =_xlfn.AGGREGATE(3,5,$B$3:B157) -> 0 | F157: 0
A158: =_xlfn.AGGREGATE(3,5,$B$3:B158) -> 0 | F158: 0
A159: =_xlfn.AGGREGATE(3,5,$B$3:B159) -> 0 | F159: 0
A160: =_xlfn.AGGREGATE(3,5,$B$3:B160) -> 0 | F160: 0
A161: =_xlfn.AGGREGATE(3,5,$B$3:B161) -> 0 | F161: 0
A162: =_xlfn.AGGREGATE(3,5,$B$3:B162) -> 0 | F162: 0
A163: =_xlfn.AGGREGATE(3,5,$B$3:B163) -> 0 | F163: 0
A164: =_xlfn.AGGREGATE(3,5,$B$3:B164) -> 0 | F164: 0
A165: =_xlfn.AGGREGATE(3,5,$B$3:B165) -> 0 | F165: 0
A166: =_xlfn.AGGREGATE(3,5,$B$3:B166) -> 0 | F166: 0
A167: =_xlfn.AGGREGATE(3,5,$B$3:B167) -> 0 | F167: 0
A168: =_xlfn.AGGREGATE(3,5,$B$3:B168) -> 0 | F168: 0
A169: =_xlfn.AGGREGATE(3,5,$B$3:B169) -> 0 | F169: 0
A170: =_xlfn.AGGREGATE(3,5,$B$3:B170) -> 0 | F170: 0
A171: =_xlfn.AGGREGATE(3,5,$B$3:B171) -> 0 | F171: 0
A172: =_xlfn.AGGREGATE(3,5,$B$3:B172) -> 0 | F172: 0
A173: =_xlfn.AGGREGATE(3,5,$B$3:B173) -> 0 | F173: 0
A174: =_xlfn.AGGREGATE(3,5,$B$3:B174) -> 0 | F174: 0
A175: =_xlfn.AGGREGATE(3,5,$B$3:B175) -> 0 | F175: 0
A176: =_xlfn.AGGREGATE(3,5,$B$3:B176) -> 0 | F176: 0
A177: =_xlfn.AGGREGATE(3,5,$B$3:B177) -> 0 | F177: 0
A178: =_xlfn.AGGREGATE(3,5,$B$3:B178) -> 0 | F178: 0
A179: =_xlfn.AGGREGATE(3,5,$B$3:B179) -> 0 | F179: 0
A180: =_xlfn.AGGREGATE(3,5,$B$3:B180) -> 0 | F180: 0
A181: =_xlfn.AGGREGATE(3,5,$B$3:B181) -> 0 | F181: 0
A182: =_xlfn.AGGREGATE(3,5,$B$3:B182) -> 0 | F182: 0
A183: =_xlfn.AGGREGATE(3,5,$B$3:B183) -> 0 | F183: 0
A184: =_xlfn.AGGREGATE(3,5,$B$3:B184) -> 0 | F184: 0
A185: =_xlfn.AGGREGATE(3,5,$B$3:B185) -> 0 | F185: 0
A186: =_xlfn.AGGREGATE(3,5,$B$3:B186) -> 0 | F186: 0
A187: =_xlfn.AGGREGATE(3,5,$B$3:B187) -> 0 | F187: 0
A188: =_xlfn.AGGREGATE(3,5,$B$3:B188) -> 0 | F188: 0
A189: =_xlfn.AGGREGATE(3,5,$B$3:B189) -> 0 | F189: 0
A190: =_xlfn.AGGREGATE(3,5,$B$3:B190) -> 0 | F190: 0
A191: =_xlfn.AGGREGATE(3,5,$B$3:B191) -> 0 | F191: 0
A192: =_xlfn.AGGREGATE(3,5,$B$3:B192) -> 0 | F192: 0
A193: =_xlfn.AGGREGATE(3,5,$B$3:B193) -> 0 | F193: 0
A194: =_xlfn.AGGREGATE(3,5,$B$3:B194) -> 0 | F194: 0
A195: =_xlfn.AGGREGATE(3,5,$B$3:B195) -> 0 | B195: =IF(E195<>0,E195,"") ->  | F195: =E195 -> 0
A196: =_xlfn.AGGREGATE(3,5,$B$3:B196) -> 0 | F196: 0
A197: =_xlfn.AGGREGATE(3,5,$B$3:B197) -> 0 | F197: 0
A198: =_xlfn.AGGREGATE(3,5,$B$3:B198) -> 0 | F198: 0
A199: =_xlfn.AGGREGATE(3,5,$B$3:B199) -> 0 | F199: 0
A200: =_xlfn.AGGREGATE(3,5,$B$3:B200) -> 0 | F200: 0
... 429 more rows

Sheet القائمة6
A1: الصف : الشعبة : مربي الصف :
A2: الرقم | B2: الاسم | C2: ملاحظات
A3: =_xlfn.AGGREGATE(3,5,$B$3:B3) -> 0 | B3: =IF(E3<>0,E3,"") ->  | F3: =E3 -> 0
A4: =_xlfn.AGGREGATE(3,5,$B$3:B4) -> 0 | F4: 0
A5: =_xlfn.AGGREGATE(3,5,$B$3:B5) -> 0 | F5: 0
A6: =_xlfn.AGGREGATE(3,5,$B$3:B6) -> 0 | F6: 0
A7: =_xlfn.AGGREGATE(3,5,$B$3:B7) -> 0 | F7: 0
A8: =_xlfn.AGGREGATE(3,5,$B$3:B8) -> 0 | F8: 0
A9: =_xlfn.AGGREGATE(3,5,$B$3:B9) -> 0 | F9: 0
A10: =_xlfn.AGGREGATE(3,5,$B$3:B10) -> 0 | F10: 0
A11: =_xlfn.AGGREGATE(3,5,$B$3:B11) -> 0 | F11: 0
A12: =_xlfn.AGGREGATE(3,5,$B$3:B12) -> 0 | F12: 0
A13: =_xlfn.AGGREGATE(3,5,$B$3:B13) -> 0 | F13: 0
A14: =_xlfn.AGGREGATE(3,5,$B$3:B14) -> 0 | F14: 0
A15: =_xlfn.AGGREGATE(3,5,$B$3:B15) -> 0 | F15: 0
A16: =_xlfn.AGGREGATE(3,5,$B$3:B16) -> 0 | F16: 0
A17: =_xlfn.AGGREGATE(3,5,$B$3:B17) -> 0 | F17: 0
A18: =_xlfn.AGGREGATE(3,5,$B$3:B18) -> 0 | F18: 0
A19: =_xlfn.AGGREGATE(3,5,$B$3:B19) -> 0 | F19: 0
A20: =_xlfn.AGGREGATE(3,5,$B$3:B20) -> 0 | F20: 0
A21: =_xlfn.AGGREGATE(3,5,$B$3:B21) -> 0 | F21: 0
A22: =_xlfn.AGGREGATE(3,5,$B$3:B22) -> 0 | F22: 0
A23: =_xlfn.AGGREGATE(3,5,$B$3:B23) -> 0 | F23: 0
A24: =_xlfn.AGGREGATE(3,5,$B$3:B24) -> 0 | F24: 0
A25: =_xlfn.AGGREGATE(3,5,$B$3:B25) -> 0 | F25: 0
A26: =_xlfn.AGGREGATE(3,5,$B$3:B26) -> 0 | F26: 0
A27: =_xlfn.AGGREGATE(3,5,$B$3:B27) -> 0 | F27: 0
A28: =_xlfn.AGGREGATE(3,5,$B$3:B28) -> 0 | F28: 0
A29: =_xlfn.AGGREGATE(3,5,$B$3:B29) -> 0 | F29: 0
A30: =_xlfn.AGGREGATE(3,5,$B$3:B30) -> 0 | F30: 0
A31: =_xlfn.AGGREGATE(3,5,$B$3:B31) -> 0 | F31: 0
A32: =_xlfn.AGGREGATE(3,5,$B$3:B32) -> 0 | F32: 0
A33: =_xlfn.AGGREGATE(3,5,$B$3:B33) -> 0 | F33: 0
A34: =_xlfn.AGGREGATE(3,5,$B$3:B34) -> 0 | F34: 0
A35: =_xlfn.AGGREGATE(3,5,$B$3:B35) -> 0 | F35: 0
A36: =_xlfn.AGGREGATE(3,5,$B$3:B36) -> 0 | F36: 0
A37: =_xlfn.AGGREGATE(3,5,$B$3:B37) -> 0 | F37: 0
A38: =_xlfn.AGGREGATE(3,5,$B$3:B38) -> 0 | F38: 0
A39: =_xlfn.AGGREGATE(3,5,$B$3:B39) -> 0 | F39: 0
A40: =_xlfn.AGGREGATE(3,5,$B$3:B40) -> 0 | F40: 0
A41: =_xlfn.AGGREGATE(3,5,$B$3:B41) -> 0 | F41: 0
A42: =_xlfn.AGGREGATE(3,5,$B$3:B42) -> 0 | F42: 0
A43: =_xlfn.AGGREGATE(3,5,$B$3:B43) -> 0 | F43: 0
A44: =_xlfn.AGGREGATE(3,5,$B$3:B44) -> 0 | F44: 0
A45: =_xlfn.AGGREGATE(3,5,$B$3:B45) -> 0 | F45: 0
A46: =_xlfn.AGGREGATE(3,5,$B$3:B46) -> 0 | F46: 0
A47: =_xlfn.AGGREGATE(3,5,$B$3:B47) -> 0 | F47: 0
A48: =_xlfn.AGGREGATE(3,5,$B$3:B48) -> 0 | F48: 0
A49: =_xlfn.AGGREGATE(3,5,$B$3:B49) -> 0 | F49: 0
A50: =_xlfn.AGGREGATE(3,5,$B$3:B50) -> 0 | F50: 0
A51: =_xlfn.AGGREGATE(3,5,$B$3:B51) -> 0 | F51: 0
A52: =_xlfn.AGGREGATE(3,5,$B$3:B52) -> 0 | F52: 0
A53: =_xlfn.AGGREGATE(3,5,$B$3:B53) -> 0 | F53: 0
A54: =_xlfn.AGGREGATE(3,5,$B$3:B54) -> 0 | F54: 0
A55: =_xlfn.AGGREGATE(3,5,$B$3:B55) -> 0 | F55: 0
A56: =_xlfn.AGGREGATE(3,5,$B$3:B56) -> 0 | F56: 0
A57: =_xlfn.AGGREGATE(3,5,$B$3:B57) -> 0 | F57: 0
A58: =_xlfn.AGGREGATE(3,5,$B$3:B58) -> 0 | F58: 0
A59: =_xlfn.AGGREGATE(3,5,$B$3:B59) -> 0 | F59: 0
A60: =_xlfn.AGGREGATE(3,5,$B$3:B60) -> 0 | F60: 0
A61: =_xlfn.AGGREGATE(3,5,$B$3:B61) -> 0 | F61: 0
A62: =_xlfn.AGGREGATE(3,5,$B$3:B62) -> 0 | F62: 0
A63: =_xlfn.AGGREGATE(3,5,$B$3:B63) -> 0 | F63: 0
A64: =_xlfn.AGGREGATE(3,5,$B$3:B64) -> 0 | F64: 0
A65: =_xlfn.AGGREGATE(3,5,$B$3:B65) -> 0 | F65: 0
A66: =_xlfn.AGGREGATE(3,5,$B$3:B66) -> 0 | F66: 0
A67: =_xlfn.AGGREGATE(3,5,$B$3:B67) -> 0 | B67: =IF(E67<>0,E67,"") ->  | F67: =E67 -> 0
A68: =_xlfn.AGGREGATE(3,5,$B$3:B68) -> 0 | F68: 0
A69: =_xlfn.AGGREGATE(3,5,$B$3:B69) -> 0 | F69: 0
A70: =_xlfn.AGGREGATE(3,5,$B$3:B70) -> 0 | F70: 0
A71: =_xlfn.AGGREGATE(3,5,$B$3:B71) -> 0 | F71: 0
A72: =_xlfn.AGGREGATE(3,5,$B$3:B72) -> 0 | F72: 0
A73: =_xlfn.AGGREGATE(3,5,$B$3:B73) -> 0 | F73: 0
A74: =_xlfn.AGGREGATE(3,5,$B$3:B74) -> 0 | F74: 0
A75: =_xlfn.AGGREGATE(3,5,$B$3:B75) -> 0 | F75: 0
A76: =_xlfn.AGGREGATE(3,5,$B$3:B76) -> 0 | F76: 0
A77: =_xlfn.AGGREGATE(3,5,$B$3:B77) -> 0 | F77: 0
A78: =_xlfn.AGGREGATE(3,5,$B$3:B78) -> 0 | F78: 0
A79: =_xlfn.AGGREGATE(3,5,$B$3:B79) -> 0 | F79: 0
A80: =_xlfn.AGGREGATE(3,5,$B$3:B80) -> 0 | F80: 0
A81: =_xlfn.AGGREGATE(3,5,$B$3:B81) -> 0 | F81: 0
A82: =_xlfn.AGGREGATE(3,5,$B$3:B82) -> 0 | F82: 0
A83: =_xlfn.AGGREGATE(3,5,$B$3:B83) -> 0 | F83: 0
A84: =_xlfn.AGGREGATE(3,5,$B$3:B84) -> 0 | F84: 0
A85: =_xlfn.AGGREGATE(3,5,$B$3:B85) -> 0 | F85: 0
A86: =_xlfn.AGGREGATE(3,5,$B$3:B86) -> 0 | F86: 0
A87: =_xlfn.AGGREGATE(3,5,$B$3:B87) -> 0 | F87: 0
A88: =_xlfn.AGGREGATE(3,5,$B$3:B88) -> 0 | F88: 0
A89: =_xlfn.AGGREGATE(3,5,$B$3:B89) -> 0 | F89: 0
A90: =_xlfn.AGGREGATE(3,5,$B$3:B90) -> 0 | F90: 0
A91: =_xlfn.AGGREGATE(3,5,$B$3:B91) -> 0 | F91: 0
A92: =_xlfn.AGGREGATE(3,5,$B$3:B92) -> 0 | F92: 0
A93: =_xlfn.AGGREGATE(3,5,$B$3:B93) -> 0 | F93: 0
A94: =_xlfn.AGGREGATE(3,5,$B$3:B94) -> 0 | F94: 0
A95: =_xlfn.AGGREGATE(3,5,$B$3:B95) -> 0 | F95: 0
A96: =_xlfn.AGGREGATE(3,5,$B$3:B96) -> 0 | F96: 0
A97: =_xlfn.AGGREGATE(3,5,$B$3:B97) -> 0 | F97: 0
A98: =_xlfn.AGGREGATE(3,5,$B$3:B98) -> 0 | F98: 0
A99: =_xlfn.AGGREGATE(3,5,$B$3:B99) -> 0 | F99: 0
A100: =_xlfn.AGGREGATE(3,5,$B$3:B100) -> 0 | F100: 0
A101: =_xlfn.AGGREGATE(3,5,$B$3:B101) -> 0 | F101: 0
A102: =_xlfn.AGGREGATE(3,5,$B$3:B102) -> 0 | F102: 0
A103: =_xlfn.AGGREGATE(3,5,$B$3:B103) -> 0 | F103: 0
A104: =_xlfn.AGGREGATE(3,5,$B$3:B104) -> 0 | F104: 0
A105: =_xlfn.AGGREGATE(3,5,$B$3:B105) -> 0 | F105: 0
A106: =_xlfn.AGGREGATE(3,5,$B$3:B106) -> 0 | F106: 0
A107: =_xlfn.AGGREGATE(3,5,$B$3:B107) -> 0 | F107: 0
A108: =_xlfn.AGGREGATE(3,5,$B$3:B108) -> 0 | F108: 0
A109: =_xlfn.AGGREGATE(3,5,$B$3:B109) -> 0 | F109: 0
A110: =_xlfn.AGGREGATE(3,5,$B$3:B110) -> 0 | F110: 0
A111: =_xlfn.AGGREGATE(3,5,$B$3:B111) -> 0 | F111: 0
A112: =_xlfn.AGGREGATE(3,5,$B$3:B112) -> 0 | F112: 0
A113: =_xlfn.AGGREGATE(3,5,$B$3:B113) -> 0 | F113: 0
A114: =_xlfn.AGGREGATE(3,5,$B$3:B114) -> 0 | F114: 0
A115: =_xlfn.AGGREGATE(3,5,$B$3:B115) -> 0 | F115: 0
A116: =_xlfn.AGGREGATE(3,5,$B$3:B116) -> 0 | F116: 0
A117: =_xlfn.AGGREGATE(3,5,$B$3:B117) -> 0 | F117: 0
A118: =_xlfn.AGGREGATE(3,5,$B$3:B118) -> 0 | F118: 0
A119: =_xlfn.AGGREGATE(3,5,$B$3:B119) -> 0 | F119: 0
A120: =_xlfn.AGGREGATE(3,5,$B$3:B120) -> 0 | F120: 0
A121: =_xlfn.AGGREGATE(3,5,$B$3:B121) -> 0 | F121: 0
A122: =_xlfn.AGGREGATE(3,5,$B$3:B122) -> 0 | F122: 0
A123: =_xlfn.AGGREGATE(3,5,$B$3:B123) -> 0 | F123: 0
A124: =_xlfn.AGGREGATE(3,5,$B$3:B124) -> 0 | F124: 0
A125: =_xlfn.AGGREGATE(3,5,$B$3:B125) -> 0 | C125: ` | F125: 0
A126: =_xlfn.AGGREGATE(3,5,$B$3:B126) -> 0 | F126: 0
A127: =_xlfn.AGGREGATE(3,5,$B$3:B127) -> 0 | F127: 0
A128: =_xlfn.AGGREGATE(3,5,$B$3:B128) -> 0 | F128: 0
A129: =_xlfn.AGGREGATE(3,5,$B$3:B129) -> 0 | F129: 0
A130: =_xlfn.AGGREGATE(3,5,$B$3:B130) -> 0 | F130: 0
A131: =_xlfn.AGGREGATE(3,5,$B$3:B131) -> 0 | B131: =IF(E131<>0,E131,"") ->  | F131: =E131 -> 0
A132: =_xlfn.AGGREGATE(3,5,$B$3:B132) -> 0 | F132: 0
A133: =_xlfn.AGGREGATE(3,5,$B$3:B133) -> 0 | F133: 0
A134: =_xlfn.AGGREGATE(3,5,$B$3:B134) -> 0 | F134: 0
A135: =_xlfn.AGGREGATE(3,5,$B$3:B135) -> 0 | F135: 0
A136: =_xlfn.AGGREGATE(3,5,$B$3:B136) -> 0 | F136: 0
A137: =_xlfn.AGGREGATE(3,5,$B$3:B137) -> 0 | F137: 0
A138: =_xlfn.AGGREGATE(3,5,$B$3:B138) -> 0 | F138: 0
A139: =_xlfn.AGGREGATE(3,5,$B$3:B139) -> 0 | F139: 0
A140: =_xlfn.AGGREGATE(3,5,$B$3:B140) -> 0 | F140: 0
A141: =_xlfn.AGGREGATE(3,5,$B$3:B141) -> 0 | F141: 0
A142: =_xlfn.AGGREGATE(3,5,$B$3:B142) -> 0 | F142: 0
A143: =_xlfn.AGGREGATE(3,5,$B$3:B143) -> 0 | F143: 0
A144: =_xlfn.AGGREGATE(3,5,$B$3:B144) -> 0 | F144: 0
A145: =_xlfn.AGGREGATE(3,5,$B$3:B145) -> 0 | F145: 0
A146: =_xlfn.AGGREGATE(3,5,$B$3:B146) -> 0 | F146: 0
A147: =_xlfn.AGGREGATE(3,5,$B$3:B147) -> 0 | F147: 0
A148: =_xlfn.AGGREGATE(3,5,$B$3:B148) -> 0 | F148: 0
A149: =_xlfn.AGGREGATE(3,5,$B$3:B149) -> 0 | F149: 0
A150: =_xlfn.AGGREGATE(3,5,$B$3:B150) -> 0 | F150: 0
A151: =_xlfn.AGGREGATE(3,5,$B$3:B151) -> 0 | F151: 0
A152: =_xlfn.AGGREGATE(3,5,$B$3:B152) -> 0 | F152: 0
A153: =_xlfn.AGGREGATE(3,5,$B$3:B153) -> 0 | F153: 0
A154: =_xlfn.AGGREGATE(3,5,$B$3:B154) -> 0 | F154: 0
A155: =_xlfn.AGGREGATE(3,5,$B$3:B155) -> 0 | F155: 0
A156: =_xlfn.AGGREGATE(3,5,$B$3:B156) -> 0 | F156: 0
A157: =_xlfn.AGGREGATE(3,5,$B$3:B157) -> 0 | F157: 0
A158: =_xlfn.AGGREGATE(3,5,$B$3:B158) -> 0 | F158: 0
A159: =_xlfn.AGGREGATE(3,5,$B$3:B159) -> 0 | F159: 0
A160: =_xlfn.AGGREGATE(3,5,$B$3:B160) -> 0 | F160: 0
A161: =_xlfn.AGGREGATE(3,5,$B$3:B161) -> 0 | F161: 0
A162: =_xlfn.AGGREGATE(3,5,$B$3:B162) -> 0 | F162: 0
A163: =_xlfn.AGGREGATE(3,5,$B$3:B163) -> 0 | F163: 0
A164: =_xlfn.AGGREGATE(3,5,$B$3:B164) -> 0 | F164: 0
A165: =_xlfn.AGGREGATE(3,5,$B$3:B165) -> 0 | F165: 0
A166: =_xlfn.AGGREGATE(3,5,$B$3:B166) -> 0 | F166: 0
A167: =_xlfn.AGGREGATE(3,5,$B$3:B167) -> 0 | F167: 0
A168: =_xlfn.AGGREGATE(3,5,$B$3:B168) -> 0 | F168: 0
A169: =_xlfn.AGGREGATE(3,5,$B$3:B169) -> 0 | F169: 0
A170: =_xlfn.AGGREGATE(3,5,$B$3:B170) -> 0 | F170: 0
A171: =_xlfn.AGGREGATE(3,5,$B$3:B171) -> 0 | F171: 0
A172: =_xlfn.AGGREGATE(3,5,$B$3:B172) -> 0 | F172: 0
A173: =_xlfn.AGGREGATE(3,5,$B$3:B173) -> 0 | F173: 0
A174: =_xlfn.AGGREGATE(3,5,$B$3:B174) -> 0 | F174: 0
A175: =_xlfn.AGGREGATE(3,5,$B$3:B175) -> 0 | F175: 0
A176: =_xlfn.AGGREGATE(3,5,$B$3:B176) -> 0 | F176: 0
A177: =_xlfn.AGGREGATE(3,5,$B$3:B177) -> 0 | F177: 0
A178: =_xlfn.AGGREGATE(3,5,$B$3:B178) -> 0 | F178: 0
A179: =_xlfn.AGGREGATE(3,5,$B$3:B179) -> 0 | F179: 0
A180: =_xlfn.AGGREGATE(3,5,$B$3:B180) -> 0 | F180: 0
A181: =_xlfn.AGGREGATE(3,5,$B$3:B181) -> 0 | F181: 0
A182: =_xlfn.AGGREGATE(3,5,$B$3:B182) -> 0 | F182: 0
A183: =_xlfn.AGGREGATE(3,5,$B$3:B183) -> 0 | F183: 0
A184: =_xlfn.AGGREGATE(3,5,$B$3:B184) -> 0 | F184: 0
A185: =_xlfn.AGGREGATE(3,5,$B$3:B185) -> 0 | F185: 0
A186: =_xlfn.AGGREGATE(3,5,$B$3:B186) -> 0 | F186: 0
A187: =_xlfn.AGGREGATE(3,5,$B$3:B187) -> 0 | F187: 0
A188: =_xlfn.AGGREGATE(3,5,$B$3:B188) -> 0 | F188: 0
A189: =_xlfn.AGGREGATE(3,5,$B$3:B189) -> 0 | F189: 0
A190: =_xlfn.AGGREGATE(3,5,$B$3:B190) -> 0 | F190: 0
A191: =_xlfn.AGGREGATE(3,5,$B$3:B191) -> 0 | F191: 0
A192: =_xlfn.AGGREGATE(3,5,$B$3:B192) -> 0 | F192: 0
A193: =_xlfn.AGGREGATE(3,5,$B$3:B193) -> 0 | F193: 0
A194: =_xlfn.AGGREGATE(3,5,$B$3:B194) -> 0 | F194: 0
A195: =_xlfn.AGGREGATE(3,5,$B$3:B195) -> 0 | B195: =IF(E195<>0,E195,"") ->  | F195: =E195 -> 0
A196: =_xlfn.AGGREGATE(3,5,$B$3:B196) -> 0 | F196: 0
A197: =_xlfn.AGGREGATE(3,5,$B$3:B197) -> 0 | F197: 0
A198: =_xlfn.AGGREGATE(3,5,$B$3:B198) -> 0 | F198: 0
A199: =_xlfn.AGGREGATE(3,5,$B$3:B199) -> 0 | F199: 0
A200: =_xlfn.AGGREGATE(3,5,$B$3:B200) -> 0 | F200: 0
... 429 more rows

Sheet القائمة7
A1: الصف : الشعبة : مربي الصف :
A2: الرقم | B2: الاسم | C2: ملاحظات
A3: =_xlfn.AGGREGATE(3,5,$B$3:B3) -> 0 | B3: =IF(E3<>0,E3,"") ->  | F3: =E3 -> 0
A4: =_xlfn.AGGREGATE(3,5,$B$3:B4) -> 0 | F4: 0
A5: =_xlfn.AGGREGATE(3,5,$B$3:B5) -> 0 | F5: 0
A6: =_xlfn.AGGREGATE(3,5,$B$3:B6) -> 0 | F6: 0
A7: =_xlfn.AGGREGATE(3,5,$B$3:B7) -> 0 | F7: 0
A8: =_xlfn.AGGREGATE(3,5,$B$3:B8) -> 0 | F8: 0
A9: =_xlfn.AGGREGATE(3,5,$B$3:B9) -> 0 | F9: 0
A10: =_xlfn.AGGREGATE(3,5,$B$3:B10) -> 0 | F10: 0
A11: =_xlfn.AGGREGATE(3,5,$B$3:B11) -> 0 | F11: 0
A12: =_xlfn.AGGREGATE(3,5,$B$3:B12) -> 0 | F12: 0
A13: =_xlfn.AGGREGATE(3,5,$B$3:B13) -> 0 | F13: 0
A14: =_xlfn.AGGREGATE(3,5,$B$3:B14) -> 0 | F14: 0
A15: =_xlfn.AGGREGATE(3,5,$B$3:B15) -> 0 | F15: 0
A16: =_xlfn.AGGREGATE(3,5,$B$3:B16) -> 0 | F16: 0
A17: =_xlfn.AGGREGATE(3,5,$B$3:B17) -> 0 | F17: 0
A18: =_xlfn.AGGREGATE(3,5,$B$3:B18) -> 0 | F18: 0
A19: =_xlfn.AGGREGATE(3,5,$B$3:B19) -> 0 | F19: 0
A20: =_xlfn.AGGREGATE(3,5,$B$3:B20) -> 0 | F20: 0
A21: =_xlfn.AGGREGATE(3,5,$B$3:B21) -> 0 | F21: 0
A22: =_xlfn.AGGREGATE(3,5,$B$3:B22) -> 0 | F22: 0
A23: =_xlfn.AGGREGATE(3,5,$B$3:B23) -> 0 | F23: 0
A24: =_xlfn.AGGREGATE(3,5,$B$3:B24) -> 0 | F24: 0
A25: =_xlfn.AGGREGATE(3,5,$B$3:B25) -> 0 | F25: 0
A26: =_xlfn.AGGREGATE(3,5,$B$3:B26) -> 0 | F26: 0
A27: =_xlfn.AGGREGATE(3,5,$B$3:B27) -> 0 | F27: 0
A28: =_xlfn.AGGREGATE(3,5,$B$3:B28) -> 0 | F28: 0
A29: =_xlfn.AGGREGATE(3,5,$B$3:B29) -> 0 | F29: 0
A30: =_xlfn.AGGREGATE(3,5,$B$3:B30) -> 0 | F30: 0
A31: =_xlfn.AGGREGATE(3,5,$B$3:B31) -> 0 | F31: 0
A32: =_xlfn.AGGREGATE(3,5,$B$3:B32) -> 0 | F32: 0
A33: =_xlfn.AGGREGATE(3,5,$B$3:B33) -> 0 | F33: 0
A34: =_xlfn.AGGREGATE(3,5,$B$3:B34) -> 0 | F34: 0
A35: =_xlfn.AGGREGATE(3,5,$B$3:B35) -> 0 | F35: 0
A36: =_xlfn.AGGREGATE(3,5,$B$3:B36) -> 0 | F36: 0
A37: =_xlfn.AGGREGATE(3,5,$B$3:B37) -> 0 | F37: 0
A38: =_xlfn.AGGREGATE(3,5,$B$3:B38) -> 0 | F38: 0
A39: =_xlfn.AGGREGATE(3,5,$B$3:B39) -> 0 | F39: 0
A40: =_xlfn.AGGREGATE(3,5,$B$3:B40) -> 0 | F40: 0
A41: =_xlfn.AGGREGATE(3,5,$B$3:B41) -> 0 | F41: 0
A42: =_xlfn.AGGREGATE(3,5,$B$3:B42) -> 0 | F42: 0
A43: =_xlfn.AGGREGATE(3,5,$B$3:B43) -> 0 | F43: 0
A44: =_xlfn.AGGREGATE(3,5,$B$3:B44) -> 0 | F44: 0
A45: =_xlfn.AGGREGATE(3,5,$B$3:B45) -> 0 | F45: 0
A46: =_xlfn.AGGREGATE(3,5,$B$3:B46) -> 0 | F46: 0
A47: =_xlfn.AGGREGATE(3,5,$B$3:B47) -> 0 | F47: 0
A48: =_xlfn.AGGREGATE(3,5,$B$3:B48) -> 0 | F48: 0
A49: =_xlfn.AGGREGATE(3,5,$B$3:B49) -> 0 | F49: 0
A50: =_xlfn.AGGREGATE(3,5,$B$3:B50) -> 0 | F50: 0
A51: =_xlfn.AGGREGATE(3,5,$B$3:B51) -> 0 | F51: 0
A52: =_xlfn.AGGREGATE(3,5,$B$3:B52) -> 0 | F52: 0
A53: =_xlfn.AGGREGATE(3,5,$B$3:B53) -> 0 | F53: 0
A54: =_xlfn.AGGREGATE(3,5,$B$3:B54) -> 0 | F54: 0
A55: =_xlfn.AGGREGATE(3,5,$B$3:B55) -> 0 | F55: 0
A56: =_xlfn.AGGREGATE(3,5,$B$3:B56) -> 0 | F56: 0
A57: =_xlfn.AGGREGATE(3,5,$B$3:B57) -> 0 | F57: 0
A58: =_xlfn.AGGREGATE(3,5,$B$3:B58) -> 0 | F58: 0
A59: =_xlfn.AGGREGATE(3,5,$B$3:B59) -> 0 | F59: 0
A60: =_xlfn.AGGREGATE(3,5,$B$3:B60) -> 0 | F60: 0
A61: =_xlfn.AGGREGATE(3,5,$B$3:B61) -> 0 | F61: 0
A62: =_xlfn.AGGREGATE(3,5,$B$3:B62) -> 0 | F62: 0
A63: =_xlfn.AGGREGATE(3,5,$B$3:B63) -> 0 | F63: 0
A64: =_xlfn.AGGREGATE(3,5,$B$3:B64) -> 0 | F64: 0
A65: =_xlfn.AGGREGATE(3,5,$B$3:B65) -> 0 | F65: 0
A66: =_xlfn.AGGREGATE(3,5,$B$3:B66) -> 0 | F66: 0
A67: =_xlfn.AGGREGATE(3,5,$B$3:B67) -> 0 | B67: =IF(E67<>0,E67,"") ->  | F67: =E67 -> 0
A68: =_xlfn.AGGREGATE(3,5,$B$3:B68) -> 0 | F68: 0
A69: =_xlfn.AGGREGATE(3,5,$B$3:B69) -> 0 | F69: 0
A70: =_xlfn.AGGREGATE(3,5,$B$3:B70) -> 0 | F70: 0
A71: =_xlfn.AGGREGATE(3,5,$B$3:B71) -> 0 | F71: 0
A72: =_xlfn.AGGREGATE(3,5,$B$3:B72) -> 0 | F72: 0
A73: =_xlfn.AGGREGATE(3,5,$B$3:B73) -> 0 | F73: 0
A74: =_xlfn.AGGREGATE(3,5,$B$3:B74) -> 0 | F74: 0
A75: =_xlfn.AGGREGATE(3,5,$B$3:B75) -> 0 | F75: 0
A76: =_xlfn.AGGREGATE(3,5,$B$3:B76) -> 0 | F76: 0
A77: =_xlfn.AGGREGATE(3,5,$B$3:B77) -> 0 | F77: 0
A78: =_xlfn.AGGREGATE(3,5,$B$3:B78) -> 0 | F78: 0
A79: =_xlfn.AGGREGATE(3,5,$B$3:B79) -> 0 | F79: 0
A80: =_xlfn.AGGREGATE(3,5,$B$3:B80) -> 0 | F80: 0
A81: =_xlfn.AGGREGATE(3,5,$B$3:B81) -> 0 | F81: 0
A82: =_xlfn.AGGREGATE(3,5,$B$3:B82) -> 0 | F82: 0
A83: =_xlfn.AGGREGATE(3,5,$B$3:B83) -> 0 | F83: 0
A84: =_xlfn.AGGREGATE(3,5,$B$3:B84) -> 0 | F84: 0
A85: =_xlfn.AGGREGATE(3,5,$B$3:B85) -> 0 | F85: 0
A86: =_xlfn.AGGREGATE(3,5,$B$3:B86) -> 0 | F86: 0
A87: =_xlfn.AGGREGATE(3,5,$B$3:B87) -> 0 | F87: 0
A88: =_xlfn.AGGREGATE(3,5,$B$3:B88) -> 0 | F88: 0
A89: =_xlfn.AGGREGATE(3,5,$B$3:B89) -> 0 | F89: 0
A90: =_xlfn.AGGREGATE(3,5,$B$3:B90) -> 0 | F90: 0
A91: =_xlfn.AGGREGATE(3,5,$B$3:B91) -> 0 | F91: 0
A92: =_xlfn.AGGREGATE(3,5,$B$3:B92) -> 0 | F92: 0
A93: =_xlfn.AGGREGATE(3,5,$B$3:B93) -> 0 | F93: 0
A94: =_xlfn.AGGREGATE(3,5,$B$3:B94) -> 0 | F94: 0
A95: =_xlfn.AGGREGATE(3,5,$B$3:B95) -> 0 | F95: 0
A96: =_xlfn.AGGREGATE(3,5,$B$3:B96) -> 0 | F96: 0
A97: =_xlfn.AGGREGATE(3,5,$B$3:B97) -> 0 | F97: 0
A98: =_xlfn.AGGREGATE(3,5,$B$3:B98) -> 0 | F98: 0
A99: =_xlfn.AGGREGATE(3,5,$B$3:B99) -> 0 | F99: 0
A100: =_xlfn.AGGREGATE(3,5,$B$3:B100) -> 0 | F100: 0
A101: =_xlfn.AGGREGATE(3,5,$B$3:B101) -> 0 | F101: 0
A102: =_xlfn.AGGREGATE(3,5,$B$3:B102) -> 0 | F102: 0
A103: =_xlfn.AGGREGATE(3,5,$B$3:B103) -> 0 | F103: 0
A104: =_xlfn.AGGREGATE(3,5,$B$3:B104) -> 0 | F104: 0
A105: =_xlfn.AGGREGATE(3,5,$B$3:B105) -> 0 | F105: 0
A106: =_xlfn.AGGREGATE(3,5,$B$3:B106) -> 0 | F106: 0
A107: =_xlfn.AGGREGATE(3,5,$B$3:B107) -> 0 | F107: 0
A108: =_xlfn.AGGREGATE(3,5,$B$3:B108) -> 0 | F108: 0
A109: =_xlfn.AGGREGATE(3,5,$B$3:B109) -> 0 | F109: 0
A110: =_xlfn.AGGREGATE(3,5,$B$3:B110) -> 0 | F110: 0
A111: =_xlfn.AGGREGATE(3,5,$B$3:B111) -> 0 | F111: 0
A112: =_xlfn.AGGREGATE(3,5,$B$3:B112) -> 0 | F112: 0
A113: =_xlfn.AGGREGATE(3,5,$B$3:B113) -> 0 | F113: 0
A114: =_xlfn.AGGREGATE(3,5,$B$3:B114) -> 0 | F114: 0
A115: =_xlfn.AGGREGATE(3,5,$B$3:B115) -> 0 | F115: 0
A116: =_xlfn.AGGREGATE(3,5,$B$3:B116) -> 0 | F116: 0
A117: =_xlfn.AGGREGATE(3,5,$B$3:B117) -> 0 | F117: 0
A118: =_xlfn.AGGREGATE(3,5,$B$3:B118) -> 0 | F118: 0
A119: =_xlfn.AGGREGATE(3,5,$B$3:B119) -> 0 | F119: 0
A120: =_xlfn.AGGREGATE(3,5,$B$3:B120) -> 0 | F120: 0
A121: =_xlfn.AGGREGATE(3,5,$B$3:B121) -> 0 | F121: 0
A122: =_xlfn.AGGREGATE(3,5,$B$3:B122) -> 0 | F122: 0
A123: =_xlfn.AGGREGATE(3,5,$B$3:B123) -> 0 | F123: 0
A124: =_xlfn.AGGREGATE(3,5,$B$3:B124) -> 0 | F124: 0
A125: =_xlfn.AGGREGATE(3,5,$B$3:B125) -> 0 | C125: ` | F125: 0
A126: =_xlfn.AGGREGATE(3,5,$B$3:B126) -> 0 | F126: 0
A127: =_xlfn.AGGREGATE(3,5,$B$3:B127) -> 0 | F127: 0
A128: =_xlfn.AGGREGATE(3,5,$B$3:B128) -> 0 | F128: 0
A129: =_xlfn.AGGREGATE(3,5,$B$3:B129) -> 0 | F129: 0
A130: =_xlfn.AGGREGATE(3,5,$B$3:B130) -> 0 | F130: 0
A131: =_xlfn.AGGREGATE(3,5,$B$3:B131) -> 0 | B131: =IF(E131<>0,E131,"") ->  | F131: =E131 -> 0
A132: =_xlfn.AGGREGATE(3,5,$B$3:B132) -> 0 | F132: 0
A133: =_xlfn.AGGREGATE(3,5,$B$3:B133) -> 0 | F133: 0
A134: =_xlfn.AGGREGATE(3,5,$B$3:B134) -> 0 | F134: 0
A135: =_xlfn.AGGREGATE(3,5,$B$3:B135) -> 0 | F135: 0
A136: =_xlfn.AGGREGATE(3,5,$B$3:B136) -> 0 | F136: 0
A137: =_xlfn.AGGREGATE(3,5,$B$3:B137) -> 0 | F137: 0
A138: =_xlfn.AGGREGATE(3,5,$B$3:B138) -> 0 | F138: 0
A139: =_xlfn.AGGREGATE(3,5,$B$3:B139) -> 0 | F139: 0
A140: =_xlfn.AGGREGATE(3,5,$B$3:B140) -> 0 | F140: 0
A141: =_xlfn.AGGREGATE(3,5,$B$3:B141) -> 0 | F141: 0
A142: =_xlfn.AGGREGATE(3,5,$B$3:B142) -> 0 | F142: 0
A143: =_xlfn.AGGREGATE(3,5,$B$3:B143) -> 0 | F143: 0
A144: =_xlfn.AGGREGATE(3,5,$B$3:B144) -> 0 | F144: 0
A145: =_xlfn.AGGREGATE(3,5,$B$3:B145) -> 0 | F145: 0
A146: =_xlfn.AGGREGATE(3,5,$B$3:B146) -> 0 | F146: 0
A147: =_xlfn.AGGREGATE(3,5,$B$3:B147) -> 0 | F147: 0
A148: =_xlfn.AGGREGATE(3,5,$B$3:B148) -> 0 | F148: 0
A149: =_xlfn.AGGREGATE(3,5,$B$3:B149) -> 0 | F149: 0
A150: =_xlfn.AGGREGATE(3,5,$B$3:B150) -> 0 | F150: 0
A151: =_xlfn.AGGREGATE(3,5,$B$3:B151) -> 0 | F151: 0
A152: =_xlfn.AGGREGATE(3,5,$B$3:B152) -> 0 | F152: 0
A153: =_xlfn.AGGREGATE(3,5,$B$3:B153) -> 0 | F153: 0
A154: =_xlfn.AGGREGATE(3,5,$B$3:B154) -> 0 | F154: 0
A155: =_xlfn.AGGREGATE(3,5,$B$3:B155) -> 0 | F155: 0
A156: =_xlfn.AGGREGATE(3,5,$B$3:B156) -> 0 | F156: 0
A157: =_xlfn.AGGREGATE(3,5,$B$3:B157) -> 0 | F157: 0
A158: =_xlfn.AGGREGATE(3,5,$B$3:B158) -> 0 | F158: 0
A159: =_xlfn.AGGREGATE(3,5,$B$3:B159) -> 0 | F159: 0
A160: =_xlfn.AGGREGATE(3,5,$B$3:B160) -> 0 | F160: 0
A161: =_xlfn.AGGREGATE(3,5,$B$3:B161) -> 0 | F161: 0
A162: =_xlfn.AGGREGATE(3,5,$B$3:B162) -> 0 | F162: 0
A163: =_xlfn.AGGREGATE(3,5,$B$3:B163) -> 0 | F163: 0
A164: =_xlfn.AGGREGATE(3,5,$B$3:B164) -> 0 | F164: 0
A165: =_xlfn.AGGREGATE(3,5,$B$3:B165) -> 0 | F165: 0
A166: =_xlfn.AGGREGATE(3,5,$B$3:B166) -> 0 | F166: 0
A167: =_xlfn.AGGREGATE(3,5,$B$3:B167) -> 0 | F167: 0
A168: =_xlfn.AGGREGATE(3,5,$B$3:B168) -> 0 | F168: 0
A169: =_xlfn.AGGREGATE(3,5,$B$3:B169) -> 0 | F169: 0
A170: =_xlfn.AGGREGATE(3,5,$B$3:B170) -> 0 | F170: 0
A171: =_xlfn.AGGREGATE(3,5,$B$3:B171) -> 0 | F171: 0
A172: =_xlfn.AGGREGATE(3,5,$B$3:B172) -> 0 | F172: 0
A173: =_xlfn.AGGREGATE(3,5,$B$3:B173) -> 0 | F173: 0
A174: =_xlfn.AGGREGATE(3,5,$B$3:B174) -> 0 | F174: 0
A175: =_xlfn.AGGREGATE(3,5,$B$3:B175) -> 0 | F175: 0
A176: =_xlfn.AGGREGATE(3,5,$B$3:B176) -> 0 | F176: 0
A177: =_xlfn.AGGREGATE(3,5,$B$3:B177) -> 0 | F177: 0
A178: =_xlfn.AGGREGATE(3,5,$B$3:B178) -> 0 | F178: 0
A179: =_xlfn.AGGREGATE(3,5,$B$3:B179) -> 0 | F179: 0
A180: =_xlfn.AGGREGATE(3,5,$B$3:B180) -> 0 | F180: 0
A181: =_xlfn.AGGREGATE(3,5,$B$3:B181) -> 0 | F181: 0
A182: =_xlfn.AGGREGATE(3,5,$B$3:B182) -> 0 | F182: 0
A183: =_xlfn.AGGREGATE(3,5,$B$3:B183) -> 0 | F183: 0
A184: =_xlfn.AGGREGATE(3,5,$B$3:B184) -> 0 | F184: 0
A185: =_xlfn.AGGREGATE(3,5,$B$3:B185) -> 0 | F185: 0
A186: =_xlfn.AGGREGATE(3,5,$B$3:B186) -> 0 | F186: 0
A187: =_xlfn.AGGREGATE(3,5,$B$3:B187) -> 0 | F187: 0
A188: =_xlfn.AGGREGATE(3,5,$B$3:B188) -> 0 | F188: 0
A189: =_xlfn.AGGREGATE(3,5,$B$3:B189) -> 0 | F189: 0
A190: =_xlfn.AGGREGATE(3,5,$B$3:B190) -> 0 | F190: 0
A191: =_xlfn.AGGREGATE(3,5,$B$3:B191) -> 0 | F191: 0
A192: =_xlfn.AGGREGATE(3,5,$B$3:B192) -> 0 | F192: 0
A193: =_xlfn.AGGREGATE(3,5,$B$3:B193) -> 0 | F193: 0
A194: =_xlfn.AGGREGATE(3,5,$B$3:B194) -> 0 | F194: 0
A195: =_xlfn.AGGREGATE(3,5,$B$3:B195) -> 0 | B195: =IF(E195<>0,E195,"") ->  | F195: =E195 -> 0
A196: =_xlfn.AGGREGATE(3,5,$B$3:B196) -> 0 | F196: 0
A197: =_xlfn.AGGREGATE(3,5,$B$3:B197) -> 0 | F197: 0
A198: =_xlfn.AGGREGATE(3,5,$B$3:B198) -> 0 | F198: 0
A199: =_xlfn.AGGREGATE(3,5,$B$3:B199) -> 0 | F199: 0
A200: =_xlfn.AGGREGATE(3,5,$B$3:B200) -> 0 | F200: 0
... 429 more rows

Sheet القائمة8
A1: الصف : الشعبة : مربي الصف :
A2: الرقم | B2: الاسم | C2: ملاحظات
A3: =_xlfn.AGGREGATE(3,5,$B$3:B3) -> 0 | B3: =IF(E3<>0,E3,"") ->  | F3: =E3 -> 0
A4: =_xlfn.AGGREGATE(3,5,$B$3:B4) -> 0 | F4: 0
A5: =_xlfn.AGGREGATE(3,5,$B$3:B5) -> 0 | F5: 0
A6: =_xlfn.AGGREGATE(3,5,$B$3:B6) -> 0 | F6: 0
A7: =_xlfn.AGGREGATE(3,5,$B$3:B7) -> 0 | F7: 0
A8: =_xlfn.AGGREGATE(3,5,$B$3:B8) -> 0 | F8: 0
A9: =_xlfn.AGGREGATE(3,5,$B$3:B9) -> 0 | F9: 0
A10: =_xlfn.AGGREGATE(3,5,$B$3:B10) -> 0 | F10: 0
A11: =_xlfn.AGGREGATE(3,5,$B$3:B11) -> 0 | F11: 0
A12: =_xlfn.AGGREGATE(3,5,$B$3:B12) -> 0 | F12: 0
A13: =_xlfn.AGGREGATE(3,5,$B$3:B13) -> 0 | F13: 0
A14: =_xlfn.AGGREGATE(3,5,$B$3:B14) -> 0 | F14: 0
A15: =_xlfn.AGGREGATE(3,5,$B$3:B15) -> 0 | F15: 0
A16: =_xlfn.AGGREGATE(3,5,$B$3:B16) -> 0 | F16: 0
A17: =_xlfn.AGGREGATE(3,5,$B$3:B17) -> 0 | F17: 0
A18: =_xlfn.AGGREGATE(3,5,$B$3:B18) -> 0 | F18: 0
A19: =_xlfn.AGGREGATE(3,5,$B$3:B19) -> 0 | F19: 0
A20: =_xlfn.AGGREGATE(3,5,$B$3:B20) -> 0 | F20: 0
A21: =_xlfn.AGGREGATE(3,5,$B$3:B21) -> 0 | F21: 0
A22: =_xlfn.AGGREGATE(3,5,$B$3:B22) -> 0 | F22: 0
A23: =_xlfn.AGGREGATE(3,5,$B$3:B23) -> 0 | F23: 0
A24: =_xlfn.AGGREGATE(3,5,$B$3:B24) -> 0 | F24: 0
A25: =_xlfn.AGGREGATE(3,5,$B$3:B25) -> 0 | F25: 0
A26: =_xlfn.AGGREGATE(3,5,$B$3:B26) -> 0 | F26: 0
A27: =_xlfn.AGGREGATE(3,5,$B$3:B27) -> 0 | F27: 0
A28: =_xlfn.AGGREGATE(3,5,$B$3:B28) -> 0 | F28: 0
A29: =_xlfn.AGGREGATE(3,5,$B$3:B29) -> 0 | F29: 0
A30: =_xlfn.AGGREGATE(3,5,$B$3:B30) -> 0 | F30: 0
A31: =_xlfn.AGGREGATE(3,5,$B$3:B31) -> 0 | F31: 0
A32: =_xlfn.AGGREGATE(3,5,$B$3:B32) -> 0 | F32: 0
A33: =_xlfn.AGGREGATE(3,5,$B$3:B33) -> 0 | F33: 0
A34: =_xlfn.AGGREGATE(3,5,$B$3:B34) -> 0 | F34: 0
A35: =_xlfn.AGGREGATE(3,5,$B$3:B35) -> 0 | F35: 0
A36: =_xlfn.AGGREGATE(3,5,$B$3:B36) -> 0 | F36: 0
A37: =_xlfn.AGGREGATE(3,5,$B$3:B37) -> 0 | F37: 0
A38: =_xlfn.AGGREGATE(3,5,$B$3:B38) -> 0 | F38: 0
A39: =_xlfn.AGGREGATE(3,5,$B$3:B39) -> 0 | F39: 0
A40: =_xlfn.AGGREGATE(3,5,$B$3:B40) -> 0 | F40: 0
A41: =_xlfn.AGGREGATE(3,5,$B$3:B41) -> 0 | F41: 0
A42: =_xlfn.AGGREGATE(3,5,$B$3:B42) -> 0 | F42: 0
A43: =_xlfn.AGGREGATE(3,5,$B$3:B43) -> 0 | F43: 0
A44: =_xlfn.AGGREGATE(3,5,$B$3:B44) -> 0 | F44: 0
A45: =_xlfn.AGGREGATE(3,5,$B$3:B45) -> 0 | F45: 0
A46: =_xlfn.AGGREGATE(3,5,$B$3:B46) -> 0 | F46: 0
A47: =_xlfn.AGGREGATE(3,5,$B$3:B47) -> 0 | F47: 0
A48: =_xlfn.AGGREGATE(3,5,$B$3:B48) -> 0 | F48: 0
A49: =_xlfn.AGGREGATE(3,5,$B$3:B49) -> 0 | F49: 0
A50: =_xlfn.AGGREGATE(3,5,$B$3:B50) -> 0 | F50: 0
A51: =_xlfn.AGGREGATE(3,5,$B$3:B51) -> 0 | F51: 0
A52: =_xlfn.AGGREGATE(3,5,$B$3:B52) -> 0 | F52: 0
A53: =_xlfn.AGGREGATE(3,5,$B$3:B53) -> 0 | F53: 0
A54: =_xlfn.AGGREGATE(3,5,$B$3:B54) -> 0 | F54: 0
A55: =_xlfn.AGGREGATE(3,5,$B$3:B55) -> 0 | F55: 0
A56: =_xlfn.AGGREGATE(3,5,$B$3:B56) -> 0 | F56: 0
A57: =_xlfn.AGGREGATE(3,5,$B$3:B57) -> 0 | F57: 0
A58: =_xlfn.AGGREGATE(3,5,$B$3:B58) -> 0 | F58: 0
A59: =_xlfn.AGGREGATE(3,5,$B$3:B59) -> 0 | F59: 0
A60: =_xlfn.AGGREGATE(3,5,$B$3:B60) -> 0 | F60: 0
A61: =_xlfn.AGGREGATE(3,5,$B$3:B61) -> 0 | F61: 0
A62: =_xlfn.AGGREGATE(3,5,$B$3:B62) -> 0 | F62: 0
A63: =_xlfn.AGGREGATE(3,5,$B$3:B63) -> 0 | F63: 0
A64: =_xlfn.AGGREGATE(3,5,$B$3:B64) -> 0 | F64: 0
A65: =_xlfn.AGGREGATE(3,5,$B$3:B65) -> 0 | F65: 0
A66: =_xlfn.AGGREGATE(3,5,$B$3:B66) -> 0 | F66: 0
A67: =_xlfn.AGGREGATE(3,5,$B$3:B67) -> 0 | B67: =IF(E67<>0,E67,"") ->  | F67: =E67 -> 0
A68: =_xlfn.AGGREGATE(3,5,$B$3:B68) -> 0 | F68: 0
A69: =_xlfn.AGGREGATE(3,5,$B$3:B69) -> 0 | F69: 0
A70: =_xlfn.AGGREGATE(3,5,$B$3:B70) -> 0 | F70: 0
A71: =_xlfn.AGGREGATE(3,5,$B$3:B71) -> 0 | F71: 0
A72: =_xlfn.AGGREGATE(3,5,$B$3:B72) -> 0 | F72: 0
A73: =_xlfn.AGGREGATE(3,5,$B$3:B73) -> 0 | F73: 0
A74: =_xlfn.AGGREGATE(3,5,$B$3:B74) -> 0 | F74: 0
A75: =_xlfn.AGGREGATE(3,5,$B$3:B75) -> 0 | F75: 0
A76: =_xlfn.AGGREGATE(3,5,$B$3:B76) -> 0 | F76: 0
A77: =_xlfn.AGGREGATE(3,5,$B$3:B77) -> 0 | F77: 0
A78: =_xlfn.AGGREGATE(3,5,$B$3:B78) -> 0 | F78: 0
A79: =_xlfn.AGGREGATE(3,5,$B$3:B79) -> 0 | F79: 0
A80: =_xlfn.AGGREGATE(3,5,$B$3:B80) -> 0 | F80: 0
A81: =_xlfn.AGGREGATE(3,5,$B$3:B81) -> 0 | F81: 0
A82: =_xlfn.AGGREGATE(3,5,$B$3:B82) -> 0 | F82: 0
A83: =_xlfn.AGGREGATE(3,5,$B$3:B83) -> 0 | F83: 0
A84: =_xlfn.AGGREGATE(3,5,$B$3:B84) -> 0 | F84: 0
A85: =_xlfn.AGGREGATE(3,5,$B$3:B85) -> 0 | F85: 0
A86: =_xlfn.AGGREGATE(3,5,$B$3:B86) -> 0 | F86: 0
A87: =_xlfn.AGGREGATE(3,5,$B$3:B87) -> 0 | F87: 0
A88: =_xlfn.AGGREGATE(3,5,$B$3:B88) -> 0 | F88: 0
A89: =_xlfn.AGGREGATE(3,5,$B$3:B89) -> 0 | F89: 0
A90: =_xlfn.AGGREGATE(3,5,$B$3:B90) -> 0 | F90: 0
A91: =_xlfn.AGGREGATE(3,5,$B$3:B91) -> 0 | F91: 0
A92: =_xlfn.AGGREGATE(3,5,$B$3:B92) -> 0 | F92: 0
A93: =_xlfn.AGGREGATE(3,5,$B$3:B93) -> 0 | F93: 0
A94: =_xlfn.AGGREGATE(3,5,$B$3:B94) -> 0 | F94: 0
A95: =_xlfn.AGGREGATE(3,5,$B$3:B95) -> 0 | F95: 0
A96: =_xlfn.AGGREGATE(3,5,$B$3:B96) -> 0 | F96: 0
A97: =_xlfn.AGGREGATE(3,5,$B$3:B97) -> 0 | F97: 0
A98: =_xlfn.AGGREGATE(3,5,$B$3:B98) -> 0 | F98: 0
A99: =_xlfn.AGGREGATE(3,5,$B$3:B99) -> 0 | F99: 0
A100: =_xlfn.AGGREGATE(3,5,$B$3:B100) -> 0 | F100: 0
A101: =_xlfn.AGGREGATE(3,5,$B$3:B101) -> 0 | F101: 0
A102: =_xlfn.AGGREGATE(3,5,$B$3:B102) -> 0 | F102: 0
A103: =_xlfn.AGGREGATE(3,5,$B$3:B103) -> 0 | F103: 0
A104: =_xlfn.AGGREGATE(3,5,$B$3:B104) -> 0 | F104: 0
A105: =_xlfn.AGGREGATE(3,5,$B$3:B105) -> 0 | F105: 0
A106: =_xlfn.AGGREGATE(3,5,$B$3:B106) -> 0 | F106: 0
A107: =_xlfn.AGGREGATE(3,5,$B$3:B107) -> 0 | F107: 0
A108: =_xlfn.AGGREGATE(3,5,$B$3:B108) -> 0 | F108: 0
A109: =_xlfn.AGGREGATE(3,5,$B$3:B109) -> 0 | F109: 0
A110: =_xlfn.AGGREGATE(3,5,$B$3:B110) -> 0 | F110: 0
A111: =_xlfn.AGGREGATE(3,5,$B$3:B111) -> 0 | F111: 0
A112: =_xlfn.AGGREGATE(3,5,$B$3:B112) -> 0 | F112: 0
A113: =_xlfn.AGGREGATE(3,5,$B$3:B113) -> 0 | F113: 0
A114: =_xlfn.AGGREGATE(3,5,$B$3:B114) -> 0 | F114: 0
A115: =_xlfn.AGGREGATE(3,5,$B$3:B115) -> 0 | F115: 0
A116: =_xlfn.AGGREGATE(3,5,$B$3:B116) -> 0 | F116: 0
A117: =_xlfn.AGGREGATE(3,5,$B$3:B117) -> 0 | F117: 0
A118: =_xlfn.AGGREGATE(3,5,$B$3:B118) -> 0 | F118: 0
A119: =_xlfn.AGGREGATE(3,5,$B$3:B119) -> 0 | F119: 0
A120: =_xlfn.AGGREGATE(3,5,$B$3:B120) -> 0 | F120: 0
A121: =_xlfn.AGGREGATE(3,5,$B$3:B121) -> 0 | F121: 0
A122: =_xlfn.AGGREGATE(3,5,$B$3:B122) -> 0 | F122: 0
A123: =_xlfn.AGGREGATE(3,5,$B$3:B123) -> 0 | F123: 0
A124: =_xlfn.AGGREGATE(3,5,$B$3:B124) -> 0 | F124: 0
A125: =_xlfn.AGGREGATE(3,5,$B$3:B125) -> 0 | C125: ` | F125: 0
A126: =_xlfn.AGGREGATE(3,5,$B$3:B126) -> 0 | F126: 0
A127: =_xlfn.AGGREGATE(3,5,$B$3:B127) -> 0 | F127: 0
A128: =_xlfn.AGGREGATE(3,5,$B$3:B128) -> 0 | F128: 0
A129: =_xlfn.AGGREGATE(3,5,$B$3:B129) -> 0 | F129: 0
A130: =_xlfn.AGGREGATE(3,5,$B$3:B130) -> 0 | F130: 0
A131: =_xlfn.AGGREGATE(3,5,$B$3:B131) -> 0 | B131: =IF(E131<>0,E131,"") ->  | F131: =E131 -> 0
A132: =_xlfn.AGGREGATE(3,5,$B$3:B132) -> 0 | F132: 0
A133: =_xlfn.AGGREGATE(3,5,$B$3:B133) -> 0 | F133: 0
A134: =_xlfn.AGGREGATE(3,5,$B$3:B134) -> 0 | F134: 0
A135: =_xlfn.AGGREGATE(3,5,$B$3:B135) -> 0 | F135: 0
A136: =_xlfn.AGGREGATE(3,5,$B$3:B136) -> 0 | F136: 0
A137: =_xlfn.AGGREGATE(3,5,$B$3:B137) -> 0 | F137: 0
A138: =_xlfn.AGGREGATE(3,5,$B$3:B138) -> 0 | F138: 0
A139: =_xlfn.AGGREGATE(3,5,$B$3:B139) -> 0 | F139: 0
A140: =_xlfn.AGGREGATE(3,5,$B$3:B140) -> 0 | F140: 0
A141: =_xlfn.AGGREGATE(3,5,$B$3:B141) -> 0 | F141: 0
A142: =_xlfn.AGGREGATE(3,5,$B$3:B142) -> 0 | F142: 0
A143: =_xlfn.AGGREGATE(3,5,$B$3:B143) -> 0 | F143: 0
A144: =_xlfn.AGGREGATE(3,5,$B$3:B144) -> 0 | F144: 0
A145: =_xlfn.AGGREGATE(3,5,$B$3:B145) -> 0 | F145: 0
A146: =_xlfn.AGGREGATE(3,5,$B$3:B146) -> 0 | F146: 0
A147: =_xlfn.AGGREGATE(3,5,$B$3:B147) -> 0 | F147: 0
A148: =_xlfn.AGGREGATE(3,5,$B$3:B148) -> 0 | F148: 0
A149: =_xlfn.AGGREGATE(3,5,$B$3:B149) -> 0 | F149: 0
A150: =_xlfn.AGGREGATE(3,5,$B$3:B150) -> 0 | F150: 0
A151: =_xlfn.AGGREGATE(3,5,$B$3:B151) -> 0 | F151: 0
A152: =_xlfn.AGGREGATE(3,5,$B$3:B152) -> 0 | F152: 0
A153: =_xlfn.AGGREGATE(3,5,$B$3:B153) -> 0 | F153: 0
A154: =_xlfn.AGGREGATE(3,5,$B$3:B154) -> 0 | F154: 0
A155: =_xlfn.AGGREGATE(3,5,$B$3:B155) -> 0 | F155: 0
A156: =_xlfn.AGGREGATE(3,5,$B$3:B156) -> 0 | F156: 0
A157: =_xlfn.AGGREGATE(3,5,$B$3:B157) -> 0 | F157: 0
A158: =_xlfn.AGGREGATE(3,5,$B$3:B158) -> 0 | F158: 0
A159: =_xlfn.AGGREGATE(3,5,$B$3:B159) -> 0 | F159: 0
A160: =_xlfn.AGGREGATE(3,5,$B$3:B160) -> 0 | F160: 0
A161: =_xlfn.AGGREGATE(3,5,$B$3:B161) -> 0 | F161: 0
A162: =_xlfn.AGGREGATE(3,5,$B$3:B162) -> 0 | F162: 0
A163: =_xlfn.AGGREGATE(3,5,$B$3:B163) -> 0 | F163: 0
A164: =_xlfn.AGGREGATE(3,5,$B$3:B164) -> 0 | F164: 0
A165: =_xlfn.AGGREGATE(3,5,$B$3:B165) -> 0 | F165: 0
A166: =_xlfn.AGGREGATE(3,5,$B$3:B166) -> 0 | F166: 0
A167: =_xlfn.AGGREGATE(3,5,$B$3:B167) -> 0 | F167: 0
A168: =_xlfn.AGGREGATE(3,5,$B$3:B168) -> 0 | F168: 0
A169: =_xlfn.AGGREGATE(3,5,$B$3:B169) -> 0 | F169: 0
A170: =_xlfn.AGGREGATE(3,5,$B$3:B170) -> 0 | F170: 0
A171: =_xlfn.AGGREGATE(3,5,$B$3:B171) -> 0 | F171: 0
A172: =_xlfn.AGGREGATE(3,5,$B$3:B172) -> 0 | F172: 0
A173: =_xlfn.AGGREGATE(3,5,$B$3:B173) -> 0 | F173: 0
A174: =_xlfn.AGGREGATE(3,5,$B$3:B174) -> 0 | F174: 0
A175: =_xlfn.AGGREGATE(3,5,$B$3:B175) -> 0 | F175: 0
A176: =_xlfn.AGGREGATE(3,5,$B$3:B176) -> 0 | F176: 0
A177: =_xlfn.AGGREGATE(3,5,$B$3:B177) -> 0 | F177: 0
A178: =_xlfn.AGGREGATE(3,5,$B$3:B178) -> 0 | F178: 0
A179: =_xlfn.AGGREGATE(3,5,$B$3:B179) -> 0 | F179: 0
A180: =_xlfn.AGGREGATE(3,5,$B$3:B180) -> 0 | F180: 0
A181: =_xlfn.AGGREGATE(3,5,$B$3:B181) -> 0 | F181: 0
A182: =_xlfn.AGGREGATE(3,5,$B$3:B182) -> 0 | F182: 0
A183: =_xlfn.AGGREGATE(3,5,$B$3:B183) -> 0 | F183: 0
A184: =_xlfn.AGGREGATE(3,5,$B$3:B184) -> 0 | F184: 0
A185: =_xlfn.AGGREGATE(3,5,$B$3:B185) -> 0 | F185: 0
A186: =_xlfn.AGGREGATE(3,5,$B$3:B186) -> 0 | F186: 0
A187: =_xlfn.AGGREGATE(3,5,$B$3:B187) -> 0 | F187: 0
A188: =_xlfn.AGGREGATE(3,5,$B$3:B188) -> 0 | F188: 0
A189: =_xlfn.AGGREGATE(3,5,$B$3:B189) -> 0 | F189: 0
A190: =_xlfn.AGGREGATE(3,5,$B$3:B190) -> 0 | F190: 0
A191: =_xlfn.AGGREGATE(3,5,$B$3:B191) -> 0 | F191: 0
A192: =_xlfn.AGGREGATE(3,5,$B$3:B192) -> 0 | F192: 0
A193: =_xlfn.AGGREGATE(3,5,$B$3:B193) -> 0 | F193: 0
A194: =_xlfn.AGGREGATE(3,5,$B$3:B194) -> 0 | F194: 0
A195: =_xlfn.AGGREGATE(3,5,$B$3:B195) -> 0 | B195: =IF(E195<>0,E195,"") ->  | F195: =E195 -> 0
A196: =_xlfn.AGGREGATE(3,5,$B$3:B196) -> 0 | F196: 0
A197: =_xlfn.AGGREGATE(3,5,$B$3:B197) -> 0 | F197: 0
A198: =_xlfn.AGGREGATE(3,5,$B$3:B198) -> 0 | F198: 0
A199: =_xlfn.AGGREGATE(3,5,$B$3:B199) -> 0 | F199: 0
A200: =_xlfn.AGGREGATE(3,5,$B$3:B200) -> 0 | F200: 0
... 429 more rows

Sheet القائمة9
A1: الصف : الشعبة : مربي الصف :
A2: الرقم | B2: الاسم | C2: ملاحظات
A3: =_xlfn.AGGREGATE(3,5,$B$3:B3) -> 0 | B3: =IF(E3<>0,E3,"") ->  | F3: =E3 -> 0
A4: =_xlfn.AGGREGATE(3,5,$B$3:B4) -> 0 | F4: 0
A5: =_xlfn.AGGREGATE(3,5,$B$3:B5) -> 0 | F5: 0
A6: =_xlfn.AGGREGATE(3,5,$B$3:B6) -> 0 | F6: 0
A7: =_xlfn.AGGREGATE(3,5,$B$3:B7) -> 0 | F7: 0
A8: =_xlfn.AGGREGATE(3,5,$B$3:B8) -> 0 | F8: 0
A9: =_xlfn.AGGREGATE(3,5,$B$3:B9) -> 0 | F9: 0
A10: =_xlfn.AGGREGATE(3,5,$B$3:B10) -> 0 | F10: 0
A11: =_xlfn.AGGREGATE(3,5,$B$3:B11) -> 0 | F11: 0
A12: =_xlfn.AGGREGATE(3,5,$B$3:B12) -> 0 | F12: 0
A13: =_xlfn.AGGREGATE(3,5,$B$3:B13) -> 0 | F13: 0
A14: =_xlfn.AGGREGATE(3,5,$B$3:B14) -> 0 | F14: 0
A15: =_xlfn.AGGREGATE(3,5,$B$3:B15) -> 0 | F15: 0
A16: =_xlfn.AGGREGATE(3,5,$B$3:B16) -> 0 | F16: 0
A17: =_xlfn.AGGREGATE(3,5,$B$3:B17) -> 0 | F17: 0
A18: =_xlfn.AGGREGATE(3,5,$B$3:B18) -> 0 | F18: 0
A19: =_xlfn.AGGREGATE(3,5,$B$3:B19) -> 0 | F19: 0
A20: =_xlfn.AGGREGATE(3,5,$B$3:B20) -> 0 | F20: 0
A21: =_xlfn.AGGREGATE(3,5,$B$3:B21) -> 0 | F21: 0
A22: =_xlfn.AGGREGATE(3,5,$B$3:B22) -> 0 | F22: 0
A23: =_xlfn.AGGREGATE(3,5,$B$3:B23) -> 0 | F23: 0
A24: =_xlfn.AGGREGATE(3,5,$B$3:B24) -> 0 | F24: 0
A25: =_xlfn.AGGREGATE(3,5,$B$3:B25) -> 0 | F25: 0
A26: =_xlfn.AGGREGATE(3,5,$B$3:B26) -> 0 | F26: 0
A27: =_xlfn.AGGREGATE(3,5,$B$3:B27) -> 0 | F27: 0
A28: =_xlfn.AGGREGATE(3,5,$B$3:B28) -> 0 | F28: 0
A29: =_xlfn.AGGREGATE(3,5,$B$3:B29) -> 0 | F29: 0
A30: =_xlfn.AGGREGATE(3,5,$B$3:B30) -> 0 | F30: 0
A31: =_xlfn.AGGREGATE(3,5,$B$3:B31) -> 0 | F31: 0
A32: =_xlfn.AGGREGATE(3,5,$B$3:B32) -> 0 | F32: 0
A33: =_xlfn.AGGREGATE(3,5,$B$3:B33) -> 0 | F33: 0
A34: =_xlfn.AGGREGATE(3,5,$B$3:B34) -> 0 | F34: 0
A35: =_xlfn.AGGREGATE(3,5,$B$3:B35) -> 0 | F35: 0
A36: =_xlfn.AGGREGATE(3,5,$B$3:B36) -> 0 | F36: 0
A37: =_xlfn.AGGREGATE(3,5,$B$3:B37) -> 0 | F37: 0
A38: =_xlfn.AGGREGATE(3,5,$B$3:B38) -> 0 | F38: 0
A39: =_xlfn.AGGREGATE(3,5,$B$3:B39) -> 0 | F39: 0
A40: =_xlfn.AGGREGATE(3,5,$B$3:B40) -> 0 | F40: 0
A41: =_xlfn.AGGREGATE(3,5,$B$3:B41) -> 0 | F41: 0
A42: =_xlfn.AGGREGATE(3,5,$B$3:B42) -> 0 | F42: 0
A43: =_xlfn.AGGREGATE(3,5,$B$3:B43) -> 0 | F43: 0
A44: =_xlfn.AGGREGATE(3,5,$B$3:B44) -> 0 | F44: 0
A45: =_xlfn.AGGREGATE(3,5,$B$3:B45) -> 0 | F45: 0
A46: =_xlfn.AGGREGATE(3,5,$B$3:B46) -> 0 | F46: 0
A47: =_xlfn.AGGREGATE(3,5,$B$3:B47) -> 0 | F47: 0
A48: =_xlfn.AGGREGATE(3,5,$B$3:B48) -> 0 | F48: 0
A49: =_xlfn.AGGREGATE(3,5,$B$3:B49) -> 0 | F49: 0
A50: =_xlfn.AGGREGATE(3,5,$B$3:B50) -> 0 | F50: 0
A51: =_xlfn.AGGREGATE(3,5,$B$3:B51) -> 0 | F51: 0
A52: =_xlfn.AGGREGATE(3,5,$B$3:B52) -> 0 | F52: 0
A53: =_xlfn.AGGREGATE(3,5,$B$3:B53) -> 0 | F53: 0
A54: =_xlfn.AGGREGATE(3,5,$B$3:B54) -> 0 | F54: 0
A55: =_xlfn.AGGREGATE(3,5,$B$3:B55) -> 0 | F55: 0
A56: =_xlfn.AGGREGATE(3,5,$B$3:B56) -> 0 | F56: 0
A57: =_xlfn.AGGREGATE(3,5,$B$3:B57) -> 0 | F57: 0
A58: =_xlfn.AGGREGATE(3,5,$B$3:B58) -> 0 | F58: 0
A59: =_xlfn.AGGREGATE(3,5,$B$3:B59) -> 0 | F59: 0
A60: =_xlfn.AGGREGATE(3,5,$B$3:B60) -> 0 | F60: 0
A61: =_xlfn.AGGREGATE(3,5,$B$3:B61) -> 0 | F61: 0
A62: =_xlfn.AGGREGATE(3,5,$B$3:B62) -> 0 | F62: 0
A63: =_xlfn.AGGREGATE(3,5,$B$3:B63) -> 0 | F63: 0
A64: =_xlfn.AGGREGATE(3,5,$B$3:B64) -> 0 | F64: 0
A65: =_xlfn.AGGREGATE(3,5,$B$3:B65) -> 0 | F65: 0
A66: =_xlfn.AGGREGATE(3,5,$B$3:B66) -> 0 | F66: 0
A67: =_xlfn.AGGREGATE(3,5,$B$3:B67) -> 0 | B67: =IF(E67<>0,E67,"") ->  | F67: =E67 -> 0
A68: =_xlfn.AGGREGATE(3,5,$B$3:B68) -> 0 | F68: 0
A69: =_xlfn.AGGREGATE(3,5,$B$3:B69) -> 0 | F69: 0
A70: =_xlfn.AGGREGATE(3,5,$B$3:B70) -> 0 | F70: 0
A71: =_xlfn.AGGREGATE(3,5,$B$3:B71) -> 0 | F71: 0
A72: =_xlfn.AGGREGATE(3,5,$B$3:B72) -> 0 | F72: 0
A73: =_xlfn.AGGREGATE(3,5,$B$3:B73) -> 0 | F73: 0
A74: =_xlfn.AGGREGATE(3,5,$B$3:B74) -> 0 | F74: 0
A75: =_xlfn.AGGREGATE(3,5,$B$3:B75) -> 0 | F75: 0
A76: =_xlfn.AGGREGATE(3,5,$B$3:B76) -> 0 | F76: 0
A77: =_xlfn.AGGREGATE(3,5,$B$3:B77) -> 0 | F77: 0
A78: =_xlfn.AGGREGATE(3,5,$B$3:B78) -> 0 | F78: 0
A79: =_xlfn.AGGREGATE(3,5,$B$3:B79) -> 0 | F79: 0
A80: =_xlfn.AGGREGATE(3,5,$B$3:B80) -> 0 | F80: 0
A81: =_xlfn.AGGREGATE(3,5,$B$3:B81) -> 0 | F81: 0
A82: =_xlfn.AGGREGATE(3,5,$B$3:B82) -> 0 | F82: 0
A83: =_xlfn.AGGREGATE(3,5,$B$3:B83) -> 0 | F83: 0
A84: =_xlfn.AGGREGATE(3,5,$B$3:B84) -> 0 | F84: 0
A85: =_xlfn.AGGREGATE(3,5,$B$3:B85) -> 0 | F85: 0
A86: =_xlfn.AGGREGATE(3,5,$B$3:B86) -> 0 | F86: 0
A87: =_xlfn.AGGREGATE(3,5,$B$3:B87) -> 0 | F87: 0
A88: =_xlfn.AGGREGATE(3,5,$B$3:B88) -> 0 | F88: 0
A89: =_xlfn.AGGREGATE(3,5,$B$3:B89) -> 0 | F89: 0
A90: =_xlfn.AGGREGATE(3,5,$B$3:B90) -> 0 | F90: 0
A91: =_xlfn.AGGREGATE(3,5,$B$3:B91) -> 0 | F91: 0
A92: =_xlfn.AGGREGATE(3,5,$B$3:B92) -> 0 | F92: 0
A93: =_xlfn.AGGREGATE(3,5,$B$3:B93) -> 0 | F93: 0
A94: =_xlfn.AGGREGATE(3,5,$B$3:B94) -> 0 | F94: 0
A95: =_xlfn.AGGREGATE(3,5,$B$3:B95) -> 0 | F95: 0
A96: =_xlfn.AGGREGATE(3,5,$B$3:B96) -> 0 | F96: 0
A97: =_xlfn.AGGREGATE(3,5,$B$3:B97) -> 0 | F97: 0
A98: =_xlfn.AGGREGATE(3,5,$B$3:B98) -> 0 | F98: 0
A99: =_xlfn.AGGREGATE(3,5,$B$3:B99) -> 0 | F99: 0
A100: =_xlfn.AGGREGATE(3,5,$B$3:B100) -> 0 | F100: 0
A101: =_xlfn.AGGREGATE(3,5,$B$3:B101) -> 0 | F101: 0
A102: =_xlfn.AGGREGATE(3,5,$B$3:B102) -> 0 | F102: 0
A103: =_xlfn.AGGREGATE(3,5,$B$3:B103) -> 0 | F103: 0
A104: =_xlfn.AGGREGATE(3,5,$B$3:B104) -> 0 | F104: 0
A105: =_xlfn.AGGREGATE(3,5,$B$3:B105) -> 0 | F105: 0
A106: =_xlfn.AGGREGATE(3,5,$B$3:B106) -> 0 | F106: 0
A107: =_xlfn.AGGREGATE(3,5,$B$3:B107) -> 0 | F107: 0
A108: =_xlfn.AGGREGATE(3,5,$B$3:B108) -> 0 | F108: 0
A109: =_xlfn.AGGREGATE(3,5,$B$3:B109) -> 0 | F109: 0
A110: =_xlfn.AGGREGATE(3,5,$B$3:B110) -> 0 | F110: 0
A111: =_xlfn.AGGREGATE(3,5,$B$3:B111) -> 0 | F111: 0
A112: =_xlfn.AGGREGATE(3,5,$B$3:B112) -> 0 | F112: 0
A113: =_xlfn.AGGREGATE(3,5,$B$3:B113) -> 0 | F113: 0
A114: =_xlfn.AGGREGATE(3,5,$B$3:B114) -> 0 | F114: 0
A115: =_xlfn.AGGREGATE(3,5,$B$3:B115) -> 0 | F115: 0
A116: =_xlfn.AGGREGATE(3,5,$B$3:B116) -> 0 | F116: 0
A117: =_xlfn.AGGREGATE(3,5,$B$3:B117) -> 0 | F117: 0
A118: =_xlfn.AGGREGATE(3,5,$B$3:B118) -> 0 | F118: 0
A119: =_xlfn.AGGREGATE(3,5,$B$3:B119) -> 0 | F119: 0
A120: =_xlfn.AGGREGATE(3,5,$B$3:B120) -> 0 | F120: 0
A121: =_xlfn.AGGREGATE(3,5,$B$3:B121) -> 0 | F121: 0
A122: =_xlfn.AGGREGATE(3,5,$B$3:B122) -> 0 | F122: 0
A123: =_xlfn.AGGREGATE(3,5,$B$3:B123) -> 0 | F123: 0
A124: =_xlfn.AGGREGATE(3,5,$B$3:B124) -> 0 | F124: 0
A125: =_xlfn.AGGREGATE(3,5,$B$3:B125) -> 0 | C125: ` | F125: 0
A126: =_xlfn.AGGREGATE(3,5,$B$3:B126) -> 0 | F126: 0
A127: =_xlfn.AGGREGATE(3,5,$B$3:B127) -> 0 | F127: 0
A128: =_xlfn.AGGREGATE(3,5,$B$3:B128) -> 0 | F128: 0
A129: =_xlfn.AGGREGATE(3,5,$B$3:B129) -> 0 | F129: 0
A130: =_xlfn.AGGREGATE(3,5,$B$3:B130) -> 0 | F130: 0
A131: =_xlfn.AGGREGATE(3,5,$B$3:B131) -> 0 | B131: =IF(E131<>0,E131,"") ->  | F131: =E131 -> 0
A132: =_xlfn.AGGREGATE(3,5,$B$3:B132) -> 0 | F132: 0
A133: =_xlfn.AGGREGATE(3,5,$B$3:B133) -> 0 | F133: 0
A134: =_xlfn.AGGREGATE(3,5,$B$3:B134) -> 0 | F134: 0
A135: =_xlfn.AGGREGATE(3,5,$B$3:B135) -> 0 | F135: 0
A136: =_xlfn.AGGREGATE(3,5,$B$3:B136) -> 0 | F136: 0
A137: =_xlfn.AGGREGATE(3,5,$B$3:B137) -> 0 | F137: 0
A138: =_xlfn.AGGREGATE(3,5,$B$3:B138) -> 0 | F138: 0
A139: =_xlfn.AGGREGATE(3,5,$B$3:B139) -> 0 | F139: 0
A140: =_xlfn.AGGREGATE(3,5,$B$3:B140) -> 0 | F140: 0
A141: =_xlfn.AGGREGATE(3,5,$B$3:B141) -> 0 | F141: 0
A142: =_xlfn.AGGREGATE(3,5,$B$3:B142) -> 0 | F142: 0
A143: =_xlfn.AGGREGATE(3,5,$B$3:B143) -> 0 | F143: 0
A144: =_xlfn.AGGREGATE(3,5,$B$3:B144) -> 0 | F144: 0
A145: =_xlfn.AGGREGATE(3,5,$B$3:B145) -> 0 | F145: 0
A146: =_xlfn.AGGREGATE(3,5,$B$3:B146) -> 0 | F146: 0
A147: =_xlfn.AGGREGATE(3,5,$B$3:B147) -> 0 | F147: 0
A148: =_xlfn.AGGREGATE(3,5,$B$3:B148) -> 0 | F148: 0
A149: =_xlfn.AGGREGATE(3,5,$B$3:B149) -> 0 | F149: 0
A150: =_xlfn.AGGREGATE(3,5,$B$3:B150) -> 0 | F150: 0
A151: =_xlfn.AGGREGATE(3,5,$B$3:B151) -> 0 | F151: 0
A152: =_xlfn.AGGREGATE(3,5,$B$3:B152) -> 0 | F152: 0
A153: =_xlfn.AGGREGATE(3,5,$B$3:B153) -> 0 | F153: 0
A154: =_xlfn.AGGREGATE(3,5,$B$3:B154) -> 0 | F154: 0
A155: =_xlfn.AGGREGATE(3,5,$B$3:B155) -> 0 | F155: 0
A156: =_xlfn.AGGREGATE(3,5,$B$3:B156) -> 0 | F156: 0
A157: =_xlfn.AGGREGATE(3,5,$B$3:B157) -> 0 | F157: 0
A158: =_xlfn.AGGREGATE(3,5,$B$3:B158) -> 0 | F158: 0
A159: =_xlfn.AGGREGATE(3,5,$B$3:B159) -> 0 | F159: 0
A160: =_xlfn.AGGREGATE(3,5,$B$3:B160) -> 0 | F160: 0
A161: =_xlfn.AGGREGATE(3,5,$B$3:B161) -> 0 | F161: 0
A162: =_xlfn.AGGREGATE(3,5,$B$3:B162) -> 0 | F162: 0
A163: =_xlfn.AGGREGATE(3,5,$B$3:B163) -> 0 | F163: 0
A164: =_xlfn.AGGREGATE(3,5,$B$3:B164) -> 0 | F164: 0
A165: =_xlfn.AGGREGATE(3,5,$B$3:B165) -> 0 | F165: 0
A166: =_xlfn.AGGREGATE(3,5,$B$3:B166) -> 0 | F166: 0
A167: =_xlfn.AGGREGATE(3,5,$B$3:B167) -> 0 | F167: 0
A168: =_xlfn.AGGREGATE(3,5,$B$3:B168) -> 0 | F168: 0
A169: =_xlfn.AGGREGATE(3,5,$B$3:B169) -> 0 | F169: 0
A170: =_xlfn.AGGREGATE(3,5,$B$3:B170) -> 0 | F170: 0
A171: =_xlfn.AGGREGATE(3,5,$B$3:B171) -> 0 | F171: 0
A172: =_xlfn.AGGREGATE(3,5,$B$3:B172) -> 0 | F172: 0
A173: =_xlfn.AGGREGATE(3,5,$B$3:B173) -> 0 | F173: 0
A174: =_xlfn.AGGREGATE(3,5,$B$3:B174) -> 0 | F174: 0
A175: =_xlfn.AGGREGATE(3,5,$B$3:B175) -> 0 | F175: 0
A176: =_xlfn.AGGREGATE(3,5,$B$3:B176) -> 0 | F176: 0
A177: =_xlfn.AGGREGATE(3,5,$B$3:B177) -> 0 | F177: 0
A178: =_xlfn.AGGREGATE(3,5,$B$3:B178) -> 0 | F178: 0
A179: =_xlfn.AGGREGATE(3,5,$B$3:B179) -> 0 | F179: 0
A180: =_xlfn.AGGREGATE(3,5,$B$3:B180) -> 0 | F180: 0
A181: =_xlfn.AGGREGATE(3,5,$B$3:B181) -> 0 | F181: 0
A182: =_xlfn.AGGREGATE(3,5,$B$3:B182) -> 0 | F182: 0
A183: =_xlfn.AGGREGATE(3,5,$B$3:B183) -> 0 | F183: 0
A184: =_xlfn.AGGREGATE(3,5,$B$3:B184) -> 0 | F184: 0
A185: =_xlfn.AGGREGATE(3,5,$B$3:B185) -> 0 | F185: 0
A186: =_xlfn.AGGREGATE(3,5,$B$3:B186) -> 0 | F186: 0
A187: =_xlfn.AGGREGATE(3,5,$B$3:B187) -> 0 | F187: 0
A188: =_xlfn.AGGREGATE(3,5,$B$3:B188) -> 0 | F188: 0
A189: =_xlfn.AGGREGATE(3,5,$B$3:B189) -> 0 | F189: 0
A190: =_xlfn.AGGREGATE(3,5,$B$3:B190) -> 0 | F190: 0
A191: =_xlfn.AGGREGATE(3,5,$B$3:B191) -> 0 | F191: 0
A192: =_xlfn.AGGREGATE(3,5,$B$3:B192) -> 0 | F192: 0
A193: =_xlfn.AGGREGATE(3,5,$B$3:B193) -> 0 | F193: 0
A194: =_xlfn.AGGREGATE(3,5,$B$3:B194) -> 0 | F194: 0
A195: =_xlfn.AGGREGATE(3,5,$B$3:B195) -> 0 | B195: =IF(E195<>0,E195,"") ->  | F195: =E195 -> 0
A196: =_xlfn.AGGREGATE(3,5,$B$3:B196) -> 0 | F196: 0
A197: =_xlfn.AGGREGATE(3,5,$B$3:B197) -> 0 | F197: 0
A198: =_xlfn.AGGREGATE(3,5,$B$3:B198) -> 0 | F198: 0
A199: =_xlfn.AGGREGATE(3,5,$B$3:B199) -> 0 | F199: 0
A200: =_xlfn.AGGREGATE(3,5,$B$3:B200) -> 0 | F200: 0
... 429 more rows

Sheet القائمة10
A1: الصف : الشعبة : مربي الصف :
A2: الرقم | B2: الاسم | C2: ملاحظات
A3: =_xlfn.AGGREGATE(3,5,$B$3:B3) -> 0 | B3: =IF(E3<>0,E3,"") ->  | F3: =E3 -> 0
A4: =_xlfn.AGGREGATE(3,5,$B$3:B4) -> 0 | F4: 0
A5: =_xlfn.AGGREGATE(3,5,$B$3:B5) -> 0 | F5: 0
A6: =_xlfn.AGGREGATE(3,5,$B$3:B6) -> 0 | F6: 0
A7: =_xlfn.AGGREGATE(3,5,$B$3:B7) -> 0 | F7: 0
A8: =_xlfn.AGGREGATE(3,5,$B$3:B8) -> 0 | F8: 0
A9: =_xlfn.AGGREGATE(3,5,$B$3:B9) -> 0 | F9: 0
A10: =_xlfn.AGGREGATE(3,5,$B$3:B10) -> 0 | F10: 0
A11: =_xlfn.AGGREGATE(3,5,$B$3:B11) -> 0 | F11: 0
A12: =_xlfn.AGGREGATE(3,5,$B$3:B12) -> 0 | F12: 0
A13: =_xlfn.AGGREGATE(3,5,$B$3:B13) -> 0 | F13: 0
A14: =_xlfn.AGGREGATE(3,5,$B$3:B14) -> 0 | F14: 0
A15: =_xlfn.AGGREGATE(3,5,$B$3:B15) -> 0 | F15: 0
A16: =_xlfn.AGGREGATE(3,5,$B$3:B16) -> 0 | F16: 0
A17: =_xlfn.AGGREGATE(3,5,$B$3:B17) -> 0 | F17: 0
A18: =_xlfn.AGGREGATE(3,5,$B$3:B18) -> 0 | F18: 0
A19: =_xlfn.AGGREGATE(3,5,$B$3:B19) -> 0 | F19: 0
A20: =_xlfn.AGGREGATE(3,5,$B$3:B20) -> 0 | F20: 0
A21: =_xlfn.AGGREGATE(3,5,$B$3:B21) -> 0 | F21: 0
A22: =_xlfn.AGGREGATE(3,5,$B$3:B22) -> 0 | F22: 0
A23: =_xlfn.AGGREGATE(3,5,$B$3:B23) -> 0 | F23: 0
A24: =_xlfn.AGGREGATE(3,5,$B$3:B24) -> 0 | F24: 0
A25: =_xlfn.AGGREGATE(3,5,$B$3:B25) -> 0 | F25: 0
A26: =_xlfn.AGGREGATE(3,5,$B$3:B26) -> 0 | F26: 0
A27: =_xlfn.AGGREGATE(3,5,$B$3:B27) -> 0 | F27: 0
A28: =_xlfn.AGGREGATE(3,5,$B$3:B28) -> 0 | F28: 0
A29: =_xlfn.AGGREGATE(3,5,$B$3:B29) -> 0 | F29: 0
A30: =_xlfn.AGGREGATE(3,5,$B$3:B30) -> 0 | F30: 0
A31: =_xlfn.AGGREGATE(3,5,$B$3:B31) -> 0 | F31: 0
A32: =_xlfn.AGGREGATE(3,5,$B$3:B32) -> 0 | F32: 0
A33: =_xlfn.AGGREGATE(3,5,$B$3:B33) -> 0 | F33: 0
A34: =_xlfn.AGGREGATE(3,5,$B$3:B34) -> 0 | F34: 0
A35: =_xlfn.AGGREGATE(3,5,$B$3:B35) -> 0 | F35: 0
A36: =_xlfn.AGGREGATE(3,5,$B$3:B36) -> 0 | F36: 0
A37: =_xlfn.AGGREGATE(3,5,$B$3:B37) -> 0 | F37: 0
A38: =_xlfn.AGGREGATE(3,5,$B$3:B38) -> 0 | F38: 0
A39: =_xlfn.AGGREGATE(3,5,$B$3:B39) -> 0 | F39: 0
A40: =_xlfn.AGGREGATE(3,5,$B$3:B40) -> 0 | F40: 0
A41: =_xlfn.AGGREGATE(3,5,$B$3:B41) -> 0 | F41: 0
A42: =_xlfn.AGGREGATE(3,5,$B$3:B42) -> 0 | F42: 0
A43: =_xlfn.AGGREGATE(3,5,$B$3:B43) -> 0 | F43: 0
A44: =_xlfn.AGGREGATE(3,5,$B$3:B44) -> 0 | F44: 0
A45: =_xlfn.AGGREGATE(3,5,$B$3:B45) -> 0 | F45: 0
A46: =_xlfn.AGGREGATE(3,5,$B$3:B46) -> 0 | F46: 0
A47: =_xlfn.AGGREGATE(3,5,$B$3:B47) -> 0 | F47: 0
A48: =_xlfn.AGGREGATE(3,5,$B$3:B48) -> 0 | F48: 0
A49: =_xlfn.AGGREGATE(3,5,$B$3:B49) -> 0 | F49: 0
A50: =_xlfn.AGGREGATE(3,5,$B$3:B50) -> 0 | F50: 0
A51: =_xlfn.AGGREGATE(3,5,$B$3:B51) -> 0 | F51: 0
A52: =_xlfn.AGGREGATE(3,5,$B$3:B52) -> 0 | F52: 0
A53: =_xlfn.AGGREGATE(3,5,$B$3:B53) -> 0 | F53: 0
A54: =_xlfn.AGGREGATE(3,5,$B$3:B54) -> 0 | F54: 0
A55: =_xlfn.AGGREGATE(3,5,$B$3:B55) -> 0 | F55: 0
A56: =_xlfn.AGGREGATE(3,5,$B$3:B56) -> 0 | F56: 0
A57: =_xlfn.AGGREGATE(3,5,$B$3:B57) -> 0 | F57: 0
A58: =_xlfn.AGGREGATE(3,5,$B$3:B58) -> 0 | F58: 0
A59: =_xlfn.AGGREGATE(3,5,$B$3:B59) -> 0 | F59: 0
A60: =_xlfn.AGGREGATE(3,5,$B$3:B60) -> 0 | F60: 0
A61: =_xlfn.AGGREGATE(3,5,$B$3:B61) -> 0 | F61: 0
A62: =_xlfn.AGGREGATE(3,5,$B$3:B62) -> 0 | F62: 0
A63: =_xlfn.AGGREGATE(3,5,$B$3:B63) -> 0 | F63: 0
A64: =_xlfn.AGGREGATE(3,5,$B$3:B64) -> 0 | F64: 0
A65: =_xlfn.AGGREGATE(3,5,$B$3:B65) -> 0 | F65: 0
A66: =_xlfn.AGGREGATE(3,5,$B$3:B66) -> 0 | F66: 0
A67: =_xlfn.AGGREGATE(3,5,$B$3:B67) -> 0 | B67: =IF(E67<>0,E67,"") ->  | F67: =E67 -> 0
A68: =_xlfn.AGGREGATE(3,5,$B$3:B68) -> 0 | F68: 0
A69: =_xlfn.AGGREGATE(3,5,$B$3:B69) -> 0 | F69: 0
A70: =_xlfn.AGGREGATE(3,5,$B$3:B70) -> 0 | F70: 0
A71: =_xlfn.AGGREGATE(3,5,$B$3:B71) -> 0 | F71: 0
A72: =_xlfn.AGGREGATE(3,5,$B$3:B72) -> 0 | F72: 0
A73: =_xlfn.AGGREGATE(3,5,$B$3:B73) -> 0 | F73: 0
A74: =_xlfn.AGGREGATE(3,5,$B$3:B74) -> 0 | F74: 0
A75: =_xlfn.AGGREGATE(3,5,$B$3:B75) -> 0 | F75: 0
A76: =_xlfn.AGGREGATE(3,5,$B$3:B76) -> 0 | F76: 0
A77: =_xlfn.AGGREGATE(3,5,$B$3:B77) -> 0 | F77: 0
A78: =_xlfn.AGGREGATE(3,5,$B$3:B78) -> 0 | F78: 0
A79: =_xlfn.AGGREGATE(3,5,$B$3:B79) -> 0 | F79: 0
A80: =_xlfn.AGGREGATE(3,5,$B$3:B80) -> 0 | F80: 0
A81: =_xlfn.AGGREGATE(3,5,$B$3:B81) -> 0 | F81: 0
A82: =_xlfn.AGGREGATE(3,5,$B$3:B82) -> 0 | F82: 0
A83: =_xlfn.AGGREGATE(3,5,$B$3:B83) -> 0 | F83: 0
A84: =_xlfn.AGGREGATE(3,5,$B$3:B84) -> 0 | F84: 0
A85: =_xlfn.AGGREGATE(3,5,$B$3:B85) -> 0 | F85: 0
A86: =_xlfn.AGGREGATE(3,5,$B$3:B86) -> 0 | F86: 0
A87: =_xlfn.AGGREGATE(3,5,$B$3:B87) -> 0 | F87: 0
A88: =_xlfn.AGGREGATE(3,5,$B$3:B88) -> 0 | F88: 0
A89: =_xlfn.AGGREGATE(3,5,$B$3:B89) -> 0 | F89: 0
A90: =_xlfn.AGGREGATE(3,5,$B$3:B90) -> 0 | F90: 0
A91: =_xlfn.AGGREGATE(3,5,$B$3:B91) -> 0 | F91: 0
A92: =_xlfn.AGGREGATE(3,5,$B$3:B92) -> 0 | F92: 0
A93: =_xlfn.AGGREGATE(3,5,$B$3:B93) -> 0 | F93: 0
A94: =_xlfn.AGGREGATE(3,5,$B$3:B94) -> 0 | F94: 0
A95: =_xlfn.AGGREGATE(3,5,$B$3:B95) -> 0 | F95: 0
A96: =_xlfn.AGGREGATE(3,5,$B$3:B96) -> 0 | F96: 0
A97: =_xlfn.AGGREGATE(3,5,$B$3:B97) -> 0 | F97: 0
A98: =_xlfn.AGGREGATE(3,5,$B$3:B98) -> 0 | F98: 0
A99: =_xlfn.AGGREGATE(3,5,$B$3:B99) -> 0 | F99: 0
A100: =_xlfn.AGGREGATE(3,5,$B$3:B100) -> 0 | F100: 0
A101: =_xlfn.AGGREGATE(3,5,$B$3:B101) -> 0 | F101: 0
A102: =_xlfn.AGGREGATE(3,5,$B$3:B102) -> 0 | F102: 0
A103: =_xlfn.AGGREGATE(3,5,$B$3:B103) -> 0 | F103: 0
A104: =_xlfn.AGGREGATE(3,5,$B$3:B104) -> 0 | F104: 0
A105: =_xlfn.AGGREGATE(3,5,$B$3:B105) -> 0 | F105: 0
A106: =_xlfn.AGGREGATE(3,5,$B$3:B106) -> 0 | F106: 0
A107: =_xlfn.AGGREGATE(3,5,$B$3:B107) -> 0 | F107: 0
A108: =_xlfn.AGGREGATE(3,5,$B$3:B108) -> 0 | F108: 0
A109: =_xlfn.AGGREGATE(3,5,$B$3:B109) -> 0 | F109: 0
A110: =_xlfn.AGGREGATE(3,5,$B$3:B110) -> 0 | F110: 0
A111: =_xlfn.AGGREGATE(3,5,$B$3:B111) -> 0 | F111: 0
A112: =_xlfn.AGGREGATE(3,5,$B$3:B112) -> 0 | F112: 0
A113: =_xlfn.AGGREGATE(3,5,$B$3:B113) -> 0 | F113: 0
A114: =_xlfn.AGGREGATE(3,5,$B$3:B114) -> 0 | F114: 0
A115: =_xlfn.AGGREGATE(3,5,$B$3:B115) -> 0 | F115: 0
A116: =_xlfn.AGGREGATE(3,5,$B$3:B116) -> 0 | F116: 0
A117: =_xlfn.AGGREGATE(3,5,$B$3:B117) -> 0 | F117: 0
A118: =_xlfn.AGGREGATE(3,5,$B$3:B118) -> 0 | F118: 0
A119: =_xlfn.AGGREGATE(3,5,$B$3:B119) -> 0 | F119: 0
A120: =_xlfn.AGGREGATE(3,5,$B$3:B120) -> 0 | F120: 0
A121: =_xlfn.AGGREGATE(3,5,$B$3:B121) -> 0 | F121: 0
A122: =_xlfn.AGGREGATE(3,5,$B$3:B122) -> 0 | F122: 0
A123: =_xlfn.AGGREGATE(3,5,$B$3:B123) -> 0 | F123: 0
A124: =_xlfn.AGGREGATE(3,5,$B$3:B124) -> 0 | F124: 0
A125: =_xlfn.AGGREGATE(3,5,$B$3:B125) -> 0 | C125: ` | F125: 0
A126: =_xlfn.AGGREGATE(3,5,$B$3:B126) -> 0 | F126: 0
A127: =_xlfn.AGGREGATE(3,5,$B$3:B127) -> 0 | F127: 0
A128: =_xlfn.AGGREGATE(3,5,$B$3:B128) -> 0 | F128: 0
A129: =_xlfn.AGGREGATE(3,5,$B$3:B129) -> 0 | F129: 0
A130: =_xlfn.AGGREGATE(3,5,$B$3:B130) -> 0 | F130: 0
A131: =_xlfn.AGGREGATE(3,5,$B$3:B131) -> 0 | B131: =IF(E131<>0,E131,"") ->  | F131: =E131 -> 0
A132: =_xlfn.AGGREGATE(3,5,$B$3:B132) -> 0 | F132: 0
A133: =_xlfn.AGGREGATE(3,5,$B$3:B133) -> 0 | F133: 0
A134: =_xlfn.AGGREGATE(3,5,$B$3:B134) -> 0 | F134: 0
A135: =_xlfn.AGGREGATE(3,5,$B$3:B135) -> 0 | F135: 0
A136: =_xlfn.AGGREGATE(3,5,$B$3:B136) -> 0 | F136: 0
A137: =_xlfn.AGGREGATE(3,5,$B$3:B137) -> 0 | F137: 0
A138: =_xlfn.AGGREGATE(3,5,$B$3:B138) -> 0 | F138: 0
A139: =_xlfn.AGGREGATE(3,5,$B$3:B139) -> 0 | F139: 0
A140: =_xlfn.AGGREGATE(3,5,$B$3:B140) -> 0 | F140: 0
A141: =_xlfn.AGGREGATE(3,5,$B$3:B141) -> 0 | F141: 0
A142: =_xlfn.AGGREGATE(3,5,$B$3:B142) -> 0 | F142: 0
A143: =_xlfn.AGGREGATE(3,5,$B$3:B143) -> 0 | F143: 0
A144: =_xlfn.AGGREGATE(3,5,$B$3:B144) -> 0 | F144: 0
A145: =_xlfn.AGGREGATE(3,5,$B$3:B145) -> 0 | F145: 0
A146: =_xlfn.AGGREGATE(3,5,$B$3:B146) -> 0 | F146: 0
A147: =_xlfn.AGGREGATE(3,5,$B$3:B147) -> 0 | F147: 0
A148: =_xlfn.AGGREGATE(3,5,$B$3:B148) -> 0 | F148: 0
A149: =_xlfn.AGGREGATE(3,5,$B$3:B149) -> 0 | F149: 0
A150: =_xlfn.AGGREGATE(3,5,$B$3:B150) -> 0 | F150: 0
A151: =_xlfn.AGGREGATE(3,5,$B$3:B151) -> 0 | F151: 0
A152: =_xlfn.AGGREGATE(3,5,$B$3:B152) -> 0 | F152: 0
A153: =_xlfn.AGGREGATE(3,5,$B$3:B153) -> 0 | F153: 0
A154: =_xlfn.AGGREGATE(3,5,$B$3:B154) -> 0 | F154: 0
A155: =_xlfn.AGGREGATE(3,5,$B$3:B155) -> 0 | F155: 0
A156: =_xlfn.AGGREGATE(3,5,$B$3:B156) -> 0 | F156: 0
A157: =_xlfn.AGGREGATE(3,5,$B$3:B157) -> 0 | F157: 0
A158: =_xlfn.AGGREGATE(3,5,$B$3:B158) -> 0 | F158: 0
A159: =_xlfn.AGGREGATE(3,5,$B$3:B159) -> 0 | F159: 0
A160: =_xlfn.AGGREGATE(3,5,$B$3:B160) -> 0 | F160: 0
A161: =_xlfn.AGGREGATE(3,5,$B$3:B161) -> 0 | F161: 0
A162: =_xlfn.AGGREGATE(3,5,$B$3:B162) -> 0 | F162: 0
A163: =_xlfn.AGGREGATE(3,5,$B$3:B163) -> 0 | F163: 0
A164: =_xlfn.AGGREGATE(3,5,$B$3:B164) -> 0 | F164: 0
A165: =_xlfn.AGGREGATE(3,5,$B$3:B165) -> 0 | F165: 0
A166: =_xlfn.AGGREGATE(3,5,$B$3:B166) -> 0 | F166: 0
A167: =_xlfn.AGGREGATE(3,5,$B$3:B167) -> 0 | F167: 0
A168: =_xlfn.AGGREGATE(3,5,$B$3:B168) -> 0 | F168: 0
A169: =_xlfn.AGGREGATE(3,5,$B$3:B169) -> 0 | F169: 0
A170: =_xlfn.AGGREGATE(3,5,$B$3:B170) -> 0 | F170: 0
A171: =_xlfn.AGGREGATE(3,5,$B$3:B171) -> 0 | F171: 0
A172: =_xlfn.AGGREGATE(3,5,$B$3:B172) -> 0 | F172: 0
A173: =_xlfn.AGGREGATE(3,5,$B$3:B173) -> 0 | F173: 0
A174: =_xlfn.AGGREGATE(3,5,$B$3:B174) -> 0 | F174: 0
A175: =_xlfn.AGGREGATE(3,5,$B$3:B175) -> 0 | F175: 0
A176: =_xlfn.AGGREGATE(3,5,$B$3:B176) -> 0 | F176: 0
A177: =_xlfn.AGGREGATE(3,5,$B$3:B177) -> 0 | F177: 0
A178: =_xlfn.AGGREGATE(3,5,$B$3:B178) -> 0 | F178: 0
A179: =_xlfn.AGGREGATE(3,5,$B$3:B179) -> 0 | F179: 0
A180: =_xlfn.AGGREGATE(3,5,$B$3:B180) -> 0 | F180: 0
A181: =_xlfn.AGGREGATE(3,5,$B$3:B181) -> 0 | F181: 0
A182: =_xlfn.AGGREGATE(3,5,$B$3:B182) -> 0 | F182: 0
A183: =_xlfn.AGGREGATE(3,5,$B$3:B183) -> 0 | F183: 0
A184: =_xlfn.AGGREGATE(3,5,$B$3:B184) -> 0 | F184: 0
A185: =_xlfn.AGGREGATE(3,5,$B$3:B185) -> 0 | F185: 0
A186: =_xlfn.AGGREGATE(3,5,$B$3:B186) -> 0 | F186: 0
A187: =_xlfn.AGGREGATE(3,5,$B$3:B187) -> 0 | F187: 0
A188: =_xlfn.AGGREGATE(3,5,$B$3:B188) -> 0 | F188: 0
A189: =_xlfn.AGGREGATE(3,5,$B$3:B189) -> 0 | F189: 0
A190: =_xlfn.AGGREGATE(3,5,$B$3:B190) -> 0 | F190: 0
A191: =_xlfn.AGGREGATE(3,5,$B$3:B191) -> 0 | F191: 0
A192: =_xlfn.AGGREGATE(3,5,$B$3:B192) -> 0 | F192: 0
A193: =_xlfn.AGGREGATE(3,5,$B$3:B193) -> 0 | F193: 0
A194: =_xlfn.AGGREGATE(3,5,$B$3:B194) -> 0 | F194: 0
A195: =_xlfn.AGGREGATE(3,5,$B$3:B195) -> 0 | B195: =IF(E195<>0,E195,"") ->  | F195: =E195 -> 0
A196: =_xlfn.AGGREGATE(3,5,$B$3:B196) -> 0 | F196: 0
A197: =_xlfn.AGGREGATE(3,5,$B$3:B197) -> 0 | F197: 0
A198: =_xlfn.AGGREGATE(3,5,$B$3:B198) -> 0 | F198: 0
A199: =_xlfn.AGGREGATE(3,5,$B$3:B199) -> 0 | F199: 0
A200: =_xlfn.AGGREGATE(3,5,$B$3:B200) -> 0 | F200: 0
... 429 more rows
